Workbook

Sheet __snloffice (hidden)
A1: 允䅁䉁䅁䅁䍁䅁䅁䅁䩁䅁䅁杄䅁䑁䅉䅍硁䑁䅧兕硁䅁䅁兂䅁䅁䄴䅁祁䑁䅁免㑁䙁䅅杍䅁䅁䅣䅁佁䅁䅁杍睁䑁䅅䅏剂䑁䅍䅁䥁䅁䅁杄䅁䑁䅉䅍硁䑁䅧兕ぁ䅁䅁䅁䅁䑁䅙䅁䉂䡁䅙睚杁䕁䅣兙穂䍁䅁睑ㅂ䡁䅍䅤療䝁䄰党祂䡁䅍䅉潁䝁䅅睙あ䡁䅕兙獂䍁䅫䅁䕁䅁䅁杆䅁䕁䅕杢あ䝁䅫䅤㕂䍁䅁兓䕂䍁䅁䅁佁䅁䅁杇䅁䕁䅕杢あ䝁䅫䅤㕂䍁䅁杔桂䝁䄰党杁䅁䅁兄䅁䍁䅑䅁䩂䝁䄴督あ䝁䅫䅤ㅂ䡁䅑兡療䝁䄴䅉佂䝁䅅兢求䍁䅁䅁䭁䅁䅁杪䅁䕁䄸䅣あ䝁䅫睢畂䡁䅍杏䑂䡁䅕杣祂䑁䄰杕求䡁䅁睢祂䡁䅑党歂䍁䅁睙ㅂ䡁䅉杣求䝁䄴睙㕂䍁䅷兔桂䝁䅣児乂䕁䅫督あ䝁䅅杢歂䝁䅅杣歂䍁䅷睑療䝁䄴杤乂䝁䅕䅤潂䝁䄸䅚㥁䕁䄰兓祂䝁䅕睙療䝁䄰兢求䝁䄴䅚求䝁䅑䅁䍁䅁䅁䅶䅁䕁䄸䅣あ䝁䅫睢畂䡁䅍杏䑂䡁䅕杣祂䑁䄰杕求䡁䅁睢祂䡁䅑党歂䍁䅁睙ㅂ䡁䅉杣求䝁䄴睙㕂䍁䅷兔桂䝁䅣児呂䡁䅑兙畂䝁䅑兙祂䝁䅑䅌䑂䝁䄸杢㉂䕁䄰党あ䝁䅧睢歂䑁䄰杕求䝁䅍睢瑂䝁䄰党畂䝁䅑党歂䍁䅷杒灂䝁䅷兡畂䝁䅣杖求䡁䅉児䑂䡁䅕杣祂䝁䅕杢あ䍁䄸杕求䡁䅍䅤桂䡁䅑党歂䅁䅁䅄䅁䍁䅧䅁偂䡁䅉兡湂䝁䅫杢桂䝁䅷䅢㕂䍁䅁杕求䡁䅁睢祂䡁䅑党歂䅁䅁允䅁䙁䅉䅁卂䝁䅕䅣療䡁䅉䅤求䝁䅑䅉佂䝁䅕䅤杁䕁䄸䅣求䡁䅉兙あ䝁䅫杢湂䍁䅁兓畂䝁䅍睢瑂䝁䅕䅉潁䙁䅉党睂䝁䄸杣あ䝁䅕䅚灁䅁䅁睁䅁䍁䅯䅁呂䕁䄴䅔杁䕁䅫杢穂䡁䅑兡あ䡁䅕䅤灂䝁䄸杢杁䕁䅳党㕂䍁䅁䅁䱁䅁䅁䅅䅁䙁䅑兡橂䝁䅳党祂䍁䅁䅁偁䅁䅁杍䅁䙁䅑睢あ䝁䅅䅢杁䙁䅉党㉂䝁䅕杢ㅂ䝁䅕䅉潁䙁䅉党睂䝁䄸杣あ䝁䅕䅚灁䅁䅁杂䅁䅁䅁䅁㵁

Sheet 1.1 Recommended Cap Structure
A1: =Input!G28 -> Atmos Energy Corporation
A2: Recommended Capital Structure and Cost Rates
A3: for Ratemaking Purposes
B6: Type Of Capital | D6: Ratios (1) | F6: Cost Rate | H6: Weighted Cost Rate
B8: Long-Term Debt | D8: =Input!F13 -> 0.4236 | F8: =Input!F16 -> 0.0384 | G8: (1) | H8: =ROUND(F8*D8,4) -> 0.0163
B9: Short-Term Debt | D9: =Input!F15 -> 0.0005 | F9: =Input!F17 -> 0.8094 | G9: (1) | H9: =ROUND(F9*D9,4) -> 0.0004
B10: Common Equity | D10: =Input!F14 -> 0.5759 | F10: ='1.2 Summary of CE Models'!E25 -> 0.1035 | G10: (2) | H10: =ROUND(F10*D10,4) -> 0.0596
B12: Total | D12: =SUM(D8:D10)-0.0001 -> 0.9999 | H12: =SUM(H8:H10) -> 0.0763
A15: Notes:
A17: (1) | B17: Company-provided.
A18: (2) | B18: From page 2 of this Schedule.

Sheet 1.2 Summary of CE Models
A1: =Input!G28 -> Atmos Energy Corporation
A2: Brief Summary of Common Equity Cost Rate
A5: Line No. | C5: Principal Methods | E5: =Input!I31 -> Proxy Group of Seven Natural Gas Distribution Companies
A7: 1. | C7: Discounted Cash Flow Model (DCF) (1) | E7: =AVERAGE('1.3 DCF Summary'!Y21)/100 -> 0.0976
G8: =MIN(E7:E13) -> 0.0976
A9: 2. | C9: Risk Premium Model (RPM) (2) | E9: =IFERROR('1.11 RP Summary'!D10,"NA")/100 -> 0.103 | G9: =MAX(E7:E13) -> 0.1299
A11: 3. | C11: Capital Asset Pricing Model (CAPM) (3) | E11: =IFERROR('1.24 CAPM'!V21,"NA")/100 -> 0.121
A13: 4. | C13: Market Models Applied to Comparable Risk, Non-Price Regulated Companies (4) | E13: =IFERROR('1.29 CEM Summary'!E19,"NA")/100 -> 0.1299
A15: 5. | C15: Range of Common Equity Model Results | E15: =_xlfn.CONCAT(TEXT(G8,"0.00%")," - ",TEXT(G9,"0.00%")) -> 9.76% - 12.99%
A17: 6. | C17: Size Risk Adjustment (5) | E17: 0.002 | G17: =G8+E17+E19+E21 -> 0.09944055454
G18: =G9+E17+E19+E21 -> 0.1317405545
A19: 7. | C19: Credit Risk Adjustment (6) | E19: =-'Market Data'!I4/100 -> -0.0008
A21: 8. | C21: Flotation Cost Adjustment (7) | E21: ='1.37 Equity Contributions'!M26/100 -> 0.0006405545436
A23: 9. | C23: Indicated Range of Common Equity Cost Rates after Adjustment | E23: =_xlfn.CONCAT(TEXT(G17,"0.00%")," - ",TEXT(G18,"0.00%")) -> 9.94% - 13.17%
A25: 10. | C25: Recommended Common Equity Cost Rate | E25: 0.1035
A27: Notes: | B27: (1) | C27: From page 3 of this Schedule.
B28: (2) | C28: From page 11 of this Schedule.
B29: (3) | C29: From page 24 of this Schedule.
B30: (4) | C30: From page 29 of this Schedule.
B31: (5) | C31: Adjustment to reflect the Company's greater business risk due to its smaller size relative to the Utility Proxy Group as detailed in Mr. D'Ascendis' direct testimony.
B32: (6) | C32: Company-specific risk adjustment to reflect Atmos Energy's lower risk due to a higher long-term issuer rating relative to the proxy group as detailed in Mr. D'Ascendis' direct testimony.
B33: (7) | C33: From page 37 of this Schedule.

Sheet 1.3 DCF Summary
B1: =Input!G28 -> Atmos Energy Corporation
B2: Indicated Common Equity Cost Rate Using the Discounted Cash Flow Model for the
B3: =Input!I31 -> Proxy Group of Seven Natural Gas Distribution Companies
D5: [1] | G5: [2] | J5: [3] | M5: [4] | P5: [5] | S5: [6] | V5: [7] | Y5: [8]
B7: =B3 -> Proxy Group of Seven Natural Gas Distribution Companies | D7: Average Dividend Yield (1) | G7: Value Line Projected Five Year Growth in EPS (2) | J7: Zack's Five Year Projected Growth Rate in EPS | M7: Bloomberg's Five Year Projected Growth Rate in EPS | P7: Yahoo! Finance Projected Five Year Growth in EPS | S7: Average Projected Five Year Growth in EPS (3) | V7: Adjusted Dividend Yield (4) | Y7: Indicated Common Equity Cost Rate (5)
A9: =Input!A2 -> ATO | B9: ='Proxy Data Lookup'!B3 -> Atmos Energy Corporation | D9: =HLOOKUP(A9,'Proxy Prices'!$B$4:$H$71,68,FALSE)*100 -> 2.59 | E9: % | G9: =IFERROR(('Proxy Data Lookup'!F3*100),"NA") -> 7 | H9: % | J9: =IFERROR(('Proxy Data Lookup'!C3*100),"NA") -> 7.4 | K9: % | M9: =IFERROR(('Proxy Data Lookup'!E3*100),"NA") -> 7.695 | N9: % | P9: =IFERROR(('Proxy Data Lookup'!D3*100),"NA") -> 7.8 | Q9: % | S9: =IFERROR(ROUND(AVERAGE(G9,J9,M9,P9),2),"NA") -> 7.47 | T9: % | V9: =IFERROR(D9*(1+(0.5*(S9/100))),"NA") -> 2.6867365 | W9: % | Y9: =IFERROR(V9 + S9,"NA") -> 10.1567365 | Z9: %
A10: =Input!A3 -> NJR | B10: ='Proxy Data Lookup'!B4 -> New Jersey Resources Corporation | D10: =HLOOKUP(A10,'Proxy Prices'!$B$4:$H$71,68,FALSE)*100 -> 3.85 | G10: =IFERROR(('Proxy Data Lookup'!F4*100),"NA") -> 2 | J10: =IFERROR(('Proxy Data Lookup'!C4*100),"NA") -> 7.1 | M10: =IFERROR(('Proxy Data Lookup'!E4*100),"NA") -> 7.55 | P10: =IFERROR(('Proxy Data Lookup'!D4*100),"NA") -> 6 | S10: =IFERROR(ROUND(AVERAGE(G10,J10,M10,P10),2),"NA") -> 5.66 | V10: =IFERROR(D10*(1+(0.5*(S10/100))),"NA") -> 3.958955 | Y10: =IFERROR(V10 + S10,"NA") -> 9.618955
A11: =Input!A4 -> NWN | B11: ='Proxy Data Lookup'!B5 -> Northwest Natural Holding Company | D11: =HLOOKUP(A11,'Proxy Prices'!$B$4:$H$71,68,FALSE)*100 -> 3.76 | G11: =IFERROR(('Proxy Data Lookup'!F5*100),"NA") -> 5.5 | J11: =IFERROR(('Proxy Data Lookup'!C5*100),"NA") -> 4.9 | M11: =IFERROR(('Proxy Data Lookup'!E5*100),"NA") -> 4.93 | P11: =IFERROR(('Proxy Data Lookup'!D5*100),"NA") -> 5.5 | S11: 5.21 | V11: =IFERROR(D11*(1+(0.5*(S11/100))),"NA") -> 3.857948 | Y11: 9.067948
A12: =Input!A5 -> OGS | B12: ='Proxy Data Lookup'!B6 -> ONE Gas, Inc. | D12: =HLOOKUP(A12,'Proxy Prices'!$B$4:$H$71,68,FALSE)*100 -> 3.26 | G12: =IFERROR(('Proxy Data Lookup'!F6*100),"NA") -> 6.5 | J12: =IFERROR(('Proxy Data Lookup'!C6*100),"NA") -> 5 | M12: =IFERROR(('Proxy Data Lookup'!E6*100),"NA") -> 5 | P12: =IFERROR(('Proxy Data Lookup'!D6*100),"NA") -> 5 | S12: 5.38 | V12: =IFERROR(D12*(1+(0.5*(S12/100))),"NA") -> 3.347694 | Y12: 8.727694
A13: =Input!A6 -> SJI | B13: ='Proxy Data Lookup'!B7 -> South Jersey Industries, Inc. | D13: =HLOOKUP(A13,'Proxy Prices'!$B$4:$H$71,68,FALSE)*100 -> 4.93 | G13: =IFERROR(('Proxy Data Lookup'!F7*100),"NA") -> 11.5 | J13: =IFERROR(('Proxy Data Lookup'!C7*100),"NA") -> 5.4 | M13: =IFERROR(('Proxy Data Lookup'!E7*100),"NA") -> 3.38 | P13: =IFERROR(('Proxy Data Lookup'!D7*100),"NA") -> 4.8 | S13: 6.27 | V13: 5.0845555 | Y13: 11.3545555
A14: =Input!A7 -> SWX | B14: ='Proxy Data Lookup'!B8 -> Southwest Gas Holdings, Inc. | D14: =HLOOKUP(A14,'Proxy Prices'!$B$4:$H$71,68,FALSE)*100 -> 3.4 | G14: =IFERROR(('Proxy Data Lookup'!F8*100),"NA") -> 8 | J14: =IFERROR(('Proxy Data Lookup'!C8*100),"NA") -> 5.5 | M14: =IFERROR(('Proxy Data Lookup'!E8*100),"NA") -> 5.167 | P14: =IFERROR(('Proxy Data Lookup'!D8*100),"NA") -> 4 | S14: 5.67 | V14: 3.49639 | Y14: 9.16639
A15: =Input!A8 -> SR | B15: ='Proxy Data Lookup'!B9 -> Spire Inc. | D15: =HLOOKUP(A15,'Proxy Prices'!$B$4:$H$71,68,FALSE)*100 -> 3.81 | G15: =IFERROR(('Proxy Data Lookup'!F9*100),"NA") -> 10 | J15: =IFERROR(('Proxy Data Lookup'!C9*100),"NA") -> 5.5 | M15: =IFERROR(('Proxy Data Lookup'!E9*100),"NA") -> 5.995 | P15: =IFERROR(('Proxy Data Lookup'!D9*100),"NA") -> 7.31 | S15: 7.2 | V15: =IFERROR(D15*(1+(0.5*(S15/100))),"NA") -> 3.94716 | Y15: 11.14716
V17: Average | Y17: =ROUND(AVERAGE(Y9:Y15),2) -> 9.89 | Z17: %
V19: Median | Y19: =ROUND(MEDIAN(Y9:Y15),2) -> 9.62 | Z19: %
V21: Average of Mean and Median | Y21: =ROUND(AVERAGE(Y17:Y19),2) -> 9.76 | Z21: %
E24: NA= Not Available
E25: NMF= Not Meaningful Figure
D27: Notes:
E28: (1) | F28: =CONCATENATE("Indicated dividend at ",TEXT(Input!E2,"mm/dd/yyyy")," divided by the average closing price of the last 60 trading days ending ",TEXT(Input!E2,"mm/dd/yyyy")," for each company.") -> Indicated dividend at 09/30/2021 divided by the average closing price of the last 60 trading days ending 09/30/2021 for each company.
E29: (2) | F29: From pages 4 through 10 of this Schedule.
E30: (3) | F30: Average of columns 2 through 5 excluding negative growth rates.
E31: (4) | F31: =CONCATENATE("This reflects a growth rate component equal to one-half the conclusion of growth rate (from column 6) x column 1 to reflect the periodic payment of dividends (Gordon Model) as opposed to the continuous payment. Thus, for ",B9,", ",TEXT(D9,"#0.00"),"% x (1+( 1/2 x ",TEXT(S9,"#0.00"),"%) ) = ",TEXT(V9,"#0.00"),"%.") -> This reflects a growth rate component equal to one-half the conclusion of growth rate (from column 6) x column 1 to reflect the periodic payment of dividends (Gordon Model) as opposed to the continuous payment. Thus, for Atmos Energy Corporation, 2.59% x (1+( 1/2 x 7.47%) ) = 2.69%.
E32: (5) | F32: Column 6 + column 7.
B34: Source of Information: | E34: Value Line Investment Survey
E35: =CONCATENATE("www.zacks.com Downloaded on ",TEXT(Input!E2,"mm/dd/yyyy")) -> www.zacks.com Downloaded on 09/30/2021
E36: =CONCATENATE("www.yahoo.com Downloaded on ",TEXT(Input!E2,"mm/dd/yyyy")) -> www.yahoo.com Downloaded on 09/30/2021
E37: Bloomberg Professional Services

Sheet 1.11 RP Summary
A1: =Input!G28 -> Atmos Energy Corporation
A2: Summary of Risk Premium Models for the
A3: =Input!I31 -> Proxy Group of Seven Natural Gas Distribution Companies
D5: =A3 -> Proxy Group of Seven Natural Gas Distribution Companies
A6: Predictive Risk Premium Model (PRPM) (1) | D6: =IFERROR('1.12 Ind. PRPM Results'!P22*100,"NA") -> 10.06 | E6: %
A8: Risk Premium Using an Adjusted Total Market Approach (2) | D8: =IFERROR('1.13 Risk Premium Summary'!G28,"NA") -> 10.53 | E8: %
C10: Average | D10: =IFERROR(ROUND(AVERAGE(D6:D8),2),"NA") -> 10.3 | E10: %
A12: Notes:
A13: (1) | B13: From page 12 of this Schedule.
A14: (2) | B14: From page 13 of this Schedule.

Sheet 1.12 Ind. PRPM Results
B1: =Input!G28 -> Atmos Energy Corporation
B2: Indicated ROE
B3: Derived by the Predictive Risk Premium Model (1)
D6: [1] | F6: [2] | H6: [3] | J6: [4] | L6: [5] | N6: [6] | P6: [7]
B8: =Input!I31 -> Proxy Group of Seven Natural Gas Distribution Companies | D8: LT Average Predicted Variance | F8: Spot Predicted Variance | H8: Recommended Variance (2) | J8: GARCH Coefficient | L8: Predicted Risk Premium (3) | N8: Risk-Free Rate (4) | P8: Indicated ROE (5)
A10: =Input!A2 -> ATO | B10: ='Proxy Data Lookup'!B3 -> Atmos Energy Corporation | D10: ='PRPM WP 1'!$B$1155 -> 0.003340882913 | F10: ='PRPM WP 1'!$B$1157 -> 0.00336725147 | H10: =AVERAGE(D10:F10) -> 0.003354067192 | J10: ='PRPM WP 1'!$B$1159 -> 2.170924 | L10: =ROUND((1+(H10*J10))^12-1,4) -> 0.091 | N10: ='MRP WP1'!F$37/100 -> 0.0276 | P10: =N10+L10 -> 0.1186
A11: =Input!A3 -> NJR | B11: ='Proxy Data Lookup'!B4 -> New Jersey Resources Corporation | D11: ='PRPM WP 1'!$C$1155 -> 0.00381715511 | F11: ='PRPM WP 1'!$C$1157 -> 0.00314962747 | H11: =AVERAGE(D11:F11) -> 0.00348339129 | J11: ='PRPM WP 1'!$C$1159 -> 1.984445 | L11: =ROUND((1+(H11*J11))^12-1,4) -> 0.0862 | N11: ='MRP WP1'!F$37/100 -> 0.0276 | P11: =N11+L11 -> 0.1138
A12: =Input!A4 -> NWN | B12: ='Proxy Data Lookup'!B5 -> Northwest Natural Holding Company | D12: ='PRPM WP 1'!$D$1155 -> 0.003241881858 | F12: ='PRPM WP 1'!$D$1157 -> 0.002420453961 | H12: 0.002831167909 | J12: ='PRPM WP 1'!$D$1159 -> 1.46553 | L12: 0.0509 | N12: ='MRP WP1'!F$37/100 -> 0.0276 | P12: 0.0785
A13: =Input!A5 -> OGS | B13: ='Proxy Data Lookup'!B6 -> ONE Gas, Inc. | D13: ='PRPM WP 1'!$E$1155 -> 0.003059733104 | F13: ='PRPM WP 1'!$E$1157 -> 0.003397901928 | H13: =AVERAGE(D13:F13) -> 0.003228817516 | J13: ='PRPM WP 1'!$E$1159 -> 3.138177 | L13: =ROUND((1+(H13*J13))^12-1,4) -> 0.1286 | N13: ='MRP WP1'!F$37/100 -> 0.0276 | P13: NMF
A14: =Input!A6 -> SJI | B14: ='Proxy Data Lookup'!B7 -> South Jersey Industries, Inc. | D14: ='PRPM WP 1'!$F$1155 -> 0.003877971112 | F14: ='PRPM WP 1'!$F$1157 -> 0.004419173187 | H14: 0.00414857215 | J14: ='PRPM WP 1'!$F$1159 -> 1.568125 | L14: 0.0809 | N14: ='MRP WP1'!F$37/100 -> 0.0276 | P14: =N14+L14 -> 0.1085
A15: =Input!A7 -> SWX | B15: ='Proxy Data Lookup'!B8 -> Southwest Gas Holdings, Inc. | D15: ='PRPM WP 1'!$G$1155 -> 0.004321974142 | F15: ='PRPM WP 1'!$G$1157 -> 0.003215020676 | H15: 0.003768497409 | J15: ='PRPM WP 1'!$G$1159 -> 1.369733 | L15: 0.0637 | N15: ='MRP WP1'!F$37/100 -> 0.0276 | P15: 0.0913
A16: =Input!A8 -> SR | B16: ='Proxy Data Lookup'!B9 -> Spire Inc. | D16: ='PRPM WP 1'!$H$1155 -> 0.007093693844 | F16: ='PRPM WP 1'!$H$1157 -> 0.00424038054 | H16: 0.005667037192 | J16: ='PRPM WP 1'!$H$1159 -> 0.929763 | L16: 0.0651 | N16: ='MRP WP1'!F$37/100 -> 0.0276 | P16: 0.0927
N18: Average | P18: =ROUND(AVERAGE($P9:$P16),4) -> 0.1006
N20: Median | P20: =ROUND(MEDIAN($P9:$P16),4) -> 0.1006
N22: Average of Mean and Median | P22: =ROUND(AVERAGE(P18:P20),4) -> 0.1006
B26: Notes:
B27: (1) | D27: The Predictive Risk Premium Model uses historical data to generate a predicted variance and a GARCH coefficient. The historical data used are the equity risk premiums for the first available trading month as reported by Bloomberg Professional Service.
B28: (2) | D28: Given current market conditions, I recommend using average of the the long-term average predicted variance and the spot variance.
B29: (3) | D29: (1+(Column [3] * Column [4])^12) - 1.
B30: (4) | D30: From note 2 on page 25 of this Schedule.
B31: (5) | D31: Column [5] + Column [6].

Sheet 1.13 Risk Premium Summary
A1: =Input!G28 -> Atmos Energy Corporation
A2: Indicated Common Equity Cost Rate
A3: Through Use of a Risk Premium Model
A4: Using an Adjusted Total Market Approach
A6: Line No. | G6: =Input!I31 -> Proxy Group of Seven Natural Gas Distribution Companies
A9: 1. | C9: Prospective Yield on Aaa Rated
C10: Corporate Bonds (1) | G10: ='MRP WP1'!$M$37 -> 3.5 | H10: %
A12: 2. | C12: Adjustment to Reflect Yield Spread
C13: Between Aaa Rated Corporate
C14: Bonds and A2 Rated Public
C15: Utility Bonds | G15: ='1.14 Moody''s Bond Yields'!L21 -> 0.4 | H15: (2)
A17: 3. | C17: Adjusted Prospective Yield on A2 Rated
C18: Public Utility Bonds | G18: =SUM(G10:G15) -> 3.9 | H18: %
A20: 4. | C20: Adjustment to Reflect Bond
C21: Rating Difference of Proxy Group | G21: =ROUND((1/6)*'1.14 Moody''s Bond Yields'!L24,2) -> 0.04 | H21: (3)
A23: 5. | C23: Adjusted Prospective Bond Yield | G23: =SUM(G18:G21) -> 3.94 | H23: %
A25: 6. | C25: Equity Risk Premium (4) | G25: ='1.17 ERP Determination'!E25 -> 6.59
A27: 7. | C27: Risk Premium Derived Common
C28: Equity Cost Rate | G28: =SUM(G23:G25) -> 10.53 | H28: %
A31: Notes: | B31: (1) | C31: Consensus forecast of Moody's Aaa Rated Corporate bonds from Blue Chip Financial Forecasts (see pages 20 and 21 of this Schedule).
B32: (2) | C32: =CONCATENATE("The average yield spread of A2 rated public utility bonds over Aaa rated corporate bonds of ",TEXT('1.14 Moody''s Bond Yields'!L21,"#0.00"),"% from page 14 of this Schedule.") -> The average yield spread of A2 rated public utility bonds over Aaa rated corporate bonds of 0.40% from page 14 of this Schedule.
B33: (3) | C33: =CONCATENATE("Adjustment to reflect the A2/A3 Moody's LT issuer rating of the Utility Proxy Group as shown on page 15 of this Schedule. The ",G21,"% upward adjustment is derived by taking 1/6 of the spread between A2 and Baa2 Public Utility Bonds (1/6 * ",'1.14 Moody''s Bond Yields'!L24,"% = ",TEXT('1.13 Risk Premium Summary'!G21,"#0.00"),"%) as derived from page 14 of this Schedule.") -> Adjustment to reflect the A2/A3 Moody's LT issuer rating of the Utility Proxy Group as shown on page 15 of this Schedule. The 0.04% upward adjustment is derived by taking 1/6 of the spread between A2 and Baa2 Public Utility Bonds (1/6 * 0.24% = 0.04%) as derived from page 14 of this Schedule.
B34: (4) | C34: From page 17 of this Schedule.

Sheet 1.14 Moody's Bond Yields
A1: =Input!G28 -> Atmos Energy Corporation
A2: Interest Rates and Bond Spreads for
A3: Moody's Corporate and Public Utility Bonds
A6: Selected Bond Yields - Moody's
C8: [1] | F8: [2] | I8: [3] | L8: [4]
C10: Aaa Rated Corporate Bond | F10: Aa2 Rated Public Utility Bond | I10: A2 Rated Public Utility Bond | L10: Baa2 Rated Public Utility Bond
A12: ='Market Data'!B1 -> 2021-09-30 | C12: ='Market Data'!B5 -> 2.53 | D12: % | F12: ='Market Data'!B2 -> 2.84 | G12: % | I12: ='Market Data'!B3 -> 2.96 | J12: % | L12: ='Market Data'!B4 -> 3.19 | M12: %
A13: ='Market Data'!C1 -> 2021-08-31 | C13: ='Market Data'!C5 -> 2.55 | F13: ='Market Data'!C2 -> 2.82 | I13: ='Market Data'!C3 -> 2.95 | L13: ='Market Data'!C4 -> 3.19
A14: ='Market Data'!D1 -> 2021-07-31 | C14: ='Market Data'!D5 -> 2.57 | F14: ='Market Data'!D2 -> 2.8 | I14: ='Market Data'!D3 -> 2.95 | L14: ='Market Data'!D4 -> 3.2
A16: Average | C16: =ROUND(AVERAGE(C12:C14),2) -> 2.55 | D16: % | F16: =ROUND(AVERAGE(F12:F14),2) -> 2.82 | G16: % | I16: =ROUND(AVERAGE(I12:I14),2) -> 2.95 | J16: % | L16: =ROUND(AVERAGE(L12:L14),2) -> 3.19 | M16: %
A18: Selected Bond Spreads
A20: A2 Rated Public Utility Bonds Over Aaa Rated Corporate Bonds:
L21: =I16-C16 -> 0.4 | M21: % (1)
A23: Baa2 Rated Public Utility Bonds Over A2 Rated Public Utility Bonds:
L24: =ROUND(L16-I16,2) -> 0.24 | M24: % (2)
A26: A2 Rated Public Utility Bonds Over Aa2 Rated Public Utility Bonds:
L27: =ROUND(I16-F16,2) -> 0.13 | M27: % (3)
A28: Notes:
A29: (1) | B29: Column [3] - Column [1].
A30: (2) | B30: Column [4] - Column [3].
A31: (3) | B31: Column [3] - Column [2].
A33: Source of Information:
A34: Bloomberg Professional Service

Sheet 1.15 Bond Ratings
B1: =Input!G28 -> Atmos Energy Corporation
B2: Comparison of Long-Term Issuer Ratings for
B3: ='1.13 Risk Premium Summary'!G6 -> Proxy Group of Seven Natural Gas Distribution Companies
E6: Moody's | I6: Standard & Poor's
E7: Long-Term Issuer Rating | I7: Long-Term Issuer Rating
E8: =TEXT(Input!E2,"mmmm yyyy") -> September 2021 | I8: =E8 -> September 2021
B11: =B3 -> Proxy Group of Seven Natural Gas Distribution Companies | E11: Long-Term Issuer Rating (1) | G11: Numerical Weighting (2) | I11: =E11 -> Long-Term Issuer Rating (1) | K11: Numerical Weighting (2)
A13: =Input!A2 -> ATO | B13: ='Proxy Data Lookup'!B3 -> Atmos Energy Corporation | E13: ='Proxy Data Lookup'!P3 -> A1 | G13: =IFERROR(INDEX('1.16 MOODY_S&P numbericl'!D$6:D$26,MATCH('1.15 Bond Ratings'!E13,'1.16 MOODY_S&P numbericl'!B$6:B$26,0)), " - -") -> 5 | I13: ='Proxy Data Lookup'!O3 -> A- | K13: =IFERROR(INDEX('1.16 MOODY_S&P numbericl'!H$6:H$26,MATCH('1.15 Bond Ratings'!I13,'1.16 MOODY_S&P numbericl'!F$6:F$26,0)), " - -") -> 7
A14: =Input!A3 -> NJR | B14: ='Proxy Data Lookup'!B4 -> New Jersey Resources Corporation | E14: ='Proxy Data Lookup'!P4 -> A1 | G14: =IFERROR(INDEX('1.16 MOODY_S&P numbericl'!D$6:D$26,MATCH('1.15 Bond Ratings'!E14,'1.16 MOODY_S&P numbericl'!B$6:B$26,0)), " - -") -> 5 | I14: ='Proxy Data Lookup'!O4 -> NR | K14: =IFERROR(INDEX('1.16 MOODY_S&P numbericl'!H$6:H$26,MATCH('1.15 Bond Ratings'!I14,'1.16 MOODY_S&P numbericl'!F$6:F$26,0)), " - -") -> - -
A15: =Input!A4 -> NWN | B15: ='Proxy Data Lookup'!B5 -> Northwest Natural Holding Company | E15: ='Proxy Data Lookup'!P5 -> Baa1 | G15: =IFERROR(INDEX('1.16 MOODY_S&P numbericl'!D$6:D$26,MATCH('1.15 Bond Ratings'!E15,'1.16 MOODY_S&P numbericl'!B$6:B$26,0)), " - -") -> 8 | I15: ='Proxy Data Lookup'!O5 -> A+ | K15: =IFERROR(INDEX('1.16 MOODY_S&P numbericl'!H$6:H$26,MATCH('1.15 Bond Ratings'!I15,'1.16 MOODY_S&P numbericl'!F$6:F$26,0)), " - -") -> 5
A16: =Input!A5 -> OGS | B16: ='Proxy Data Lookup'!B6 -> ONE Gas, Inc. | E16: ='Proxy Data Lookup'!P6 -> A3 | G16: =IFERROR(INDEX('1.16 MOODY_S&P numbericl'!D$6:D$26,MATCH('1.15 Bond Ratings'!E16,'1.16 MOODY_S&P numbericl'!B$6:B$26,0)), " - -") -> 7 | I16: ='Proxy Data Lookup'!O6 -> BBB+ | K16: =IFERROR(INDEX('1.16 MOODY_S&P numbericl'!H$6:H$26,MATCH('1.15 Bond Ratings'!I16,'1.16 MOODY_S&P numbericl'!F$6:F$26,0)), " - -") -> 8
A17: =Input!A6 -> SJI | B17: ='Proxy Data Lookup'!B7 -> South Jersey Industries, Inc. | E17: ='Proxy Data Lookup'!P7 -> A3 | G17: =IFERROR(INDEX('1.16 MOODY_S&P numbericl'!D$6:D$26,MATCH('1.15 Bond Ratings'!E17,'1.16 MOODY_S&P numbericl'!B$6:B$26,0)), " - -") -> 7 | I17: ='Proxy Data Lookup'!O7 -> BBB | K17: =IFERROR(INDEX('1.16 MOODY_S&P numbericl'!H$6:H$26,MATCH('1.15 Bond Ratings'!I17,'1.16 MOODY_S&P numbericl'!F$6:F$26,0)), " - -") -> 9
A18: =Input!A7 -> SWX | B18: ='Proxy Data Lookup'!B8 -> Southwest Gas Holdings, Inc. | E18: ='Proxy Data Lookup'!P8 -> Baa1 | G18: =IFERROR(INDEX('1.16 MOODY_S&P numbericl'!D$6:D$26,MATCH('1.15 Bond Ratings'!E18,'1.16 MOODY_S&P numbericl'!B$6:B$26,0)), " - -") -> 8 | I18: ='Proxy Data Lookup'!O8 -> BBB | K18: =IFERROR(INDEX('1.16 MOODY_S&P numbericl'!H$6:H$26,MATCH('1.15 Bond Ratings'!I18,'1.16 MOODY_S&P numbericl'!F$6:F$26,0)), " - -") -> 9
A19: =Input!A8 -> SR | B19: ='Proxy Data Lookup'!B9 -> Spire Inc. | E19: ='Proxy Data Lookup'!P9 -> A1/A2 | G19: 5.5 | I19: ='Proxy Data Lookup'!O9 -> A- | K19: =IFERROR(INDEX('1.16 MOODY_S&P numbericl'!H$6:H$26,MATCH('1.15 Bond Ratings'!I19,'1.16 MOODY_S&P numbericl'!F$6:F$26,0)), " - -") -> 7
C21: Average | E21: A2/A3 | G21: =ROUND(AVERAGE(G12:G19),1) -> 6.5 | I21: A-/BBB+ | K21: =ROUND(AVERAGE(K12:K19),1) -> 7.5
B24: Notes:
B26: (1) | C26: Ratings are that of the average of each company's utility operating subsidiaries.
B27: (2) | C27: From page 16 of this Schedule.
C29: Source Information: | E29: Moody's Investors Service
E30: Standard & Poor's Global Utilities Rating Service

Sheet 1.16 MOODY_S&P numbericl
B1: Numerical Assignment for
B2: Moody's and Standard & Poor's Bond Ratings
B4: Moody's Bond Rating | D4: Numerical Bond Weighting | F4: Standard & Poor's Bond Rating | H4: =D4 -> Numerical Bond Weighting
B6: Aaa | D6: 1 | F6: AAA | H6: =IF(D6="","",D6) -> 1
H7: =IF(D7="","",D7) -> 
B8: Aa1 | D8: 2 | F8: AA+ | H8: 2
B9: Aa2 | D9: 3 | F9: AA | H9: 3
B10: Aa3 | D10: 4 | F10: AA- | H10: 4
B12: A1 | D12: 5 | F12: A+ | H12: 5
B13: A2 | D13: 6 | F13: A | H13: 6
B14: A3 | D14: 7 | F14: A- | H14: 7
B16: Baa1 | D16: 8 | F16: BBB+ | H16: 8
B17: Baa2 | D17: 9 | F17: BBB | H17: =IF(D17="","",D17) -> 9
B18: Baa3 | D18: 10 | F18: BBB- | H18: 10
B20: Ba1 | D20: 11 | F20: BB+ | H20: 11
B21: Ba2 | D21: 12 | F21: BB | H21: =IF(D21="","",D21) -> 12
B22: Ba3 | D22: 13 | F22: BB- | H22: 13
B24: B1 | D24: 14 | F24: B+ | H24: 14
B25: B2 | D25: 15 | F25: B | H25: 15
B26: B3 | D26: 16 | F26: B- | H26: 16

Sheet 1.17 ERP Determination
A1: =Input!G28 -> Atmos Energy Corporation
A2: Judgment of Equity Risk Premium for
A3: =E6 -> Proxy Group of Seven Natural Gas Distribution Companies
A6: Line No. | E6: ='1.15 Bond Ratings'!B3 -> Proxy Group of Seven Natural Gas Distribution Companies
A9: 1. | C9: Calculated equity risk
C10: premium based on the
C11: total market using
C12: the beta approach (1) | E12: ='1.18-1.19 Beta Adjusted ERP'!F27 -> 8.45 | F12: %
A14: 2. | C14: Mean equity risk premium
C15: based on a study
C16: using the holding period
C17: returns of public utilities
C18: with A rated bonds (2) | E18: ='1.22 S&P RPM Study Returns'!E19 -> 5.63
A20: 3. | C20: Predicted Equity Risk Premium
C21: Based on Regression Analysis
C22: of 805 Fully-Litigated Natural
C23: Gas Utility Rate Cases | E23: ='1.23 Past Rate Cases Gas'!AF25 -> 5.680174129
A25: 4. | C25: Average equity risk premium | E25: =ROUND(AVERAGE(E12:E23),2) -> 6.59 | F25: %
A28: Notes: | B28: (1) | C28: From page 18 of this Schedule.
B29: (2) | C29: From page 22 of this Schedule.
B30: (3) | C30: From page 23 of this Schedule.

Sheet 1.18-1.19 Beta Adjusted ERP
A1: =Input!G28 -> Atmos Energy Corporation
A2: Derivation of Equity Risk Premium Based on the Total Market Approach
A3: Using the Beta for the
A4: ='1.17 ERP Determination'!E6 -> Proxy Group of Seven Natural Gas Distribution Companies
A7: Line No. | C7: ='1.33 CEM Beta Adjusted RP'!C7 -> Equity Risk Premium Measure | F7: =A4 -> Proxy Group of Seven Natural Gas Distribution Companies
B9: Ibbotson-Based Equity Risk Premiums:
A11: 1. | C11: Ibbotson Equity Risk Premium (1) | F11: =('Market Data'!B11-'Market Data'!B12)*100 -> 5.92 | G11: %
A13: 2. | C13: Regression on Ibbotson Risk Premium Data (2) | F13: ='MRP ERP WP'!$AK$42*100 -> 8.763780723
A15: 3. | C15: Ibbotson Equity Risk Premium based on PRPM (3) | F15: ='PRPM WP 1'!K1165*100 -> 7.658041951
A17: 4. | C17: Equity Risk Premium Based on Value Line Summary and Index (4) | F17: ='MRP WP1'!$M$22*100-'MRP WP1'!$M$37 -> 6.09
A19: 5. | C19: Equity Risk Premium Based on Value Line S&P 500 Companies (5) | F19: =('MRP WP3'!H504*100)-'MRP WP1'!M37 -> 12.30817803
A21: 6. | C21: Equity Risk Premium Based on Bloomberg S&P 500 Companies (6) | F21: ='MRP WP2'!Q504*100-'MRP WP1'!M37 -> 13.77136419
A23: 7. | C23: Conclusion of Equity Risk Premium | F23: =ROUND(AVERAGE(F11:F21),2) -> 9.09 | G23: %
A25: 8. | C25: Adjusted Beta (7) | F25: ='1.24 CAPM'!H21 -> 0.93
A27: 9. | C27: Forecasted Equity Risk Premium | F27: =ROUND(F23*F25,2) -> 8.45 | G27: %
A29: Notes provided on page 19 of this Schedule.
B31: Notes:
B32: (1) | C32: =CONCATENATE("Based on the arithmetic mean historical monthly returns on large company common stocks from Duff & Phelps ",YEAR(Input!E2)," SBBI® Yearbook minus the arithmetic mean monthly yield of Moody's average Aaa and Aa corporate bonds from 1928-2020.") -> Based on the arithmetic mean historical monthly returns on large company common stocks from Duff & Phelps 2021 SBBI® Yearbook minus the arithmetic mean monthly yield of Moody's average Aaa and Aa corporate bonds from 1928-2020.
B34: (2) | C34: This equity risk premium is based on a regression of the monthly equity risk premiums of large company common stocks relative to Moody's average Aaa and Aa rated corporate bond yields from 1928-2020 referenced in Note 1 above.
B35: (3) | C35: The Predictive Risk Premium Model (PRPM) is discussed in the accompanying direct testimony. The Ibbotson equity risk premium based on the PRPM is derived by applying the PRPM to the monthly risk premiums between Ibbotson large company common stock monthly returns and average Aaa and Aa corporate monthly bond yields, from January 1928 through September 2021.
B36: (4) | C36: =CONCATENATE("The equity risk premium based on the Value Line Summary and Index is derived by subtracting the average consensus forecast of Aaa corporate bonds of ",TEXT('MRP WP1'!M37,"#0.00"),"% (from page 3 of this Schedule) from the projected 3-5 year total annual market return of ",TEXT('MRP WP1'!M22*100,"#0.00"),"% (described fully in note 1 on page 25 of this Schedule).") -> The equity risk premium based on the Value Line Summary and Index is derived by subtracting the average consensus forecast of Aaa corporate bonds of 3.50% (from page 3 of this Schedule) from the projected 3-5 year total annual market return of 9.59% (described fully in note 1 on page 25 of this Schedule).
B37: (5) | C37: Using data from Value Line for the S&P 500, an expected total return of 15.67% was derived based upon expected dividend yields and long-term earnings growth estimates as a proxy for capital appreciation. Subtracting the average consensus forecast of Aaa corporate bonds of 3.50% results in an expected equity risk premium of 12.17%.
B38: (6) | C38: Using data from the Bloomberg Professional Service for the S&P 500, an expected total return of 18.03% was derived based upon expected dividend yields and long-term earnings growth estimates as a proxy for capital appreciation. Subtracting the average consensus forecast of Aaa corporate bonds of 3.50% results in an expected equity risk premium of 14.53%.
B39: (7) | C39: Average of mean and median beta from page 24 of this Schedule.
B41: Sources of Information:
C42: Stocks, Bonds, Bills, and Inflation - 2021 SBBI Yearbook, John Wiley & Sons, Inc.
C43: Industrial Manual and Mergent Bond Record Monthly Update.
C44: Value Line Summary and Index
C45: =CONCATENATE("Blue Chip Financial Forecasts, ",Input!I25) -> Blue Chip Financial Forecasts, June 1, 2021, October 1, 2021
C46: Bloomberg Professional Service

Sheet 1.22 S&P RPM Study Returns
A1: =Input!G28 -> Atmos Energy Corporation
A2: Derivation of Mean Equity Risk Premium Based Studies
A3: Using Holding Period Returns and
A4: Projected Market Appreciation of the S&P Utility Index
A5: Line No. | E5: Implied Equity Risk Premium
B7: Equity Risk Premium based on S&P Utility Index Holding Period Returns (1):
A9: 1. | C9: Historical Equity Risk Premium | E9: =('Market Data'!B13-'Market Data'!B14)*100 -> 4.16 | F9: %
A11: 2. | C11: Regression of Historical Equity Risk Premium (2) | E11: ='MRP ERP WP'!AU42*100 -> 6.415164667
A13: 3. | C13: Forecasted Equity Risk Premium Based on PRPM (3) | E13: =ROUND('PRPM WP 1'!J1165*100,2) -> 4.76
A15: 4. | C15: Forecasted Equity Risk Premium based on Projected Total Return on the S&P Utilities Index (Value Line Data) (4) | E15: =ROUND(('ERP WP 2'!H32*100)-'1.13 Risk Premium Summary'!G18,2) -> 7.2
A17: 5. | C17: Forecasted Equity Risk Premium based on Projected Total Return on the S&P Utilities Index (Bloomberg Data) (5) | E17: =ROUND('ERP WP1'!O31*100-'1.13 Risk Premium Summary'!G18,2) -> 5.61
A19: 6. | C19: Average Equity Risk Premium (6) | E19: =ROUND(AVERAGE(E9:E17),2) -> 5.63 | F19: %
A22: Notes: | B22: (1) | C22: Based on S&P Public Utility Index monthly total returns and Moody's Public Utility Bond average monthly yields from 1928-2020. Holding period returns are calculated based upon income received (dividends and interest) plus the relative change in the market value of a security over a one-year holding period.
B23: (2) | C23: This equity risk premium is based on a regression of the monthly equity risk premiums of the S&P Utility Index relative to Moody's A2 rated public utility bond yields from 1928 - 2020 referenced in note 1 above.
B24: (3) | C24: =CONCATENATE("The Predictive Risk Premium Model (PRPM) is applied to the risk premium of the monthly total returns of the S&P Utility Index and the monthly yields on Moody's A2 rated public utility bonds from January 1928 - ",Input!G25,".") -> The Predictive Risk Premium Model (PRPM) is applied to the risk premium of the monthly total returns of the S&P Utility Index and the monthly yields on Moody's A2 rated public utility bonds from January 1928 - September 2021.
B25: (4) | C25: Using data from Value Line for the S&P Utilities Index, an expected return of 11.10% was derived based on expected dividend yields and long-term growth estimates as a proxy for market appreciation. Subtracting the expected A2 rated public utility bond yield of 3.90%, calculated on line 3 of page 13 of this Schedule results in an equity risk premium of 7.20%. (11.10% - 3.90% = 7.20%)
B26: (5) | C26: Using data from Bloomberg Professional Service for the S&P Utilities Index, an expected return of 9.51% was derived based on expected dividend yields and long-term growth estimates as a proxy for market appreciation. Subtracting the expected A2 rated public utility bond yield of 3.90%, calculated on line 3 of page 13 of this Schedule results in an equity risk premium of 5.61%. (9.51% - 3.90% = 5.61%)
B27: (6) | C27: Average of lines 1 through 5.

Sheet 1.23 Past Rate Cases Gas
A1: Rate Case History | O1: SUMMARY OUTPUT | Z1: =Input!G28 -> Atmos Energy Corporation
Z2: Prediction of Equity Risk Premiums Relative to
A3: Past Rate Cases | O3: Regression Statistics | Z3: Moody's A2 Rated Utility Bond Yields
F4: Increase Authorized | O4: Multiple R | P4: 0.9343513201
A5: State | B5: Company | C5: Case Identification | D5: Service | E5: Case Type | F5: Date | G5: Decision Type | H5: Return on Equity (%) | I5: Common Equity /Total Cap (%) | J5: A Rated Utility Bond (%) | K5: Equity Risk Premium (%) | O5: R Square | P5: 0.8730123893
A6: Illinois | B6: Northern Illinois Gas Co. | C6: D-79-0133 | D6: Natural Gas | E6: Distribution | F6: 1/3/1980 | G6: Fully Litigated | H6: 12.55 | I6: 51.81 | J6: =11.89 -> 11.89 | K6: =H6-J6 -> 0.66 | O6: Adjusted R Square | P6: 0.8728542479
A7: Pennsylvania | B7: PECO Energy Co. | C7: C-R-79030781 | D7: Natural Gas | E7: Distribution | F7: 1/4/1980 | G7: Fully Litigated | H7: 13.75 | I7: 35.1 | J7: 11.89 | K7: 1.86 | O7: Standard Error | P7: 0.7659803316
A8: Maryland | B8: Washington Gas Light Co. | C8: C-7394 0-64174 | D8: Natural Gas | E8: Distribution | F8: 1/14/1980 | G8: Fully Litigated | H8: 13.2 | I8: 36.6 | J8: 11.89 | K8: 1.31 | O8: Observations | P8: 805
A9: Georgia | B9: Atlanta Gas Light Co. | C9: D-3167-U | D9: Natural Gas | E9: Distribution | F9: 1/18/1980 | G9: Fully Litigated | H9: 14 | I9: 35.09 | J9: 12.15 | K9: 1.85
A10: Massachusetts | B10: NSTAR Gas Co. | C10: DPU-20132-G | D10: Natural Gas | E10: Distribution | F10: 1/31/1980 | G10: Fully Litigated | H10: 12.61 | I10: 52 | J10: 12.15 | K10: 0.46 | O10: ANOVA
A11: Oklahoma | B11: Oklahoma Natural Gas Co | C11: Ca-26652 | D11: Natural Gas | E11: Distribution | F11: 2/8/1980 | G11: Fully Litigated | H11: 14.5 | I11: 49.31 | J11: 12.15 | K11: 2.35 | P11: df | Q11: SS | R11: MS | S11: F | T11: Significance F
A12: Wisconsin | B12: Madison Gas and Electric Co. | C12: D-3270-UR-9-G | D12: Natural Gas | E12: Distribution | F12: 2/14/1980 | G12: Fully Litigated | H12: 13 | I12: 40 | J12: 12.15 | K12: 0.85 | O12: Regression | P12: 1 | Q12: 3238.991713 | R12: 3238.991713 | S12: 5520.451523 | T12: 0
A13: Wisconsin | B13: Wisconsin Gas LLC | C13: D-6650-GR-6 | D13: Natural Gas | E13: Distribution | F13: 2/15/1980 | G13: Fully Litigated | H13: 13 | I13: 41.2 | J13: 12.21 | K13: 0.79 | O13: Residual | P13: 803 | Q13: 471.1408723 | R13: 0.5867258684
A14: New York | B14: Niagara Mohawk Power Corp. | C14: C-27540 | D14: Natural Gas | E14: Distribution | F14: 2/29/1980 | G14: Fully Litigated | H14: 14 | I14: 38.5 | J14: 12.21 | K14: 1.79 | O14: Total | P14: 804 | Q14: 3710.132586
A15: Kansas | B15: Kansas Gas Service Co. | C15: D-119,314-U | D15: Natural Gas | E15: Distribution | F15: 3/5/1980 | G15: Fully Litigated | H15: 14 | I15: 33.65 | J15: 12.21 | K15: 1.79
A16: New York | B16: Consolidated Edison Co. of NY | C16: C-27544 | D16: Natural Gas | E16: Distribution | F16: 3/7/1980 | G16: Fully Litigated | H16: 13.5 | I16: 44.69 | J16: 12.21 | K16: 1.29 | P16: Coefficients | Q16: Standard Error | R16: t Stat | S16: P-value | T16: Lower 95% | U16: Upper 95% | V16: Lower 95.0% | W16: Upper 95.0%
A17: New York | B17: National Fuel Gas Dist Corp. | C17: C-27503 | D17: Natural Gas | E17: Distribution | F17: 3/14/1980 | G17: Fully Litigated | H17: 14 | I17: 42.1 | J17: 12.21 | K17: 1.79 | O17: Intercept | P17: 7.580049591 | Q17: 0.06968469925 | R17: 108.7763838 | S17: 0 | T17: 7.443263918 | U17: 7.716835264 | V17: 7.443263918 | W17: 7.716835264
A18: New York | B18: Orange & Rockland Utlts Inc. | C18: C-27554 | D18: Natural Gas | E18: Distribution | F18: 3/27/1980 | G18: Fully Litigated | H18: 12.69 | I18: 39.25 | J18: 13.23 | K18: -0.54 | O18: X Variable 1 | P18: -0.4871475543 | Q18: 0.006556517524 | R18: -74.29974107 | S18: 0 | T18: -0.5000174909 | U18: -0.4742776177 | V18: -0.5000174909 | W18: -0.4742776177
A19: Iowa | B19: MidAmerican Energy Co. | C19: D-RPU-78-11 | D19: Natural Gas | E19: Distribution | F19: 4/29/1980 | G19: Fully Litigated | H19: 12.5 | I19: 36.5 | J19: 14.59 | K19: -2.09
A20: Ohio | B20: Dayton Power and Light Co. | C20: C-79-372-GA-AIR | D20: Natural Gas | E20: Distribution | F20: 5/7/1980 | G20: Fully Litigated | H20: 14.27 | I20: 34.24 | J20: 14.59 | K20: -0.32
A21: New Jersey | B21: Public Service Electric Gas | C21: D-794-310-G | D21: Natural Gas | E21: Distribution | F21: 5/8/1980 | G21: Fully Litigated | H21: 13.75 | I21: 35.91 | J21: 14.59 | K21: -0.84
A22: Utah | B22: Questar Gas Co. | C22: C-80-057-01 | D22: Natural Gas | E22: Distribution | F22: 5/19/1980 | G22: Fully Litigated | H22: 15.5 | I22: 44.87 | J22: 14.59 | K22: 0.91
A23: Colorado | B23: Public Service Co. of CO | C23: D-1420-De-C80-1039 (Gas) | D23: Natural Gas | E23: Distribution | F23: 5/27/1980 | G23: Fully Litigated | H23: 14.6 | I23: 35.8 | J23: 14.29 | K23: 0.31
A24: Arizona | B24: Arizona Public Service Co. | C24: D-U-1345 De-51009-G | D24: Natural Gas | E24: Distribution | F24: 5/29/1980 | G24: Fully Litigated | H24: 16 | I24: 37.21 | J24: 14.29 | K24: 1.71 | Z24: Constant | AB24: Slope | AD24: Prospective A2 Rated Utility Bond (1) | AF24: Prospective Equity Risk Premium
A25: Maryland | B25: Baltimore Gas and Electric Co. | C25: C-7397 0-64331-G | D25: Natural Gas | E25: Distribution | F25: 6/10/1980 | G25: Fully Litigated | H25: 13.78 | I25: 38.5 | J25: 14.29 | K25: -0.51 | Z25: =P17 -> 7.580049591 | AA25: % | AB25: =P18 -> -0.4871475543 | AD25: ='1.13 Risk Premium Summary'!G18 -> 3.9 | AE25: % | AF25: =AB25*AD25+Z25 -> 5.680174129 | AG25: %
A26: Connecticut | B26: CT Natural Gas Corp. | C26: D-79-12-02 | D26: Natural Gas | E26: Distribution | F26: 6/25/1980 | G26: Fully Litigated | H26: 14.25 | I26: 41.76 | J26: 12.74 | K26: 1.51
A27: Ohio | B27: East Ohio Gas Company | C27: C-79-535-GA-AIR | D27: Natural Gas | E27: Distribution | F27: 7/9/1980 | G27: Fully Litigated | H27: 14.51 | I27: 53.69 | J27: 12.74 | K27: 1.77
A28: West Virginia | B28: Mountaineer Gas Company | C28: C-79-088-G-42T | D28: Natural Gas | E28: Distribution | F28: 7/17/1980 | G28: Fully Litigated | H28: 12.9 | I28: 42 | J28: 12.4 | K28: 0.5 | Z28: Notes:
A29: New York | B29: Rochester Gas & Electric Corp. | C29: C-27608 | D29: Natural Gas | E29: Distribution | F29: 7/18/1980 | G29: Fully Litigated | H29: 13.8 | I29: 39.9 | J29: 12.4 | K29: 1.4 | Z29: (1) | AA29: From line 3 of page 13 of this Schedule.
A30: New York | B30: NY State Electric & Gas Corp. | C30: C-27610 | D30: Natural Gas | E30: Distribution | F30: 7/22/1980 | G30: Fully Litigated | H30: 14.1 | I30: 39.9 | J30: 12.4 | K30: 1.7
A31: Kansas | B31: Kansas Gas Service Co. | C31: D-120,950-U | D31: Natural Gas | E31: Distribution | F31: 7/23/1980 | G31: Fully Litigated | H31: 14.19 | I31: 32.51 | J31: 12.4 | K31: 1.79 | Z31: Source of Information:
A32: Iowa | B32: MidAmerican Energy Co. | C32: D-RPU-78-25 | D32: Natural Gas | E32: Distribution | F32: 8/1/1980 | G32: Fully Litigated | H32: 12.5 | I32: 36.44 | J32: 12.4 | K32: 0.1 | AB32: Regulatory Research Associates
A33: Idaho | B33: Avista Corp. | C33: C-U-1008-145 | D33: Natural Gas | E33: Distribution | F33: 8/11/1980 | G33: Fully Litigated | H33: 14.85 | I33: 36.62 | J33: 12.4 | K33: 2.45 | AB33: Bloomberg Professional Services
A34: Pennsylvania | B34: National Fuel Gas Dist Corp. | C34: C-R-79090956 | D34: Natural Gas | E34: Distribution | F34: 8/28/1980 | G34: Fully Litigated | H34: 14 | I34: 44.5 | J34: 12.15 | K34: 1.85
A35: New York | B35: Brooklyn Union Gas Co. | C35: C-27631 | D35: Natural Gas | E35: Distribution | F35: 9/4/1980 | G35: Fully Litigated | H35: 14 | I35: 41.14 | J35: 12.15 | K35: 1.85
A36: Kentucky | B36: Louisville Gas & Electric Co. | C36: C-7799 (gas) | D36: Natural Gas | E36: Distribution | F36: 9/24/1980 | G36: Fully Litigated | H36: 15 | I36: 36.43 | J36: 12.66 | K36: 2.34
A37: Connecticut | B37: Connecticut Light & Power Co. | C37: D-80-04-03-G | D37: Natural Gas | E37: Distribution | F37: 10/9/1980 | G37: Fully Litigated | H37: 14.5 | I37: 35.12 | J37: 12.66 | K37: 1.84
A38: Connecticut | B38: Connecticut Light & Power Co. | C38: D-80-04-04-G | D38: Natural Gas | E38: Distribution | F38: 10/9/1980 | G38: Fully Litigated | H38: 14.5 | I38: 37.1 | J38: 12.66 | K38: 1.84
A39: Nevada | B39: Southwest Gas Holdings Inc. | C39: D-2868 (Southern) | D39: Natural Gas | E39: Distribution | F39: 10/27/1980 | G39: Fully Litigated | H39: 15.2 | I39: 34.68 | J39: 13.29 | K39: 1.91
A40: Nevada | B40: Southwest Gas Holdings Inc. | C40: D-2867 (Northern) | D40: Natural Gas | E40: Distribution | F40: 10/27/1980 | G40: Fully Litigated | H40: 15.2 | I40: 34.68 | J40: 13.29 | K40: 1.91
A41: Louisiana | B41: Atmos Energy Corp. | C41: D-U-14665 (LGS) | D41: Natural Gas | E41: Distribution | F41: 10/28/1980 | G41: Fully Litigated | H41: 12 | I41: 50.96 | J41: 13.29 | K41: -1.29
A42: West Virginia | B42: Hope Gas Inc | C42: C-80-003-G-42T | D42: Natural Gas | E42: Distribution | F42: 10/28/1980 | G42: Fully Litigated | H42: 13 | I42: 52 | J42: 13.29 | K42: -0.29
A43: Idaho | B43: Intermountain Gas Co. | C43: C-U-1034-88 | D43: Natural Gas | E43: Distribution | F43: 10/31/1980 | G43: Fully Litigated | H43: 14.5 | I43: 31.7 | J43: 13.29 | K43: 1.21
A44: Nevada | B44: Sierra Pacific Power Co. | C44: D-2857 | D44: Natural Gas | E44: Distribution | F44: 11/4/1980 | G44: Fully Litigated | H44: 15 | I44: 37.35 | J44: 13.29 | K44: 1.71
A45: Connecticut | B45: Southern Connecticut Gas Co. | C45: D-80-04-17 | D45: Natural Gas | E45: Distribution | F45: 11/6/1980 | G45: Fully Litigated | H45: 14.35 | I45: 42.2 | J45: 13.29 | K45: 1.06
A46: District of Columbia | B46: Washington Gas Light Co. | C46: C-722 0-7209 | D46: Natural Gas | E46: Distribution | F46: 11/10/1980 | G46: Fully Litigated | H46: 13.25 | I46: 40.1 | J46: 13.29 | K46: -0.04
A47: Louisiana | B47: Entergy Gulf States LA LLC | C47: D-U-14444 | D47: Natural Gas | E47: Distribution | F47: 11/17/1980 | G47: Fully Litigated | H47: 15.5 | I47: 38.66 | J47: 13.54 | K47: 1.96
A48: Washington | B48: Puget Sound Energy Inc. | C48: Ca-U-80-25 | D48: Natural Gas | E48: Distribution | F48: 11/19/1980 | G48: Fully Litigated | H48: 13.5 | I48: 34.27 | J48: 13.54 | K48: -0.04
A49: California | B49: Southern California Gas Co. | C49: AP-59316 De-92497 | D49: Natural Gas | E49: Distribution | F49: 12/5/1980 | G49: Fully Litigated | H49: 14.6 | I49: 39.65 | J49: 13.54 | K49: 1.06
A50: Indiana | B50: Indiana Gas Co. | C50: Ca-36117 | D50: Natural Gas | E50: Distribution | F50: 12/8/1980 | G50: Fully Litigated | H50: 16.4 | I50: 49.1 | J50: 13.54 | K50: 2.86
A51: Colorado | B51: Public Service Co. of CO | C51: D-1425-De-C80-2346 (Gas) | D51: Natural Gas | E51: Distribution | F51: 12/12/1980 | G51: Fully Litigated | H51: 15.45 | I51: 34.62 | J51: 13.54 | K51: 1.91
A52: Illinois | B52: Peoples Gas Light & Coke Co. | C52: D-80-0090 | D52: Natural Gas | E52: Distribution | F52: 12/17/1980 | G52: Fully Litigated | H52: 14.2 | I52: 40.02 | J52: 14.01 | K52: 0.19
A53: Illinois | B53: North Shore Gas Co. | C53: D-80-0089 | D53: Natural Gas | E53: Distribution | F53: 12/17/1980 | G53: Fully Litigated | H53: 14.4 | I53: 39.5 | J53: 14.01 | K53: 0.39
A54: Wisconsin | B54: Wisconsin Gas LLC | C54: D-6650-GR-13 | D54: Natural Gas | E54: Distribution | F54: 12/18/1980 | G54: Fully Litigated | H54: 14 | I54: 42.2 | J54: 14.01 | K54: -0.01
A55: Montana | B55: NorthWestern Corp. | C55: D-80.4.2.4714A (gas) | D55: Natural Gas | E55: Distribution | F55: 12/22/1980 | G55: Fully Litigated | H55: 13.45 | I55: 39.46 | J55: 14.01 | K55: -0.56
A56: New York | B56: National Fuel Gas Dist Corp. | C56: C-27776 | D56: Natural Gas | E56: Distribution | F56: 12/26/1980 | G56: Fully Litigated | H56: 14 | I56: 42.6 | J56: 14.01 | K56: -0.01
A57: California | B57: San Diego Gas & Electric Co. | C57: AP-59788 De-92557-G | D57: Natural Gas | E57: Distribution | F57: 12/30/1980 | G57: Fully Litigated | H57: 14.5 | I57: 36.25 | J57: 14.01 | K57: 0.49
A58: Illinois | B58: Ameren Illinois | C58: D-80-0157 (CILCO-G) | D58: Natural Gas | E58: Distribution | F58: 1/7/1981 | G58: Fully Litigated | H58: 14.3 | I58: 35.56 | J58: 14.01 | K58: 0.29
A59: North Carolina | B59: Public Service Co. of NC | C59: D-G-5, SUB 157 | D59: Natural Gas | E59: Distribution | F59: 1/12/1981 | G59: Fully Litigated | H59: 14.95 | I59: 37.59 | J59: 14.01 | K59: 0.94
A60: Washington | B60: Avista Corp. | C60: Ca-U-80-14 | D60: Natural Gas | E60: Distribution | F60: 1/26/1981 | G60: Fully Litigated | H60: 15.25 | I60: 36.02 | J60: 14.66 | K60: 0.59
A61: Michigan | B61: DTE Gas Co. | C61: C-U-6372 | D61: Natural Gas | E61: Distribution | F61: 1/30/1981 | G61: Fully Litigated | H61: 13.25 | I61: 34.4 | J61: 14.66 | K61: -1.41
A62: Oklahoma | B62: Oklahoma Natural Gas Co | C62: Ca-26981 | D62: Natural Gas | E62: Distribution | F62: 2/11/1981 | G62: Fully Litigated | H62: 14.5 | I62: 48.94 | J62: 14.66 | K62: -0.16
A63: Oklahoma | B63: CenterPoint Energy Resources | C63: Ca-26975 | D63: Natural Gas | E63: Distribution | F63: 2/20/1981 | G63: Fully Litigated | H63: 14.5 | I63: 55.03 | J63: 14.27 | K63: 0.23
A64: New York | B64: Niagara Mohawk Power Corp. | C64: C-27743 | D64: Natural Gas | E64: Distribution | F64: 3/12/1981 | G64: Fully Litigated | H64: 15.65 | I64: 39.5 | J64: 14.27 | K64: 1.38
A65: Illinois | B65: Ameren Illinois | C65: D-80-0318 (CIPS-G) | D65: Natural Gas | E65: Distribution | F65: 3/25/1981 | G65: Fully Litigated | H65: 15.3 | I65: 37.6 | J65: 14.68 | K65: 0.62
A66: Louisiana | B66: Entergy New Orleans Inc. | C66: C-R-81-73 (gas) | D66: Natural Gas | E66: Distribution | F66: 4/9/1981 | G66: Fully Litigated | H66: 15 | I66: 30.16 | J66: 14.68 | K66: 0.32
A67: Montana | B67: MDU Resources Group Inc. | C67: D-80.7.52 | D67: Natural Gas | E67: Distribution | F67: 4/29/1981 | G67: Fully Litigated | H67: 13.5 | I67: 46.11 | J67: 15.13 | K67: -1.63
A68: Washington | B68: Cascade Natural Gas Corp. | C68: Ca-U-80-101 | D68: Natural Gas | E68: Distribution | F68: 4/29/1981 | G68: Fully Litigated | H68: 14.25 | I68: 37.17 | J68: 15.13 | K68: -0.88
A69: Iowa | B69: Interstate Power & Light Co. | C69: D-RPU-80-42 | D69: Natural Gas | E69: Distribution | F69: 4/30/1981 | G69: Fully Litigated | H69: 13.6 | I69: 34.56 | J69: 15.13 | K69: -1.53
A70: Arizona | B70: Southwest Gas Holdings Inc. | C70: D-U-1551 De-52099 | D70: Natural Gas | E70: Distribution | F70: 4/30/1981 | G70: Fully Litigated | H70: 15 | I70: NA | J70: 15.13 | K70: =H70-J70 -> -0.13
A71: Wisconsin | B71: Wisconsin Public Service Corp. | C71: D-6690-UR-17-G | D71: Natural Gas | E71: Distribution | F71: 5/21/1981 | G71: Fully Litigated | H71: 14 | I71: 38.2 | J71: 15.25 | K71: -1.25
A72: Illinois | B72: MidAmerican Energy Co. | C72: D-80-0511 (gas) | D72: Natural Gas | E72: Distribution | F72: 6/3/1981 | G72: Fully Litigated | H72: 14.67 | I72: 35.8 | J72: 15.25 | K72: -0.58
A73: Utah | B73: Questar Gas Co. | C73: C-81-057-01 | D73: Natural Gas | E73: Distribution | F73: 6/22/1981 | G73: Fully Litigated | H73: 16 | I73: 35.52 | J73: 16.12 | K73: -0.12
A74: Wisconsin | B74: Wisconsin Power and Light Co | C74: D-6680-UR-11-G | D74: Natural Gas | E74: Distribution | F74: 6/25/1981 | G74: Fully Litigated | H74: 14.75 | I74: 39.4 | J74: 16.12 | K74: -1.37
A75: Alabama | B75: Alabama Gas Corp. | C75: D-18046 | D75: Natural Gas | E75: Distribution | F75: 7/2/1981 | G75: Fully Litigated | H75: 14 | I75: 37.19 | J75: 16.12 | K75: -2.12
A76: New York | B76: Rochester Gas & Electric Corp. | C76: C-27833 | D76: Natural Gas | E76: Distribution | F76: 7/10/1981 | G76: Fully Litigated | H76: 16 | I76: 40.15 | J76: 16.12 | K76: -0.12
A77: New York | B77: Central Hudson Gas & Electric | C77: C-27827 | D77: Natural Gas | E77: Distribution | F77: 7/14/1981 | G77: Fully Litigated | H77: 16.9 | I77: 38.04 | J77: 16.12 | K77: 0.78
A78: Arkansas | B78: Black Hills Energy Arkansas | C78: D-U-3144 | D78: Natural Gas | E78: Distribution | F78: 7/21/1981 | G78: Fully Litigated | H78: 15.78 | I78: 54 | J78: 15.79 | K78: -0.01
A79: Minnesota | B79: Northern States Power Co. - MN | C79: D-E-002-GR-80-556 | D79: Natural Gas | E79: Distribution | F79: 7/27/1981 | G79: Fully Litigated | H79: 13.77 | I79: 41.46 | J79: 15.79 | K79: -2.02
A80: New Mexico | B80: Public Service Co. of NM | C80: C-1568 | D80: Natural Gas | E80: Distribution | F80: 7/27/1981 | G80: Fully Litigated | H80: 15.5 | I80: 47.5 | J80: 15.79 | K80: -0.29
A81: Iowa | B81: MidAmerican Energy Co. | C81: D-RPU-78-30 | D81: Natural Gas | E81: Distribution | F81: 7/31/1981 | G81: Fully Litigated | H81: 13.5 | I81: 39.4 | J81: 15.79 | K81: -2.29
A82: Iowa | B82: MidAmerican Energy Co. | C82: D-RPU-80-36 (gas) | D82: Natural Gas | E82: Distribution | F82: 7/31/1981 | G82: Fully Litigated | H82: 14.2 | I82: 40.01 | J82: 15.79 | K82: -1.59
A83: Ohio | B83: Columbia Gas of Ohio Inc | C83: C-80-777-GA-AIR | D83: Natural Gas | E83: Distribution | F83: 8/12/1981 | G83: Fully Litigated | H83: 13.72 | I83: 48.32 | J83: 15.79 | K83: -2.07
A84: Ohio | B84: Columbia Gas of Ohio Inc | C84: C-80-715-GA-AIR | D84: Natural Gas | E84: Distribution | F84: 8/12/1981 | G84: Fully Litigated | H84: 13.72 | I84: 48.32 | J84: 15.79 | K84: -2.07
A85: Ohio | B85: East Ohio Gas Company | C85: C-80-769-GA-AIR | D85: Natural Gas | E85: Distribution | F85: 8/12/1981 | G85: Fully Litigated | H85: 14.41 | I85: 57.6 | J85: 15.79 | K85: -1.38
A86: Connecticut | B86: Southern Connecticut Gas Co. | C86: D-81-04-09 | D86: Natural Gas | E86: Distribution | F86: 8/25/1981 | G86: Fully Litigated | H86: 15.45 | I86: 39.9 | J86: 16.07 | K86: -0.62
A87: Minnesota | B87: CenterPoint Energy Resources | C87: D-G-008-GR-80-630 | D87: Natural Gas | E87: Distribution | F87: 8/27/1981 | G87: Fully Litigated | H87: 14.43 | I87: 52.87 | J87: 16.07 | K87: -1.64
A88: Nevada | B88: Sierra Pacific Power Co. | C88: D-81-106 | D88: Natural Gas | E88: Distribution | F88: 8/28/1981 | G88: Fully Litigated | H88: 15 | I88: 35.1 | J88: 16.07 | K88: -1.07
A89: Washington | B89: Puget Sound Energy Inc. | C89: Ca-U-80-111 | D89: Natural Gas | E89: Distribution | F89: 9/24/1981 | G89: Fully Litigated | H89: 16.25 | I89: 35 | J89: 16.45 | K89: -0.2
A90: Wisconsin | B90: Wisconsin Natural Gas Co | C90: D-6670-GR-7 | D90: Natural Gas | E90: Distribution | F90: 9/29/1981 | G90: Fully Litigated | H90: 14.5 | I90: 38 | J90: 16.45 | K90: -1.95
A91: Ohio | B91: Dayton Power and Light Co. | C91: C-80-1087-GA-AIR | D91: Natural Gas | E91: Distribution | F91: 9/30/1981 | G91: Fully Litigated | H91: 15.94 | I91: 36.74 | J91: 16.45 | K91: -0.51
A92: Missouri | B92: Missouri Gas Energy | C92: C-GR-81-155 | D92: Natural Gas | E92: Distribution | F92: 10/2/1981 | G92: Fully Litigated | H92: 14.8 | I92: 38.58 | J92: 16.45 | K92: -1.65
A93: South Carolina | B93: Piedmont Natural Gas Co. | C93: D-81-252-G | D93: Natural Gas | E93: Distribution | F93: 10/12/1981 | G93: Fully Litigated | H93: 16.25 | I93: 50.14 | J93: 16.45 | K93: -0.2
A94: Idaho | B94: Avista Corp. | C94: C-U-1008-155 | D94: Natural Gas | E94: Distribution | F94: 10/20/1981 | G94: Fully Litigated | H94: 15.25 | I94: 40 | J94: 17.03 | K94: -1.78
A95: New York | B95: Brooklyn Union Gas Co. | C95: C-27885 | D95: Natural Gas | E95: Distribution | F95: 10/20/1981 | G95: Fully Litigated | H95: 16.5 | I95: 39.22 | J95: 17.03 | K95: -0.53
A96: New York | B96: NY State Electric & Gas Corp. | C96: C-27884 | D96: Natural Gas | E96: Distribution | F96: 10/20/1981 | G96: Fully Litigated | H96: 17 | I96: 39.66 | J96: 17.03 | K96: -0.03
A97: Louisiana | B97: CenterPoint Energy Resources | C97: D-U-15097 (ARKLA) | D97: Natural Gas | E97: Distribution | F97: 10/26/1981 | G97: Fully Litigated | H97: 13.5 | I97: 55.33 | J97: 17.03 | K97: -3.53
A98: Arizona | B98: Arizona Public Service Co. | C98: D-U-1345 De-52558-G | D98: Natural Gas | E98: Distribution | F98: 10/29/1981 | G98: Fully Litigated | H98: 16.5 | I98: 40.35 | J98: 17.03 | K98: -0.53
A99: Kansas | B99: Kansas Gas Service Co. | C99: D-126,922-U | D99: Natural Gas | E99: Distribution | F99: 11/4/1981 | G99: Fully Litigated | H99: 15.33 | I99: 32.63 | J99: 17.03 | K99: -1.7
A100: Iowa | B100: MidAmerican Energy Co. | C100: D-RPU-80-19 | D100: Natural Gas | E100: Distribution | F100: 11/6/1981 | G100: Fully Litigated | H100: 15.17 | I100: 37.1 | J100: 17.03 | K100: -1.86
A101: Washington | B101: Avista Corp. | C101: Ca-U-81-16 | D101: Natural Gas | E101: Distribution | F101: 11/25/1981 | G101: Fully Litigated | H101: 15.25 | I101: 38 | J101: 17.26 | K101: -2.01
A102: Connecticut | B102: Connecticut Light & Power Co. | C102: D-81-06-02-G | D102: Natural Gas | E102: Distribution | F102: 11/25/1981 | G102: Fully Litigated | H102: 16.1 | I102: 33.52 | J102: 17.26 | K102: -1.16
A103: Connecticut | B103: Connecticut Light & Power Co. | C103: D-81-06-04-G | D103: Natural Gas | E103: Distribution | F103: 11/25/1981 | G103: Fully Litigated | H103: 16.1 | I103: 36.74 | J103: 17.26 | K103: -1.16
A104: Arizona | B104: Southwest Gas Holdings Inc. | C104: D-U-1551 De-52631 | D104: Natural Gas | E104: Distribution | F104: 11/30/1981 | G104: Fully Litigated | H104: 16.75 | I104: 35.6 | J104: 17.26 | K104: -0.51
A105: Colorado | B105: Public Service Co. of CO | C105: D-1525-De-C81-1999 (Gas) | D105: Natural Gas | E105: Distribution | F105: 12/1/1981 | G105: Fully Litigated | H105: 15.7 | I105: 39.09 | J105: 17.26 | K105: -1.56
A106: New York | B106: Orange & Rockland Utlts Inc. | C106: C-27910 | D106: Natural Gas | E106: Distribution | F106: 12/1/1981 | G106: Fully Litigated | H106: 16 | I106: 43.11 | J106: 17.26 | K106: -1.26
A107: Delaware | B107: Delmarva Power & Light Co. | C107: D-81-13 | D107: Natural Gas | E107: Distribution | F107: 12/15/1981 | G107: Fully Litigated | H107: 15.81 | I107: 36.06 | J107: 16.42 | K107: -0.61
A108: New York | B108: National Fuel Gas Dist Corp. | C108: C-27934 | D108: Natural Gas | E108: Distribution | F108: 12/22/1981 | G108: Fully Litigated | H108: 15.7 | I108: 43 | J108: 16.42 | K108: -0.72
A109: Georgia | B109: Atlanta Gas Light Co. | C109: D-3288-U | D109: Natural Gas | E109: Distribution | F109: 12/22/1981 | G109: Fully Litigated | H109: 16 | I109: 38.37 | J109: 16.42 | K109: -0.42
A110: California | B110: Pacific Gas and Electric Co. | C110: AP-60153 De-93887-G | D110: Natural Gas | E110: Distribution | F110: 12/30/1981 | G110: Fully Litigated | H110: 16 | I110: 41 | J110: 16.42 | K110: -0.42
A111: California | B111: San Diego Gas & Electric Co. | C111: AP-59788 De-93892-G | D111: Natural Gas | E111: Distribution | F111: 12/30/1981 | G111: Fully Litigated | H111: 16.25 | I111: 37.25 | J111: 16.42 | K111: -0.17
A112: Kentucky | B112: Louisville Gas & Electric Co. | C112: C-8284 (gas) | D112: Natural Gas | E112: Distribution | F112: 1/4/1982 | G112: Fully Litigated | H112: 15.5 | I112: 38.6 | J112: 16.42 | K112: -0.92
A113: Kansas | B113: Kansas Gas Service Co. | C113: D-128,361-U | D113: Natural Gas | E113: Distribution | F113: 1/25/1982 | G113: Fully Litigated | H113: 16.25 | I113: 33.8 | J113: 16.16 | K113: 0.09
A114: Ohio | B114: Duke Energy Ohio Inc. | C114: C-81-67-GA-AIR | D114: Natural Gas | E114: Distribution | F114: 1/27/1982 | G114: Fully Litigated | H114: 16.84 | I114: 34.5 | J114: 16.16 | K114: 0.68
A115: Massachusetts | B115: Bay State Gas Company | C115: DPU-777 | D115: Natural Gas | E115: Distribution | F115: 1/31/1982 | G115: Fully Litigated | H115: 14 | I115: 38.29 | J115: 16.16 | K115: -2.16
A116: North Carolina | B116: Piedmont Natural Gas Co. | C116: D-G-9, SUB 212 | D116: Natural Gas | E116: Distribution | F116: 2/2/1982 | G116: Fully Litigated | H116: 16.24 | I116: 50.81 | J116: 16.16 | K116: 0.08
A117: Maryland | B117: Baltimore Gas and Electric Co. | C117: C-7574 0-65648-G | D117: Natural Gas | E117: Distribution | F117: 2/8/1982 | G117: Fully Litigated | H117: 15.5 | I117: 38.61 | J117: 16.16 | K117: -0.66
A118: District of Columbia | B118: Washington Gas Light Co. | C118: C-768 0-7469 | D118: Natural Gas | E118: Distribution | F118: 2/9/1982 | G118: Fully Litigated | H118: 14.95 | I118: 44 | J118: 16.16 | K118: -1.21
A119: Idaho | B119: Intermountain Gas Co. | C119: C-U-1034-95 | D119: Natural Gas | E119: Distribution | F119: 2/9/1982 | G119: Fully Litigated | H119: 15.75 | I119: 33.34 | J119: 16.16 | K119: -0.41
A120: New Jersey | B120: Public Service Electric Gas | C120: D-812-76-G | D120: Natural Gas | E120: Distribution | F120: 2/11/1982 | G120: Fully Litigated | H120: 16 | I120: NA | J120: 16.16 | K120: -0.16
A121: Maryland | B121: Washington Gas Light Co. | C121: C-7585 0-65676 | D121: Natural Gas | E121: Distribution | F121: 3/1/1982 | G121: Fully Litigated | H121: 15.96 | I121: 38.4 | J121: 16.8 | K121: -0.84
A122: Iowa | B122: MidAmerican Energy Co. | C122: D-RPU-80-65 | D122: Natural Gas | E122: Distribution | F122: 3/3/1982 | G122: Fully Litigated | H122: 15 | I122: 36.75 | J122: 16.8 | K122: -1.8
A123: New York | B123: Niagara Mohawk Power Corp. | C123: C-27986 | D123: Natural Gas | E123: Distribution | F123: 3/8/1982 | G123: Fully Litigated | H123: 17.1 | I123: 41.48 | J123: 16.8 | K123: 0.3
A124: Pennsylvania | B124: National Fuel Gas Dist Corp. | C124: C-R-811600 | D124: Natural Gas | E124: Distribution | F124: 3/26/1982 | G124: Fully Litigated | H124: 16 | I124: 48 | J124: 16.92 | K124: -0.92
A125: Oklahoma | B125: Oklahoma Natural Gas Co | C125: Ca-27347 | D125: Natural Gas | E125: Distribution | F125: 3/31/1982 | G125: Fully Litigated | H125: 16.25 | I125: 48.67 | J125: 16.92 | K125: -0.67
A126: Wisconsin | B126: Wisconsin Gas LLC | C126: D-6650-GR-15 | D126: Natural Gas | E126: Distribution | F126: 4/6/1982 | G126: Fully Litigated | H126: 15 | I126: 41.11 | J126: 16.92 | K126: -1.92
A127: Washington | B127: Cascade Natural Gas Corp. | C127: Ca-U-81-64 | D127: Natural Gas | E127: Distribution | F127: 4/9/1982 | G127: Fully Litigated | H127: 16.5 | I127: 38.98 | J127: 16.92 | K127: -0.42
A128: North Dakota | B128: MDU Resources Group Inc. | C128: C-10, 280 | D128: Natural Gas | E128: Distribution | F128: 4/12/1982 | G128: Fully Litigated | H128: 15.1 | I128: 38.48 | J128: 16.92 | K128: -1.82
A129: Nevada | B129: Southwest Gas Holdings Inc. | C129: D-81-614 (Southern) | D129: Natural Gas | E129: Distribution | F129: 4/12/1982 | G129: Fully Litigated | H129: 16.7 | I129: 31.84 | J129: 16.92 | K129: -0.22
A130: Montana | B130: MDU Resources Group Inc. | C130: D-81.7.62 | D130: Natural Gas | E130: Distribution | F130: 4/18/1982 | G130: Fully Litigated | H130: 14.7 | I130: 38.79 | J130: 16.49 | K130: -1.79
A131: Wisconsin | B131: Wisconsin Public Service Corp. | C131: D-6690-UR-18-G | D131: Natural Gas | E131: Distribution | F131: 4/27/1982 | G131: Fully Litigated | H131: 15 | I131: 39.09 | J131: 16.49 | K131: -1.49
A132: Montana | B132: NorthWestern Corp. | C132: D-81.6.57 | D132: Natural Gas | E132: Distribution | F132: 5/10/1982 | G132: Fully Litigated | H132: 14.57 | I132: 38.09 | J132: 16.49 | K132: -1.92
A133: North Carolina | B133: Public Service Co. of NC | C133: D-G-5, SUB 168 | D133: Natural Gas | E133: Distribution | F133: 5/14/1982 | G133: Fully Litigated | H133: 15.8 | I133: 44.26 | J133: 16.49 | K133: -0.69
A134: Louisiana | B134: Atmos Energy Corp. | C134: D-U-15276 (LGS) | D134: Natural Gas | E134: Distribution | F134: 5/20/1982 | G134: Fully Litigated | H134: 15.82 | I134: 47.15 | J134: 16.4 | K134: =H134-J134 -> -0.58
A135: Connecticut | B135: CT Natural Gas Corp. | C135: D-81-12-12 | D135: Natural Gas | E135: Distribution | F135: 5/25/1982 | G135: Fully Litigated | H135: 16.25 | I135: 39.63 | J135: 16.4 | K135: -0.15
A136: West Virginia | B136: Mountaineer Gas Company | C136: C-81-340-G-42T | D136: Natural Gas | E136: Distribution | F136: 6/2/1982 | G136: Fully Litigated | H136: 14.5 | I136: NA | J136: 16.4 | K136: -1.9
A137: New York | B137: Consolidated Edison Co. of NY | C137: C-28036 | D137: Natural Gas | E137: Distribution | F137: 6/7/1982 | G137: Fully Litigated | H137: 16 | I137: 48.03 | J137: 16.4 | K137: -0.4
A138: Rhode Island | B138: Narragansett Electric Co. | C138: D-1612 | D138: Natural Gas | E138: Distribution | F138: 6/23/1982 | G138: Fully Litigated | H138: 15.5 | I138: 42.2 | J138: 16.08 | K138: -0.58
A139: Pennsylvania | B139: PECO Energy Co. | C139: C-R-811719 | D139: Natural Gas | E139: Distribution | F139: 6/25/1982 | G139: Fully Litigated | H139: 16.5 | I139: 37.4 | J139: 16.08 | K139: 0.42
A140: Illinois | B140: Northern Illinois Gas Co. | C140: D-81-0609 | D140: Natural Gas | E140: Distribution | F140: 7/1/1982 | G140: Fully Litigated | H140: 15.55 | I140: 55.59 | J140: 16.08 | K140: -0.53
A141: Illinois | B141: Ameren Illinois | C141: D-81-0600 (CILCO-G) | D141: Natural Gas | E141: Distribution | F141: 7/1/1982 | G141: Fully Litigated | H141: 16 | I141: 41.29 | J141: 16.08 | K141: -0.08
A142: Iowa | B142: Interstate Power & Light Co. | C142: D-RPU-81-44 | D142: Natural Gas | E142: Distribution | F142: 7/2/1982 | G142: Fully Litigated | H142: 15.1 | I142: 36.08 | J142: 16.08 | K142: -0.98
A143: New York | B143: Rochester Gas & Electric Corp. | C143: C-28055 | D143: Natural Gas | E143: Distribution | F143: 7/13/1982 | G143: Fully Litigated | H143: 16.8 | I143: 41.7 | J143: 16.08 | K143: 0.72
A144: Wisconsin | B144: Madison Gas and Electric Co. | C144: D-3270-UR-10-G | D144: Natural Gas | E144: Distribution | F144: 7/22/1982 | G144: Fully Litigated | H144: 14.5 | I144: 41.2 | J144: 16.34 | K144: -1.84
A145: Michigan | B145: DTE Gas Co. | C145: C-U-6839 | D145: Natural Gas | E145: Distribution | F145: 7/30/1982 | G145: Fully Litigated | H145: 14.82 | I145: 30.27 | J145: 16.34 | K145: -1.52
A146: Ohio | B146: East Ohio Gas Company | C146: C-81-970-GA-AIR | D146: Natural Gas | E146: Distribution | F146: 8/4/1982 | G146: Fully Litigated | H146: 15.58 | I146: 59.46 | J146: 16.34 | K146: -0.76
A147: Washington | B147: Cascade Natural Gas Corp. | C147: Ca-U-82-20,33 | D147: Natural Gas | E147: Distribution | F147: 8/6/1982 | G147: Fully Litigated | H147: 16.5 | I147: 38.98 | J147: 16.34 | K147: 0.16
A148: Indiana | B148: Northern IN Public Svc Co. | C148: Ca-36690 | D148: Natural Gas | E148: Distribution | F148: 8/11/1982 | G148: Fully Litigated | H148: 17.11 | I148: 32.74 | J148: 16.34 | K148: 0.77
A149: Illinois | B149: MidAmerican Energy Co. | C149: D-81-0747 (gas) | D149: Natural Gas | E149: Distribution | F149: 8/25/1982 | G149: Fully Litigated | H149: 16 | I149: 37.08 | J149: 16.46 | K149: -0.46
A150: New Mexico | B150: Public Service Co. of NM | C150: C-1710 | D150: Natural Gas | E150: Distribution | F150: 8/30/1982 | G150: Fully Litigated | H150: 16.25 | I150: 44 | J150: 16.46 | K150: -0.21
A151: Hawaii | B151: Gas Company LLC | C151: D-4286 | D151: Natural Gas | E151: Distribution | F151: 9/3/1982 | G151: Fully Litigated | H151: 15.5 | I151: 37.9 | J151: 16.46 | K151: -0.96
A152: Ohio | B152: Columbia Gas of Ohio Inc | C152: C-81-1024-GA-AIR | D152: Natural Gas | E152: Distribution | F152: 9/9/1982 | G152: Fully Litigated | H152: 16.04 | I152: 49.07 | J152: 16.46 | K152: -0.42
A153: Ohio | B153: Columbia Gas of Ohio Inc | C153: C-81-1025-GA-AIR | D153: Natural Gas | E153: Distribution | F153: 9/15/1982 | G153: Fully Litigated | H153: 16.04 | I153: 49.07 | J153: 15.92 | K153: 0.12
A154: Idaho | B154: Avista Corp. | C154: C-U-1008-171 | D154: Natural Gas | E154: Distribution | F154: 9/17/1982 | G154: Fully Litigated | H154: 15.25 | I154: 40 | J154: 15.92 | K154: -0.67
A155: South Carolina | B155: South Carolina Electric & Gas | C155: D-82-239-G O-82-676 | D155: Natural Gas | E155: Distribution | F155: 9/29/1982 | G155: Fully Litigated | H155: 14.5 | I155: 38.25 | J155: 15.92 | K155: -1.42
A156: Minnesota | B156: Northern States Power Co. - MN | C156: D-E-002-GR-81-508 | D156: Natural Gas | E156: Distribution | F156: 9/30/1982 | G156: Fully Litigated | H156: 14.74 | I156: 41.75 | J156: 15.92 | K156: -1.18
A157: Massachusetts | B157: Boston Gas Co. | C157: DPU-1100 | D157: Natural Gas | E157: Distribution | F157: 9/30/1982 | G157: Fully Litigated | H157: 15.5 | I157: 52 | J157: 15.92 | K157: -0.42
A158: Arizona | B158: Southwest Gas Holdings Inc. | C158: D-U-1551 De-53237 | D158: Natural Gas | E158: Distribution | F158: 9/30/1982 | G158: Fully Litigated | H158: 16.5 | I158: 33.14 | J158: 15.92 | K158: 0.58
A159: Georgia | B159: Atlanta Gas Light Co. | C159: D-3333-U | D159: Natural Gas | E159: Distribution | F159: 9/30/1982 | G159: Fully Litigated | H159: 16.7 | I159: 33.8 | J159: 15.92 | K159: 0.78
A160: New Jersey | B160: South Jersey Gas Co. | C160: D-818-754 | D160: Natural Gas | E160: Distribution | F160: 10/8/1982 | G160: Fully Litigated | H160: 15 | I160: 38 | J160: 15.92 | K160: -0.92
A161: New York | B161: Central Hudson Gas & Electric | C161: C-28106 | D161: Natural Gas | E161: Distribution | F161: 10/15/1982 | G161: Fully Litigated | H161: 15.9 | I161: 40.46 | J161: 15.45 | K161: 0.45
A162: New York | B162: Brooklyn Union Gas Co. | C162: C-28107 | D162: Natural Gas | E162: Distribution | F162: 10/19/1982 | G162: Fully Litigated | H162: 15.9 | I162: 40.3 | J162: 15.45 | K162: 0.45
A163: Indiana | B163: Indiana Gas Co. | C163: Ca-36817 | D163: Natural Gas | E163: Distribution | F163: 10/27/1982 | G163: Fully Litigated | H163: 17 | I163: 36.6 | J163: 15.45 | K163: 1.55
A164: Wisconsin | B164: Wisconsin Natural Gas Co | C164: D-6670-GR-9 | D164: Natural Gas | E164: Distribution | F164: 10/28/1982 | G164: Fully Litigated | H164: 14.75 | I164: 44.73 | J164: 15.45 | K164: -0.7
A165: Connecticut | B165: Southern Connecticut Gas Co. | C165: D-82-06-12 | D165: Natural Gas | E165: Distribution | F165: 11/2/1982 | G165: Fully Litigated | H165: 16.25 | I165: 36.64 | J165: 15.45 | K165: 0.8
A166: Idaho | B166: Intermountain Gas Co. | C166: C-U-1034-99 | D166: Natural Gas | E166: Distribution | F166: 11/4/1982 | G166: Fully Litigated | H166: 15.75 | I166: 41.09 | J166: 15.45 | K166: 0.3
A167: California | B167: Southwest Gas Holdings Inc. | C167: AP-82-0705 De-8211061 | D167: Natural Gas | E167: Distribution | F167: 11/17/1982 | G167: Fully Litigated | H167: 16 | I167: 40.5 | J167: 14.98 | K167: 1.02
A168: Illinois | B168: Ameren Illinois | C168: D-82-0039 (CIPS-G) | D168: Natural Gas | E168: Distribution | F168: 11/23/1982 | G168: Fully Litigated | H168: 15.5 | I168: 40.68 | J168: 14.98 | K168: 0.52
A169: Virginia | B169: Washington Gas Light Co. | C169: C-PUE-820029 | D169: Natural Gas | E169: Distribution | F169: 11/24/1982 | G169: Fully Litigated | H169: 14.5 | I169: 36.82 | J169: 14.98 | K169: -0.48
A170: Maryland | B170: Washington Gas Light Co. | C170: C-7639 0-66016 | D170: Natural Gas | E170: Distribution | F170: 11/24/1982 | G170: Fully Litigated | H170: 16.02 | I170: 39.5 | J170: 14.98 | K170: 1.04
A171: Mississippi | B171: Atmos Energy Corp. | C171: C-U-4242 | D171: Natural Gas | E171: Distribution | F171: 11/30/1982 | G171: Fully Litigated | H171: 12.98 | I171: NA | J171: 14.98 | K171: -2
A172: Massachusetts | B172: Bay State Gas Company | C172: DPU-1122 | D172: Natural Gas | E172: Distribution | F172: 11/30/1982 | G172: Fully Litigated | H172: 15.5 | I172: 33.2 | J172: 14.98 | K172: 0.52
A173: Massachusetts | B173: NSTAR Gas Co. | C173: DPU-1120 | D173: Natural Gas | E173: Distribution | F173: 11/30/1982 | G173: Fully Litigated | H173: 15.5 | I173: 51.72 | J173: 14.98 | K173: 0.52
A174: North Carolina | B174: Piedmont Natural Gas Co. | C174: D-G-9, SUB 219 | D174: Natural Gas | E174: Distribution | F174: 11/30/1982 | G174: Fully Litigated | H174: 15.65 | I174: 53.17 | J174: 14.98 | K174: 0.67
A175: Nevada | B175: Southwest Gas Holdings Inc. | C175: D-82-399 (Northern) | D175: Natural Gas | E175: Distribution | F175: 11/30/1982 | G175: Fully Litigated | H175: 16 | I175: NA | J175: 14.98 | K175: 1.02
A176: Massachusetts | B176: Colonial Gas Co. | C176: DPU-1125 | D176: Natural Gas | E176: Distribution | F176: 11/30/1982 | G176: Fully Litigated | H176: 16.1 | I176: 32.92 | J176: 14.98 | K176: 1.12
A177: Kansas | B177: Kansas Gas Service Co. | C177: D-132,996-U | D177: Natural Gas | E177: Distribution | F177: 12/3/1982 | G177: Fully Litigated | H177: 15.33 | I177: 32.78 | J177: 14.98 | K177: 0.35
A178: California | B178: Southern California Gas Co. | C178: AP-61081 De-82-12054 | D178: Natural Gas | E178: Distribution | F178: 12/8/1982 | G178: Fully Litigated | H178: 15.75 | I178: 42 | J178: 14.98 | K178: 0.77
A179: Tennessee | B179: Chattanooga Gas Company | C179: D-U-82-7175 | D179: Natural Gas | E179: Distribution | F179: 12/13/1982 | G179: Fully Litigated | H179: 16 | I179: 49.72 | J179: 14.98 | K179: 1.02
A180: Connecticut | B180: Connecticut Light & Power Co. | C180: D-82-07-01-G | D180: Natural Gas | E180: Distribution | F180: 12/14/1982 | G180: Fully Litigated | H180: 16.4 | I180: 37.37 | J180: 14.98 | K180: 1.42
A181: Pennsylvania | B181: UGI Utilities Inc. | C181: C-R-821899 | D181: Natural Gas | E181: Distribution | F181: 12/17/1982 | G181: Fully Litigated | H181: 16.25 | I181: 43.7 | J181: 14.46 | K181: 1.79
A182: Virginia | B182: Virginia Natural Gas Inc. | C182: C-PUE-820047 | D182: Natural Gas | E182: Distribution | F182: 12/20/1982 | G182: Fully Litigated | H182: 15 | I182: 35.6 | J182: 14.46 | K182: 0.54
A183: New York | B183: National Fuel Gas Dist Corp. | C183: C-28158 | D183: Natural Gas | E183: Distribution | F183: 12/21/1982 | G183: Fully Litigated | H183: 15.7 | I183: 46 | J183: 14.46 | K183: 1.24
A184: Illinois | B184: North Shore Gas Co. | C184: D-82-0189 | D184: Natural Gas | E184: Distribution | F184: 12/28/1982 | G184: Fully Litigated | H184: 15.25 | I184: 42.41 | J184: 14.46 | K184: 0.79
A185: Illinois | B185: Peoples Gas Light & Coke Co. | C185: D-82-0082 | D185: Natural Gas | E185: Distribution | F185: 12/28/1982 | G185: Fully Litigated | H185: 15.25 | I185: 42.75 | J185: 14.46 | K185: 0.79
A186: Washington | B186: Avista Corp. | C186: Ca-U-82-11 | D186: Natural Gas | E186: Distribution | F186: 12/29/1982 | G186: Fully Litigated | H186: 16.25 | I186: 38 | J186: 14.46 | K186: 1.79
A187: Washington | B187: Puget Sound Energy Inc. | C187: Ca-U-82-22, 37 | D187: Natural Gas | E187: Distribution | F187: 12/29/1982 | G187: Fully Litigated | H187: 16.25 | I187: 35 | J187: 14.46 | K187: 1.79
A188: New York | B188: NY State Electric & Gas Corp. | C188: C-28169 | D188: Natural Gas | E188: Distribution | F188: 1/11/1983 | G188: Fully Litigated | H188: 15.9 | I188: 40.69 | J188: 14.46 | K188: 1.44
A189: Illinois | B189: Ameren Illinois | C189: D-82-0152 (IP-G) | D189: Natural Gas | E189: Distribution | F189: 1/12/1983 | G189: Fully Litigated | H189: 15.5 | I189: 42.82 | J189: 14.46 | K189: 1.04
A190: Wisconsin | B190: Wisconsin Gas LLC | C190: D-6650-GR-17 | D190: Natural Gas | E190: Distribution | F190: 1/18/1983 | G190: Fully Litigated | H190: 15 | I190: 43.07 | J190: 14.43 | K190: 0.57
A191: New York | B191: Long Island Lighting Co | C191: C-28177 | D191: Natural Gas | E191: Distribution | F191: 1/24/1983 | G191: Fully Litigated | H191: 15.5 | I191: 44.59 | J191: 14.43 | K191: 1.07
A192: Nevada | B192: Southwest Gas Holdings Inc. | C192: D-82-399 (Southern) | D192: Natural Gas | E192: Distribution | F192: 1/24/1983 | G192: Fully Litigated | H192: 16 | I192: 34.23 | J192: 14.43 | K192: 1.57
A193: Minnesota | B193: Minnesota Energy Resources | C193: D-G-011-GR-82-65 | D193: Natural Gas | E193: Distribution | F193: 1/28/1983 | G193: Fully Litigated | H193: 14.9 | I193: 49.9 | J193: 14.43 | K193: 0.47
A194: Iowa | B194: MidAmerican Energy Co. | C194: D-RPU-82-40 | D194: Natural Gas | E194: Distribution | F194: 2/10/1983 | G194: Fully Litigated | H194: 15 | I194: 40.29 | J194: 14.43 | K194: 0.57
A195: District of Columbia | B195: Washington Gas Light Co. | C195: C-787 0-7749 | D195: Natural Gas | E195: Distribution | F195: 2/25/1983 | G195: Fully Litigated | H195: 15.7 | I195: 41.9 | J195: 14.24 | K195: 1.46
A196: Kentucky | B196: Louisville Gas & Electric Co. | C196: C-8616 (gas) | D196: Natural Gas | E196: Distribution | F196: 3/2/1983 | G196: Fully Litigated | H196: 15.25 | I196: 39.46 | J196: 14.24 | K196: 1.01
A197: Tennessee | B197: Piedmont Natural Gas Co. | C197: D-U-82-7190 | D197: Natural Gas | E197: Distribution | F197: 3/16/1983 | G197: Fully Litigated | H197: 16 | I197: 57.44 | J197: 14.28 | K197: 1.72
A198: Minnesota | B198: CenterPoint Energy Resources | C198: D-G-008-GR-82-249 | D198: Natural Gas | E198: Distribution | F198: 3/21/1983 | G198: Fully Litigated | H198: 14.96 | I198: 55.07 | J198: 14.28 | K198: =H198-J198 -> 0.68
A199: New York | B199: Niagara Mohawk Power Corp. | C199: C-28227 | D199: Natural Gas | E199: Distribution | F199: 3/23/1983 | G199: Fully Litigated | H199: 15.4 | I199: 41.97 | J199: 14.28 | K199: 1.12
A200: Wisconsin | B200: Wisconsin Public Service Corp. | C200: D-6690-UR-19-G | D200: Natural Gas | E200: Distribution | F200: 3/24/1983 | G200: Fully Litigated | H200: 15 | I200: 42.5 | J200: 14.28 | K200: 0.72
... 612 more rows

Sheet 1.24 CAPM
B1: =Input!G28 -> Atmos Energy Corporation
B2: Indicated Common Equity Cost Rate Through Use
B3: of the Traditional Capital Asset Pricing Model (CAPM) and Empirical Capital Asset Pricing Model (ECAPM)
D5: [1] | F5: [2] | H5: [3] | J5: [4] | M5: [5] | P5: [6] | S5: [7] | V5: [8]
B7: ='1.18-1.19 Beta Adjusted ERP'!F7 -> Proxy Group of Seven Natural Gas Distribution Companies | D7: Value Line Adjusted Beta | F7: Bloomberg Adjusted Beta | H7: Average Beta | J7: Market Risk Premium (1) | M7: Risk-Free Rate (2) | P7: Traditional CAPM Cost Rate | S7: ECAPM Cost Rate | V7: Indicated Common Equity Cost Rate (3)
A9: =IFERROR(Input!A2, "NA") -> ATO | B9: ='Proxy Data Lookup'!B3 -> Atmos Energy Corporation | D9: ='MRP WP1'!C71 -> 0.8 | F9: ='Proxy Data Lookup'!H3 -> 0.9365535975 | H9: =IFERROR(ROUND(AVERAGE(D9:F9),2),"NA") -> 0.87 | J9: ='MRP WP1'!$H$64 -> 9.931910544 | K9: % | M9: ='MRP WP1'!$F$37 -> 2.76 | N9: % | P9: =IFERROR((H9*J9) + M9,"NA") -> 11.40076217 | Q9: % | S9: =IFERROR((0.75*(H9*J9))+(0.25*J9)+M9,"NA") -> 11.72354927 | T9: % | V9: =IFERROR(ROUND(AVERAGE(P9:S9),2),"NA") -> 11.56 | W9: %
A10: =IFERROR(Input!A3, "NA") -> NJR | B10: ='Proxy Data Lookup'!B4 -> New Jersey Resources Corporation | D10: ='MRP WP1'!C72 -> 1 | F10: ='Proxy Data Lookup'!H4 -> 0.9750680327 | H10: =IFERROR(ROUND(AVERAGE(D10:F10),2),"NA") -> 0.99 | J10: ='MRP WP1'!$H$64 -> 9.931910544 | M10: ='MRP WP1'!$F$37 -> 2.76 | P10: =IFERROR((H10*J10) + M10,"NA") -> 12.59259144 | S10: =IFERROR((0.75*(H10*J10))+(0.25*J10)+M10,"NA") -> 12.61742122 | V10: =IFERROR(ROUND(AVERAGE(P10:S10),2),"NA") -> 12.61
A11: =IFERROR(Input!A4, "NA") -> NWN | B11: ='Proxy Data Lookup'!B5 -> Northwest Natural Holding Company | D11: ='MRP WP1'!C73 -> 0.85 | F11: ='Proxy Data Lookup'!H5 -> 0.8670834303 | H11: 0.86 | J11: ='MRP WP1'!$H$64 -> 9.931910544 | M11: ='MRP WP1'!$F$37 -> 2.76 | P11: 11.30144307 | S11: 11.64905994 | V11: 11.48
A12: =IFERROR(Input!A5, "NA") -> OGS | B12: ='Proxy Data Lookup'!B6 -> ONE Gas, Inc. | D12: ='MRP WP1'!C74 -> 0.8 | F12: ='Proxy Data Lookup'!H6 -> 1.017971635 | H12: 0.91 | J12: ='MRP WP1'!$H$64 -> 9.931910544 | M12: ='MRP WP1'!$F$37 -> 2.76 | P12: 11.7980386 | S12: 12.02150658 | V12: 11.91
A13: =IFERROR(Input!A6, "NA") -> SJI | B13: ='Proxy Data Lookup'!B7 -> South Jersey Industries, Inc. | D13: ='MRP WP1'!C75 -> 1.05 | F13: ='Proxy Data Lookup'!H7 -> 1.000974417 | H13: 1.03 | J13: ='MRP WP1'!$H$64 -> 9.931910544 | M13: ='MRP WP1'!$F$37 -> 2.76 | P13: 12.98986786 | S13: 12.91537853 | V13: 12.95
A14: =IFERROR(Input!A7, "NA") -> SWX | B14: ='Proxy Data Lookup'!B8 -> Southwest Gas Holdings, Inc. | D14: ='MRP WP1'!C76 -> 0.95 | F14: ='Proxy Data Lookup'!H8 -> 1.097853065 | H14: 1.02 | J14: ='MRP WP1'!$H$64 -> 9.931910544 | M14: ='MRP WP1'!$F$37 -> 2.76 | P14: 12.89054876 | S14: 12.8408892 | V14: 12.87
A15: =IFERROR(Input!A8, "NA") -> SR | B15: ='Proxy Data Lookup'!B9 -> Spire Inc. | D15: ='MRP WP1'!C77 -> 0.85 | F15: ='Proxy Data Lookup'!H9 -> 0.9888524413 | H15: 0.92 | J15: ='MRP WP1'!$H$64 -> 9.931910544 | M15: ='MRP WP1'!$F$37 -> 2.76 | P15: 11.8973577 | S15: 12.09599591 | V15: 12
B17: Mean | H17: =IFERROR(ROUND(AVERAGE(H9:H15),2),"NA") -> 0.94 | P17: =IFERROR(ROUND(AVERAGE(P9:P15),2),"NA") -> 12.12 | Q17: % | S17: =IFERROR(ROUND(AVERAGE(S9:S15),2),"NA") -> 12.27 | T17: % | V17: =IFERROR(ROUND(AVERAGE(V9:V15),2),"NA") -> 12.2 | W17: %
B19: Median | H19: =IFERROR(ROUND(MEDIAN(H9:H15),2),"NA") -> 0.92 | P19: =IFERROR(ROUND(MEDIAN(P9:P15),2),"NA") -> 11.9 | Q19: % | S19: =IFERROR(ROUND(MEDIAN(S9:S15),2),"NA") -> 12.1 | T19: % | V19: =IFERROR(ROUND(MEDIAN(V9:V15),2),"NA") -> 12 | W19: %
B21: Average of Mean and Median | H21: =IFERROR(ROUND(AVERAGE(H17:H19),2),"NA") -> 0.93 | P21: =IFERROR(ROUND(AVERAGE(P17:P19),2),"NA") -> 12.01 | Q21: % | S21: =IFERROR(ROUND(AVERAGE(S17:S19),2),"NA") -> 12.19 | T21: % | V21: =IFERROR(ROUND(AVERAGE(V17:V19),2),"NA") -> 12.1 | W21: %
B24: Notes on page 25 of this Schedule.

Sheet 1.25 CAPM Notes
A1: =Input!G28 -> Atmos Energy Corporation
A2: Notes to Accompany the Application of the CAPM and ECAPM
A4: Notes:
A5: (1) | B5: The market risk premium (MRP) is derived by using six different measures from three sources: Ibbotson, Value Line, and Bloomberg as illustrated below:
B7: Historical Data MRP Estimates:
B9: =CONCATENATE("Measure 1: Ibbotson Arithmetic Mean MRP ",MID(Input!E20,FIND("(",Input!E20),11)) -> Measure 1: Ibbotson Arithmetic Mean MRP (1926-2020)
B11: =CONCATENATE("Arithmetic Mean Monthly Returns for Large Stocks ",MID(Input!E20,FIND("1",Input!E20),9),":") -> Arithmetic Mean Monthly Returns for Large Stocks 1926-2020: | N11: ='MRP WP1'!H49 -> 12.2 | O11: %
B12: Arithmetic Mean Income Returns on Long-Term Government Bonds: | N12: ='MRP WP1'!H51 -> 5.05
B13: MRP based on Ibbotson Historical Data: | N13: =N11-N12 -> 7.15 | O13: %
B15: Measure 2: Application of a Regression Analysis to Ibbotson Historical Data
B16: (1926-2020) | N16: ='MRP ERP WP'!AA42*100 -> 9.511581288 | O16: %
B18: Measure 3: Application of the PRPM to Ibbotson Historical Data:
B19: =CONCATENATE("(January 1926 - ",Input!G25,")") -> (January 1926 - September 2021) | N19: ='MRP WP1'!H46 -> 8.540339754 | O19: %
B21: Value Line MRP Estimates:
B23: =CONCATENATE("Measure 4: Value Line Projected MRP (Thirteen weeks ending ",TEXT('MRP WP1'!B7,"mmmm dd, yyyy)")) -> Measure 4: Value Line Projected MRP (Thirteen weeks ending October 01, 2021)
B25: Total projected return on the market 3-5 years hence*: | N25: ='MRP WP1'!M22*100 -> 9.59 | O25: %
B26: Projected Risk-Free Rate (see note 2): | N26: ='MRP WP1'!F37 -> 2.76
B27: MRP based on Value Line Summary & Index: | N27: =N25-N26 -> 6.83 | O27: %
C28: *Forcasted 3-5 year capital appreciation plus expected dividend yield
B30: Measure 5: Value Line Projected Return on the Market based on the S&P 500
B32: Total return on the Market based on the S&P 500: | N32: ='MRP WP3'!H504*100 -> 15.80817803 | O32: %
B33: Projected Risk-Free Rate (see note 2): | N33: =N54 -> 2.76
B34: MRP based on Value Line data | N34: =IFERROR(N32-N33,"NA") -> 13.04817803 | O34: %
B36: Measure 6: Bloomberg Projected MRP
B38: Total return on the Market based on the S&P 500: | N38: ='MRP WP2'!Q504*100 -> 17.27136419 | O38: %
B39: Projected Risk-Free Rate (see note 2): | N39: ='MRP WP1'!F37 -> 2.76
L40: MRP based on Bloomberg data | N40: =IFERROR(N38-N39,"NA") -> 14.51136419 | O40: %
L42: Average of Value Line, Ibbotson, and Bloomberg MRP: | N42: =AVERAGE(N13,N16,N19,N27,N34,N40) -> 9.931910544 | O42: %
A44: (2) | B44: For reasons explained in the direct testimony, the appropriate risk-free rate for cost of capital purposes is the average forecast of 30 year Treasury Bonds per the consensus of nearly 50 economists reported in Blue Chip Financial Forecasts. (See pages 20 and 21 of this Schedule.) The projection of the risk-free rate is illustrated below:
J46: ='MRP WP1'!B28 -> Fourth Quarter 2021 | N46: ='MRP WP1'!F28 -> 2.2 | O46: %
J47: ='MRP WP1'!B29 -> First Quarter 2022 | N47: ='MRP WP1'!F29 -> 2.3
J48: ='MRP WP1'!B30 -> Second Quarter 2022 | N48: ='MRP WP1'!F30 -> 2.4
J49: ='MRP WP1'!B31 -> Third Quarter 2022 | N49: ='MRP WP1'!F31 -> 2.5
J50: ='MRP WP1'!B32 -> Fourth Quarter 2022 | N50: ='MRP WP1'!F32 -> 2.6
J51: ='MRP WP1'!B33 -> First Quarter 2023 | N51: ='MRP WP1'!F33 -> 2.7
J52: ='MRP WP1'!B34 -> 2023-2027 | N52: ='MRP WP1'!F34 -> 3.5
J53: ='MRP WP1'!B35 -> 2028-2032 | N53: ='MRP WP1'!F35 -> 3.9
N54: =ROUND(AVERAGE(N46:N53),2) -> 2.76 | O54: %
A55: (3) | B55: Average of Column 6 and Column 7.
A57: Sources of Information:
B58: Value Line Summary and Index
B59: ='1.18-1.19 Beta Adjusted ERP'!C45 -> Blue Chip Financial Forecasts, June 1, 2021, October 1, 2021
B60: ='1.18-1.19 Beta Adjusted ERP'!C42 -> Stocks, Bonds, Bills, and Inflation - 2021 SBBI Yearbook, John Wiley & Sons, Inc.
B61: Bloomberg Professional Services

Sheet 1.27 Comp Earnings Criteria
C1: =Input!G28 -> Atmos Energy Corporation
C2: Basis of Selection of Comparable Risk
C3: Domestic Non-Price Regulated Companies
A4: TICKER
E5: [1] | G5: [2] | I5: [3] | K5: [4]
A6: SYMBOL
C7: ='1.24 CAPM'!B7 -> Proxy Group of Seven Natural Gas Distribution Companies | E7: Value Line Adjusted Beta | G7: Unadjusted Beta | I7: Residual Standard Error of the Regression | K7: Standard Deviation of Beta
A9: =Input!A2 -> ATO | C9: ='Proxy Data Lookup'!B3 -> Atmos Energy Corporation | E9: ='Proxy Data Lookup'!G3 -> 0.8 | G9: ='Proxy Data Lookup'!I3 -> 0.69 | I9: ='Proxy Data Lookup'!L3 -> 2.7656 | K9: ='Proxy Data Lookup'!N3 -> 0.0694
A10: =Input!A3 -> NJR | C10: ='Proxy Data Lookup'!B4 -> New Jersey Resources Corporation | E10: ='Proxy Data Lookup'!G4 -> 1 | G10: ='Proxy Data Lookup'!I4 -> 0.95 | I10: ='Proxy Data Lookup'!L4 -> 3.02 | K10: ='Proxy Data Lookup'!N4 -> 0.0758
A11: =Input!A4 -> NWN | C11: ='Proxy Data Lookup'!B5 -> Northwest Natural Holding Company | E11: ='Proxy Data Lookup'!G5 -> 0.85 | G11: ='Proxy Data Lookup'!I5 -> 0.72 | I11: ='Proxy Data Lookup'!L5 -> 3.1578 | K11: ='Proxy Data Lookup'!N5 -> 0.0793
A12: =Input!A5 -> OGS | C12: ='Proxy Data Lookup'!B6 -> ONE Gas, Inc. | E12: ='Proxy Data Lookup'!G6 -> 0.8 | G12: ='Proxy Data Lookup'!I6 -> 0.69 | I12: ='Proxy Data Lookup'!L6 -> 2.7297 | K12: ='Proxy Data Lookup'!N6 -> 0.0685
A13: =Input!A6 -> SJI | C13: ='Proxy Data Lookup'!B7 -> South Jersey Industries, Inc. | E13: ='Proxy Data Lookup'!G7 -> 1.05 | G13: ='Proxy Data Lookup'!I7 -> 1.03 | I13: ='Proxy Data Lookup'!L7 -> 3.7894 | K13: ='Proxy Data Lookup'!N7 -> 0.0951
A14: =Input!A7 -> SWX | C14: ='Proxy Data Lookup'!B8 -> Southwest Gas Holdings, Inc. | E14: ='Proxy Data Lookup'!G8 -> 0.95 | G14: ='Proxy Data Lookup'!I8 -> 0.87 | I14: ='Proxy Data Lookup'!L8 -> 3.1477 | K14: ='Proxy Data Lookup'!N8 -> 0.079
A15: =Input!A8 -> SR | C15: ='Proxy Data Lookup'!B9 -> Spire Inc. | E15: ='Proxy Data Lookup'!G9 -> 0.85 | G15: ='Proxy Data Lookup'!I9 -> 0.74 | I15: ='Proxy Data Lookup'!L9 -> 2.8414 | K15: ='Proxy Data Lookup'!N9 -> 0.0713
C17: Average | E17: =AVERAGE(E9:E15) -> 0.9 | G17: =AVERAGE(G9:G15) -> 0.8128571429 | I17: =AVERAGE(I9:I15) -> 3.064514286 | K17: =AVERAGE(K9:K15) -> 0.07691428571
C20: Beta Range (+/- 2 std. Devs. of Beta) | E20: =G17-E21 -> 0.6628571429 | G20: =G17+E21 -> 0.9628571429
C21: 2 std. Devs. of Beta | E21: =ROUND((K17*2),2) -> 0.15
C23: Residual Std. Err. Range (+/- 2 std.
C24: Devs. of the Residual Std. Err.) | E24: =I17-E28 -> 2.795314286 | G24: =I17+E28 -> 3.333714286
C26: Std. dev. of the Res. Std. Err. | E26: =ROUND((I17/22.7596),4) -> 0.1346
C28: 2 std. devs. of the Res. Std. Err. | E28: =ROUND((2*E26),4) -> 0.2692
C32: Source of Information: | E32: Valueline Proprietary Database, September 2021

Sheet 1.28 Proxy Group Equivalent
C1: =Input!G28 -> Atmos Energy Corporation
C2: Proxy Group of Non-Price Regulated Companies
C3: Comparable in Total Risk to the
C4: ='1.27 Comp Earnings Criteria'!C7 -> Proxy Group of Seven Natural Gas Distribution Companies
E6: [1] | G6: [2] | I6: [3] | K6: [4]
A8: Ticker | C8: =Input!I32 -> Proxy Group of Forty-Six Non-Price Regulated Companies | E8: VL Adjusted Beta | G8: Unadjusted Beta | I8: Residual Standard Error of the Regression | K8: Standard Deviation of Beta
A10: =Input!C2 -> AAPL | C10: =VLOOKUP($A10,'CEM Data Lookup'!$A:$Q,2,FALSE) -> Apple Inc. | E10: =VLOOKUP($A10,'CEM Data Lookup'!$A:$Q,7,FALSE) -> 0.9 | G10: =VLOOKUP($A10,'CEM Data Lookup'!$A:$Q,9,FALSE) -> 0.83 | I10: =VLOOKUP($A10,'CEM Data Lookup'!$A:$Q,14,FALSE) -> 3.2592 | K10: =VLOOKUP($A10,'CEM Data Lookup'!$A:$Q,16,FALSE) -> 0.0818
A11: =Input!C3 -> AIZ | C11: =VLOOKUP($A11,'CEM Data Lookup'!$A:$Q,2,FALSE) -> Abbott Labs. | E11: =VLOOKUP($A11,'CEM Data Lookup'!$A:$Q,7,FALSE) -> 0.9 | G11: =VLOOKUP($A11,'CEM Data Lookup'!$A:$Q,9,FALSE) -> 0.85 | I11: =VLOOKUP($A11,'CEM Data Lookup'!$A:$Q,14,FALSE) -> 2.8087 | K11: =VLOOKUP($A11,'CEM Data Lookup'!$A:$Q,16,FALSE) -> 0.0705
A12: =Input!C4 -> ANSS | C12: =VLOOKUP($A12,'CEM Data Lookup'!$A:$Q,2,FALSE) -> Assurant Inc. | E12: =VLOOKUP($A12,'CEM Data Lookup'!$A:$Q,7,FALSE) -> 0.85 | G12: =VLOOKUP($A12,'CEM Data Lookup'!$A:$Q,9,FALSE) -> 0.75 | I12: =VLOOKUP($A12,'CEM Data Lookup'!$A:$Q,14,FALSE) -> 3.3031 | K12: =VLOOKUP($A12,'CEM Data Lookup'!$A:$Q,16,FALSE) -> 0.0829
A13: =Input!C5 -> BAH | C13: =VLOOKUP($A13,'CEM Data Lookup'!$A:$Q,2,FALSE) -> ANSYS, Inc. | E13: =VLOOKUP($A13,'CEM Data Lookup'!$A:$Q,7,FALSE) -> 0.9 | G13: =VLOOKUP($A13,'CEM Data Lookup'!$A:$Q,9,FALSE) -> 0.82 | I13: =VLOOKUP($A13,'CEM Data Lookup'!$A:$Q,14,FALSE) -> 3.1917 | K13: =VLOOKUP($A13,'CEM Data Lookup'!$A:$Q,16,FALSE) -> 0.0801
A14: =Input!C6 -> BLL | C14: =VLOOKUP($A14,'CEM Data Lookup'!$A:$Q,2,FALSE) -> Booz Allen Hamilton | E14: =VLOOKUP($A14,'CEM Data Lookup'!$A:$Q,7,FALSE) -> 1 | G14: =VLOOKUP($A14,'CEM Data Lookup'!$A:$Q,9,FALSE) -> 0.96 | I14: =VLOOKUP($A14,'CEM Data Lookup'!$A:$Q,14,FALSE) -> 2.8317 | K14: =VLOOKUP($A14,'CEM Data Lookup'!$A:$Q,16,FALSE) -> 0.0711
A15: =Input!C7 -> CACI | C15: =VLOOKUP($A15,'CEM Data Lookup'!$A:$Q,2,FALSE) -> Becton, Dickinson | E15: =VLOOKUP($A15,'CEM Data Lookup'!$A:$Q,7,FALSE) -> 0.95 | G15: =VLOOKUP($A15,'CEM Data Lookup'!$A:$Q,9,FALSE) -> 0.86 | I15: =VLOOKUP($A15,'CEM Data Lookup'!$A:$Q,14,FALSE) -> 2.9371 | K15: =VLOOKUP($A15,'CEM Data Lookup'!$A:$Q,16,FALSE) -> 0.0737
A16: =Input!C8 -> CASY | C16: =VLOOKUP($A16,'CEM Data Lookup'!$A:$Q,2,FALSE) -> Brown-Forman 'B' | E16: =VLOOKUP($A16,'CEM Data Lookup'!$A:$Q,7,FALSE) -> 0.9 | G16: =VLOOKUP($A16,'CEM Data Lookup'!$A:$Q,9,FALSE) -> 0.81 | I16: =VLOOKUP($A16,'CEM Data Lookup'!$A:$Q,14,FALSE) -> 3.169 | K16: =VLOOKUP($A16,'CEM Data Lookup'!$A:$Q,16,FALSE) -> 0.0795
A17: =Input!C9 -> CSWI | C17: =VLOOKUP($A17,'CEM Data Lookup'!$A:$Q,2,FALSE) -> Broadridge Fin'l | E17: =VLOOKUP($A17,'CEM Data Lookup'!$A:$Q,7,FALSE) -> 0.9 | G17: =VLOOKUP($A17,'CEM Data Lookup'!$A:$Q,9,FALSE) -> 0.8 | I17: =VLOOKUP($A17,'CEM Data Lookup'!$A:$Q,14,FALSE) -> 2.8605 | K17: =VLOOKUP($A17,'CEM Data Lookup'!$A:$Q,16,FALSE) -> 0.0718
A18: =Input!C10 -> DGX | C18: =VLOOKUP($A18,'CEM Data Lookup'!$A:$Q,2,FALSE) -> Brady Corp. | E18: =VLOOKUP($A18,'CEM Data Lookup'!$A:$Q,7,FALSE) -> 0.85 | G18: =VLOOKUP($A18,'CEM Data Lookup'!$A:$Q,9,FALSE) -> 0.7 | I18: =VLOOKUP($A18,'CEM Data Lookup'!$A:$Q,14,FALSE) -> 2.9807 | K18: =VLOOKUP($A18,'CEM Data Lookup'!$A:$Q,16,FALSE) -> 0.0748
A19: =Input!C11 -> EBAY | C19: =VLOOKUP($A19,'CEM Data Lookup'!$A:$Q,2,FALSE) -> CACI Int'l | E19: =VLOOKUP($A19,'CEM Data Lookup'!$A:$Q,7,FALSE) -> 1 | G19: =VLOOKUP($A19,'CEM Data Lookup'!$A:$Q,9,FALSE) -> 0.94 | I19: =VLOOKUP($A19,'CEM Data Lookup'!$A:$Q,14,FALSE) -> 3.2911 | K19: =VLOOKUP($A19,'CEM Data Lookup'!$A:$Q,16,FALSE) -> 0.0826
A20: =Input!C12 -> EL | C20: =VLOOKUP($A20,'CEM Data Lookup'!$A:$Q,2,FALSE) -> Casey's Gen'l Stores | E20: =VLOOKUP($A20,'CEM Data Lookup'!$A:$Q,7,FALSE) -> 0.95 | G20: =VLOOKUP($A20,'CEM Data Lookup'!$A:$Q,9,FALSE) -> 0.9 | I20: =VLOOKUP($A20,'CEM Data Lookup'!$A:$Q,14,FALSE) -> 2.9211 | K20: =VLOOKUP($A20,'CEM Data Lookup'!$A:$Q,16,FALSE) -> 0.0733
A21: =Input!C13 -> EXPO | C21: =VLOOKUP($A21,'CEM Data Lookup'!$A:$Q,2,FALSE) -> Cadence Design Sys. | E21: =VLOOKUP($A21,'CEM Data Lookup'!$A:$Q,7,FALSE) -> 0.9 | G21: =VLOOKUP($A21,'CEM Data Lookup'!$A:$Q,9,FALSE) -> 0.79 | I21: =VLOOKUP($A21,'CEM Data Lookup'!$A:$Q,14,FALSE) -> 2.8942 | K21: =VLOOKUP($A21,'CEM Data Lookup'!$A:$Q,16,FALSE) -> 0.0726
A22: =Input!C14 -> FAST | C22: =VLOOKUP($A22,'CEM Data Lookup'!$A:$Q,2,FALSE) -> Cerner Corp. | E22: =VLOOKUP($A22,'CEM Data Lookup'!$A:$Q,7,FALSE) -> 0.95 | G22: =VLOOKUP($A22,'CEM Data Lookup'!$A:$Q,9,FALSE) -> 0.87 | I22: =VLOOKUP($A22,'CEM Data Lookup'!$A:$Q,14,FALSE) -> 3.1652 | K22: =VLOOKUP($A22,'CEM Data Lookup'!$A:$Q,16,FALSE) -> 0.0794
A23: =Input!C15 -> FCFS | C23: =VLOOKUP($A23,'CEM Data Lookup'!$A:$Q,2,FALSE) -> CSW Industrials | E23: =VLOOKUP($A23,'CEM Data Lookup'!$A:$Q,7,FALSE) -> 0.9 | G23: =VLOOKUP($A23,'CEM Data Lookup'!$A:$Q,9,FALSE) -> 0.79 | I23: =VLOOKUP($A23,'CEM Data Lookup'!$A:$Q,14,FALSE) -> 3.2553 | K23: =VLOOKUP($A23,'CEM Data Lookup'!$A:$Q,16,FALSE) -> 0.0817
A24: =Input!C16 -> FELE | C24: =VLOOKUP($A24,'CEM Data Lookup'!$A:$Q,2,FALSE) -> Quest Diagnostics | E24: =VLOOKUP($A24,'CEM Data Lookup'!$A:$Q,7,FALSE) -> 0.95 | G24: =VLOOKUP($A24,'CEM Data Lookup'!$A:$Q,9,FALSE) -> 0.86 | I24: =VLOOKUP($A24,'CEM Data Lookup'!$A:$Q,14,FALSE) -> 3.1959 | K24: =VLOOKUP($A24,'CEM Data Lookup'!$A:$Q,16,FALSE) -> 0.0802
A25: =Input!C17 -> GATX | C25: =VLOOKUP($A25,'CEM Data Lookup'!$A:$Q,2,FALSE) -> Lauder (Estee) | E25: =VLOOKUP($A25,'CEM Data Lookup'!$A:$Q,7,FALSE) -> 0.95 | G25: =VLOOKUP($A25,'CEM Data Lookup'!$A:$Q,9,FALSE) -> 0.9 | I25: =VLOOKUP($A25,'CEM Data Lookup'!$A:$Q,14,FALSE) -> 3.0993 | K25: =VLOOKUP($A25,'CEM Data Lookup'!$A:$Q,16,FALSE) -> 0.0778
A26: =Input!C18 -> IFF | C26: =VLOOKUP($A26,'CEM Data Lookup'!$A:$Q,2,FALSE) -> Exponent, Inc. | E26: =VLOOKUP($A26,'CEM Data Lookup'!$A:$Q,7,FALSE) -> 0.9 | G26: =VLOOKUP($A26,'CEM Data Lookup'!$A:$Q,9,FALSE) -> 0.85 | I26: =VLOOKUP($A26,'CEM Data Lookup'!$A:$Q,14,FALSE) -> 3.3036 | K26: =VLOOKUP($A26,'CEM Data Lookup'!$A:$Q,16,FALSE) -> 0.0829
A27: =Input!C19 -> INGR | C27: =VLOOKUP($A27,'CEM Data Lookup'!$A:$Q,2,FALSE) -> Fastenal Co. | E27: =VLOOKUP($A27,'CEM Data Lookup'!$A:$Q,7,FALSE) -> 0.95 | G27: =VLOOKUP($A27,'CEM Data Lookup'!$A:$Q,9,FALSE) -> 0.85 | I27: =VLOOKUP($A27,'CEM Data Lookup'!$A:$Q,14,FALSE) -> 2.8492 | K27: =VLOOKUP($A27,'CEM Data Lookup'!$A:$Q,16,FALSE) -> 0.0715
A28: =Input!C20 -> IRM | C28: =VLOOKUP($A28,'CEM Data Lookup'!$A:$Q,2,FALSE) -> Gentex Corp. | E28: =VLOOKUP($A28,'CEM Data Lookup'!$A:$Q,7,FALSE) -> 0.9 | G28: =VLOOKUP($A28,'CEM Data Lookup'!$A:$Q,9,FALSE) -> 0.8 | I28: =VLOOKUP($A28,'CEM Data Lookup'!$A:$Q,14,FALSE) -> 3.1804 | K28: =VLOOKUP($A28,'CEM Data Lookup'!$A:$Q,16,FALSE) -> 0.0798
A29: =Input!C21 -> JBHT | C29: =VLOOKUP($A29,'CEM Data Lookup'!$A:$Q,2,FALSE) -> Int'l Flavors & Frag | E29: =VLOOKUP($A29,'CEM Data Lookup'!$A:$Q,7,FALSE) -> 0.95 | G29: =VLOOKUP($A29,'CEM Data Lookup'!$A:$Q,9,FALSE) -> 0.87 | I29: =VLOOKUP($A29,'CEM Data Lookup'!$A:$Q,14,FALSE) -> 2.8494 | K29: =VLOOKUP($A29,'CEM Data Lookup'!$A:$Q,16,FALSE) -> 0.0715
A30: =Input!C22 -> JJSF | C30: =VLOOKUP($A30,'CEM Data Lookup'!$A:$Q,2,FALSE) -> Ingredion Inc. | E30: =VLOOKUP($A30,'CEM Data Lookup'!$A:$Q,7,FALSE) -> 0.95 | G30: =VLOOKUP($A30,'CEM Data Lookup'!$A:$Q,9,FALSE) -> 0.87 | I30: =VLOOKUP($A30,'CEM Data Lookup'!$A:$Q,14,FALSE) -> 2.9374 | K30: =VLOOKUP($A30,'CEM Data Lookup'!$A:$Q,16,FALSE) -> 0.0737
A31: =Input!C23 -> JKHY | C31: =VLOOKUP($A31,'CEM Data Lookup'!$A:$Q,2,FALSE) -> Iron Mountain | E31: =VLOOKUP($A31,'CEM Data Lookup'!$A:$Q,7,FALSE) -> 0.85 | G31: =VLOOKUP($A31,'CEM Data Lookup'!$A:$Q,9,FALSE) -> 0.7 | I31: =VLOOKUP($A31,'CEM Data Lookup'!$A:$Q,14,FALSE) -> 2.8714 | K31: =VLOOKUP($A31,'CEM Data Lookup'!$A:$Q,16,FALSE) -> 0.0721
A32: =Input!C24 -> JNPR | C32: =VLOOKUP($A32,'CEM Data Lookup'!$A:$Q,2,FALSE) -> Hunt (J.B.) | E32: =VLOOKUP($A32,'CEM Data Lookup'!$A:$Q,7,FALSE) -> 1 | G32: =VLOOKUP($A32,'CEM Data Lookup'!$A:$Q,9,FALSE) -> 0.95 | I32: =VLOOKUP($A32,'CEM Data Lookup'!$A:$Q,14,FALSE) -> 2.853 | K32: =VLOOKUP($A32,'CEM Data Lookup'!$A:$Q,16,FALSE) -> 0.0716
A33: =Input!C25 -> MANT | C33: =VLOOKUP($A33,'CEM Data Lookup'!$A:$Q,2,FALSE) -> J&J Snack Foods | E33: =VLOOKUP($A33,'CEM Data Lookup'!$A:$Q,7,FALSE) -> 0.85 | G33: =VLOOKUP($A33,'CEM Data Lookup'!$A:$Q,9,FALSE) -> 0.75 | I33: =VLOOKUP($A33,'CEM Data Lookup'!$A:$Q,14,FALSE) -> 3.1404 | K33: =VLOOKUP($A33,'CEM Data Lookup'!$A:$Q,16,FALSE) -> 0.0788
A34: =Input!C26 -> MNST | C34: =VLOOKUP($A34,'CEM Data Lookup'!$A:$Q,2,FALSE) -> Henry (Jack) & Assoc | E34: =VLOOKUP($A34,'CEM Data Lookup'!$A:$Q,7,FALSE) -> 0.85 | G34: =VLOOKUP($A34,'CEM Data Lookup'!$A:$Q,9,FALSE) -> 0.74 | I34: =VLOOKUP($A34,'CEM Data Lookup'!$A:$Q,14,FALSE) -> 3.042 | K34: =VLOOKUP($A34,'CEM Data Lookup'!$A:$Q,16,FALSE) -> 0.0764
A35: =Input!C27 -> MO | C35: =VLOOKUP($A35,'CEM Data Lookup'!$A:$Q,2,FALSE) -> ManTech Int'l 'A' | E35: =VLOOKUP($A35,'CEM Data Lookup'!$A:$Q,7,FALSE) -> 0.95 | G35: =VLOOKUP($A35,'CEM Data Lookup'!$A:$Q,9,FALSE) -> 0.87 | I35: =VLOOKUP($A35,'CEM Data Lookup'!$A:$Q,14,FALSE) -> 2.9653 | K35: =VLOOKUP($A35,'CEM Data Lookup'!$A:$Q,16,FALSE) -> 0.0744
A36: =Input!C28 -> MSA | C36: =VLOOKUP($A36,'CEM Data Lookup'!$A:$Q,2,FALSE) -> McCormick & Co. | E36: =VLOOKUP($A36,'CEM Data Lookup'!$A:$Q,7,FALSE) -> 1 | G36: =VLOOKUP($A36,'CEM Data Lookup'!$A:$Q,9,FALSE) -> 0.94 | I36: =VLOOKUP($A36,'CEM Data Lookup'!$A:$Q,14,FALSE) -> 2.9892 | K36: =VLOOKUP($A36,'CEM Data Lookup'!$A:$Q,16,FALSE) -> 0.075
A37: =Input!C29 -> MSCI | C37: =VLOOKUP($A37,'CEM Data Lookup'!$A:$Q,2,FALSE) -> Altria Group | E37: =VLOOKUP($A37,'CEM Data Lookup'!$A:$Q,7,FALSE) -> 0.95 | G37: =VLOOKUP($A37,'CEM Data Lookup'!$A:$Q,9,FALSE) -> 0.85 | I37: =VLOOKUP($A37,'CEM Data Lookup'!$A:$Q,14,FALSE) -> 3.0069 | K37: =VLOOKUP($A37,'CEM Data Lookup'!$A:$Q,16,FALSE) -> 0.0755
A38: =Input!C30 -> MTN | C38: =VLOOKUP($A38,'CEM Data Lookup'!$A:$Q,2,FALSE) -> MSA Safety | E38: =VLOOKUP($A38,'CEM Data Lookup'!$A:$Q,7,FALSE) -> 0.95 | G38: =VLOOKUP($A38,'CEM Data Lookup'!$A:$Q,9,FALSE) -> 0.89 | I38: =VLOOKUP($A38,'CEM Data Lookup'!$A:$Q,14,FALSE) -> 3.2995 | K38: =VLOOKUP($A38,'CEM Data Lookup'!$A:$Q,16,FALSE) -> 0.0828
A39: =Input!C31 -> NOC | C39: =VLOOKUP($A39,'CEM Data Lookup'!$A:$Q,2,FALSE) -> MSCI Inc. | E39: =VLOOKUP($A39,'CEM Data Lookup'!$A:$Q,7,FALSE) -> 0.85 | G39: =VLOOKUP($A39,'CEM Data Lookup'!$A:$Q,9,FALSE) -> 0.74 | I39: =VLOOKUP($A39,'CEM Data Lookup'!$A:$Q,14,FALSE) -> 2.9028 | K39: =VLOOKUP($A39,'CEM Data Lookup'!$A:$Q,16,FALSE) -> 0.0729
A40: =Input!C32 -> ODFL | C40: =VLOOKUP($A40,'CEM Data Lookup'!$A:$Q,2,FALSE) -> Motorola Solutions | E40: =VLOOKUP($A40,'CEM Data Lookup'!$A:$Q,7,FALSE) -> 0.9 | G40: =VLOOKUP($A40,'CEM Data Lookup'!$A:$Q,9,FALSE) -> 0.84 | I40: =VLOOKUP($A40,'CEM Data Lookup'!$A:$Q,14,FALSE) -> 2.9628 | K40: =VLOOKUP($A40,'CEM Data Lookup'!$A:$Q,16,FALSE) -> 0.0744
A41: =Input!C33 -> PKG | C41: =VLOOKUP($A41,'CEM Data Lookup'!$A:$Q,2,FALSE) -> Vail Resorts | E41: =VLOOKUP($A41,'CEM Data Lookup'!$A:$Q,7,FALSE) -> 0.95 | G41: =VLOOKUP($A41,'CEM Data Lookup'!$A:$Q,9,FALSE) -> 0.9 | I41: =VLOOKUP($A41,'CEM Data Lookup'!$A:$Q,14,FALSE) -> 2.8484 | K41: =VLOOKUP($A41,'CEM Data Lookup'!$A:$Q,16,FALSE) -> 0.0715
A42: =Input!C34 -> PKI | C42: =VLOOKUP($A42,'CEM Data Lookup'!$A:$Q,2,FALSE) -> Maxim Integrated | E42: =VLOOKUP($A42,'CEM Data Lookup'!$A:$Q,7,FALSE) -> 0.9 | G42: =VLOOKUP($A42,'CEM Data Lookup'!$A:$Q,9,FALSE) -> 0.81 | I42: =VLOOKUP($A42,'CEM Data Lookup'!$A:$Q,14,FALSE) -> 3.1146 | K42: =VLOOKUP($A42,'CEM Data Lookup'!$A:$Q,16,FALSE) -> 0.0782
A43: =Input!C35 -> PM | C43: =VLOOKUP($A43,'CEM Data Lookup'!$A:$Q,2,FALSE) -> Northrop Grumman | E43: =VLOOKUP($A43,'CEM Data Lookup'!$A:$Q,7,FALSE) -> 0.95 | G43: =VLOOKUP($A43,'CEM Data Lookup'!$A:$Q,9,FALSE) -> 0.91 | I43: =VLOOKUP($A43,'CEM Data Lookup'!$A:$Q,14,FALSE) -> 3.2426 | K43: =VLOOKUP($A43,'CEM Data Lookup'!$A:$Q,16,FALSE) -> 0.0814
A44: =Input!C36 -> POOL | C44: =VLOOKUP($A44,'CEM Data Lookup'!$A:$Q,2,FALSE) -> Old Dominion Freight | E44: =VLOOKUP($A44,'CEM Data Lookup'!$A:$Q,7,FALSE) -> 0.85 | G44: =VLOOKUP($A44,'CEM Data Lookup'!$A:$Q,9,FALSE) -> 0.74 | I44: =VLOOKUP($A44,'CEM Data Lookup'!$A:$Q,14,FALSE) -> 3.3291 | K44: =VLOOKUP($A44,'CEM Data Lookup'!$A:$Q,16,FALSE) -> 0.0836
A45: =Input!C37 -> POST | C45: =VLOOKUP($A45,'CEM Data Lookup'!$A:$Q,2,FALSE) -> PerkinElmer Inc. | E45: =VLOOKUP($A45,'CEM Data Lookup'!$A:$Q,7,FALSE) -> 0.95 | G45: =VLOOKUP($A45,'CEM Data Lookup'!$A:$Q,9,FALSE) -> 0.88 | I45: =VLOOKUP($A45,'CEM Data Lookup'!$A:$Q,14,FALSE) -> 2.8724 | K45: =VLOOKUP($A45,'CEM Data Lookup'!$A:$Q,16,FALSE) -> 0.0721
A46: =Input!C38 -> RLI | C46: =VLOOKUP($A46,'CEM Data Lookup'!$A:$Q,2,FALSE) -> Philip Morris Int'l | E46: =VLOOKUP($A46,'CEM Data Lookup'!$A:$Q,7,FALSE) -> 0.8 | G46: =VLOOKUP($A46,'CEM Data Lookup'!$A:$Q,9,FALSE) -> 0.67 | I46: =VLOOKUP($A46,'CEM Data Lookup'!$A:$Q,14,FALSE) -> 3.0414 | K46: =VLOOKUP($A46,'CEM Data Lookup'!$A:$Q,16,FALSE) -> 0.0763
A47: =Input!C39 -> ROL | C47: =VLOOKUP($A47,'CEM Data Lookup'!$A:$Q,2,FALSE) -> Pool Corp. | E47: =VLOOKUP($A47,'CEM Data Lookup'!$A:$Q,7,FALSE) -> 0.85 | G47: =VLOOKUP($A47,'CEM Data Lookup'!$A:$Q,9,FALSE) -> 0.71 | I47: =VLOOKUP($A47,'CEM Data Lookup'!$A:$Q,14,FALSE) -> 3.0047 | K47: =VLOOKUP($A47,'CEM Data Lookup'!$A:$Q,16,FALSE) -> 0.0754
A48: =Input!C40 -> SIGI | C48: =VLOOKUP($A48,'CEM Data Lookup'!$A:$Q,2,FALSE) -> Post Holdings | E48: =VLOOKUP($A48,'CEM Data Lookup'!$A:$Q,7,FALSE) -> 0.9 | G48: =VLOOKUP($A48,'CEM Data Lookup'!$A:$Q,9,FALSE) -> 0.8 | I48: =VLOOKUP($A48,'CEM Data Lookup'!$A:$Q,14,FALSE) -> 2.9915 | K48: =VLOOKUP($A48,'CEM Data Lookup'!$A:$Q,16,FALSE) -> 0.0751
A49: =Input!C41 -> SIRI | C49: =VLOOKUP($A49,'CEM Data Lookup'!$A:$Q,2,FALSE) -> RLI Corp. | E49: =VLOOKUP($A49,'CEM Data Lookup'!$A:$Q,7,FALSE) -> 0.95 | G49: =VLOOKUP($A49,'CEM Data Lookup'!$A:$Q,9,FALSE) -> 0.88 | I49: =VLOOKUP($A49,'CEM Data Lookup'!$A:$Q,14,FALSE) -> 2.9112 | K49: =VLOOKUP($A49,'CEM Data Lookup'!$A:$Q,16,FALSE) -> 0.0731
A50: =Input!C42 -> SNPS | C50: =VLOOKUP($A50,'CEM Data Lookup'!$A:$Q,2,FALSE) -> Rollins, Inc. | E50: =VLOOKUP($A50,'CEM Data Lookup'!$A:$Q,7,FALSE) -> 0.95 | G50: =VLOOKUP($A50,'CEM Data Lookup'!$A:$Q,9,FALSE) -> 0.9 | I50: =VLOOKUP($A50,'CEM Data Lookup'!$A:$Q,14,FALSE) -> 2.9615 | K50: =VLOOKUP($A50,'CEM Data Lookup'!$A:$Q,16,FALSE) -> 0.0743
A51: =Input!C43 -> TRS | C51: =VLOOKUP($A51,'CEM Data Lookup'!$A:$Q,2,FALSE) -> Selective Ins. Group | E51: =VLOOKUP($A51,'CEM Data Lookup'!$A:$Q,7,FALSE) -> 0.85 | G51: =VLOOKUP($A51,'CEM Data Lookup'!$A:$Q,9,FALSE) -> 0.77 | I51: =VLOOKUP($A51,'CEM Data Lookup'!$A:$Q,14,FALSE) -> 3.3219 | K51: =VLOOKUP($A51,'CEM Data Lookup'!$A:$Q,16,FALSE) -> 0.0834
A52: =Input!C44 -> TTEK | C52: =VLOOKUP($A52,'CEM Data Lookup'!$A:$Q,2,FALSE) -> Sirius XM Holdings | E52: =VLOOKUP($A52,'CEM Data Lookup'!$A:$Q,7,FALSE) -> 0.95 | G52: =VLOOKUP($A52,'CEM Data Lookup'!$A:$Q,9,FALSE) -> 0.86 | I52: =VLOOKUP($A52,'CEM Data Lookup'!$A:$Q,14,FALSE) -> 3.2794 | K52: =VLOOKUP($A52,'CEM Data Lookup'!$A:$Q,16,FALSE) -> 0.0823
A53: =Input!C45 -> WAT | C53: =VLOOKUP($A53,'CEM Data Lookup'!$A:$Q,2,FALSE) -> Bio-Techne Corp. | E53: =VLOOKUP($A53,'CEM Data Lookup'!$A:$Q,7,FALSE) -> 0.95 | G53: =VLOOKUP($A53,'CEM Data Lookup'!$A:$Q,9,FALSE) -> 0.86 | I53: =VLOOKUP($A53,'CEM Data Lookup'!$A:$Q,14,FALSE) -> 2.825 | K53: =VLOOKUP($A53,'CEM Data Lookup'!$A:$Q,16,FALSE) -> 0.0709
A54: =Input!C46 -> WIRE | C54: =VLOOKUP($A54,'CEM Data Lookup'!$A:$Q,2,FALSE) -> Tetra Tech | E54: =VLOOKUP($A54,'CEM Data Lookup'!$A:$Q,7,FALSE) -> 0.95 | G54: =VLOOKUP($A54,'CEM Data Lookup'!$A:$Q,9,FALSE) -> 0.92 | I54: =VLOOKUP($A54,'CEM Data Lookup'!$A:$Q,14,FALSE) -> 3.2506 | K54: =VLOOKUP($A54,'CEM Data Lookup'!$A:$Q,16,FALSE) -> 0.0816
A55: =Input!C47 -> WST | C55: =VLOOKUP($A55,'CEM Data Lookup'!$A:$Q,2,FALSE) -> Waters Corp. | E55: =VLOOKUP($A55,'CEM Data Lookup'!$A:$Q,7,FALSE) -> 0.8 | G55: =VLOOKUP($A55,'CEM Data Lookup'!$A:$Q,9,FALSE) -> 0.69 | I55: =VLOOKUP($A55,'CEM Data Lookup'!$A:$Q,14,FALSE) -> 3.3126 | K55: =VLOOKUP($A55,'CEM Data Lookup'!$A:$Q,16,FALSE) -> 0.0831
A57: =COUNTA(A9:A56) -> 46 | C57: Average | E57: =ROUND(AVERAGE(E10:E55),2) -> 0.92 | G57: =ROUND(AVERAGE(G10:G55),2) -> 0.83 | I57: =ROUND(AVERAGE(I10:I55),4) -> 3.057 | K57: =ROUND(AVERAGE(K10:K55),4) -> 0.0767
C59: =C4 -> Proxy Group of Seven Natural Gas Distribution Companies | E59: ='1.27 Comp Earnings Criteria'!E17 -> 0.9 | G59: ='1.27 Comp Earnings Criteria'!G17 -> 0.8128571429 | I59: ='1.27 Comp Earnings Criteria'!I17 -> 3.064514286 | K59: ='1.27 Comp Earnings Criteria'!K17 -> 0.07691428571
C63: ='1.27 Comp Earnings Criteria'!C32 -> Source of Information: | E63: ='1.27 Comp Earnings Criteria'!E32 -> Valueline Proprietary Database, September 2021

Sheet 1.29 CEM Summary
A1: =Input!G28 -> Atmos Energy Corporation
A2: Summary of Cost of Equity Models Applied to
A3: ='1.28 Proxy Group Equivalent'!C8 -> Proxy Group of Forty-Six Non-Price Regulated Companies
A4: Comparable in Total Risk to the
A5: ='1.28 Proxy Group Equivalent'!C4 -> Proxy Group of Seven Natural Gas Distribution Companies
B7: Principal Methods | E7: =A3 -> Proxy Group of Forty-Six Non-Price Regulated Companies
B9: Discounted Cash Flow Model (DCF) (1) | E9: ='1.30 CEM DCF'!Y60 -> 14.03 | F9: %
B11: Risk Premium Model (RPM) (2) | E11: ='1.31 CEM RPM Summary'!G15 -> 12.93
B13: Capital Asset Pricing Model (CAPM) (3) | E13: ='1.34 CEM CAPM Backup'!V60 -> 12.16
E15: =ROUND(AVERAGE(E9:E13),2) -> 13.04 | F15: %
E17: =ROUND(MEDIAN(E9:E13),2) -> 12.93 | F17: %
E19: =ROUND(AVERAGE(E15:E17),2) -> 12.99 | F19: %
A21: Notes:
A22: (1) | B22: From page 30 of this Schedule.
A23: (2) | B23: From page 31 of this Schedule.
A24: (3) | B24: From page 34 of this Schedule.

Sheet 1.30 CEM DCF
B1: =Input!G28 -> Atmos Energy Corporation
B2: DCF Results for the Proxy Group of Non-Price-Regulated Companies Comparable in Total Risk to the
B3: ='1.29 CEM Summary'!A5 -> Proxy Group of Seven Natural Gas Distribution Companies
D5: [1] | G5: [2] | J5: [3] | M5: [4] | P5: [5] | S5: [6] | V5: [7] | Y5: [8]
B7: ='1.29 CEM Summary'!A3 -> Proxy Group of Forty-Six Non-Price Regulated Companies | D7: Average Dividend Yield | G7: Value Line Projected Five Year Growth in EPS | J7: Zack's Five Year Projected Growth Rate in EPS | M7: Bloomberg's Five Year Projected Growth Rate in EPS | P7: Yahoo! Finance Projected Five Year Growth in EPS | S7: Average Projected Five Year Growth Rate in EPS | V7: Adjusted Dividend Yield | Y7: Indicated Common Equity Cost Rate (1)
A9: =Input!C2 -> AAPL | B9: =VLOOKUP($A9,'CEM Data Lookup'!$A$4:$Q$49,2,FALSE) -> Apple Inc. | D9: =HLOOKUP(A9,'CEM PricesDivs'!$B$2:$AW$70,68,FALSE) -> 0.6 | E9: % | G9: ='CEM Data Lookup'!F4*100 -> 17 | H9: % | J9: =IFERROR('CEM Data Lookup'!C4*100, "NA") -> 12.5 | K9: % | M9: =IFERROR('CEM Data Lookup'!E4*100,"NA") -> 12.8 | N9: % | P9: ='CEM Data Lookup'!D4*100 -> 19.68 | Q9: % | S9: =IFERROR(ROUND(AVERAGE(G9,J9,M9,P9),2),"NA") -> 15.5 | T9: % | V9: =IFERROR(ROUND((D9*(1+(0.5*(S9/100)))),2),"NA") -> 0.65 | W9: % | Y9: =IFERROR(IF(OR(VALUE(V9)=0,VALUE(S9)=0),"NA",V9+S9),"NA") -> 16.15 | Z9: %
A10: =Input!C3 -> AIZ | B10: =VLOOKUP($A10,'CEM Data Lookup'!$A$4:$Q$49,2,FALSE) -> Abbott Labs. | D10: =HLOOKUP(A10,'CEM PricesDivs'!$B$2:$AW$70,68,FALSE) -> 1.63 | G10: ='CEM Data Lookup'!F5*100 -> 11.5 | J10: =IFERROR('CEM Data Lookup'!C5*100, "NA") -> 17.8 | M10: =IFERROR('CEM Data Lookup'!E5*100,"NA") -> 17.78 | P10: ='CEM Data Lookup'!D5*100 -> 17.8 | S10: =IFERROR(ROUND(AVERAGE(G10,J10,M10,P10),2),"NA") -> 16.22 | V10: =IFERROR(ROUND((D10*(1+(0.5*(S10/100)))),2),"NA") -> 1.76 | Y10: =IFERROR(IF(OR(VALUE(V10)=0,VALUE(S10)=0),"NA",V10+S10),"NA") -> 17.98
A11: =Input!C4 -> ANSS | B11: =VLOOKUP($A11,'CEM Data Lookup'!$A$4:$Q$49,2,FALSE) -> Assurant Inc. | D11: =HLOOKUP(A11,'CEM PricesDivs'!$B$2:$AW$70,68,FALSE) -> 0 | G11: ='CEM Data Lookup'!F6*100 -> 8 | J11: =IFERROR('CEM Data Lookup'!C6*100, "NA") -> 12.3 | M11: =IFERROR('CEM Data Lookup'!E6*100,"NA") -> 10.93 | P11: ='CEM Data Lookup'!D6*100 -> 12.14 | S11: =IFERROR(ROUND(AVERAGE(G11,J11,M11,P11),2),"NA") -> 10.84 | V11: 0 | Y11: NA
A12: =Input!C5 -> BAH | B12: =VLOOKUP($A12,'CEM Data Lookup'!$A$4:$Q$49,2,FALSE) -> ANSYS, Inc. | D12: =HLOOKUP(A12,'CEM PricesDivs'!$B$2:$AW$70,68,FALSE) -> 1.78 | G12: ='CEM Data Lookup'!F7*100 -> 8.5 | J12: =IFERROR('CEM Data Lookup'!C7*100, "NA") -> 8.3 | M12: =IFERROR('CEM Data Lookup'!E7*100,"NA") -> 9 | P12: ='CEM Data Lookup'!D7*100 -> 8.8 | S12: 8.65 | V12: 1.86 | Y12: 10.51
A13: =Input!C6 -> BLL | B13: =VLOOKUP($A13,'CEM Data Lookup'!$A$4:$Q$49,2,FALSE) -> Booz Allen Hamilton | D13: =HLOOKUP(A13,'CEM PricesDivs'!$B$2:$AW$70,68,FALSE) -> 0.9 | G13: ='CEM Data Lookup'!F8*100 -> 21 | J13: =IFERROR('CEM Data Lookup'!C8*100, "NA") -> 5 | M13: =IFERROR('CEM Data Lookup'!E8*100,"NA") -> 8.4 | P13: ='CEM Data Lookup'!D8*100 -> 15.05 | S13: 12.36 | V13: 0.96 | Y13: 13.32
A14: =Input!C7 -> CACI | B14: =VLOOKUP($A14,'CEM Data Lookup'!$A$4:$Q$49,2,FALSE) -> Becton, Dickinson | D14: =HLOOKUP(A14,'CEM PricesDivs'!$B$2:$AW$70,68,FALSE) -> 0 | G14: ='CEM Data Lookup'!F9*100 -> 13.5 | J14: =IFERROR('CEM Data Lookup'!C9*100, "NA") -> 5.4 | M14: =IFERROR('CEM Data Lookup'!E9*100,"NA") -> 3.225 | P14: ='CEM Data Lookup'!D9*100 -> 5.1 | S14: 6.81 | V14: 0 | Y14: NA
A15: =Input!C8 -> CASY | B15: =VLOOKUP($A15,'CEM Data Lookup'!$A$4:$Q$49,2,FALSE) -> Brown-Forman 'B' | D15: =HLOOKUP(A15,'CEM PricesDivs'!$B$2:$AW$70,68,FALSE) -> 0.71 | G15: ='CEM Data Lookup'!F10*100 -> 10.5 | J15: =IFERROR('CEM Data Lookup'!C10*100, "NA") -> NA | M15: =IFERROR('CEM Data Lookup'!E10*100,"NA") -> 9.235 | P15: ='CEM Data Lookup'!D10*100 -> 7.4 | S15: 9.05 | V15: 0.74 | Y15: 9.79
A16: =Input!C9 -> CSWI | B16: =VLOOKUP($A16,'CEM Data Lookup'!$A$4:$Q$49,2,FALSE) -> Broadridge Fin'l | D16: =HLOOKUP(A16,'CEM PricesDivs'!$B$2:$AW$70,68,FALSE) -> 0.48 | G16: ='CEM Data Lookup'!F11*100 -> 11.5 | J16: =IFERROR('CEM Data Lookup'!C11*100, "NA") -> NA | M16: =IFERROR('CEM Data Lookup'!E11*100,"NA") -> 15 | P16: ='CEM Data Lookup'!D11*100 -> 12 | S16: 12.83 | V16: 0.51 | Y16: 13.34
A17: =Input!C10 -> DGX | B17: =VLOOKUP($A17,'CEM Data Lookup'!$A$4:$Q$49,2,FALSE) -> Brady Corp. | D17: =HLOOKUP(A17,'CEM PricesDivs'!$B$2:$AW$70,68,FALSE) -> 1.69 | G17: ='CEM Data Lookup'!F12*100 -> 7.5 | J17: =IFERROR('CEM Data Lookup'!C12*100, "NA") -> 26.5 | M17: =IFERROR('CEM Data Lookup'!E12*100,"NA") -> -4.703 | P17: ='CEM Data Lookup'!D12*100 -> -8.6 | S17: =IFERROR(ROUND(AVERAGE(G17,J17),2),"NA") -> 17 | V17: 1.83 | Y17: 18.83
A18: =Input!C11 -> EBAY | B18: =VLOOKUP($A18,'CEM Data Lookup'!$A$4:$Q$49,2,FALSE) -> CACI Int'l | D18: =HLOOKUP(A18,'CEM PricesDivs'!$B$2:$AW$70,68,FALSE) -> 1 | G18: ='CEM Data Lookup'!F13*100 -> 16.5 | J18: =IFERROR('CEM Data Lookup'!C13*100, "NA") -> 10.7 | M18: =IFERROR('CEM Data Lookup'!E13*100,"NA") -> NA | P18: ='CEM Data Lookup'!D13*100 -> 11.87 | S18: 13.02 | V18: 1.07 | Y18: 14.09
A19: =Input!C12 -> EL | B19: =VLOOKUP($A19,'CEM Data Lookup'!$A$4:$Q$49,2,FALSE) -> Casey's Gen'l Stores | D19: =HLOOKUP(A19,'CEM PricesDivs'!$B$2:$AW$70,68,FALSE) -> 0.65 | G19: ='CEM Data Lookup'!F14*100 -> 11.5 | J19: =IFERROR('CEM Data Lookup'!C14*100, "NA") -> 9.5 | M19: =IFERROR('CEM Data Lookup'!E14*100,"NA") -> 11.267 | P19: ='CEM Data Lookup'!D14*100 -> 18.71 | S19: 12.74 | V19: 0.69 | Y19: 13.43
A20: =Input!C13 -> EXPO | B20: =VLOOKUP($A20,'CEM Data Lookup'!$A$4:$Q$49,2,FALSE) -> Cadence Design Sys. | D20: =HLOOKUP(A20,'CEM PricesDivs'!$B$2:$AW$70,68,FALSE) -> 0.73 | G20: ='CEM Data Lookup'!F15*100 -> 12 | J20: =IFERROR('CEM Data Lookup'!C15*100, "NA") -> NA | M20: =IFERROR('CEM Data Lookup'!E15*100,"NA") -> NA | P20: ='CEM Data Lookup'!D15*100 -> 15 | S20: 13.5 | V20: 0.78 | Y20: 14.28
A21: =Input!C14 -> FAST | B21: =VLOOKUP($A21,'CEM Data Lookup'!$A$4:$Q$49,2,FALSE) -> Cerner Corp. | D21: =HLOOKUP(A21,'CEM PricesDivs'!$B$2:$AW$70,68,FALSE) -> 2.06 | G21: ='CEM Data Lookup'!F16*100 -> 9 | J21: =IFERROR('CEM Data Lookup'!C16*100, "NA") -> 9 | M21: =IFERROR('CEM Data Lookup'!E16*100,"NA") -> 7.9 | P21: ='CEM Data Lookup'!D16*100 -> 6.33 | S21: 8.06 | V21: 2.14 | Y21: 10.2
A22: =Input!C15 -> FCFS | B22: =VLOOKUP($A22,'CEM Data Lookup'!$A$4:$Q$49,2,FALSE) -> CSW Industrials | D22: =HLOOKUP(A22,'CEM PricesDivs'!$B$2:$AW$70,68,FALSE) -> 1.44 | G22: ='CEM Data Lookup'!F17*100 -> 9.5 | J22: =IFERROR('CEM Data Lookup'!C17*100, "NA") -> NA | M22: =IFERROR('CEM Data Lookup'!E17*100,"NA") -> NA | P22: ='CEM Data Lookup'!D17*100 -> 23 | S22: 16.25 | V22: 1.56 | Y22: 17.81
A23: =Input!C16 -> FELE | B23: =VLOOKUP($A23,'CEM Data Lookup'!$A$4:$Q$49,2,FALSE) -> Quest Diagnostics | D23: =HLOOKUP(A23,'CEM PricesDivs'!$B$2:$AW$70,68,FALSE) -> 0.85 | G23: ='CEM Data Lookup'!F18*100 -> 10 | J23: =IFERROR('CEM Data Lookup'!C18*100, "NA") -> NA | M23: =IFERROR('CEM Data Lookup'!E18*100,"NA") -> 15 | P23: ='CEM Data Lookup'!D18*100 -> 13.4 | S23: =IFERROR(ROUND(AVERAGE(G23,J23,M23,P23),2),"NA") -> 12.8 | V23: 0.9 | Y23: 13.7
A24: =Input!C17 -> GATX | B24: =VLOOKUP($A24,'CEM Data Lookup'!$A$4:$Q$49,2,FALSE) -> Lauder (Estee) | D24: =HLOOKUP(A24,'CEM PricesDivs'!$B$2:$AW$70,68,FALSE) -> 2.24 | G24: ='CEM Data Lookup'!F19*100 -> 6 | J24: =IFERROR('CEM Data Lookup'!C19*100, "NA") -> NA | M24: =IFERROR('CEM Data Lookup'!E19*100,"NA") -> 7.5 | P24: ='CEM Data Lookup'!D19*100 -> 12 | S24: =IFERROR(ROUND(AVERAGE(G24,J24,M24,P24),2),"NA") -> 8.5 | V24: 2.34 | Y24: 10.84
A25: =Input!C18 -> IFF | B25: =VLOOKUP($A25,'CEM Data Lookup'!$A$4:$Q$49,2,FALSE) -> Exponent, Inc. | D25: =HLOOKUP(A25,'CEM PricesDivs'!$B$2:$AW$70,68,FALSE) -> 2.15 | G25: ='CEM Data Lookup'!F20*100 -> 7.5 | J25: =IFERROR('CEM Data Lookup'!C20*100, "NA") -> 9.5 | M25: =IFERROR('CEM Data Lookup'!E20*100,"NA") -> 33.005 | P25: ='CEM Data Lookup'!D20*100 -> 4.35 | S25: 13.59 | V25: 2.3 | Y25: 15.89
A26: =Input!C19 -> INGR | B26: =VLOOKUP($A26,'CEM Data Lookup'!$A$4:$Q$49,2,FALSE) -> Fastenal Co. | D26: =HLOOKUP(A26,'CEM PricesDivs'!$B$2:$AW$70,68,FALSE) -> 2.96 | G26: ='CEM Data Lookup'!F21*100 -> 7.5 | J26: =IFERROR('CEM Data Lookup'!C21*100, "NA") -> NA | M26: =IFERROR('CEM Data Lookup'!E21*100,"NA") -> 10.7 | P26: ='CEM Data Lookup'!D21*100 -> 1.9 | S26: 6.7 | V26: 3.06 | Y26: 9.76
A27: =Input!C20 -> IRM | B27: =VLOOKUP($A27,'CEM Data Lookup'!$A$4:$Q$49,2,FALSE) -> Gentex Corp. | D27: =HLOOKUP(A27,'CEM PricesDivs'!$B$2:$AW$70,68,FALSE) -> 5.48 | G27: ='CEM Data Lookup'!F22*100 -> 8 | J27: =IFERROR('CEM Data Lookup'!C22*100, "NA") -> 3.8 | M27: =IFERROR('CEM Data Lookup'!E22*100,"NA") -> 4 | P27: ='CEM Data Lookup'!D22*100 -> 6.41 | S27: 5.55 | V27: 5.63 | Y27: 11.18
A28: =Input!C21 -> JBHT | B28: =VLOOKUP($A28,'CEM Data Lookup'!$A$4:$Q$49,2,FALSE) -> Int'l Flavors & Frag | D28: =HLOOKUP(A28,'CEM PricesDivs'!$B$2:$AW$70,68,FALSE) -> 0.7 | G28: ='CEM Data Lookup'!F23*100 -> 8 | J28: =IFERROR('CEM Data Lookup'!C23*100, "NA") -> 15 | M28: =IFERROR('CEM Data Lookup'!E23*100,"NA") -> 14.65 | P28: ='CEM Data Lookup'!D23*100 -> 20.5 | S28: 14.54 | V28: 0.75 | Y28: 15.29
A29: =Input!C22 -> JJSF | B29: =VLOOKUP($A29,'CEM Data Lookup'!$A$4:$Q$49,2,FALSE) -> Ingredion Inc. | D29: =HLOOKUP(A29,'CEM PricesDivs'!$B$2:$AW$70,68,FALSE) -> 1.56 | G29: ='CEM Data Lookup'!F24*100 -> 10 | J29: =IFERROR('CEM Data Lookup'!C24*100, "NA") -> NA | M29: =IFERROR('CEM Data Lookup'!E24*100,"NA") -> NA | P29: ='CEM Data Lookup'!D24*100 -> 6 | S29: 8 | V29: 1.62 | Y29: 9.62
A30: =Input!C23 -> JKHY | B30: =VLOOKUP($A30,'CEM Data Lookup'!$A$4:$Q$49,2,FALSE) -> Iron Mountain | D30: =HLOOKUP(A30,'CEM PricesDivs'!$B$2:$AW$70,68,FALSE) -> 1.07 | G30: ='CEM Data Lookup'!F25*100 -> 9.5 | J30: =IFERROR('CEM Data Lookup'!C25*100, "NA") -> 11 | M30: =IFERROR('CEM Data Lookup'!E25*100,"NA") -> 13.1 | P30: ='CEM Data Lookup'!D25*100 -> 9.64 | S30: 10.81 | V30: 1.13 | Y30: 11.94
A31: =Input!C24 -> JNPR | B31: =VLOOKUP($A31,'CEM Data Lookup'!$A$4:$Q$49,2,FALSE) -> Hunt (J.B.) | D31: =HLOOKUP(A31,'CEM PricesDivs'!$B$2:$AW$70,68,FALSE) -> 2.83 | G31: ='CEM Data Lookup'!F26*100 -> 7 | J31: =IFERROR('CEM Data Lookup'!C26*100, "NA") -> 8.4 | M31: =IFERROR('CEM Data Lookup'!E26*100,"NA") -> 8.933 | P31: ='CEM Data Lookup'!D26*100 -> 9.56 | S31: 8.47 | V31: 2.95 | Y31: 11.42
A32: =Input!C25 -> MANT | B32: =VLOOKUP($A32,'CEM Data Lookup'!$A$4:$Q$49,2,FALSE) -> J&J Snack Foods | D32: =HLOOKUP(A32,'CEM PricesDivs'!$B$2:$AW$70,68,FALSE) -> 1.86 | G32: ='CEM Data Lookup'!F27*100 -> 9 | J32: =IFERROR('CEM Data Lookup'!C27*100, "NA") -> 5.1 | M32: =IFERROR('CEM Data Lookup'!E27*100,"NA") -> 5.06 | P32: ='CEM Data Lookup'!D27*100 -> 5.38 | S32: 6.14 | V32: 1.92 | Y32: 8.06
A33: =Input!C26 -> MNST | B33: =VLOOKUP($A33,'CEM Data Lookup'!$A$4:$Q$49,2,FALSE) -> Henry (Jack) & Assoc | D33: =HLOOKUP(A33,'CEM PricesDivs'!$B$2:$AW$70,68,FALSE) -> 0 | G33: ='CEM Data Lookup'!F28*100 -> 11.5 | J33: =IFERROR('CEM Data Lookup'!C28*100, "NA") -> 14.7 | M33: =IFERROR('CEM Data Lookup'!E28*100,"NA") -> 12.17 | P33: ='CEM Data Lookup'!D28*100 -> 14.85 | S33: 13.31 | V33: 0 | Y33: NA
A34: =Input!C27 -> MO | B34: =VLOOKUP($A34,'CEM Data Lookup'!$A$4:$Q$49,2,FALSE) -> ManTech Int'l 'A' | D34: =HLOOKUP(A34,'CEM PricesDivs'!$B$2:$AW$70,68,FALSE) -> 7.44 | G34: ='CEM Data Lookup'!F29*100 -> 6 | J34: =IFERROR('CEM Data Lookup'!C29*100, "NA") -> 4 | M34: =IFERROR('CEM Data Lookup'!E29*100,"NA") -> 4.25 | P34: ='CEM Data Lookup'!D29*100 -> 4.67 | S34: 4.73 | V34: 7.62 | Y34: 12.35
A35: =Input!C28 -> MSA | B35: =VLOOKUP($A35,'CEM Data Lookup'!$A$4:$Q$49,2,FALSE) -> McCormick & Co. | D35: =HLOOKUP(A35,'CEM PricesDivs'!$B$2:$AW$70,68,FALSE) -> 1.11 | G35: ='CEM Data Lookup'!F30*100 -> 6.5 | J35: =IFERROR('CEM Data Lookup'!C30*100, "NA") -> NA | M35: =IFERROR('CEM Data Lookup'!E30*100,"NA") -> 9 | P35: ='CEM Data Lookup'!D30*100 -> 18 | S35: 11.17 | V35: 1.17 | Y35: 12.34
A36: =Input!C29 -> MSCI | B36: =VLOOKUP($A36,'CEM Data Lookup'!$A$4:$Q$49,2,FALSE) -> Altria Group | D36: =HLOOKUP(A36,'CEM PricesDivs'!$B$2:$AW$70,68,FALSE) -> 0.68 | G36: ='CEM Data Lookup'!F31*100 -> 16 | J36: =IFERROR('CEM Data Lookup'!C31*100, "NA") -> NA | M36: =IFERROR('CEM Data Lookup'!E31*100,"NA") -> 13.3 | P36: ='CEM Data Lookup'!D31*100 -> 17.79 | S36: 15.7 | V36: 0.73 | Y36: 16.43
A37: =Input!C30 -> MTN | B37: =VLOOKUP($A37,'CEM Data Lookup'!$A$4:$Q$49,2,FALSE) -> MSA Safety | D37: =HLOOKUP(A37,'CEM PricesDivs'!$B$2:$AW$70,68,FALSE) -> 1.14 | G37: ='CEM Data Lookup'!F32*100 -> 7.5 | J37: =IFERROR('CEM Data Lookup'!C32*100, "NA") -> NA | M37: =IFERROR('CEM Data Lookup'!E32*100,"NA") -> 58.85 | P37: ='CEM Data Lookup'!D32*100 -> 56.46 | S37: 40.94 | V37: 1.37 | Y37: 42.31
A38: =Input!C31 -> NOC | B38: =VLOOKUP($A38,'CEM Data Lookup'!$A$4:$Q$49,2,FALSE) -> MSCI Inc. | D38: =HLOOKUP(A38,'CEM PricesDivs'!$B$2:$AW$70,68,FALSE) -> 1.74 | G38: ='CEM Data Lookup'!F33*100 -> 7.5 | J38: =IFERROR('CEM Data Lookup'!C33*100, "NA") -> 9 | M38: =IFERROR('CEM Data Lookup'!E33*100,"NA") -> 5.29 | P38: ='CEM Data Lookup'!D33*100 -> 6.7 | S38: 7.12 | V38: 1.8 | Y38: 8.92
A39: =Input!C32 -> ODFL | B39: =VLOOKUP($A39,'CEM Data Lookup'!$A$4:$Q$49,2,FALSE) -> Motorola Solutions | D39: =HLOOKUP(A39,'CEM PricesDivs'!$B$2:$AW$70,68,FALSE) -> 0.29 | G39: ='CEM Data Lookup'!F34*100 -> 9.5 | J39: =IFERROR('CEM Data Lookup'!C34*100, "NA") -> 22.7 | M39: =IFERROR('CEM Data Lookup'!E34*100,"NA") -> 21.077 | P39: ='CEM Data Lookup'!D34*100 -> 22.7 | S39: 18.99 | V39: 0.32 | Y39: 19.31
A40: =Input!C33 -> PKG | B40: =VLOOKUP($A40,'CEM Data Lookup'!$A$4:$Q$49,2,FALSE) -> Vail Resorts | D40: =HLOOKUP(A40,'CEM PricesDivs'!$B$2:$AW$70,68,FALSE) -> 2.8 | G40: ='CEM Data Lookup'!F35*100 -> 5 | J40: =IFERROR('CEM Data Lookup'!C35*100, "NA") -> 5 | M40: =IFERROR('CEM Data Lookup'!E35*100,"NA") -> 5 | P40: ='CEM Data Lookup'!D35*100 -> 16.86 | S40: 7.97 | V40: 2.91 | Y40: 10.88
A41: =Input!C34 -> PKI | B41: =VLOOKUP($A41,'CEM Data Lookup'!$A$4:$Q$49,2,FALSE) -> Maxim Integrated | D41: =HLOOKUP(A41,'CEM PricesDivs'!$B$2:$AW$70,68,FALSE) -> 0.16 | G41: ='CEM Data Lookup'!F36*100 -> 11 | J41: =IFERROR('CEM Data Lookup'!C36*100, "NA") -> 37.9 | M41: =IFERROR('CEM Data Lookup'!E36*100,"NA") -> -3.565 | P41: ='CEM Data Lookup'!D36*100 -> 37.9 | S41: =IFERROR(ROUND(AVERAGE(G41,J41,P41),2),"NA") -> 28.93 | V41: =IFERROR(ROUND((D41*(1+(0.5*(S41/100)))),2),"NA") -> 0.18 | Y41: 29.11
A42: =Input!C35 -> PM | B42: =VLOOKUP($A42,'CEM Data Lookup'!$A$4:$Q$49,2,FALSE) -> Northrop Grumman | D42: =HLOOKUP(A42,'CEM PricesDivs'!$B$2:$AW$70,68,FALSE) -> 4.97 | G42: ='CEM Data Lookup'!F37*100 -> 7 | J42: =IFERROR('CEM Data Lookup'!C37*100, "NA") -> 8.7 | M42: =IFERROR('CEM Data Lookup'!E37*100,"NA") -> 11.345 | P42: ='CEM Data Lookup'!D37*100 -> 12.57 | S42: 9.9 | V42: 5.22 | Y42: 15.12
A43: =Input!C36 -> POOL | B43: =VLOOKUP($A43,'CEM Data Lookup'!$A$4:$Q$49,2,FALSE) -> Old Dominion Freight | D43: =HLOOKUP(A43,'CEM PricesDivs'!$B$2:$AW$70,68,FALSE) -> 0.67 | G43: ='CEM Data Lookup'!F38*100 -> 15 | J43: =IFERROR('CEM Data Lookup'!C38*100, "NA") -> NA | M43: =IFERROR('CEM Data Lookup'!E38*100,"NA") -> 17 | P43: ='CEM Data Lookup'!D38*100 -> 17 | S43: 16.33 | V43: 0.72 | Y43: 17.05
A44: =Input!C37 -> POST | B44: =VLOOKUP($A44,'CEM Data Lookup'!$A$4:$Q$49,2,FALSE) -> PerkinElmer Inc. | D44: =HLOOKUP(A44,'CEM PricesDivs'!$B$2:$AW$70,68,FALSE) -> 0 | G44: ='CEM Data Lookup'!F39*100 -> 9.5 | J44: =IFERROR('CEM Data Lookup'!C39*100, "NA") -> NA | M44: =IFERROR('CEM Data Lookup'!E39*100,"NA") -> 21.7 | P44: ='CEM Data Lookup'!D39*100 -> 24.7 | S44: 18.63 | V44: 0 | Y44: NA
A45: =Input!C38 -> RLI | B45: =VLOOKUP($A45,'CEM Data Lookup'!$A$4:$Q$49,2,FALSE) -> Philip Morris Int'l | D45: =HLOOKUP(A45,'CEM PricesDivs'!$B$2:$AW$70,68,FALSE) -> 0.94 | G45: ='CEM Data Lookup'!F40*100 -> 12 | J45: =IFERROR('CEM Data Lookup'!C40*100, "NA") -> NA | M45: =IFERROR('CEM Data Lookup'!E40*100,"NA") -> NA | P45: ='CEM Data Lookup'!D40*100 -> 9.8 | S45: 10.9 | V45: 0.99 | Y45: 11.89
A46: =Input!C39 -> ROL | B46: =VLOOKUP($A46,'CEM Data Lookup'!$A$4:$Q$49,2,FALSE) -> Pool Corp. | D46: =HLOOKUP(A46,'CEM PricesDivs'!$B$2:$AW$70,68,FALSE) -> 0.85 | G46: ='CEM Data Lookup'!F41*100 -> 11.5 | J46: =IFERROR('CEM Data Lookup'!C41*100, "NA") -> NA | M46: =IFERROR('CEM Data Lookup'!E41*100,"NA") -> NA | P46: ='CEM Data Lookup'!D41*100 -> 8.2 | S46: 9.85 | V46: 0.89 | Y46: 10.74
A47: =Input!C40 -> SIGI | B47: =VLOOKUP($A47,'CEM Data Lookup'!$A$4:$Q$49,2,FALSE) -> Post Holdings | D47: =HLOOKUP(A47,'CEM PricesDivs'!$B$2:$AW$70,68,FALSE) -> 1.24 | G47: ='CEM Data Lookup'!F42*100 -> 12 | J47: =IFERROR('CEM Data Lookup'!C42*100, "NA") -> 12.4 | M47: =IFERROR('CEM Data Lookup'!E42*100,"NA") -> 12.44 | P47: ='CEM Data Lookup'!D42*100 -> 10 | S47: 11.71 | V47: =IFERROR(ROUND((D47*(1+(0.5*(S47/100)))),2),"NA") -> 1.31 | Y47: 13.02
A48: =Input!C41 -> SIRI | B48: =VLOOKUP($A48,'CEM Data Lookup'!$A$4:$Q$49,2,FALSE) -> RLI Corp. | D48: =HLOOKUP(A48,'CEM PricesDivs'!$B$2:$AW$70,68,FALSE) -> 0.93 | G48: ='CEM Data Lookup'!F43*100 -> 31.5 | J48: =IFERROR('CEM Data Lookup'!C43*100, "NA") -> 12.2 | M48: =IFERROR('CEM Data Lookup'!E43*100,"NA") -> 6.215 | P48: ='CEM Data Lookup'!D43*100 -> 10.05 | S48: 14.99 | V48: 1 | Y48: 15.99
A49: =Input!C42 -> SNPS | B49: =VLOOKUP($A49,'CEM Data Lookup'!$A$4:$Q$49,2,FALSE) -> Rollins, Inc. | D49: =HLOOKUP(A49,'CEM PricesDivs'!$B$2:$AW$70,68,FALSE) -> 0 | G49: ='CEM Data Lookup'!F44*100 -> 13 | J49: =IFERROR('CEM Data Lookup'!C44*100, "NA") -> 16 | M49: =IFERROR('CEM Data Lookup'!E44*100,"NA") -> 16.13 | P49: ='CEM Data Lookup'!D44*100 -> 16 | S49: 15.28 | V49: 0 | Y49: NA
A50: =Input!C43 -> TRS | B50: =VLOOKUP($A50,'CEM Data Lookup'!$A$4:$Q$49,2,FALSE) -> Selective Ins. Group | D50: =HLOOKUP(A50,'CEM PricesDivs'!$B$2:$AW$70,68,FALSE) -> 0 | G50: ='CEM Data Lookup'!F45*100 -> 10.5 | J50: =IFERROR('CEM Data Lookup'!C45*100, "NA") -> NA | M50: =IFERROR('CEM Data Lookup'!E45*100,"NA") -> NA | P50: ='CEM Data Lookup'!D45*100 -> 9.34 | S50: 9.92 | V50: 0 | Y50: NA
A51: =Input!C44 -> TTEK | B51: =VLOOKUP($A51,'CEM Data Lookup'!$A$4:$Q$49,2,FALSE) -> Sirius XM Holdings | D51: =HLOOKUP(A51,'CEM PricesDivs'!$B$2:$AW$70,68,FALSE) -> 0.58 | G51: ='CEM Data Lookup'!F46*100 -> 13.5 | J51: =IFERROR('CEM Data Lookup'!C46*100, "NA") -> 15 | M51: =IFERROR('CEM Data Lookup'!E46*100,"NA") -> 16 | P51: ='CEM Data Lookup'!D46*100 -> 15 | S51: =IFERROR(ROUND(AVERAGE(G51,J51,M51,P51),2),"NA") -> 14.88 | V51: 0.62 | Y51: 15.5
A52: =Input!C45 -> WAT | B52: =VLOOKUP($A52,'CEM Data Lookup'!$A$4:$Q$49,2,FALSE) -> Bio-Techne Corp. | D52: =HLOOKUP(A52,'CEM PricesDivs'!$B$2:$AW$70,68,FALSE) -> 0 | G52: ='CEM Data Lookup'!F47*100 -> 6 | J52: =IFERROR('CEM Data Lookup'!C47*100, "NA") -> 9.4 | M52: =IFERROR('CEM Data Lookup'!E47*100,"NA") -> 10.757 | P52: ='CEM Data Lookup'!D47*100 -> 9.3 | S52: 8.86 | V52: 0 | Y52: NA
A53: =Input!C46 -> WIRE | B53: =VLOOKUP($A53,'CEM Data Lookup'!$A$4:$Q$49,2,FALSE) -> Tetra Tech | D53: =HLOOKUP(A53,'CEM PricesDivs'!$B$2:$AW$70,68,FALSE) -> 0.1 | G53: ='CEM Data Lookup'!F48*100 -> 15.5 | J53: =IFERROR('CEM Data Lookup'!C48*100, "NA") -> NA | M53: =IFERROR('CEM Data Lookup'!E48*100,"NA") -> NA | P53: ='CEM Data Lookup'!D48*100 -> 10 | S53: 12.75 | V53: 0.11 | Y53: 12.86
A54: =Input!C47 -> WST | B54: =VLOOKUP($A54,'CEM Data Lookup'!$A$4:$Q$49,2,FALSE) -> Waters Corp. | D54: =HLOOKUP(A54,'CEM PricesDivs'!$B$2:$AW$70,68,FALSE) -> 0.16 | G54: ='CEM Data Lookup'!F49*100 -> 17 | J54: =IFERROR('CEM Data Lookup'!C49*100, "NA") -> 27.3 | M54: =IFERROR('CEM Data Lookup'!E49*100,"NA") -> 19.83 | P54: ='CEM Data Lookup'!D49*100 -> 25.8 | S54: 22.48 | V54: 0.18 | Y54: 22.66
V56: Mean | Y56: =ROUND(AVERAGE(Y9:Y54),2) -> 14.72 | Z56: %
V58: Median | Y58: =ROUND(MEDIAN(Y9:Y54),2) -> 13.34 | Z58: %
V60: Average of Mean and Median | Y60: =ROUND(AVERAGE(Y56:Y58),2) -> 14.03 | Z60: %
C62: NA= Not Available
C64: (1) | D64: The application of the DCF model to the domestic, non-price regluated comparable risk companies is identical to the application of the DCF to the Utility Proxy Group. The dividend yield is derived by using the 60 day average price and the spot indicated dividend as of September 30, 2021. The dividend yield is then adjusted by 1/2 the average projected growth rate in EPS, which is calculated by averaging the 5 year projected growth in EPS provided by Value Line, www.zacks.com, Bloomberg Professional Services, and www.yahoo.com (excluding any negative growth rates) and then adding that growth rate to the adjusted dividend yield.
B66: Source of Information: | C66: Value Line Investment Survey
C67: =CONCATENATE("www.zacks.com Downloaded on ",TEXT(Input!E2,"mm/dd/yyyy")) -> www.zacks.com Downloaded on 09/30/2021
C68: =CONCATENATE("www.yahoo.com Downloaded on ",TEXT(Input!E2,"mm/dd/yyyy")) -> www.yahoo.com Downloaded on 09/30/2021
C69: Bloomberg Professional Services

Sheet 1.31 CEM RPM Summary
A1: =Input!G28 -> Atmos Energy Corporation
A2: Indicated Common Equity Cost Rate
A3: Through Use of a Risk Premium Model
A4: Using an Adjusted Total Market Approach
A6: Line No. | G6: ='1.30 CEM DCF'!B7 -> Proxy Group of Forty-Six Non-Price Regulated Companies
A9: 1. | C9: Prospective Yield on Baa2 Rated
C10: Corporate Bonds (1) | G10: =$G$29 -> 4.39 | H10: %
A12: 2. | C12: Equity Risk Premium (2) | G12: ='1.33 CEM Beta Adjusted RP'!F28 -> 8.54
A14: 3. | C14: Risk Premium Derived Common
C15: Equity Cost Rate | G15: =SUM(G10:G12) -> 12.93 | H15: %
A18: Notes: | B18: (1) | C18: =CONCATENATE("Average forecast of Baa2 corporate bonds based upon the consensus of nearly 50 economists reported in Blue Chip Financial Forecasts dated ",TEXT(Input!I25,"[$-409]mmmm d, yyyy;@")," (see pages 20 and 21 of this Schedule). The estimates are detailed below.") -> Average forecast of Baa2 corporate bonds based upon the consensus of nearly 50 economists reported in Blue Chip Financial Forecasts dated June 1, 2021, October 1, 2021 (see pages 20 and 21 of this Schedule). The estimates are detailed below.
D20: ='MRP WP1'!B28 -> Fourth Quarter 2021 | G20: ='MRP WP1'!O28 -> 3.6 | H20: %
D21: ='MRP WP1'!B29 -> First Quarter 2022 | G21: ='MRP WP1'!O29 -> 3.8
D22: ='MRP WP1'!B30 -> Second Quarter 2022 | G22: ='MRP WP1'!O30 -> 4
D23: ='MRP WP1'!B31 -> Third Quarter 2022 | G23: ='MRP WP1'!O31 -> 4.1
D24: ='MRP WP1'!B32 -> Fourth Quarter 2022 | G24: ='MRP WP1'!O32 -> 4.2
D25: ='MRP WP1'!B33 -> First Quarter 2023 | G25: ='MRP WP1'!O33 -> 4.3
D26: ='MRP WP1'!B34 -> 2023-2027 | G26: ='MRP WP1'!O34 -> 5.3
D27: ='MRP WP1'!B35 -> 2028-2032 | G27: ='MRP WP1'!O35 -> 5.8
D29: Average | G29: =ROUND(AVERAGE(G20:G27),2) -> 4.39 | H29: %
B31: (2) | C31: From page 33 of this Schedule.

Sheet 1.32 CEM RPM Bond Ratings
B1: =Input!G28 -> Atmos Energy Corporation
B2: Comparison of Long-Term Issuer Ratings for the
B3: =CONCATENATE('1.31 CEM RPM Summary'!G6," of Comparable risk to the") -> Proxy Group of Forty-Six Non-Price Regulated Companies of Comparable risk to the
B4: ='1.30 CEM DCF'!B3 -> Proxy Group of Seven Natural Gas Distribution Companies
D7: Moody's | H7: Standard & Poor's
D8: Long-Term Issuer Rating | H8: =D8 -> Long-Term Issuer Rating
D9: =TEXT(Input!E2, "mmmm yyyy") -> September 2021 | H9: =D9 -> September 2021
B11: ='1.31 CEM RPM Summary'!G6 -> Proxy Group of Forty-Six Non-Price Regulated Companies | D11: Long-Term Issuer Rating | F11: Numerical Weighting (1) | H11: =D11 -> Long-Term Issuer Rating | J11: Numerical Weighting (1)
A13: =Input!C2 -> AAPL | B13: =VLOOKUP($A13,'CEM Data Lookup'!$A:$Q,2,FALSE) -> Apple Inc. | D13: ='CEM Data Lookup'!K4 -> Aa1 | F13: =IFERROR(VLOOKUP('1.32 CEM RPM Bond Ratings'!D13,'1.16 MOODY_S&P numbericl'!B:D,3,FALSE),"--") -> 2 | H13: ='CEM Data Lookup'!L4 -> AA+ | J13: =IFERROR(VLOOKUP(H13,'1.16 MOODY_S&P numbericl'!F:H,3,FALSE),"--") -> 2
A14: =Input!C3 -> AIZ | B14: =VLOOKUP($A14,'CEM Data Lookup'!$A:$Q,2,FALSE) -> Abbott Labs. | D14: ='CEM Data Lookup'!K5 -> Baa3 | F14: =IFERROR(VLOOKUP('1.32 CEM RPM Bond Ratings'!D14,'1.16 MOODY_S&P numbericl'!B:D,3,FALSE),"--") -> 10 | H14: ='CEM Data Lookup'!L5 -> BBB | J14: =IFERROR(VLOOKUP(H14,'1.16 MOODY_S&P numbericl'!F:H,3,FALSE),"--") -> 9
A15: =Input!C4 -> ANSS | B15: =VLOOKUP($A15,'CEM Data Lookup'!$A:$Q,2,FALSE) -> Assurant Inc. | D15: ='CEM Data Lookup'!K6 -> NA | F15: =IFERROR(VLOOKUP('1.32 CEM RPM Bond Ratings'!D15,'1.16 MOODY_S&P numbericl'!B:D,3,FALSE),"--") -> -- | H15: ='CEM Data Lookup'!L6 -> NA | J15: =IFERROR(VLOOKUP(H15,'1.16 MOODY_S&P numbericl'!F:H,3,FALSE),"--") -> --
A16: =Input!C5 -> BAH | B16: =VLOOKUP($A16,'CEM Data Lookup'!$A:$Q,2,FALSE) -> ANSYS, Inc. | D16: ='CEM Data Lookup'!K7 -> NA | F16: =IFERROR(VLOOKUP('1.32 CEM RPM Bond Ratings'!D16,'1.16 MOODY_S&P numbericl'!B:D,3,FALSE),"--") -> -- | H16: ='CEM Data Lookup'!L7 -> NA | J16: =IFERROR(VLOOKUP(H16,'1.16 MOODY_S&P numbericl'!F:H,3,FALSE),"--") -> --
A17: =Input!C6 -> BLL | B17: =VLOOKUP($A17,'CEM Data Lookup'!$A:$Q,2,FALSE) -> Booz Allen Hamilton | D17: ='CEM Data Lookup'!K8 -> Ba1 | F17: =IFERROR(VLOOKUP('1.32 CEM RPM Bond Ratings'!D17,'1.16 MOODY_S&P numbericl'!B:D,3,FALSE),"--") -> 11 | H17: ='CEM Data Lookup'!L8 -> BB+ | J17: =IFERROR(VLOOKUP(H17,'1.16 MOODY_S&P numbericl'!F:H,3,FALSE),"--") -> 11
A18: =Input!C7 -> CACI | B18: =VLOOKUP($A18,'CEM Data Lookup'!$A:$Q,2,FALSE) -> Becton, Dickinson | D18: ='CEM Data Lookup'!K9 -> NA | F18: =IFERROR(VLOOKUP('1.32 CEM RPM Bond Ratings'!D18,'1.16 MOODY_S&P numbericl'!B:D,3,FALSE),"--") -> -- | H18: ='CEM Data Lookup'!L9 -> BB+ | J18: =IFERROR(VLOOKUP(H18,'1.16 MOODY_S&P numbericl'!F:H,3,FALSE),"--") -> 11
A19: =Input!C8 -> CASY | B19: =VLOOKUP($A19,'CEM Data Lookup'!$A:$Q,2,FALSE) -> Brown-Forman 'B' | D19: ='CEM Data Lookup'!K10 -> NA | F19: =IFERROR(VLOOKUP('1.32 CEM RPM Bond Ratings'!D19,'1.16 MOODY_S&P numbericl'!B:D,3,FALSE),"--") -> -- | H19: ='CEM Data Lookup'!L10 -> NA | J19: =IFERROR(VLOOKUP(H19,'1.16 MOODY_S&P numbericl'!F:H,3,FALSE),"--") -> --
A20: =Input!C9 -> CSWI | B20: =VLOOKUP($A20,'CEM Data Lookup'!$A:$Q,2,FALSE) -> Broadridge Fin'l | D20: ='CEM Data Lookup'!K11 -> NA | F20: =IFERROR(VLOOKUP('1.32 CEM RPM Bond Ratings'!D20,'1.16 MOODY_S&P numbericl'!B:D,3,FALSE),"--") -> -- | H20: ='CEM Data Lookup'!L11 -> NA | J20: =IFERROR(VLOOKUP(H20,'1.16 MOODY_S&P numbericl'!F:H,3,FALSE),"--") -> --
A21: =Input!C10 -> DGX | B21: =VLOOKUP($A21,'CEM Data Lookup'!$A:$Q,2,FALSE) -> Brady Corp. | D21: ='CEM Data Lookup'!K12 -> Baa2 | F21: =IFERROR(VLOOKUP('1.32 CEM RPM Bond Ratings'!D21,'1.16 MOODY_S&P numbericl'!B:D,3,FALSE),"--") -> 9 | H21: ='CEM Data Lookup'!L12 -> BBB+ | J21: =IFERROR(VLOOKUP(H21,'1.16 MOODY_S&P numbericl'!F:H,3,FALSE),"--") -> 8
A22: =Input!C11 -> EBAY | B22: =VLOOKUP($A22,'CEM Data Lookup'!$A:$Q,2,FALSE) -> CACI Int'l | D22: ='CEM Data Lookup'!K13 -> Baa1 | F22: =IFERROR(VLOOKUP('1.32 CEM RPM Bond Ratings'!D22,'1.16 MOODY_S&P numbericl'!B:D,3,FALSE),"--") -> 8 | H22: ='CEM Data Lookup'!L13 -> BBB+ | J22: =IFERROR(VLOOKUP(H22,'1.16 MOODY_S&P numbericl'!F:H,3,FALSE),"--") -> 8
A23: =Input!C12 -> EL | B23: =VLOOKUP($A23,'CEM Data Lookup'!$A:$Q,2,FALSE) -> Casey's Gen'l Stores | D23: ='CEM Data Lookup'!K14 -> A1 | F23: =IFERROR(VLOOKUP('1.32 CEM RPM Bond Ratings'!D23,'1.16 MOODY_S&P numbericl'!B:D,3,FALSE),"--") -> 5 | H23: ='CEM Data Lookup'!L14 -> A+ | J23: =IFERROR(VLOOKUP(H23,'1.16 MOODY_S&P numbericl'!F:H,3,FALSE),"--") -> 5
A24: =Input!C13 -> EXPO | B24: =VLOOKUP($A24,'CEM Data Lookup'!$A:$Q,2,FALSE) -> Cadence Design Sys. | D24: ='CEM Data Lookup'!K15 -> NA | F24: =IFERROR(VLOOKUP('1.32 CEM RPM Bond Ratings'!D24,'1.16 MOODY_S&P numbericl'!B:D,3,FALSE),"--") -> -- | H24: ='CEM Data Lookup'!L15 -> NA | J24: =IFERROR(VLOOKUP(H24,'1.16 MOODY_S&P numbericl'!F:H,3,FALSE),"--") -> --
A25: =Input!C14 -> FAST | B25: =VLOOKUP($A25,'CEM Data Lookup'!$A:$Q,2,FALSE) -> Cerner Corp. | D25: ='CEM Data Lookup'!K16 -> NA | F25: =IFERROR(VLOOKUP('1.32 CEM RPM Bond Ratings'!D25,'1.16 MOODY_S&P numbericl'!B:D,3,FALSE),"--") -> -- | H25: ='CEM Data Lookup'!L16 -> NA | J25: =IFERROR(VLOOKUP(H25,'1.16 MOODY_S&P numbericl'!F:H,3,FALSE),"--") -> --
A26: =Input!C15 -> FCFS | B26: =VLOOKUP($A26,'CEM Data Lookup'!$A:$Q,2,FALSE) -> CSW Industrials | D26: ='CEM Data Lookup'!K17 -> Ba1 | F26: =IFERROR(VLOOKUP('1.32 CEM RPM Bond Ratings'!D26,'1.16 MOODY_S&P numbericl'!B:D,3,FALSE),"--") -> 11 | H26: ='CEM Data Lookup'!L17 -> BB | J26: =IFERROR(VLOOKUP(H26,'1.16 MOODY_S&P numbericl'!F:H,3,FALSE),"--") -> 12
A27: =Input!C16 -> FELE | B27: =VLOOKUP($A27,'CEM Data Lookup'!$A:$Q,2,FALSE) -> Quest Diagnostics | D27: ='CEM Data Lookup'!K18 -> NA | F27: =IFERROR(VLOOKUP('1.32 CEM RPM Bond Ratings'!D27,'1.16 MOODY_S&P numbericl'!B:D,3,FALSE),"--") -> -- | H27: ='CEM Data Lookup'!L18 -> NA | J27: =IFERROR(VLOOKUP(H27,'1.16 MOODY_S&P numbericl'!F:H,3,FALSE),"--") -> --
A28: =Input!C17 -> GATX | B28: =VLOOKUP($A28,'CEM Data Lookup'!$A:$Q,2,FALSE) -> Lauder (Estee) | D28: ='CEM Data Lookup'!K19 -> Baa2 | F28: =IFERROR(VLOOKUP('1.32 CEM RPM Bond Ratings'!D28,'1.16 MOODY_S&P numbericl'!B:D,3,FALSE),"--") -> 9 | H28: ='CEM Data Lookup'!L19 -> BBB | J28: =IFERROR(VLOOKUP(H28,'1.16 MOODY_S&P numbericl'!F:H,3,FALSE),"--") -> 9
A29: =Input!C18 -> IFF | B29: =VLOOKUP($A29,'CEM Data Lookup'!$A:$Q,2,FALSE) -> Exponent, Inc. | D29: ='CEM Data Lookup'!K20 -> Baa3 | F29: =IFERROR(VLOOKUP('1.32 CEM RPM Bond Ratings'!D29,'1.16 MOODY_S&P numbericl'!B:D,3,FALSE),"--") -> 10 | H29: ='CEM Data Lookup'!L20 -> BBB | J29: =IFERROR(VLOOKUP(H29,'1.16 MOODY_S&P numbericl'!F:H,3,FALSE),"--") -> 9
A30: =Input!C19 -> INGR | B30: =VLOOKUP($A30,'CEM Data Lookup'!$A:$Q,2,FALSE) -> Fastenal Co. | D30: ='CEM Data Lookup'!K21 -> Baa1 | F30: =IFERROR(VLOOKUP('1.32 CEM RPM Bond Ratings'!D30,'1.16 MOODY_S&P numbericl'!B:D,3,FALSE),"--") -> 8 | H30: ='CEM Data Lookup'!L21 -> BBB | J30: =IFERROR(VLOOKUP(H30,'1.16 MOODY_S&P numbericl'!F:H,3,FALSE),"--") -> 9
A31: =Input!C20 -> IRM | B31: =VLOOKUP($A31,'CEM Data Lookup'!$A:$Q,2,FALSE) -> Gentex Corp. | D31: ='CEM Data Lookup'!K22 -> Ba3 | F31: =IFERROR(VLOOKUP('1.32 CEM RPM Bond Ratings'!D31,'1.16 MOODY_S&P numbericl'!B:D,3,FALSE),"--") -> 13 | H31: ='CEM Data Lookup'!L22 -> BB- | J31: =IFERROR(VLOOKUP(H31,'1.16 MOODY_S&P numbericl'!F:H,3,FALSE),"--") -> 13
A32: =Input!C21 -> JBHT | B32: =VLOOKUP($A32,'CEM Data Lookup'!$A:$Q,2,FALSE) -> Int'l Flavors & Frag | D32: ='CEM Data Lookup'!K23 -> Baa1 | F32: =IFERROR(VLOOKUP('1.32 CEM RPM Bond Ratings'!D32,'1.16 MOODY_S&P numbericl'!B:D,3,FALSE),"--") -> 8 | H32: ='CEM Data Lookup'!L23 -> BBB+ | J32: =IFERROR(VLOOKUP(H32,'1.16 MOODY_S&P numbericl'!F:H,3,FALSE),"--") -> 8
A33: =Input!C22 -> JJSF | B33: =VLOOKUP($A33,'CEM Data Lookup'!$A:$Q,2,FALSE) -> Ingredion Inc. | D33: ='CEM Data Lookup'!K24 -> NA | F33: =IFERROR(VLOOKUP('1.32 CEM RPM Bond Ratings'!D33,'1.16 MOODY_S&P numbericl'!B:D,3,FALSE),"--") -> -- | H33: ='CEM Data Lookup'!L24 -> NA | J33: =IFERROR(VLOOKUP(H33,'1.16 MOODY_S&P numbericl'!F:H,3,FALSE),"--") -> --
A34: =Input!C23 -> JKHY | B34: =VLOOKUP($A34,'CEM Data Lookup'!$A:$Q,2,FALSE) -> Iron Mountain | D34: ='CEM Data Lookup'!K25 -> NA | F34: =IFERROR(VLOOKUP('1.32 CEM RPM Bond Ratings'!D34,'1.16 MOODY_S&P numbericl'!B:D,3,FALSE),"--") -> -- | H34: ='CEM Data Lookup'!L25 -> NA | J34: =IFERROR(VLOOKUP(H34,'1.16 MOODY_S&P numbericl'!F:H,3,FALSE),"--") -> --
A35: =Input!C24 -> JNPR | B35: =VLOOKUP($A35,'CEM Data Lookup'!$A:$Q,2,FALSE) -> Hunt (J.B.) | D35: ='CEM Data Lookup'!K26 -> Baa2 | F35: =IFERROR(VLOOKUP('1.32 CEM RPM Bond Ratings'!D35,'1.16 MOODY_S&P numbericl'!B:D,3,FALSE),"--") -> 9 | H35: ='CEM Data Lookup'!L26 -> BBB | J35: =IFERROR(VLOOKUP(H35,'1.16 MOODY_S&P numbericl'!F:H,3,FALSE),"--") -> 9
A36: =Input!C25 -> MANT | B36: =VLOOKUP($A36,'CEM Data Lookup'!$A:$Q,2,FALSE) -> J&J Snack Foods | D36: ='CEM Data Lookup'!K27 -> WR | F36: =IFERROR(VLOOKUP('1.32 CEM RPM Bond Ratings'!D36,'1.16 MOODY_S&P numbericl'!B:D,3,FALSE),"--") -> -- | H36: ='CEM Data Lookup'!L27 -> BB+ | J36: =IFERROR(VLOOKUP(H36,'1.16 MOODY_S&P numbericl'!F:H,3,FALSE),"--") -> 11
A37: =Input!C26 -> MNST | B37: =VLOOKUP($A37,'CEM Data Lookup'!$A:$Q,2,FALSE) -> Henry (Jack) & Assoc | D37: ='CEM Data Lookup'!K28 -> NA | F37: =IFERROR(VLOOKUP('1.32 CEM RPM Bond Ratings'!D37,'1.16 MOODY_S&P numbericl'!B:D,3,FALSE),"--") -> -- | H37: ='CEM Data Lookup'!L28 -> NA | J37: =IFERROR(VLOOKUP(H37,'1.16 MOODY_S&P numbericl'!F:H,3,FALSE),"--") -> --
A38: =Input!C27 -> MO | B38: =VLOOKUP($A38,'CEM Data Lookup'!$A:$Q,2,FALSE) -> ManTech Int'l 'A' | D38: ='CEM Data Lookup'!K29 -> A3 | F38: =IFERROR(VLOOKUP('1.32 CEM RPM Bond Ratings'!D38,'1.16 MOODY_S&P numbericl'!B:D,3,FALSE),"--") -> 7 | H38: ='CEM Data Lookup'!L29 -> BBB | J38: =IFERROR(VLOOKUP(H38,'1.16 MOODY_S&P numbericl'!F:H,3,FALSE),"--") -> 9
A39: =Input!C28 -> MSA | B39: =VLOOKUP($A39,'CEM Data Lookup'!$A:$Q,2,FALSE) -> McCormick & Co. | D39: ='CEM Data Lookup'!K30 -> NA | F39: =IFERROR(VLOOKUP('1.32 CEM RPM Bond Ratings'!D39,'1.16 MOODY_S&P numbericl'!B:D,3,FALSE),"--") -> -- | H39: ='CEM Data Lookup'!L30 -> NA | J39: =IFERROR(VLOOKUP(H39,'1.16 MOODY_S&P numbericl'!F:H,3,FALSE),"--") -> --
A40: =Input!C29 -> MSCI | B40: =VLOOKUP($A40,'CEM Data Lookup'!$A:$Q,2,FALSE) -> Altria Group | D40: ='CEM Data Lookup'!K31 -> Ba1 | F40: =IFERROR(VLOOKUP('1.32 CEM RPM Bond Ratings'!D40,'1.16 MOODY_S&P numbericl'!B:D,3,FALSE),"--") -> 11 | H40: ='CEM Data Lookup'!L31 -> BB+ | J40: =IFERROR(VLOOKUP(H40,'1.16 MOODY_S&P numbericl'!F:H,3,FALSE),"--") -> 11
A41: =Input!C30 -> MTN | B41: =VLOOKUP($A41,'CEM Data Lookup'!$A:$Q,2,FALSE) -> MSA Safety | D41: ='CEM Data Lookup'!K32 -> B2 | F41: =IFERROR(VLOOKUP('1.32 CEM RPM Bond Ratings'!D41,'1.16 MOODY_S&P numbericl'!B:D,3,FALSE),"--") -> 15 | H41: ='CEM Data Lookup'!L32 -> BB | J41: =IFERROR(VLOOKUP(H41,'1.16 MOODY_S&P numbericl'!F:H,3,FALSE),"--") -> 12
A42: =Input!C31 -> NOC | B42: =VLOOKUP($A42,'CEM Data Lookup'!$A:$Q,2,FALSE) -> MSCI Inc. | D42: ='CEM Data Lookup'!K33 -> Baa1 | F42: =IFERROR(VLOOKUP('1.32 CEM RPM Bond Ratings'!D42,'1.16 MOODY_S&P numbericl'!B:D,3,FALSE),"--") -> 8 | H42: ='CEM Data Lookup'!L33 -> BBB+ | J42: =IFERROR(VLOOKUP(H42,'1.16 MOODY_S&P numbericl'!F:H,3,FALSE),"--") -> 8
A43: =Input!C32 -> ODFL | B43: =VLOOKUP($A43,'CEM Data Lookup'!$A:$Q,2,FALSE) -> Motorola Solutions | D43: ='CEM Data Lookup'!K34 -> NA | F43: =IFERROR(VLOOKUP('1.32 CEM RPM Bond Ratings'!D43,'1.16 MOODY_S&P numbericl'!B:D,3,FALSE),"--") -> -- | H43: ='CEM Data Lookup'!L34 -> NA | J43: =IFERROR(VLOOKUP(H43,'1.16 MOODY_S&P numbericl'!F:H,3,FALSE),"--") -> --
A44: =Input!C33 -> PKG | B44: =VLOOKUP($A44,'CEM Data Lookup'!$A:$Q,2,FALSE) -> Vail Resorts | D44: ='CEM Data Lookup'!K35 -> Baa2 | F44: =IFERROR(VLOOKUP('1.32 CEM RPM Bond Ratings'!D44,'1.16 MOODY_S&P numbericl'!B:D,3,FALSE),"--") -> 9 | H44: ='CEM Data Lookup'!L35 -> BBB | J44: =IFERROR(VLOOKUP(H44,'1.16 MOODY_S&P numbericl'!F:H,3,FALSE),"--") -> 9
A45: =Input!C34 -> PKI | B45: =VLOOKUP($A45,'CEM Data Lookup'!$A:$Q,2,FALSE) -> Maxim Integrated | D45: ='CEM Data Lookup'!K36 -> Baa3 | F45: =IFERROR(VLOOKUP('1.32 CEM RPM Bond Ratings'!D45,'1.16 MOODY_S&P numbericl'!B:D,3,FALSE),"--") -> 10 | H45: ='CEM Data Lookup'!L36 -> BBB | J45: =IFERROR(VLOOKUP(H45,'1.16 MOODY_S&P numbericl'!F:H,3,FALSE),"--") -> 9
A46: =Input!C35 -> PM | B46: =VLOOKUP($A46,'CEM Data Lookup'!$A:$Q,2,FALSE) -> Northrop Grumman | D46: ='CEM Data Lookup'!K37 -> A2 | F46: =IFERROR(VLOOKUP('1.32 CEM RPM Bond Ratings'!D46,'1.16 MOODY_S&P numbericl'!B:D,3,FALSE),"--") -> 6 | H46: ='CEM Data Lookup'!L37 -> A | J46: =IFERROR(VLOOKUP(H46,'1.16 MOODY_S&P numbericl'!F:H,3,FALSE),"--") -> 6
A47: =Input!C36 -> POOL | B47: =VLOOKUP($A47,'CEM Data Lookup'!$A:$Q,2,FALSE) -> Old Dominion Freight | D47: ='CEM Data Lookup'!K38 -> NA | F47: =IFERROR(VLOOKUP('1.32 CEM RPM Bond Ratings'!D47,'1.16 MOODY_S&P numbericl'!B:D,3,FALSE),"--") -> -- | H47: ='CEM Data Lookup'!L38 -> NA | J47: =IFERROR(VLOOKUP(H47,'1.16 MOODY_S&P numbericl'!F:H,3,FALSE),"--") -> --
A48: =Input!C37 -> POST | B48: =VLOOKUP($A48,'CEM Data Lookup'!$A:$Q,2,FALSE) -> PerkinElmer Inc. | D48: ='CEM Data Lookup'!K39 -> B2 | F48: =IFERROR(VLOOKUP('1.32 CEM RPM Bond Ratings'!D48,'1.16 MOODY_S&P numbericl'!B:D,3,FALSE),"--") -> 15 | H48: ='CEM Data Lookup'!L39 -> B+ | J48: =IFERROR(VLOOKUP(H48,'1.16 MOODY_S&P numbericl'!F:H,3,FALSE),"--") -> 14
A49: =Input!C38 -> RLI | B49: =VLOOKUP($A49,'CEM Data Lookup'!$A:$Q,2,FALSE) -> Philip Morris Int'l | D49: ='CEM Data Lookup'!K40 -> Baa2 | F49: =IFERROR(VLOOKUP('1.32 CEM RPM Bond Ratings'!D49,'1.16 MOODY_S&P numbericl'!B:D,3,FALSE),"--") -> 9 | H49: ='CEM Data Lookup'!L40 -> BBB | J49: =IFERROR(VLOOKUP(H49,'1.16 MOODY_S&P numbericl'!F:H,3,FALSE),"--") -> 9
A50: =Input!C39 -> ROL | B50: =VLOOKUP($A50,'CEM Data Lookup'!$A:$Q,2,FALSE) -> Pool Corp. | D50: ='CEM Data Lookup'!K41 -> NA | F50: =IFERROR(VLOOKUP('1.32 CEM RPM Bond Ratings'!D50,'1.16 MOODY_S&P numbericl'!B:D,3,FALSE),"--") -> -- | H50: ='CEM Data Lookup'!L41 -> NA | J50: =IFERROR(VLOOKUP(H50,'1.16 MOODY_S&P numbericl'!F:H,3,FALSE),"--") -> --
A51: =Input!C40 -> SIGI | B51: =VLOOKUP($A51,'CEM Data Lookup'!$A:$Q,2,FALSE) -> Post Holdings | D51: ='CEM Data Lookup'!K42 -> Baa2 | F51: =IFERROR(VLOOKUP('1.32 CEM RPM Bond Ratings'!D51,'1.16 MOODY_S&P numbericl'!B:D,3,FALSE),"--") -> 9 | H51: ='CEM Data Lookup'!L42 -> BBB | J51: =IFERROR(VLOOKUP(H51,'1.16 MOODY_S&P numbericl'!F:H,3,FALSE),"--") -> 9
A52: =Input!C41 -> SIRI | B52: =VLOOKUP($A52,'CEM Data Lookup'!$A:$Q,2,FALSE) -> RLI Corp. | D52: ='CEM Data Lookup'!K43 -> NA | F52: =IFERROR(VLOOKUP('1.32 CEM RPM Bond Ratings'!D52,'1.16 MOODY_S&P numbericl'!B:D,3,FALSE),"--") -> -- | H52: ='CEM Data Lookup'!L43 -> BB | J52: =IFERROR(VLOOKUP(H52,'1.16 MOODY_S&P numbericl'!F:H,3,FALSE),"--") -> 12
A53: =Input!C42 -> SNPS | B53: =VLOOKUP($A53,'CEM Data Lookup'!$A:$Q,2,FALSE) -> Rollins, Inc. | D53: ='CEM Data Lookup'!K44 -> NA | F53: =IFERROR(VLOOKUP('1.32 CEM RPM Bond Ratings'!D53,'1.16 MOODY_S&P numbericl'!B:D,3,FALSE),"--") -> -- | H53: ='CEM Data Lookup'!L44 -> NA | J53: =IFERROR(VLOOKUP(H53,'1.16 MOODY_S&P numbericl'!F:H,3,FALSE),"--") -> --
A54: =Input!C43 -> TRS | B54: =VLOOKUP($A54,'CEM Data Lookup'!$A:$Q,2,FALSE) -> Selective Ins. Group | D54: ='CEM Data Lookup'!K45 -> Ba3 | F54: =IFERROR(VLOOKUP('1.32 CEM RPM Bond Ratings'!D54,'1.16 MOODY_S&P numbericl'!B:D,3,FALSE),"--") -> 13 | H54: ='CEM Data Lookup'!L45 -> BB | J54: =IFERROR(VLOOKUP(H54,'1.16 MOODY_S&P numbericl'!F:H,3,FALSE),"--") -> 12
A55: =Input!C44 -> TTEK | B55: =VLOOKUP($A55,'CEM Data Lookup'!$A:$Q,2,FALSE) -> Sirius XM Holdings | D55: ='CEM Data Lookup'!K46 -> NA | F55: =IFERROR(VLOOKUP('1.32 CEM RPM Bond Ratings'!D55,'1.16 MOODY_S&P numbericl'!B:D,3,FALSE),"--") -> -- | H55: ='CEM Data Lookup'!L46 -> NA | J55: =IFERROR(VLOOKUP(H55,'1.16 MOODY_S&P numbericl'!F:H,3,FALSE),"--") -> --
A56: =Input!C45 -> WAT | B56: =VLOOKUP($A56,'CEM Data Lookup'!$A:$Q,2,FALSE) -> Bio-Techne Corp. | D56: ='CEM Data Lookup'!K47 -> NA | F56: =IFERROR(VLOOKUP('1.32 CEM RPM Bond Ratings'!D56,'1.16 MOODY_S&P numbericl'!B:D,3,FALSE),"--") -> -- | H56: ='CEM Data Lookup'!L47 -> NA | J56: =IFERROR(VLOOKUP(H56,'1.16 MOODY_S&P numbericl'!F:H,3,FALSE),"--") -> --
A57: =Input!C46 -> WIRE | B57: =VLOOKUP($A57,'CEM Data Lookup'!$A:$Q,2,FALSE) -> Tetra Tech | D57: ='CEM Data Lookup'!K48 -> NA | F57: =IFERROR(VLOOKUP('1.32 CEM RPM Bond Ratings'!D57,'1.16 MOODY_S&P numbericl'!B:D,3,FALSE),"--") -> -- | H57: ='CEM Data Lookup'!L48 -> NA | J57: =IFERROR(VLOOKUP(H57,'1.16 MOODY_S&P numbericl'!F:H,3,FALSE),"--") -> --
A58: =Input!C47 -> WST | B58: =VLOOKUP($A58,'CEM Data Lookup'!$A:$Q,2,FALSE) -> Waters Corp. | D58: ='CEM Data Lookup'!K49 -> NA | F58: =IFERROR(VLOOKUP('1.32 CEM RPM Bond Ratings'!D58,'1.16 MOODY_S&P numbericl'!B:D,3,FALSE),"--") -> -- | H58: ='CEM Data Lookup'!L49 -> NA | J58: =IFERROR(VLOOKUP(H58,'1.16 MOODY_S&P numbericl'!F:H,3,FALSE),"--") -> --
B60: Average | D60: Baa2 | F60: =ROUND(AVERAGE(F12:F59),1) -> 9.4 | H60: BBB | J60: =ROUND(AVERAGE(J12:J59),1) -> 9.4
B62: Notes:
B63: (1) | C63: From page 16 of this Schedule.
B65: Source of Information:
B66: Bloomberg Professional Services

Sheet 1.33 CEM Beta Adjusted RP
A1: =Input!G28 -> Atmos Energy Corporation
A2: Derivation of Equity Risk Premium Based on the Total Market Approach
A3: Using the Beta for
A4: ='1.32 CEM RPM Bond Ratings'!B3 -> Proxy Group of Forty-Six Non-Price Regulated Companies of Comparable risk to the
A5: ='1.32 CEM RPM Bond Ratings'!B4 -> Proxy Group of Seven Natural Gas Distribution Companies
A7: Line No. | C7: Equity Risk Premium Measure | F7: ='1.32 CEM RPM Bond Ratings'!B11 -> Proxy Group of Forty-Six Non-Price Regulated Companies
B10: Ibbotson-Based Equity Risk Premiums:
A12: 1. | C12: Ibbotson Equity Risk Premium (1) | F12: ='1.18-1.19 Beta Adjusted ERP'!F11 -> 5.92 | G12: %
A14: 2. | C14: Regression on Ibbotson Risk Premium Data (2) | F14: ='MRP ERP WP'!$AK$42*100 -> 8.763780723
A16: 3. | C16: Ibbotson Equity Risk Premium based on PRPM (3) | F16: ='PRPM WP 1'!K1165*100 -> 7.658041951
A18: 4. | C18: Equity Risk Premium Based on Value Line Summary and Index (4) | F18: ='MRP WP1'!$M$22*100-'MRP WP1'!$M$37 -> 6.09
A20: 5 | C20: Equity Risk Premium Based on Value Line S&P 500 Companies (5) | F20: ='1.18-1.19 Beta Adjusted ERP'!F19 -> 12.30817803
A22: 6. | C22: Equity Risk Premium Based on Bloomberg S&P 500 Companies (6) | F22: ='1.18-1.19 Beta Adjusted ERP'!F21 -> 13.77136419
A24: 7. | C24: Conclusion of Equity Risk Premium | F24: =ROUND(AVERAGE(F12,F14,F16,F18,F20,F22),2) -> 9.09 | G24: %
A26: 8. | C26: Adjusted Beta (7) | F26: ='1.34 CEM CAPM Backup'!H60 -> 0.94
A28: 9. | C28: Forecasted Equity Risk Premium | F28: =ROUND(F24*F26,2) -> 8.54 | G28: %
A30: Notes:
B31: (1) | C31: From note 1 of page 19 of this Schedule.
B32: (2) | C32: From note 2 of page 19 of this Schedule.
B33: (3) | C33: From note 3 of page 19 of this Schedule.
B34: (4) | C34: From note 4 of page 19 of this Schedule.
B35: (5) | C35: From note 5 of page 19 of this Schedule.
B36: (6) | C36: From note 6 of page 19 of this Schedule.
B37: (7) | C37: Average of mean and median beta from page 34 of this Schedule.
B39: Sources of Information:
C40: ='1.25 CAPM Notes'!B60 -> Stocks, Bonds, Bills, and Inflation - 2021 SBBI Yearbook, John Wiley & Sons, Inc.
C41: Value Line Summary and Index
C42: ='1.25 CAPM Notes'!B59 -> Blue Chip Financial Forecasts, June 1, 2021, October 1, 2021
C43: Bloomberg Professional Services

Sheet 1.34 CEM CAPM Backup
B1: =Input!G28 -> Atmos Energy Corporation
B2: Traditional CAPM and ECAPM Results for the Proxy Group of Non-Price-Regulated Companies Comparable in Total Risk to the
B3: ='1.33 CEM Beta Adjusted RP'!A5 -> Proxy Group of Seven Natural Gas Distribution Companies
D5: [1] | F5: [2] | H5: [3] | J5: [4] | M5: [5] | P5: [6] | S5: [7] | V5: [8]
B7: ='1.33 CEM Beta Adjusted RP'!F7 -> Proxy Group of Forty-Six Non-Price Regulated Companies | D7: Value Line Adjusted Beta | F7: Bloomberg Beta | H7: Average Beta | J7: Market Risk Premium (1) | M7: Risk-Free Rate (2) | P7: Traditional CAPM Cost Rate | S7: ECAPM Cost Rate | V7: Indicated Common Equity Cost Rate (3)
A9: =Input!C2 -> AAPL | B9: =VLOOKUP($A9,'CEM Data Lookup'!$A:$Q,2,FALSE) -> Apple Inc. | D9: ='MRP WP1'!E71 -> 0.9 | F9: =VLOOKUP($A9,'CEM Data Lookup'!$A:$Q,8,FALSE) -> 1.003767967 | H9: =ROUND(AVERAGE(D9:F9),2) -> 0.95 | J9: ='MRP WP1'!H$64 -> 9.931910544 | K9: % | M9: ='MRP WP1'!F$37 -> 2.76 | N9: % | P9: =H9*(J9)+M9 -> 12.19531502 | Q9: % | S9: =ROUND(0.75*(H9*J9)+(0.25*J9)+M9,4) -> 12.3195 | T9: % | V9: =ROUND(AVERAGE(P9,S9),2) -> 12.26 | W9: %
A10: =Input!C3 -> AIZ | B10: =VLOOKUP($A10,'CEM Data Lookup'!$A:$Q,2,FALSE) -> Abbott Labs. | D10: ='MRP WP1'!E72 -> 0.9 | F10: =VLOOKUP($A10,'CEM Data Lookup'!$A:$Q,8,FALSE) -> 1.012662172 | H10: =ROUND(AVERAGE(D10:F10),2) -> 0.96 | J10: ='MRP WP1'!H$64 -> 9.931910544 | M10: ='MRP WP1'!F$37 -> 2.76 | P10: =H10*(J10)+M10 -> 12.29463412 | S10: =ROUND(0.75*(H10*J10)+(0.25*J10)+M10,4) -> 12.394 | V10: =ROUND(AVERAGE(P10,S10),2) -> 12.34
A11: =Input!C4 -> ANSS | B11: =VLOOKUP($A11,'CEM Data Lookup'!$A:$Q,2,FALSE) -> Assurant Inc. | D11: ='MRP WP1'!E73 -> 0.85 | F11: =VLOOKUP($A11,'CEM Data Lookup'!$A:$Q,8,FALSE) -> 0.9627848268 | H11: 0.91 | J11: ='MRP WP1'!H$64 -> 9.931910544 | M11: ='MRP WP1'!F$37 -> 2.76 | P11: 11.7980386 | S11: 12.0215 | V11: 11.91
A12: =Input!C5 -> BAH | B12: =VLOOKUP($A12,'CEM Data Lookup'!$A:$Q,2,FALSE) -> ANSYS, Inc. | D12: ='MRP WP1'!E74 -> 0.9 | F12: =VLOOKUP($A12,'CEM Data Lookup'!$A:$Q,8,FALSE) -> 0.9210552573 | H12: 0.91 | J12: ='MRP WP1'!H$64 -> 9.931910544 | M12: ='MRP WP1'!F$37 -> 2.76 | P12: 11.7980386 | S12: 12.0215 | V12: 11.91
A13: =Input!C6 -> BLL | B13: =VLOOKUP($A13,'CEM Data Lookup'!$A:$Q,2,FALSE) -> Booz Allen Hamilton | D13: ='MRP WP1'!E75 -> 1 | F13: =VLOOKUP($A13,'CEM Data Lookup'!$A:$Q,8,FALSE) -> 1.034794688 | H13: 1.02 | J13: ='MRP WP1'!H$64 -> 9.931910544 | M13: ='MRP WP1'!F$37 -> 2.76 | P13: 12.89054876 | S13: 12.8409 | V13: 12.87
A14: =Input!C7 -> CACI | B14: =VLOOKUP($A14,'CEM Data Lookup'!$A:$Q,2,FALSE) -> Becton, Dickinson | D14: ='MRP WP1'!E76 -> 0.95 | F14: =VLOOKUP($A14,'CEM Data Lookup'!$A:$Q,8,FALSE) -> 1.005265355 | H14: 0.98 | J14: ='MRP WP1'!H$64 -> 9.931910544 | M14: ='MRP WP1'!F$37 -> 2.76 | P14: 12.49327233 | S14: 12.5429 | V14: 12.52
A15: =Input!C8 -> CASY | B15: =VLOOKUP($A15,'CEM Data Lookup'!$A:$Q,2,FALSE) -> Brown-Forman 'B' | D15: ='MRP WP1'!E77 -> 0.9 | F15: =VLOOKUP($A15,'CEM Data Lookup'!$A:$Q,8,FALSE) -> 0.9364169836 | H15: 0.92 | J15: ='MRP WP1'!H$64 -> 9.931910544 | M15: ='MRP WP1'!F$37 -> 2.76 | P15: 11.8973577 | S15: 12.096 | V15: 12
A16: =Input!C9 -> CSWI | B16: =VLOOKUP($A16,'CEM Data Lookup'!$A:$Q,2,FALSE) -> Broadridge Fin'l | D16: ='MRP WP1'!E78 -> 0.9 | F16: =VLOOKUP($A16,'CEM Data Lookup'!$A:$Q,8,FALSE) -> 1.050495744 | H16: 0.98 | J16: ='MRP WP1'!H$64 -> 9.931910544 | M16: ='MRP WP1'!F$37 -> 2.76 | P16: 12.49327233 | S16: 12.5429 | V16: 12.52
A17: =Input!C10 -> DGX | B17: =VLOOKUP($A17,'CEM Data Lookup'!$A:$Q,2,FALSE) -> Brady Corp. | D17: ='MRP WP1'!E79 -> 0.85 | F17: =VLOOKUP($A17,'CEM Data Lookup'!$A:$Q,8,FALSE) -> 0.9653014541 | H17: 0.91 | J17: ='MRP WP1'!H$64 -> 9.931910544 | M17: ='MRP WP1'!F$37 -> 2.76 | P17: 11.7980386 | S17: 12.0215 | V17: 11.91
A18: =Input!C11 -> EBAY | B18: =VLOOKUP($A18,'CEM Data Lookup'!$A:$Q,2,FALSE) -> CACI Int'l | D18: ='MRP WP1'!E80 -> 1 | F18: =VLOOKUP($A18,'CEM Data Lookup'!$A:$Q,8,FALSE) -> 1.081991076 | H18: 1.04 | J18: ='MRP WP1'!H$64 -> 9.931910544 | M18: ='MRP WP1'!F$37 -> 2.76 | P18: 13.08918697 | S18: 12.9899 | V18: 13.04
A19: =Input!C12 -> EL | B19: =VLOOKUP($A19,'CEM Data Lookup'!$A:$Q,2,FALSE) -> Casey's Gen'l Stores | D19: ='MRP WP1'!E81 -> 0.95 | F19: =VLOOKUP($A19,'CEM Data Lookup'!$A:$Q,8,FALSE) -> 1.016298532 | H19: 0.98 | J19: ='MRP WP1'!H$64 -> 9.931910544 | M19: ='MRP WP1'!F$37 -> 2.76 | P19: 12.49327233 | S19: 12.5429 | V19: 12.52
A20: =Input!C13 -> EXPO | B20: =VLOOKUP($A20,'CEM Data Lookup'!$A:$Q,2,FALSE) -> Cadence Design Sys. | D20: ='MRP WP1'!E82 -> 0.9 | F20: =VLOOKUP($A20,'CEM Data Lookup'!$A:$Q,8,FALSE) -> 0.9636466503 | H20: 0.93 | J20: ='MRP WP1'!H$64 -> 9.931910544 | M20: ='MRP WP1'!F$37 -> 2.76 | P20: 11.99667681 | S20: 12.1705 | V20: 12.08
A21: =Input!C14 -> FAST | B21: =VLOOKUP($A21,'CEM Data Lookup'!$A:$Q,2,FALSE) -> Cerner Corp. | D21: ='MRP WP1'!E83 -> 0.95 | F21: =VLOOKUP($A21,'CEM Data Lookup'!$A:$Q,8,FALSE) -> 0.9387925863 | H21: 0.94 | J21: ='MRP WP1'!H$64 -> 9.931910544 | M21: ='MRP WP1'!F$37 -> 2.76 | P21: 12.09599591 | S21: 12.245 | V21: 12.17
A22: =Input!C15 -> FCFS | B22: =VLOOKUP($A22,'CEM Data Lookup'!$A:$Q,2,FALSE) -> CSW Industrials | D22: ='MRP WP1'!E84 -> 0.9 | F22: =VLOOKUP($A22,'CEM Data Lookup'!$A:$Q,8,FALSE) -> 0.934519887 | H22: 0.92 | J22: ='MRP WP1'!H$64 -> 9.931910544 | M22: ='MRP WP1'!F$37 -> 2.76 | P22: 11.8973577 | S22: 12.096 | V22: 12
A23: =Input!C16 -> FELE | B23: =VLOOKUP($A23,'CEM Data Lookup'!$A:$Q,2,FALSE) -> Quest Diagnostics | D23: ='MRP WP1'!E85 -> 0.95 | F23: =VLOOKUP($A23,'CEM Data Lookup'!$A:$Q,8,FALSE) -> 0.9791152477 | H23: 0.96 | J23: ='MRP WP1'!H$64 -> 9.931910544 | M23: ='MRP WP1'!F$37 -> 2.76 | P23: 12.29463412 | S23: 12.394 | V23: 12.34
A24: =Input!C17 -> GATX | B24: =VLOOKUP($A24,'CEM Data Lookup'!$A:$Q,2,FALSE) -> Lauder (Estee) | D24: ='MRP WP1'!E86 -> 0.95 | F24: =VLOOKUP($A24,'CEM Data Lookup'!$A:$Q,8,FALSE) -> 0.9971370101 | H24: 0.97 | J24: ='MRP WP1'!H$64 -> 9.931910544 | M24: ='MRP WP1'!F$37 -> 2.76 | P24: 12.39395323 | S24: 12.4684 | V24: 12.43
A25: =Input!C18 -> IFF | B25: =VLOOKUP($A25,'CEM Data Lookup'!$A:$Q,2,FALSE) -> Exponent, Inc. | D25: ='MRP WP1'!E87 -> 0.9 | F25: =VLOOKUP($A25,'CEM Data Lookup'!$A:$Q,8,FALSE) -> 1.05848372 | H25: 0.98 | J25: ='MRP WP1'!H$64 -> 9.931910544 | M25: ='MRP WP1'!F$37 -> 2.76 | P25: 12.49327233 | S25: 12.5429 | V25: 12.52
A26: =Input!C19 -> INGR | B26: =VLOOKUP($A26,'CEM Data Lookup'!$A:$Q,2,FALSE) -> Fastenal Co. | D26: ='MRP WP1'!E88 -> 0.9 | F26: =VLOOKUP($A26,'CEM Data Lookup'!$A:$Q,8,FALSE) -> 0.9233161807 | H26: 0.91 | J26: ='MRP WP1'!H$64 -> 9.931910544 | M26: ='MRP WP1'!F$37 -> 2.76 | P26: 11.7980386 | S26: 12.0215 | V26: 11.91
A27: =Input!C20 -> IRM | B27: =VLOOKUP($A27,'CEM Data Lookup'!$A:$Q,2,FALSE) -> Gentex Corp. | D27: ='MRP WP1'!E89 -> 0.9 | F27: =VLOOKUP($A27,'CEM Data Lookup'!$A:$Q,8,FALSE) -> 1.054611325 | H27: 0.98 | J27: ='MRP WP1'!H$64 -> 9.931910544 | M27: ='MRP WP1'!F$37 -> 2.76 | P27: 12.49327233 | S27: 12.5429 | V27: 12.52
A28: =Input!C21 -> JBHT | B28: =VLOOKUP($A28,'CEM Data Lookup'!$A:$Q,2,FALSE) -> Int'l Flavors & Frag | D28: ='MRP WP1'!E90 -> 0.95 | F28: =VLOOKUP($A28,'CEM Data Lookup'!$A:$Q,8,FALSE) -> 0.938383162 | H28: 0.94 | J28: ='MRP WP1'!H$64 -> 9.931910544 | M28: ='MRP WP1'!F$37 -> 2.76 | P28: 12.09599591 | S28: 12.245 | V28: 12.17
A29: =Input!C22 -> JJSF | B29: =VLOOKUP($A29,'CEM Data Lookup'!$A:$Q,2,FALSE) -> Ingredion Inc. | D29: ='MRP WP1'!E91 -> 0.95 | F29: =VLOOKUP($A29,'CEM Data Lookup'!$A:$Q,8,FALSE) -> 0.8112875223 | H29: 0.88 | J29: ='MRP WP1'!H$64 -> 9.931910544 | M29: ='MRP WP1'!F$37 -> 2.76 | P29: 11.50008128 | S29: 11.798 | V29: 11.65
A30: =Input!C23 -> JKHY | B30: =VLOOKUP($A30,'CEM Data Lookup'!$A:$Q,2,FALSE) -> Iron Mountain | D30: ='MRP WP1'!E92 -> 0.85 | F30: =VLOOKUP($A30,'CEM Data Lookup'!$A:$Q,8,FALSE) -> 0.8860248327 | H30: 0.87 | J30: ='MRP WP1'!H$64 -> 9.931910544 | M30: ='MRP WP1'!F$37 -> 2.76 | P30: 11.40076217 | S30: 11.7235 | V30: 11.56
A31: =Input!C24 -> JNPR | B31: =VLOOKUP($A31,'CEM Data Lookup'!$A:$Q,2,FALSE) -> Hunt (J.B.) | D31: ='MRP WP1'!E93 -> 1 | F31: =VLOOKUP($A31,'CEM Data Lookup'!$A:$Q,8,FALSE) -> 0.9610127807 | H31: 0.98 | J31: ='MRP WP1'!H$64 -> 9.931910544 | M31: ='MRP WP1'!F$37 -> 2.76 | P31: 12.49327233 | S31: 12.5429 | V31: 12.52
A32: =Input!C25 -> MANT | B32: =VLOOKUP($A32,'CEM Data Lookup'!$A:$Q,2,FALSE) -> J&J Snack Foods | D32: ='MRP WP1'!E94 -> 0.85 | F32: =VLOOKUP($A32,'CEM Data Lookup'!$A:$Q,8,FALSE) -> 1.127384424 | H32: 0.99 | J32: ='MRP WP1'!H$64 -> 9.931910544 | M32: ='MRP WP1'!F$37 -> 2.76 | P32: 12.59259144 | S32: 12.6174 | V32: 12.6
A33: =Input!C26 -> MNST | B33: =VLOOKUP($A33,'CEM Data Lookup'!$A:$Q,2,FALSE) -> Henry (Jack) & Assoc | D33: ='MRP WP1'!E95 -> 0.85 | F33: =VLOOKUP($A33,'CEM Data Lookup'!$A:$Q,8,FALSE) -> 0.9685283303 | H33: 0.91 | J33: ='MRP WP1'!H$64 -> 9.931910544 | M33: ='MRP WP1'!F$37 -> 2.76 | P33: 11.7980386 | S33: 12.0215 | V33: 11.91
A34: =Input!C27 -> MO | B34: =VLOOKUP($A34,'CEM Data Lookup'!$A:$Q,2,FALSE) -> ManTech Int'l 'A' | D34: ='MRP WP1'!E96 -> 0.95 | F34: =VLOOKUP($A34,'CEM Data Lookup'!$A:$Q,8,FALSE) -> 0.9077377319 | H34: 0.93 | J34: ='MRP WP1'!H$64 -> 9.931910544 | M34: ='MRP WP1'!F$37 -> 2.76 | P34: 11.99667681 | S34: 12.1705 | V34: 12.08
A35: =Input!C28 -> MSA | B35: =VLOOKUP($A35,'CEM Data Lookup'!$A:$Q,2,FALSE) -> McCormick & Co. | D35: ='MRP WP1'!E97 -> 1 | F35: =VLOOKUP($A35,'CEM Data Lookup'!$A:$Q,8,FALSE) -> 1.005976796 | H35: 1 | J35: ='MRP WP1'!H$64 -> 9.931910544 | M35: ='MRP WP1'!F$37 -> 2.76 | P35: 12.69191054 | S35: 12.6919 | V35: 12.69
A36: =Input!C29 -> MSCI | B36: =VLOOKUP($A36,'CEM Data Lookup'!$A:$Q,2,FALSE) -> Altria Group | D36: ='MRP WP1'!E98 -> 0.95 | F36: =VLOOKUP($A36,'CEM Data Lookup'!$A:$Q,8,FALSE) -> 0.923325479 | H36: 0.94 | J36: ='MRP WP1'!H$64 -> 9.931910544 | M36: ='MRP WP1'!F$37 -> 2.76 | P36: 12.09599591 | S36: 12.245 | V36: 12.17
A37: =Input!C30 -> MTN | B37: =VLOOKUP($A37,'CEM Data Lookup'!$A:$Q,2,FALSE) -> MSA Safety | D37: ='MRP WP1'!E99 -> 0.95 | F37: =VLOOKUP($A37,'CEM Data Lookup'!$A:$Q,8,FALSE) -> 1.132924199 | H37: 1.04 | J37: ='MRP WP1'!H$64 -> 9.931910544 | M37: ='MRP WP1'!F$37 -> 2.76 | P37: 13.08918697 | S37: 12.9899 | V37: 13.04
A38: =Input!C31 -> NOC | B38: =VLOOKUP($A38,'CEM Data Lookup'!$A:$Q,2,FALSE) -> MSCI Inc. | D38: ='MRP WP1'!E100 -> 0.85 | F38: =VLOOKUP($A38,'CEM Data Lookup'!$A:$Q,8,FALSE) -> 0.7939190269 | H38: 0.82 | J38: ='MRP WP1'!H$64 -> 9.931910544 | M38: ='MRP WP1'!F$37 -> 2.76 | P38: 10.90416665 | S38: 11.3511 | V38: 11.13
A39: =Input!C32 -> ODFL | B39: =VLOOKUP($A39,'CEM Data Lookup'!$A:$Q,2,FALSE) -> Motorola Solutions | D39: ='MRP WP1'!E101 -> 0.9 | F39: =VLOOKUP($A39,'CEM Data Lookup'!$A:$Q,8,FALSE) -> 0.9838208556 | H39: 0.94 | J39: ='MRP WP1'!H$64 -> 9.931910544 | M39: ='MRP WP1'!F$37 -> 2.76 | P39: 12.09599591 | S39: 12.245 | V39: 12.17
A40: =Input!C33 -> PKG | B40: =VLOOKUP($A40,'CEM Data Lookup'!$A:$Q,2,FALSE) -> Vail Resorts | D40: ='MRP WP1'!E102 -> 0.95 | F40: =VLOOKUP($A40,'CEM Data Lookup'!$A:$Q,8,FALSE) -> 0.7924605608 | H40: 0.87 | J40: ='MRP WP1'!H$64 -> 9.931910544 | M40: ='MRP WP1'!F$37 -> 2.76 | P40: 11.40076217 | S40: 11.7235 | V40: 11.56
A41: =Input!C34 -> PKI | B41: =VLOOKUP($A41,'CEM Data Lookup'!$A:$Q,2,FALSE) -> Maxim Integrated | D41: ='MRP WP1'!E103 -> 0.9 | F41: =VLOOKUP($A41,'CEM Data Lookup'!$A:$Q,8,FALSE) -> 0.7963990569 | H41: 0.85 | J41: ='MRP WP1'!H$64 -> 9.931910544 | M41: ='MRP WP1'!F$37 -> 2.76 | P41: 11.20212396 | S41: 11.5746 | V41: 11.39
A42: =Input!C35 -> PM | B42: =VLOOKUP($A42,'CEM Data Lookup'!$A:$Q,2,FALSE) -> Northrop Grumman | D42: ='MRP WP1'!E104 -> 0.95 | F42: =VLOOKUP($A42,'CEM Data Lookup'!$A:$Q,8,FALSE) -> 0.948207736 | H42: 0.95 | J42: ='MRP WP1'!H$64 -> 9.931910544 | M42: ='MRP WP1'!F$37 -> 2.76 | P42: 12.19531502 | S42: 12.3195 | V42: 12.26
A43: =Input!C36 -> POOL | B43: =VLOOKUP($A43,'CEM Data Lookup'!$A:$Q,2,FALSE) -> Old Dominion Freight | D43: ='MRP WP1'!E105 -> 0.85 | F43: =VLOOKUP($A43,'CEM Data Lookup'!$A:$Q,8,FALSE) -> 0.9630259871 | H43: 0.91 | J43: ='MRP WP1'!H$64 -> 9.931910544 | M43: ='MRP WP1'!F$37 -> 2.76 | P43: 11.7980386 | S43: 12.0215 | V43: 11.91
A44: =Input!C37 -> POST | B44: =VLOOKUP($A44,'CEM Data Lookup'!$A:$Q,2,FALSE) -> PerkinElmer Inc. | D44: ='MRP WP1'!E106 -> 0.95 | F44: =VLOOKUP($A44,'CEM Data Lookup'!$A:$Q,8,FALSE) -> 0.8974030018 | H44: 0.92 | J44: ='MRP WP1'!H$64 -> 9.931910544 | M44: ='MRP WP1'!F$37 -> 2.76 | P44: 11.8973577 | S44: 12.096 | V44: 12
A45: =Input!C38 -> RLI | B45: =VLOOKUP($A45,'CEM Data Lookup'!$A:$Q,2,FALSE) -> Philip Morris Int'l | D45: ='MRP WP1'!E107 -> 0.8 | F45: =VLOOKUP($A45,'CEM Data Lookup'!$A:$Q,8,FALSE) -> 0.9152610898 | H45: 0.86 | J45: ='MRP WP1'!H$64 -> 9.931910544 | M45: ='MRP WP1'!F$37 -> 2.76 | P45: 11.30144307 | S45: 11.6491 | V45: 11.48
A46: =Input!C39 -> ROL | B46: =VLOOKUP($A46,'CEM Data Lookup'!$A:$Q,2,FALSE) -> Pool Corp. | D46: ='MRP WP1'!E108 -> 0.85 | F46: =VLOOKUP($A46,'CEM Data Lookup'!$A:$Q,8,FALSE) -> 0.6891735196 | H46: 0.77 | J46: ='MRP WP1'!H$64 -> 9.931910544 | M46: ='MRP WP1'!F$37 -> 2.76 | P46: 10.40757112 | S46: 10.9787 | V46: 10.69
A47: =Input!C40 -> SIGI | B47: =VLOOKUP($A47,'CEM Data Lookup'!$A:$Q,2,FALSE) -> Post Holdings | D47: ='MRP WP1'!E109 -> 0.9 | F47: =VLOOKUP($A47,'CEM Data Lookup'!$A:$Q,8,FALSE) -> 0.9980540872 | H47: 0.95 | J47: ='MRP WP1'!H$64 -> 9.931910544 | M47: ='MRP WP1'!F$37 -> 2.76 | P47: 12.19531502 | S47: 12.3195 | V47: 12.26
A48: =Input!C41 -> SIRI | B48: =VLOOKUP($A48,'CEM Data Lookup'!$A:$Q,2,FALSE) -> RLI Corp. | D48: ='MRP WP1'!E110 -> 0.95 | F48: =VLOOKUP($A48,'CEM Data Lookup'!$A:$Q,8,FALSE) -> 1.128339291 | H48: 1.04 | J48: ='MRP WP1'!H$64 -> 9.931910544 | M48: ='MRP WP1'!F$37 -> 2.76 | P48: 13.08918697 | S48: 12.9899 | V48: 13.04
A49: =Input!C42 -> SNPS | B49: =VLOOKUP($A49,'CEM Data Lookup'!$A:$Q,2,FALSE) -> Rollins, Inc. | D49: ='MRP WP1'!E111 -> 0.95 | F49: =VLOOKUP($A49,'CEM Data Lookup'!$A:$Q,8,FALSE) -> 1.022663951 | H49: 0.99 | J49: ='MRP WP1'!H$64 -> 9.931910544 | M49: ='MRP WP1'!F$37 -> 2.76 | P49: 12.59259144 | S49: 12.6174 | V49: 12.6
A50: =Input!C43 -> TRS | B50: =VLOOKUP($A50,'CEM Data Lookup'!$A:$Q,2,FALSE) -> Selective Ins. Group | D50: ='MRP WP1'!E112 -> 0.85 | F50: =VLOOKUP($A50,'CEM Data Lookup'!$A:$Q,8,FALSE) -> 0.9789116979 | H50: 0.91 | J50: ='MRP WP1'!H$64 -> 9.931910544 | M50: ='MRP WP1'!F$37 -> 2.76 | P50: 11.7980386 | S50: 12.0215 | V50: 11.91
A51: =Input!C44 -> TTEK | B51: =VLOOKUP($A51,'CEM Data Lookup'!$A:$Q,2,FALSE) -> Sirius XM Holdings | D51: ='MRP WP1'!E113 -> 0.95 | F51: =VLOOKUP($A51,'CEM Data Lookup'!$A:$Q,8,FALSE) -> 1.064071417 | H51: 1.01 | J51: ='MRP WP1'!H$64 -> 9.931910544 | M51: ='MRP WP1'!F$37 -> 2.76 | P51: 12.79122965 | S51: 12.7664 | V51: 12.78
A52: =Input!C45 -> WAT | B52: =VLOOKUP($A52,'CEM Data Lookup'!$A:$Q,2,FALSE) -> Bio-Techne Corp. | D52: ='MRP WP1'!E114 -> 0.95 | F52: =VLOOKUP($A52,'CEM Data Lookup'!$A:$Q,8,FALSE) -> 0.846478641 | H52: 0.9 | J52: ='MRP WP1'!H$64 -> 9.931910544 | M52: ='MRP WP1'!F$37 -> 2.76 | P52: 11.69871949 | S52: 11.947 | V52: 11.82
A53: =Input!C46 -> WIRE | B53: =VLOOKUP($A53,'CEM Data Lookup'!$A:$Q,2,FALSE) -> Tetra Tech | D53: ='MRP WP1'!E115 -> 0.95 | F53: =VLOOKUP($A53,'CEM Data Lookup'!$A:$Q,8,FALSE) -> 1.010207295 | H53: 0.98 | J53: ='MRP WP1'!H$64 -> 9.931910544 | M53: ='MRP WP1'!F$37 -> 2.76 | P53: 12.49327233 | S53: 12.5429 | V53: 12.52
A54: =Input!C47 -> WST | B54: =VLOOKUP($A54,'CEM Data Lookup'!$A:$Q,2,FALSE) -> Waters Corp. | D54: ='MRP WP1'!E116 -> 0.8 | F54: =VLOOKUP($A54,'CEM Data Lookup'!$A:$Q,8,FALSE) -> 0.738920629 | H54: 0.77 | J54: ='MRP WP1'!H$64 -> 9.931910544 | M54: ='MRP WP1'!F$37 -> 2.76 | P54: 10.40757112 | S54: 10.9787 | V54: 10.69
F56: Mean | H56: =ROUND(AVERAGE(H9:H54),2) -> 0.94 | P56: =ROUND(AVERAGE(P9:P54),2) -> 12.06 | Q56: % | S56: =ROUND(AVERAGE(S9:S54),2) -> 12.22 | T56: % | V56: =ROUND(AVERAGE(V9:V54),2) -> 12.14 | W56: %
F58: Median | H58: =ROUND(MEDIAN(H9:H54),2) -> 0.94 | P58: =ROUND(MEDIAN(P9:P54),2) -> 12.1 | Q58: % | S58: =ROUND(MEDIAN(S9:S54),2) -> 12.25 | T58: % | V58: =ROUND(MEDIAN(V9:V54),2) -> 12.17 | W58: %
F60: Average of Mean and Median | H60: =ROUND(AVERAGE(H56:H58),2) -> 0.94 | P60: =ROUND(AVERAGE(P56:P58),2) -> 12.08 | Q60: % | S60: =ROUND(AVERAGE(S56:S58),2) -> 12.24 | T60: % | V60: =ROUND(AVERAGE(V56:V58),2) -> 12.16 | W60: %
C62: Notes:
C63: (1) | D63: From note 1 of page 25 of this Schedule.
C64: (2) | D64: From note 2 of page 25 of this Schedule.
C65: (3) | D65: Average of CAPM and ECAPM cost rates.

Sheet 1.35 Risk Adjustment
C1: =Input!G28 -> Atmos Energy Corporation
C2: Derivation of Investment Risk Adjustment Based upon
C3: Ibbotson Associates' Size Premia for the Decile Portfolios of the NYSE/AMEX/NASDAQ
E6: [1] | I6: [2] | K6: [3] | M6: [4]
M7: Spread from Applicable Size Premium (4)
E8: Market Capitalization on May 28, 2021 (1) | I8: Applicable Decile of the NYSE/AMEX/ NASDAQ (2)
K9: Applicable Size Premium (3)
A11: Line No.
E12: ( millions ) | G12: (times larger)
A14: 1. | C14: ='1.36 Market Cap'!B11 -> Atmos Energy Corporation | E14: ='1.36 Market Cap'!P13 -> 521.4019102 | I14: 8 | K14: =M30 -> 0.0146
A16: 2. | C16: =Input!I31 -> Proxy Group of Seven Natural Gas Distribution Companies | E16: ='1.36 Market Cap'!P24 -> 4048.578 | G16: =ROUND(E16/E14,1) -> 7.8 | H16: x | I16: 4 | K16: =M26 -> 0.0075 | M16: =K14-K16 -> 0.0071
G18: [A] | I18: [B] | K18: [C] | M18: [D]
G20: Decile | I20: Market Capitalization of Smallest Company | K20: Market Capitalization of Largest Company | M20: Size Premium (Return in Excess of CAPM)*
I21: ( millions ) | K21: ( millions )
E23: Largest | G23: 1 | I23: 29025.803 | K23: 1966078.882 | M23: -0.0022
G24: 2 | I24: 13178.743 | K24: 28808.073 | M24: 0.0049
G25: 3 | I25: 6743.361 | K25: 13177.828 | M25: 0.0071
G26: 4 | I26: 3861.858 | K26: 6710.676 | M26: 0.0075
G27: 5 | I27: 2445.693 | K27: 3836.536 | M27: 0.0109
G28: 6 | I28: 1591.865 | K28: 2444.745 | M28: 0.0137
G29: 7 | I29: 911.586 | K29: 1591.765 | M29: 0.0154
G30: 8 | I30: 451.955 | K30: 911.103 | M30: 0.0146
G31: 9 | I31: 190.019 | K31: 451.8 | M31: 0.0229
E32: Smallest | G32: 10 | I32: 2.194 | K32: 189.831 | M32: 0.0501
H33: *From 2021 Duff & Phelps Cost of Capital Navigator
C34: Notes:
D35: (1) | E35: From page 36 of this Schedule.
D36: (2) | E36: Gleaned from Columns [B] and [C] on the bottom of this page. The appropriate decile (Column [A]) corresponds to the market capitalization of the proxy group, which is found in Column [1].
D37: (3) | E37: Corresponding risk premium to the decile is provided in Column [D] on the bottom of this page.
D38: (4) | E38: =CONCATENATE("Line No. 1 Column [3] – Line No. 2 Column [3]. For example, the ",TEXT((M16*100),"#0.00"),"% in Column [4], Line No. 2 is derived as follows ",TEXT((M16*100),"#0.00"),"% = ",K14*100,"% - ",TEXT((K16*100),"#0.00"),"%.") -> Line No. 1 Column [3] – Line No. 2 Column [3]. For example, the 0.71% in Column [4], Line No. 2 is derived as follows 0.71% = 1.46% - 0.75%.

Sheet 1.36 Market Cap
B1: =Input!G28 -> Atmos Energy Corporation
B2: =CONCATENATE("Market Capitalization of ",B1," and the") -> Market Capitalization of Atmos Energy Corporation and the
B3: =Input!I31 -> Proxy Group of Seven Natural Gas Distribution Companies
F6: [1] | H6: [2] | J6: [3] | L6: [4] | N6: [5] | P6: [6]
B8: Company | D8: Exchange | F8: =CONCATENATE("Common Stock Shares Outstanding at Fiscal Year End ",YEAR(Input!G49)) -> Common Stock Shares Outstanding at Fiscal Year End 2020 | H8: Book Value per Share at Fiscal Year End 2020 (1) | J8: =CONCATENATE("Total Common Equity at Fiscal Year End ",YEAR(Input!G49)) -> Total Common Equity at Fiscal Year End 2020 | L8: =CONCATENATE("Closing Stock Market Price on ",TEXT(Input!E2,"mmmm dd, yyyy")) -> Closing Stock Market Price on September 30, 2021 | N8: =CONCATENATE("Market-to-Book Ratio on ",TEXT(Input!E2,"mmmm dd, yyyy")," (2)") -> Market-to-Book Ratio on September 30, 2021 (2) | P8: =CONCATENATE("Market Capitalization on ",TEXT(Input!E2,"mmmm dd, yyyy")," (3)") -> Market Capitalization on September 30, 2021 (3)
F9: ( millions ) | J9: ( millions ) | P9: ( millions )
B11: =Input!G28 -> Atmos Energy Corporation | F11: NA | H11: NA | J11: =Input!G43/1000000*Input!F14 -> 343.2533971 | K11: (4) | L11: NA
B13: =CONCATENATE("Based upon ",B15) -> Based upon Proxy Group of Seven Natural Gas Distribution Companies | N13: =N24 -> 151.9 | O13: (5) | P13: =IFERROR(N13*J11/100,"NA") -> 521.4019102 | Q13: (6)
B15: =Input!I31 -> Proxy Group of Seven Natural Gas Distribution Companies
A16: =IFERROR(Input!A2,"NA") -> ATO | B16: ='Proxy Data Lookup'!B3 -> Atmos Energy Corporation | D16: =Input!B2 -> NYSE | F16: ='3. ATO'!$C$15/1000000 -> 125.882477 | H16: =IFERROR(ROUND(J16/F16,3),"NA") -> 53.949 | J16: ='3. ATO'!$C$16/1000000 -> 6791.203 | L16: ='Proxy Prices'!B$6 -> 88.2 | N16: =IFERROR(ROUND(L16/H16*100,1),"NA") -> 163.5 | O16: % | P16: =IFERROR(ROUND(F16*L16,3),"NA") -> 11102.834
A17: =IFERROR(Input!A3,"NA") -> NJR | B17: ='Proxy Data Lookup'!B4 -> New Jersey Resources Corporation | D17: =Input!B3 -> NYSE | F17: ='3. NJR'!$C$15/1000000 -> 95.949183 | H17: =IFERROR(ROUND(J17/F17,3),"NA") -> 19.226 | J17: ='3. NJR'!$C$16/1000000 -> 1844.692 | L17: ='Proxy Prices'!C$6 -> 34.81 | N17: =IFERROR(ROUND(L17/H17*100,1),"NA") -> 181.1 | P17: 3339.991
A18: =IFERROR(Input!A4,"NA") -> NWN | B18: ='Proxy Data Lookup'!B5 -> Northwest Natural Holding Company | D18: =Input!B4 -> NYSE | F18: ='3. NWN'!$C$15/1000000 -> 30.589 | H18: 29.054 | J18: ='3. NWN'!$C$16/1000000 -> 888.733 | L18: ='Proxy Prices'!D$6 -> 45.99 | N18: 158.3 | P18: 1406.788
A19: =IFERROR(Input!A5,"NA") -> OGS | B19: ='Proxy Data Lookup'!B6 -> ONE Gas, Inc. | D19: =Input!B5 -> NYSE | F19: ='3. OGS'!$C$15/1000000 -> 53.166733 | H19: 42.006 | J19: ='3. OGS'!$C$16/1000000 -> 2233.311 | L19: ='Proxy Prices'!E$6 -> 63.37 | N19: 150.9 | P19: 3369.176
A20: =IFERROR(Input!A6,"NA") -> SJI | B20: ='Proxy Data Lookup'!B7 -> South Jersey Industries, Inc. | D20: =Input!B6 -> NYSE | F20: ='3. SJI'!$C$15/1000000 -> 100.59194 | H20: 16.571 | J20: ='3. SJI'!$C$16/1000000 -> 1666.876 | L20: ='Proxy Prices'!F$6 -> 21.26 | N20: 128.3 | P20: 2138.585
A21: =IFERROR(Input!A7,"NA") -> SWX | B21: ='Proxy Data Lookup'!B8 -> Southwest Gas Holdings, Inc. | D21: =Input!B7 -> NYSE | F21: ='3. SWX'!$C$15/1000000 -> 57.192925 | H21: 46.771 | J21: ='3. SWX'!$C$16/1000000 -> 2674.953 | L21: ='Proxy Prices'!G$6 -> 66.88 | N21: 143 | P21: 3825.063
A22: =IFERROR(Input!A8,"NA") -> SR | B22: ='Proxy Data Lookup'!B9 -> Spire Inc. | D22: =Input!B8 -> NYSE | F22: ='3. SR'!$C$15/1000000 -> 51.611789 | H22: 44.182 | J22: ='3. SR'!$C$16/1000000 -> 2280.3 | L22: ='Proxy Prices'!H$6 -> 61.18 | N22: 138.5 | P22: 3157.609
B24: Average | F24: =ROUND(AVERAGE(F15:F23),3) -> 73.569 | H24: =ROUND(AVERAGE(H15:H23),3) -> 35.966 | J24: =ROUND(AVERAGE(J15:J23),3) -> 2625.724 | L24: =ROUND(AVERAGE(L15:L23),3) -> 54.527 | N24: =ROUND(AVERAGE(N15:N23),1) -> 151.9 | O24: % | P24: =ROUND(AVERAGE(P15:P23),3) -> 4048.578
C26: NA= Not Available
D28: Notes: | E28: (1) | F28: Column 3 / Column 1.
E29: (2) | F29: Column 4 / Column 2.
E30: (3) | F30: Column 1 * Column 4.
E31: (4) | F31: Requested rate base multiplied by the initial requested common equity ratio.
E32: (5) | F32: =CONCATENATE("The market-to-book ratio of ",Input!G28," on ",TEXT(Input!E2,"mmmm dd, yyyy")," is assumed to be equal to the market-to-book ratio of ",'1.36 Market Cap'!B3," on ",TEXT(Input!E2,"mmmm dd, yyyy")," as appropriate.") -> The market-to-book ratio of Atmos Energy Corporation on September 30, 2021 is assumed to be equal to the market-to-book ratio of Proxy Group of Seven Natural Gas Distribution Companies on September 30, 2021 as appropriate.
E33: (6) | F33: Column [3] multiplied by Column [5].
B36: Source of Information: | C36: =CONCATENATE(YEAR(Input!G49)," Annual Forms 10K") -> 2020 Annual Forms 10K
C37: yahoo.finance.com
C38: Bloomberg Professional

Sheet 1.37 Equity Contributions
A1: =Input!G28 -> Atmos Energy Corporation
A2: Derivation of the Flotation Cost Adjustment to the Cost of Common Equity
A3: Equity Issuances and Flotation Costs for FY 2020, 2019, 2018, 2017, and 2016
E6: [Column 1] | G6: [Column 2] | I6: [Column 3] | K6: [Column 4] | M6: [Column 5] | O6: [Column 6] | Q6: [Column 7]
A8: Fiscal Year | C8: Transaction (1) | E8: Shares Issued | G8: Average Offering Price per Share (2) | I8: Net Proceeds per Share (3) | K8: Gross Equity Issue before Costs | M8: Total Net Proceeds | O8: Total Flotation Costs (4) | Q8: Flotation Cost Percentage (5)
A10: 2020 | C10: At the Market Equity Offering | E10: 5616727 | G10: =K10/E10 -> 106.1997314 | I10: =M10/E10 -> 103.5392333 | K10: 596494899 | M10: 581551607.5 | O10: =K10-M10 -> 14943291.55 | Q10: =(K10-M10)/K10 -> 0.02505183461
A12: 2019 | C12: At the Market Equity Offering | E12: 5390836 | G12: =K12/E12 -> 92.74999277 | I12: =M12/E12 -> 91.65554285 | K12: 500000000 | M12: 494100000 | O12: =K12-M12 -> 5900000 | Q12: =(K12-M12)/K12 -> 0.0118
A14: 2018 | C14: At the Market Equity Offering | E14: 4558404 | G14: =K14/E14 -> 87.75001075 | I14: =M14/E14 -> 86.67507312 | K14: 400000000 | M14: 395100000 | O14: =K14-M14 -> 4900000 | Q14: =(K14-M14)/K14 -> 0.01225
A16: 2017 | C16: At the Market Equity Offering | E16: 1303494 | G16: =K16/E16 -> 76.71688554 | I16: =M16/E16 -> 75.79628291 | K16: 100000000 | M16: 98800000 | O16: =K16-M16 -> 1200000 | Q16: =(K16-M16)/K16 -> 0.012
A18: 2016 | C18: At the Market Equity Offering | E18: 1360756 | G18: =K18/E18 -> 73.48856077 | I18: =M18/E18 -> 72.45972092 | K18: 100000000 | M18: 98600000 | O18: =K18-M18 -> 1400000 | Q18: =(K18-M18)/K18 -> 0.014
K21: =SUM(K10:K19) -> 1696494899 | M21: =SUM(M10:M19) -> 1668151607 | O21: =SUM(O10:O19) -> 28343291.55 | Q21: =(K21-M21)/K21 -> 0.01670697128
A23: Flotation Cost Adjustment
C25: Average Dividend Yield | E25: Average Projected EPS Growth Rate | G25: Adjusted Dividend Yield | I25: Average DCF Cost Rate Unadjusted for Flotation (6) | K25: DCF Cost Rate Adjusted for Flotation (7) | M25: Flotation Cost Adjustment (8)
A26: =Input!I31 -> Proxy Group of Seven Natural Gas Distribution Companies | C26: =ROUND(AVERAGE('1.3 DCF Summary'!D9:D15),2) -> 3.66 | D26: % | E26: =ROUND(AVERAGE('1.3 DCF Summary'!S9:S15),2) -> 6.12 | F26: % | G26: =ROUND(C26*(1+(0.5*(E26/100))),2) -> 3.77 | H26: % | I26: =G26+E26 -> 9.89 | J26: % | K26: =(G26/(1-$Q$21))+E26 -> 9.954055454 | L26: % | M26: =K26-I26 -> 0.06405545436 | N26: %
A30: See page 38 of this Schedule for notes.
A32: Source of Information: Company SEC filings

Sheet 2.1 DCF Inad.
B1: =Input!G28 -> Atmos Energy Corporation
B2: Demonstration of the Inadequacy of
B3: a DCF Return Rate Related to Book Value
B4: When Market Value is Greater than Book Value
D7: [A] | G7: [B]
D8: Based on Mr. Baudino's Proxy Group
B12: Line No. | D12: Market Value | G12: Book Value | Q12: Ticker | R12: Book Value | S12: Annual Div | T12: 6 Mo. Div Yield | U12: Implied Price
Q13: ATO | R13: 53.94875571 | S13: =0.625*4 -> 2.5 | T13: 0.0259 | U13: =S13/T13 -> 96.52509653
B14: 1. | C14: Per Share | D14: =AVERAGE(U13:U19) -> 61.16017913 | E14: (1) | G14: =AVERAGE(R13:R19) -> 35.96534476 | H14: (2) | L14: =D14/G14 -> 1.700530873 | Q14: NJR | R14: 19.22571868 | S14: =0.333*4 -> 1.332 | T14: 0.0328 | U14: 40.6097561
Q15: NWN | R15: 29.05400634 | S15: =0.48*4 -> 1.92 | T15: 0.037 | U15: 51.89189189
B16: 2. | C16: DCF Cost Rate (3) | D16: 0.091 | G16: =D16 -> 0.091 | Q16: OGS | R16: 42.00579712 | S16: =0.58*4 -> 2.32 | T16: 0.031 | U16: 74.83870968
Q17: SJI | R17: 16.57067157 | S17: =0.303*4 -> 1.212 | T17: 0.0481 | U17: 25.1975052
B18: 3. | C18: Return in Dollars (4) | D18: =ROUND(D14*D16,3) -> 5.566 | G18: =ROUND(G14*G16,3) -> 3.273 | Q18: SWX | R18: 46.7706976 | S18: =AVERAGE(V18:AA18)*4 -> 2.346666667 | T18: 0.0348 | U18: 67.43295019 | V18: 0.57 | W18: 0.57 | X18: 0.595 | Y18: 0.595 | Z18: 0.595 | AA18: 0.595
J19: DCF | K19: 0.091 | Q19: SR | R19: 44.1817663 | S19: =0.65*4 -> 2.6 | T19: 0.0363 | U19: =S19/T19 -> 71.62534435
B20: 4. | C20: Dividends (5) | D20: =ROUND(D14*T21,3) -> 2.148 | G20: =D20 -> 2.148 | J20: Div. Yield | K20: 0.0348
J21: Imp. 'g' | K21: =K19-K20 -> 0.0562 | S21: avg | T21: =AVERAGE(T13:T19) -> 0.03512857143
B22: 5. | C22: Growth in Dollars (6) | D22: =D18-D20 -> 3.418 | G22: =G18-G20 -> 1.125 | S22: Source: Exhibit RAB-2; 10-Ks
B24: 6. | C24: Return on Market Value (7) | D24: =ROUND(D18/$D14,4) -> 0.091 | G24: =ROUND(G18/$D14,4) -> 0.0535
B26: 7. | C26: Rate of Growth on Market Value (8) | D26: =ROUND(D22/$D14,4) -> 0.0559 | G26: =ROUND(G22/$D14,4) -> 0.0184 | L26: =D26-G26 -> 0.0375
B28: Notes:
B29: (1) | C29: Average market price calculated using the six-month dividend yield and annual dividend as shown on Exhibit RAB-2.
B30: (2) | C30: Average book value dividing total common equity at year-end 2020 by common shares outstanding at year-end 2020 for each proxy group company.
B31: (3) | C31: Mr. Baudino's Recommended DCF cost rate.
B32: (4) | C32: Line 1 x Line 2.
B33: (5) | C33: Dividends are based on a 3.48% dividend yield from Exhibit RAB-3.
B34: (6) | C34: Line 3 - Line 4.
B35: (7) | C35: Line 3 / Line 1.
B36: (8) | C36: Line 5 / Line 1.

Sheet 3.1 Leverage Formula
B4: =Input!G28 -> Atmos Energy Corporation | AF4: Embedded LT Debt Cost | AH4: Preferred PE Cost
B5: Calculation of Indicated DCF Applied to Book Value Capital Structure | AF5: ='Embedded LTD'!C18 -> 0.0411643985 | AH5: ='PE Cost '!C8 -> 0.059
B6: of Mr. Baudino's Natural Gas Proxy Group
AE7: Average
B8: Un-lever Indicated Market Capital Structure DCF
B10: Ku | C10: = | D10: Ke | E10: - | F10: ((( | G10: Ku | H10: - | I10: i | J10: ) | K10: 1 | L10: - | M10: t | N10: ) | O10: D | P10: / | Q10: E | R10: ) | S10: - | T10: ( | U10: Ku | V10: - | W10: d | X10: ) | Y10: P | Z10: / | AA10: E | AE10: Book Value Capital Structures | AF10: LTD | AG10: CE | AH10: PE | AI10: Total | AJ10: D | AK10: E | AL10: P
AD11: ATO | AE11: Atmos Energy | AF11: =4531779000+165000 -> 4531944000 | AG11: 6791203000 | AH11: 0 | AI11: =SUM(AF11:AH11) -> 11323147000 | AJ11: =AF11/AI11 -> 0.4002371426 | AK11: =AG11/AI11 -> 0.5997628574 | AL11: =AH11/AI11 -> 0
B12: Ku | C12: = | D12: ='2.1 DCF Inad.'!K19 -> 0.091 | E12: - | F12: ((( | G12: Ku | H12: - | I12: ='3.1 Leverage Formula '!AF5 -> 0.0411643985 | J12: ) | K12: 1 | L12: - | M12: 0.21 | N12: ) | O12: ='3.1 Leverage Formula '!AJ28 -> 0.449193182 | P12: / | Q12: ='3.1 Leverage Formula '!AK28 -> 0.5449367723 | R12: ) | S12: - | T12: ( | U12: Ku | V12: - | W12: ='3.1 Leverage Formula '!AH5 -> 0.059 | X12: ) | Y12: ='3.1 Leverage Formula '!AL28 -> 0.005870045678 | Z12: / | AA12: ='3.1 Leverage Formula '!AK28 -> 0.5449367723 | AD12: NJR | AE12: New Jersey Resources | AF12: =2259466000+27236000 -> 2286702000 | AG12: 1844692000 | AH12: 0 | AI12: 4131394000 | AJ12: 0.5534940507 | AK12: 0.4465059493 | AL12: 0
AD13: NWN | AE13: Northwest Natural | AF13: =860081000+95344000 -> 955425000 | AG13: 888733000 | AH13: 0 | AI13: 1844158000 | AJ13: 0.5180819648 | AK13: 0.4819180352 | AL13: 0
B14: Ku | C14: = | D14: =D12 -> 0.091 | E14: - | F14: ((( | G14: Ku | H14: - | I14: =I12 -> 0.0411643985 | J14: ) | K14: =K12-M12 -> 0.79 | N14: ) | O14: =O12/Q12 -> 0.8243033042 | R14: ) | S14: - | T14: ( | U14: Ku | V14: - | W14: =W12 -> 0.059 | X14: ) | Y14: =Y12/AA12 -> 0.01077197572 | AD14: OGS | AE14: ONE Gas Inc. | AF14: 1601300000 | AG14: 2233311000 | AH14: 0 | AI14: 3834611000 | AJ14: 0.4175912498 | AK14: 0.5824087502 | AL14: 0
AD15: SJI | AE15: South Jersey Inds. | AF15: =2776400000+142801000 -> 2919201000 | AG15: 1666876000 | AH15: 0 | AI15: 4586077000 | AJ15: 0.6365355401 | AK15: 0.3634644599 | AL15: 0
B16: Ku | C16: = | D16: =D14 -> 0.091 | E16: - | F16: (( | G16: =K14 -> 0.79 | H16: * | I16: Ku | J16: - | K16: =K14*I14 -> 0.03251987481 | N16: ) | O16: =O14 -> 0.8243033042 | R16: ) | S16: - | T16: ( | U16: =Y14 -> 0.01077197572 | V16: * | W16: Ku | X16: - | Y16: =W14*Y14 -> 0.0006355465673 | Z16: ) | AD16: SWX | AE16: Southwest Gas | AF16: =2732200000+40433000 -> 2772633000 | AG16: 2674953000 | AH16: 0 | AI16: 5447586000 | AJ16: 0.508965439 | AK16: 0.491034561 | AL16: 0
AD17: SR | AE17: Spire Inc. | AF17: =2423700000+60400000 -> 2484100000 | AG17: 2280300000 | AH17: 242000000 | AI17: 5006400000 | AJ17: 0.4961848833 | AK17: 0.4554769895 | AL17: 0.0483381272
B18: Ku | C18: = | D18: =D16 -> 0.091 | E18: - | F18: ( | G18: =G16*O16 -> 0.6511996103 | H18: * | I18: Ku | J18: - | K18: =K16*O16 -> 0.02680624026 | N18: ) | Q18: =-U16 -> -0.01077197572 | S18: * | U18: Ku | V18: + | W18: =Y16 -> 0.0006355465673 | AI18: Average | AJ18: =AVERAGE(AJ11:AJ17) -> 0.5044414672 | AK18: =AVERAGE(AK11:AK17) -> 0.4886530861 | AL18: =AVERAGE(AL11:AL17) -> 0.006905446742
B20: Ku | C20: = | D20: =D18 -> 0.091 | G20: =-G18 -> -0.6511996103 | H20: * | I20: Ku | J20: + | K20: =K18 -> 0.02680624026 | Q20: =Q18 -> -0.01077197572 | S20: =S18 -> * | U20: =U18 -> Ku | V20: =V18 -> + | W20: =W18 -> 0.0006355465673 | AE20: Market Value Capital Structure | AF20: LTD | AG20: CE | AH20: PE | AI20: Total | AJ20: D | AK20: E | AL20: P
AD21: ATO | AE21: Atmos Energy | AF21: 5597183000 | AG21: 11791502700 | AH21: =AH11 -> 0 | AI21: =SUM(AF21:AH21) -> 17388685700 | AJ21: =AF21/AI21 -> 0.3218864897 | AK21: =AG21/AI21 -> 0.6781135103 | AL21: =AH21/AI21 -> 0
B22: Ku | C22: = | D22: =D20+K20+W20 -> 0.1184417868 | G22: =G20+Q20 -> -0.661971586 | H22: * | I22: Ku | AD22: NJR | AE22: New Jersey Resources | AF22: =(1271715+1146033)*1000 -> 2417748000 | AG22: 2592033800 | AH22: 0 | AI22: 5009781800 | AJ22: 0.48260545 | AK22: 0.51739455 | AL22: 0
AD23: NWN | AE23: Northwest Natural | AF23: 1136311000 | AG23: 1403992300 | AH23: 0 | AI23: 2540303300 | AJ23: 0.447313122 | AK23: 0.552686878 | AL23: 0
B24: =1-G22 -> 1.661971586 | C24: * | D24: Ku | E24: = | G24: =D22 -> 0.1184417868 | AD24: OGS | AE24: ONE Gas Inc. | AF24: 2000000000 | AG24: 4076248500 | AH24: 0 | AI24: 6076248500 | AJ24: 0.3291504618 | AK24: 0.6708495382 | AL24: 0
AD25: SJI | AE25: South Jersey Inds. | AF25: 3152224000 | AG25: 2167721100 | AH25: 0 | AI25: 5319945100 | AJ25: 0.5925294229 | AK25: 0.4074705771 | AL25: 0
D26: Ku | E26: = | G26: =G24/B24 -> 0.07126583139 | AD26: SWX | AE26: Southwest Gas | AF26: 3148818000 | AG26: 3452443900 | AH26: 0 | AI26: 6601261900 | AJ26: 0.4770024349 | AK26: 0.5229975651 | AL26: 0
AD27: SR | AE27: Spire Inc. | AF27: 2908600000 | AG27: 2738865000 | AH27: 242000000 | AI27: 5889465000 | AJ27: 0.4938648927 | AK27: 0.4650447876 | AL27: 0.04109031975
B28: Re-lever to Indicated Book Value Capital Structure DCF | AI28: Average | AJ28: =AVERAGE(AJ21:AJ27) -> 0.449193182 | AK28: =AVERAGE(AK21:AK27) -> 0.5449367723 | AL28: =AVERAGE(AL21:AL27) -> 0.005870045678
B30: Ke | C30: = | D30: Ku | E30: + | F30: ((( | G30: Ku | H30: - | I30: i | J30: ) | K30: 1 | L30: - | M30: t | N30: ) | O30: D | P30: / | Q30: E | R30: ) | S30: + | T30: ( | U30: Ku | V30: - | W30: d | X30: ) | Y30: P | Z30: / | AA30: E
B32: Ke | C32: = | D32: =G26 -> 0.07126583139 | E32: + | F32: ((( | G32: =G26 -> 0.07126583139 | H32: - | I32: ='3.1 Leverage Formula '!AF5 -> 0.0411643985 | J32: ) | K32: 1 | L32: - | M32: 0.21 | N32: ) | O32: ='3.1 Leverage Formula '!AJ18 -> 0.5044414672 | P32: / | Q32: ='3.1 Leverage Formula '!AK18 -> 0.4886530861 | R32: ) | S32: + | T32: ( | U32: =G26 -> 0.07126583139 | V32: - | W32: ='3.1 Leverage Formula '!AH5 -> 0.059 | X32: ) | Y32: ='3.1 Leverage Formula '!AL18 -> 0.006905446742 | Z32: / | AA32: ='3.1 Leverage Formula '!AK18 -> 0.4886530861
B34: Ke | C34: = | D34: =D32 -> 0.07126583139 | E34: + | F34: ((( | G34: =G32-I32 -> 0.0301014329 | J34: ) | K34: =K32-M32 -> 0.79 | N34: ) | O34: =O32/Q32 -> 1.03231 | R34: ) | S34: + | T34: ( | U34: =U32-W32 -> 0.01226583139 | X34: ) | Y34: =Y32/AA32 -> 0.01413159343 | AE34: Source: Proxy Company 10-Ks, Bloomberg Professional
B36: =B34 -> Ke | C36: =C34 -> = | D36: =D34 -> 0.07126583139 | E36: =E34 -> + | F36: (( | G36: =G34*K34 -> 0.02378013199 | H36: ) | I36: =O34 -> 1.03231 | J36: ) | K36: + | L36: ( | M36: =U34*Y34 -> 0.0001733357423 | N36: )
B38: =B36 -> Ke | C38: =C36 -> = | D38: =D36 -> 0.07126583139 | E38: =E36 -> + | F38: ( | G38: =G36*I36 -> 0.02454846805 | H38: ) | I38: + | M38: =M36 -> 0.0001733357423
D40: Ke | E40: = | G40: =D38+G38+M38 -> 0.09598763518
B42: Where:
B43: Ku | C43: = | D43: Un-levered (i.e., 100% equity) cost of common equity
B44: Ke | C44: = | D44: Market determined cost of common equity
B45: i | C45: = | D45: Cost of debt
B46: t | C46: = | D46: Income tax rate
B47: D | C47: = | D47: Debt ratio
B48: E | C48: = | D48: Equity ratio
B49: d | C49: = | D49: Cost of preferred stock
B50: P | C50: = | D50: Preferred equity ratio

Sheet 4.1 Growth Rate Regress
A2: =Input!G28 -> Atmos Energy Corporation
A3: Growth Rate Regression Analysis
A5: Company | B5: Ticker | C5: Median P/E Ratio | D5: Proj. Earnings Growth Rate | E5: Proj. Dividend Growth Rate
A6: Atmos Energy Corporation | B6: ATO | C6: 19 | D6: 0.07 | E6: 0.075
A7: Chesapeake Utilities Corporation | B7: CPK | C7: 20 | D7: 0.085 | E7: 0.08
A8: New Jersey Resources Corporation | B8: NJR | C8: 17 | D8: 0.02 | E8: 0.055
A9: NiSource Inc. | B9: NI | C9: 21 | D9: 0.095 | E9: 0.045
A10: Northwest Natural Gas Company | B10: NWN | C10: 24 | D10: 0.055 | E10: 0.005
A11: ONE Gas, Inc. | B11: OGS | C11: NMF | D11: 0.065 | E11: 0.07
A12: RGC Resources, Inc. | B12: RGCO | C12: NMF | D12: - | E12: -
A13: South Jersey Industries, Inc. | B13: SJI | C13: 19 | D13: 0.115 | E13: 0.045
A14: Spire Inc | B14: SR | C14: 19 | D14: 0.1 | E14: 0.045
A15: Southwest Gas Corporation | B15: SWX | C15: 19 | D15: 0.08 | E15: 0.045
A16: UGI Corporation | B16: UGI | C16: 17 | D16: 0.065 | E16: 0.045
A17: ALLETE, Inc. | B17: ALE | C17: 18 | D17: 0.05 | E17: 0.04
A18: Alliant Energy Corporation | B18: LNT | C18: 19 | D18: 0.055 | E18: 0.06
A19: Ameren Corporation | B19: AEE | C19: 18 | D19: 0.065 | E19: 0.07
A20: American Electric Power Company, Inc. | B20: AEP | C20: 16 | D20: 0.065 | E20: 0.055
A21: Avangrid, Inc. | B21: AGR | C21: NMF | D21: 0.02 | E21: 0.015
A22: Avista Corporation | B22: AVA | C22: 18 | D22: 0.03 | E22: 0.045
A23: Black Hills Corporation | B23: BKH | C23: 18 | D23: 0.05 | E23: 0.055
A24: CenterPoint Energy, Inc. | B24: CNP | C24: 18 | D24: 0.095 | E24: -0.01
A25: CMS Energy Corporation | B25: CMS | C25: 19 | D25: 0.06 | E25: 0.055
A26: Consolidated Edison, Inc. | B26: ED | C26: 17 | D26: 0.04 | E26: 0.03
A27: Dominion Energy Inc. | B27: D | C27: 22 | D27: 0.12 | E27: -0.015
A28: DTE Energy Company | B28: DTE | C28: 17 | D28: 0.02 | E28: 0.015
A29: Duke Energy Corporation | B29: DUK | C29: 18 | D29: 0.07 | E29: 0.02
A30: Edison International | B30: EIX | C30: 15 | D30: NMF | E30: 0.035
A31: Entergy Corporation | B31: ETR | C31: 13 | D31: 0.03 | E31: 0.045
A32: Exelon Corporation | B32: EXC | C32: 15 | D32: 0.055 | E32: 0.045
A33: FirstEnergy Corp. | B33: FE | C33: 20 | D33: 0.115 | E33: 0.025
A34: Evergy, Inc. | B34: EVRG | C34: NMF | D34: 0.08 | E34: 0.055
A35: Hawaiian Electric Industries, Inc. | B35: HE | C35: 18 | D35: 0.05 | E35: 0.03
A36: IDACORP, Inc. | B36: IDA | C36: 17 | D36: 0.04 | E36: 0.065
A37: MGE Energy, Inc. | B37: MGEE | C37: 22 | D37: 0.055 | E37: 0.05
A38: NextEra Energy, Inc. | B38: NEE | C38: 19 | D38: 0.105 | E38: 0.1
A39: Eversource Energy | B39: ES | C39: 19 | D39: 0.065 | E39: 0.06
A40: NorthWestern Corporation | B40: NWE | C40: 17 | D40: 0.03 | E40: 0.035
A41: OGE Energy Corp. | B41: OGE | C41: 17 | D41: 0.04 | E41: 0.045
A42: Otter Tail Corporation | B42: OTTR | C42: 21 | D42: 0.07 | E42: 0.06
A43: Pinnacle West Capital Corporation | B43: PNW | C43: 17 | D43: 0.05 | E43: 0.055
A44: PNM Resources, Inc. | B44: PNM | C44: 20 | D44: 0.065 | E44: 0.065
A45: Portland General Electric Company | B45: POR | C45: 18 | D45: 0.085 | E45: 0.055
A46: PPL Corporation | B46: PPL | C46: 13 | D46: NMF | E46: NMF
A47: Public Service Enterprise Group Incorporated | B47: PEG | C47: 14 | D47: 0.035 | E47: 0.04
A48: Sempra Energy | B48: SRE | C48: 20 | D48: 0.1 | E48: 0.06
A49: Southern Company | B49: SO | C49: 16 | D49: 0.06 | E49: 0.03
A50: Unitil Corp. | B50: UTL | C50: NMF | D50: - | E50: -
A51: WEC Energy Group, Inc. | B51: WEC | C51: 19 | D51: 0.065 | E51: 0.065
A52: Xcel Energy Inc. | B52: XEL | C52: 17 | D52: 0.06 | E52: 0.06
A53: Artesian Resourses Corporation | B53: ARTNA | C53: NMF | D53: - | E53: -
A54: American Water | B54: AWK | C54: 24 | D54: 0.085 | E54: 0.085
A55: American States Water | B55: AWR | C55: 24 | D55: 0.065 | E55: 0.095
A56: Consolidated Water Co. | B56: CWCO | C56: NMF | D56: - | E56: -
A57: Consolidated Water | B57: CWT | C57: 24 | D57: 0.065 | E57: 0.065
A58: Global Water Resourses | B58: GWRS | C58: NMF | D58: - | E58: -
A59: Middlesex Water | B59: MSEX | C59: 23 | D59: 0.045 | E59: 0.055
A60: SJW Group | B60: SJW | C60: 21 | D60: 0.13 | E60: 0.06
A61: Essential Utilities | B61: WTRG | C61: 23 | D61: 0.1 | E61: 0.075
A62: York Water | B62: YORW | C62: 28 | D62: 0.065 | E62: 0.06
A64: Notes:
A65: Source: Value Line Reports as of September 30, 2021.
A67: SUMMARY OUTPUT
A69: Regression Statistics
A70: Multiple R | B70: 0.3984208947
A71: R Square | B71: 0.1587392093
A72: Adjusted R Square | B72: 0.1400445251
A73: Standard Error | B73: 2.683622325
A74: Observations | B74: 47
A76: ANOVA
B77: df | C77: SS | D77: MS | E77: F | F77: Significance F
A78: Regression | B78: 1 | C78: 61.15174732 | D78: 61.15174732 | E78: 8.49114151 | F78: 0.005541349765
A79: Residual | B79: 45 | C79: 324.0822952 | D79: 7.201828783
A80: Total | B80: 46 | C80: 385.2340426
B82: Coefficients | C82: Standard Error | D82: t Stat | E82: P-value | F82: Lower 95% | G82: Upper 95% | H82: Lower 95.0% | I82: Upper 95.0%
A83: Intercept | B83: 16.25472794 | C83: 1.060788019 | D83: 15.32325748 | E83: 1.78801948e-19 | F83: 14.1181912 | G83: 18.39126469 | H83: 14.1181912 | I83: 18.39126469
A84: Projected Earnings Growth Rate | B84: 43.07106435 | C84: 14.78095738 | D84: 2.913956333 | E84: 0.005541349765 | F84: 13.30068801 | G84: 72.84144069 | H84: 13.30068801 | I84: 72.84144069
A87: SUMMARY OUTPUT
A89: Regression Statistics
A90: Multiple R | B90: 0.2270018696
A91: R Square | B91: 0.0515298488
A92: Adjusted R Square | B92: 0.03091093247
A93: Standard Error | B93: 2.878729949
A94: Observations | B94: 48
A96: ANOVA
B97: df | C97: SS | D97: MS | E97: F | F97: Significance F
A98: Regression | B98: 1 | C98: 20.71070506 | D98: 20.71070506 | E98: 2.499154076 | F98: 0.1207598927
A99: Residual | B99: 46 | C99: 381.2059616 | D99: 8.287086122
A100: Total | B100: 47 | C100: 401.9166667
B102: Coefficients | C102: Standard Error | D102: t Stat | E102: P-value | F102: Lower 95% | G102: Upper 95% | H102: Lower 95.0% | I102: Upper 95.0%
A103: Intercept | B103: 17.60710677 | C103: 0.9980536565 | D103: 17.64144308 | E103: 4.194697207e-22 | F103: 15.59812896 | G103: 19.61608458 | H103: 15.59812896 | I103: 19.61608458
A104: Projected Dividends Growth Rate | B104: 28.93230044 | C104: 18.30149006 | D104: 1.580871303 | E104: 0.1207598927 | F104: -7.906688359 | G104: 65.77128923 | H104: -7.906688359 | I104: 65.77128923
A107: SUMMARY OUTPUT
A109: Regression Statistics
A110: Multiple R | B110: 0.4429081139
A111: R Square | B111: 0.1961675974
A112: Adjusted R Square | B112: 0.1596297609
A113: Standard Error | B113: 2.652886961
A114: Observations | B114: 47
A116: ANOVA
B117: df | C117: SS | D117: MS | E117: F | F117: Significance F
A118: Regression | B118: 2 | C118: 75.57043655 | D118: 37.78521827 | E118: 5.368889245 | F118: 0.008196740605
A119: Residual | B119: 44 | C119: 309.663606 | D119: 7.037809227
A120: Total | B120: 46 | C120: 385.2340426
B122: Coefficients | C122: Standard Error | D122: t Stat | E122: P-value | F122: Lower 95% | G122: Upper 95% | H122: Lower 95.0% | I122: Upper 95.0%
A123: Intercept | B123: 15.1138264 | C123: 1.317188745 | D123: 11.47430576 | E123: 8.136278599e-15 | F123: 12.45920692 | G123: 17.76844589 | H123: 12.45920692 | I123: 17.76844589
A124: Projected Earnings Growth Rate | B124: 42.01527075 | C124: 14.63027841 | D124: 2.871802543 | E124: 0.006256438216 | F124: 12.52988203 | G124: 71.50065947 | H124: 12.52988203 | I124: 71.50065947
A125: Projected Dividends Growth Rate | B125: 24.27816001 | C125: 16.96178773 | D125: 1.431344407 | E125: 0.1593965373 | F125: -9.906076989 | G125: 58.46239701 | H125: -9.906076989 | I125: 58.46239701

Sheet 5.1 Baudino Corrected DCF
A1: =Input!G28 -> Atmos Energy Corporation
A2: Mr. Baudino's DCF Analysis using only Projected EPS Growth
C4: (2) | D4: (3) | E4: (4) | F4: (5)
C5: Value Line | D5: Zack's | E5: Yahoo! | F5: Average of
C6: Earnings Gr. | D6: Earnings Gr. | E6: Earnings Gr. | F6: All Gr. Rates
A7: Method 1:
A8: Dividend Yield | C8: 0.03475236059 | D8: =C8 -> 0.03475236059 | E8: =D8 -> 0.03475236059 | F8: =E8 -> 0.03475236059
A9: Average Growth Rate | C9: 0.07214285714 | D9: 0.05828571429 | E9: 0.05758571429 | F9: =AVERAGE(C9:E9) -> 0.06267142857
A10: Expected Div. Yield | C10: =ROUND(C8*(1+(0.5*C9)),4) -> 0.036 | D10: =ROUND(D8*(1+(0.5*D9)),4) -> 0.0358 | E10: 0.0358 | F10: 0.0358
A11: DCF Return on Equity | C11: =C10+C9 -> 0.1081428571 | D11: =D10+D9 -> 0.09408571429 | E11: =E10+E9 -> 0.09338571429 | F11: =F10+F9 -> 0.09847142857
A13: Method 2:
A14: Dividend Yield | C14: =C8 -> 0.03475236059 | D14: =D8 -> 0.03475236059 | E14: =E8 -> 0.03475236059 | F14: =F8 -> 0.03475236059
A15: Median Growth Rate | C15: 0.07 | D15: 0.055 | E15: 0.055 | F15: =AVERAGE(C15:E15) -> 0.06
A16: Expected Div. Yield | C16: =ROUND(C14*(1+(0.5*C15)),4) -> 0.036 | D16: =ROUND(D14*(1+(0.5*D15)),4) -> 0.0357 | E16: =ROUND(E14*(1+(0.5*E15)),4) -> 0.0357 | F16: 0.0358
A17: DCF Return on Equity | C17: =C16+C15 -> 0.106 | D17: =D16+D15 -> 0.0907 | E17: =E16+E15 -> 0.0907 | F17: =F16+F15 -> 0.0958
A19: Source: Exhibit RAB-3, Page 2 of 2

Sheet 6.1 Baudino Corrected CAPM
A1: =Input!G28 -> Atmos Energy Corporation
A2: Calculation of the Capital Asset Pricing Model
A3: to Reflect Forward-Looking Interest Rates, Market Risk Premiums
A4: and the Employment of the ECAPM
G7: Value Line | I7: Ibbotson and
E8: Value Line | G8: Investment | I8: Chen
C9: Arithmetic | E9: 3-5 Year | G9: Analyzer | I9: Prospective
C10: Mean | E10: Total Return | G10: Market DCF | I10: MRP | K10: Average
A12: CAPM with Prospective Risk-Free Rate
A14: Long-Term Annual Return on Stocks | C14: 0.122 | D14: (1) | E14: 0.0942 | F14: (2) | G14: =I46 -> 0.124 | H14: (3) | I14: =G52 -> 0.1111 | J14: (4)
A16: Long-Term Annual Income Return on Long-Term Treas. Bonds | C16: 0.049 | E16: =ROUND(G16,4) -> 0.0274 | F16: (5) | G16: =E24 -> 0.027375 | H16: (5) | I16: =G16 -> 0.027375 | J16: (5)
A18: Market Risk Premium | C18: =C14-C16 -> 0.073 | E18: =E14-E16 -> 0.0668 | G18: =G14-G16 -> 0.096625 | I18: =I14-I16 -> 0.083725 | K18: =AVERAGE(C18:I18) -> 0.0800375
A20: Proxy Group Beta, Value Line (6) | C20: 0.9 | E20: =C20 -> 0.9 | G20: =C20 -> 0.9 | I20: =C20 -> 0.9
A22: Beta * Market Premium | C22: =C20*C18 -> 0.0657 | E22: =E20*E18 -> 0.06012 | G22: =G20*G18 -> 0.0869625 | I22: =I20*I18 -> 0.0753525
A24: Prospective 30-Year Treasury Bond Yield | C24: =I68/100 -> 0.027375 | E24: =C24 -> 0.027375 | G24: =C24 -> 0.027375 | I24: =C24 -> 0.027375
A26: CAPM Cost of Equity | C26: =C24+C22 -> 0.093075 | E26: =E24+E22 -> 0.087495 | G26: =G24+G22 -> 0.1143375 | I26: =I24+I22 -> 0.1027275 | K26: =AVERAGE(C26:I26) -> 0.09940875
A28: ECAPM with Prospective Risk-Free Rate
A30: Historical Market Risk Premium | C30: =C18 -> 0.073 | E30: =E18 -> 0.0668 | G30: =G18 -> 0.096625 | I30: =I18 -> 0.083725
A32: Proxy Group Beta, Value Line | C32: =C20 -> 0.9 | E32: =E20 -> 0.9 | G32: =G20 -> 0.9 | I32: =I20 -> 0.9
A34: Beta * Market Premium | C34: =C32*C30 -> 0.0657 | E34: =E32*E30 -> 0.06012 | G34: =G32*G30 -> 0.0869625 | I34: =I32*I30 -> 0.0753525
A36: Prospective 30-Year Treasury Bond Yield | C36: =C24 -> 0.027375 | E36: =C36 -> 0.027375 | G36: =C36 -> 0.027375 | I36: =C36 -> 0.027375
A38: ECAPM Cost of Equity (rf + 0.25(MRP) + 0.75(ϐ*MRP)) | C38: =C36+(C34*0.75)+(0.25*C30) -> 0.0949 | E38: =E36+(E34*0.75)+(0.25*E30) -> 0.089165 | G38: =G36+(G34*0.75)+(0.25*G30) -> 0.116753125 | I38: =I36+(I34*0.75)+(0.25*I30) -> 0.104820625 | K38: =AVERAGE(C38:I38) -> 0.1014096875
A40: Notes:
A41: (1) From Exhibit RAB-5.
A42: (2) From Exhibit RAB-4, page 2.
A43: (3) Calculated from Baudino Value Line Investment Analyzer workpapers, as shown below:
C45: Avg. Dividend Yield | E45: Median Projected EPS Growth Rate | G45: Adjusted Yield | I45: Market DCF
A46: Value Line Investment Analyzer Data | C46: ='Value Line Summary Aug 27 2021'!F21/100 -> 0.0085 | E46: ='Value Line Summary Aug 27 2021'!E233/100 -> 0.115 | G46: =C46*(1+(0.5*E46)) -> 0.00898875 | I46: =ROUND(E46+G46,4) -> 0.124
A48: (4) Calculated by converting the Ibbotson and Chen projected return on the market from a geometric mean to an arithmetic mean as shown below:
C50: Geometric Mean Return | E50: Standard Deviation of Equity Returns | G50: Arithmetic Mean Return
A51: Where:
A52: RA = Arithmetic Mean | C52: 0.0918 | E52: 0.1967 | G52: =ROUND(C52+(E52^2)/2,4) -> 0.1111
A53: RG = Geometric Mean
A54: σ = Standard Deviation of Equity Returns
A56: (5) For reasons explained in the direct testimony, the appropriate risk-free rate for cost of capital purposes is the average forecast of 30 year Treasury Bonds per the consensus of nearly 50 economists reported in Blue Chip Financial Forecasts. (See page 21 of Schedule DWD-1 and page 2 of this Schedule.) The projection of the risk-free rate is illustrated below:
G60: Fourth Quarter 2021 | I60: 2.1 | J60: %
G61: First Quarter 2022 | I61: 2.3
G62: Second Quarter 2022 | I62: 2.4
G63: Third Quarter 2022 | I63: 2.5
G64: Fourth Quarter 2022 | I64: 2.6
G65: First Quarter 2023 | I65: 2.6
G66: 2023-2027 | I66: 3.5
G67: 2028-2032 | I67: 3.9
I68: =AVERAGE(I60:I67) -> 2.7375 | J68: %
A70: Sources of Information:
A71: Exhibit RAB-4
A72: Exhibit RAB-5
A73: Baudino Workpapers
A74: 2021 SBBI® Yearbook, at 10-29, 10-30
A75: Blue Chip Financial Forecasts, August 3, 2021 and June 1, 2021

Sheet 7.1 D&P Size Study
A1: =Input!G28 -> Atmos Energy Corporation
A2: Portfolio Ranks by Size and Risk Premiums over CAPM Results
A3: as Compiled by Duff and Phelps Guide to Cost of Capital
C5: B-1 | G5: B-2 | K5: B-3 | O5: B-4 | S5: B-5 | W5: B-6 | AA5: B-7 | AE5: B-8 | AO5: Book Value of Equity | AQ5: 5-yr average NI | AS5: Assets | AU5: 5-yr EBITDA | AW5: Sales | AX5: Employees
A6: Portfolio Rank by Size | C6: Market Val. of Equity (in $millions) | E6: RP | G6: Average Book Val. (in $millions) | I6: RP | K6: 5-yr Net Income (in $millions) | M6: RP | O6: Market Value of Invested Capital (in $millions) | Q6: RP | S6: Total Assets (in $millions) | U6: RP | W6: 5-yr EBITDA (in $millions) | Y6: RP | AA6: Sales (in $millions) | AC6: RP | AE6: Average Number of Employees | AG6: RP | AO6: B-2 | AQ6: B-3 | AS6: B-5 | AU6: B-6 | AW6: B-7 | AX6: B-8
A8: 1 | C8: $222,261 and Up | E8: -0.0078 | G8: $44,861 and Up | I8: 0.0122 | K8: $7,190 and Up | M8: 0.0085 | O8: $258,435 and Up | Q8: -0.0032 | S8: $121,632 and Up | U8: 0.0084 | W8: $14,837 and Up | Y8: 0.0095 | AA8: $95,905 and Up | AC8: 0.0102 | AE8: 234,707 and Up | AG8: 0.0067 | AJ8: ATO | AK8: Atmos Energy Corporation | AO8: ='3. ATO'!$C$16/1000000 -> 6791.203 | AQ8: =AW21 -> 492.4876 | AS8: =AO46 -> 15359032 | AU8: =AW33 -> 1100.3688 | AW8: =AM46 -> 2821137 | AX8: =AQ46 -> 4694
A9: 2 | C9: $67,607 - $222,261 | E9: 0.005 | G9: $15,985 - $44,861 | I9: 0.0188 | K9: $2,418 - $7,190 | M9: 0.0169 | O9: $85,545 - $258,435 | Q9: 0.0077 | S9: $52,712 - $121,632 | U9: 0.0152 | W9: $5,561 - $14,837 | Y9: 0.0174 | AA9: $33,447 - $95,905 | AC9: 0.0185 | AE9: 92,311 - 234,707 | AG9: 0.0157 | AJ9: NJR | AK9: New Jersey Resources Corporation | AO9: ='3. NJR'!$C$16/1000000 -> 1844.692 | AQ9: =AW22 -> 172.1194 | AS9: =AO47 -> 5569802 | AU9: =AW34 -> 298.5598 | AW9: =AM47 -> 1953668 | AX9: =AQ47 -> 1156
A10: 3 | C10: $42,245 - $67,607 | E10: 0.0096 | G10: $10,286 - $15,985 | I10: 0.0216 | K10: $1,515 - $2,418 | M10: 0.0198 | O10: $54,459 - $85,545 | Q10: 0.0119 | S10: $34,307 - $52,712 | U10: 0.0179 | W10: $3,740 - $5,561 | Y10: 0.0203 | AA10: $20,941 - $33,447 | AC10: 0.0225 | AE10: 62,769 - 92,311 | AG10: 0.0192 | AJ10: NWN | AK10: Northwest Natural Holding Company | AO10: ='3. NWN'!$C$16/1000000 -> 888.733 | AQ10: 41.2714 | AS10: 3756379 | AU10: =AW35 -> 184.5712 | AW10: 773679 | AX10: =AQ48 -> 1216
A11: 4 | C11: $29,591 - $42,245 | E11: 0.013 | G11: $7,504 - $10,286 | I11: 0.0232 | K11: $1,013 - $1,515 | M11: 0.0228 | O11: $39,733 - $54,459 | Q11: 0.0147 | S11: $23,000 - $34,307 | U11: 0.0208 | W11: $2,748 - $3,740 | Y11: 0.0224 | AA11: $16,179 - $20,941 | AC11: 0.0243 | AE11: 47,290 - 62,769 | AG11: 0.0216 | AJ11: OGS | AK11: One Gas, Inc. | AO11: ` | AQ11: 171.697 | AS11: 6028712 | AU11: 454.4416 | AW11: 1530268 | AX11: =AQ49 -> 3700
A12: 5 | C12: $21,930 - $29,591 | E12: 0.0157 | G12: $5,725 - $7,504 | I12: 0.0249 | K12: $772 - $1,013 | M12: 0.0247 | O12: $29,472 - $39,733 | Q12: 0.0169 | S12: $17,517 - $23,000 | U12: 0.0229 | W12: $2,103 - $2,748 | Y12: 0.0243 | AA12: $12,750 - $16,179 | AC12: 0.026 | AE12: 36,723 - 47,290 | AG12: 0.0236 | AJ12: SJI | AK12: South Jersey Industries, Inc. | AO12: ='3. SJI'!$C$16/1000000 -> 1666.876 | AQ12: 73.4642 | AS12: 6689148 | AU12: 297.472 | AW12: 1541383 | AX12: =AQ50 -> 1130
A13: 6 | C13: $16,592 - $21,930 | E13: 0.0183 | G13: $4,594 - $5,725 | I13: 0.026 | K13: $613 - $772 | M13: 0.0262 | O13: $21,901 - $29,472 | Q13: 0.0197 | S13: $14,200 - $17,517 | U13: 0.0243 | W13: $1,650 - $2,103 | Y13: 0.0259 | AA13: $10,380 - $12,750 | AC13: 0.0275 | AE13: 28,971 - 36,723 | AG13: 0.0255 | AJ13: SWX | AK13: Southwest Gas Holdings, Inc. | AO13: ='3. SWX'!$C$16/1000000 -> 2674.953 | AQ13: 196.6862 | AS13: 8735853 | AU13: 640.8208 | AW13: 3298873 | AX13: =AQ51 -> 11149
A14: 7 | C14: $12,962 - $16,592 | E14: 0.0206 | G14: $3,718 - $4,594 | I14: 0.0272 | K14: $502 - $613 | M14: 0.0276 | O14: $17,501 - $21,901 | Q14: 0.0216 | S14: $11,581 - $14,200 | U14: 0.0257 | W14: $1,315 - $1,650 | Y14: 0.0275 | AA14: $8,805 - $10,380 | AC14: 0.0287 | AE14: 23,614 - 28,971 | AG14: 0.0273 | AJ14: SR | AK14: Spire, Inc. | AO14: ='3. SR'!$C$16/1000000 -> 2280.3 | AQ14: 154.42 | AS14: 8241200 | AU14: 454.86 | AW14: 1855400 | AX14: =AQ52 -> 3583
A15: 8 | C15: $10,730 - $12,962 | E15: 0.0226 | G15: $3,164 - $3,718 | I15: 0.0282 | K15: $422 - $502 | M15: 0.0287 | O15: $14,263 - $17,501 | Q15: 0.0233 | S15: $9,608 - $11,581 | U15: 0.0269 | W15: $1,094 - $1,315 | Y15: 0.0288 | AA15: $7,598 - $8,805 | AC15: 0.0297 | AE15: 19,619 - 23,614 | AG15: 0.0287
A16: 9 | C16: $9,185 - $10,730 | E16: 0.0239 | G16: $2,750 - $3,164 | I16: 0.0289 | K16: $355 - $422 | M16: 0.0298 | O16: $11,972 - $14,263 | Q16: 0.0249 | S16: $8,067 - $9,608 | U16: 0.0281 | W16: $924 - $1,094 | Y16: 0.0298 | AA16: $6,502 - $7,598 | AC16: 0.0307 | AE16: 16,645 - 19,619 | AG16: 0.0302 | AK16: Gas Proxy Group | AO16: =AVERAGE(AO8:AO14) -> 2691.126167 | AQ16: =AVERAGE(AQ8:AQ14) -> 186.0208286 | AS16: =AVERAGE(AS8:AS14)/1000 -> 7768.589429 | AU16: =AVERAGE(AU8:AU14) -> 490.1563143 | AW16: =AVERAGE(AW8:AW14)/1000 -> 1967.772571 | AX16: =AVERAGE(AX8:AX14) -> 3804
A17: 10 | C17: $7,763 - $9,185 | E17: 0.0253 | G17: $2,388 - $2,750 | I17: 0.0296 | K17: $305 - $355 | M17: 0.0308 | O17: $10,234 - $11,972 | Q17: 0.0261 | S17: $6,901 - $8,067 | U17: 0.0292 | W17: $784 - $924 | Y17: 0.031 | AA17: $5,381 - $6,502 | AC17: 0.0318 | AE17: 14,557 - 16,645 | AG17: 0.0312
A18: 11 | C18: $6,515 - $7,763 | E18: 0.0268 | G18: $2,059 - $2,388 | I18: 0.0304 | K18: $259 - $305 | M18: 0.0317 | O18: $8,619 - $10,234 | Q18: 0.0274 | S18: $6,025 - $6,901 | U18: 0.0301 | W18: $675 - $784 | Y18: 0.032 | AA18: $4,454 - $5,381 | AC18: 0.0332 | AE18: 12,653 - 14,557 | AG18: 0.0323 | AK18: B-3 5 Year Average NI | AM18: Net Income | AO18: Net Income | AQ18: Net Income | AS18: Net Income | AU18: Net Income | AW18: Net Income
A19: 12 | C19: $5,542 - $6,515 | E19: 0.0284 | G19: $1,769 - $2,059 | I19: 0.0312 | K19: $221 - $259 | M19: 0.0329 | O19: $7,384 - $8,619 | Q19: 0.0289 | S19: $5,275 - $6,025 | U19: 0.0309 | W19: $582 - $675 | Y19: 0.033 | AA19: $3,801 - $4,454 | AC19: 0.0343 | AE19: 11,017 - 12,653 | AG19: 0.0334 | AM19: 2020Y | AO19: 2019Y | AQ19: 2018Y | AS19: 2017Y | AU19: 2016Y | AW19: Average
A20: 13 | C20: $4,806 - $5,542 | E20: 0.0297 | G20: $1,542 - $1,769 | I20: 0.032 | K20: $189 - $221 | M20: 0.0337 | O20: $6,601 - $7,384 | Q20: 0.0299 | S20: $4,495 - $5,275 | U20: 0.0319 | W20: $509 - $582 | Y20: 0.0339 | AA20: $3,318 - $3,801 | AC20: 0.0353 | AE20: 9,726 - 11,017 | AG20: 0.0344
A21: 14 | C21: $4,160 - $4,806 | E21: 0.0309 | G21: $1,358 - $1,542 | I21: 0.0327 | K21: $159 - $189 | M21: 0.0349 | O21: $5,895 - $6,601 | Q21: 0.0307 | S21: $3,807 - $4,495 | U21: 0.033 | W21: $450 - $509 | Y21: 0.0347 | AA21: $2,935 - $3,318 | AC21: 0.0362 | AE21: 8,526 - 9,726 | AG21: 0.0354 | AK21: =AK8 -> Atmos Energy Corporation | AM21: ='3. ATO'!C$34/1000000 -> 601.443 | AO21: ='3. ATO'!E$34/1000000 -> 511.406 | AQ21: ='3. ATO'!G$34/1000000 -> 603.064 | AS21: ='3. ATO'!I$34/1000000 -> 396.421 | AU21: ='3. ATO'!K$34/1000000 -> 350.104 | AW21: =AVERAGE(AM21:AU21) -> 492.4876
A22: 15 | C22: $3,572 - $4,160 | E22: 0.0322 | G22: $1,204 - $1,358 | I22: 0.0333 | K22: $138 - $159 | M22: 0.0358 | O22: $5,125 - $5,895 | Q22: 0.0318 | S22: $3,263 - $3,807 | U22: 0.034 | W22: $402 - $450 | Y22: 0.0355 | AA22: $2,571 - $2,935 | AC22: 0.037 | AE22: 7,367 - 8,526 | AG22: 0.0365 | AK22: New Jersey Resources Corporation | AM22: ='3. NJR'!C$34/1000000 -> 193.919 | AO22: ='3. NJR'!E$34/1000000 -> 169.505 | AQ22: ='3. NJR'!G$34/1000000 -> 233.436 | AS22: ='3. NJR'!I$34/1000000 -> 132.065 | AU22: ='3. NJR'!K$34/1000000 -> 131.672 | AW22: =AVERAGE(AM22:AU22) -> 172.1194
A23: 16 | C23: $3,052 - $3,572 | E23: 0.0336 | G23: $1,049 - $1,204 | I23: 0.0339 | K23: $120 - $138 | M23: 0.0367 | O23: $4,340 - $5,125 | Q23: 0.033 | S23: $2,788 - $3,263 | U23: 0.035 | W23: $349 - $402 | Y23: 0.0362 | AA23: $2,252 - $2,571 | AC23: 0.038 | AE23: 6,292 - 7,367 | AG23: 0.0377 | AK23: Northwest Natural Holding Company | AM23: ='3. NWN'!C$34/1000000 -> 76.781 | AO23: ='3. NWN'!E$34/1000000 -> 61.735 | AQ23: ='3. NWN'!G$34/1000000 -> 64.569 | AS23: ='3. NWN'!I$34/1000000 -> -55.623 | AU23: ='3. NWN'!K$34/1000000 -> 58.895 | AW23: 41.2714
A24: 17 | C24: $2,627 - $3,052 | E24: 0.035 | G24: $899 - $1,049 | I24: 0.0348 | K24: $103 - $120 | M24: 0.0376 | O24: $3,663 - $4,340 | Q24: 0.0345 | S24: $2,358 - $2,788 | U24: 0.0361 | W24: $293 - $349 | Y24: 0.0373 | AA24: $2,005 - $2,252 | AC24: 0.0388 | AE24: 5,374 - 6,292 | AG24: 0.039 | AK24: One Gas, Inc. | AM24: ='3. OGS'!C$34/1000000 -> 196.412 | AO24: ='3. OGS'!E$34/1000000 -> 186.749 | AQ24: ='3. OGS'!G$34/1000000 -> 172.234 | AS24: ='3. OGS'!I$34/1000000 -> 162.995 | AU24: ='3. OGS'!K$34/1000000 -> 140.095 | AW24: 171.697
A25: 18 | C25: $2,238 - $2,627 | E25: 0.0362 | G25: $778 - $899 | I25: 0.0355 | K25: $87 - $103 | M25: 0.0385 | O25: $3,084 - $3,663 | Q25: 0.0358 | S25: $2,011 - $2,358 | U25: 0.0372 | W25: $241 - $293 | Y25: 0.0385 | AA25: $1,786 - $2,005 | AC25: 0.0395 | AE25: 4,623 - 5,374 | AG25: 0.0402 | AK25: South Jersey Industries, Inc. | AM25: ='3. SJI'!C$34/1000000 -> 157.084 | AO25: ='3. SJI'!E$34/1000000 -> 76.917 | AQ25: ='3. SJI'!G$34/1000000 -> 17.663 | AS25: ='3. SJI'!I$34/1000000 -> -3.404 | AU25: ='3. SJI'!K$34/1000000 -> 119.061 | AW25: 73.4642
A26: 19 | C26: $1,859 - $2,238 | E26: 0.0379 | G26: $670 - $778 | I26: 0.0363 | K26: $71 - $87 | M26: 0.0398 | O26: $2,511 - $3,084 | Q26: 0.0373 | S26: $1,712 - $2,011 | U26: 0.0382 | W26: $195 - $241 | Y26: 0.0399 | AA26: $1,554 - $1,786 | AC26: 0.0403 | AE26: 3,913 - 4,623 | AG26: 0.0414 | AK26: Southwest Gas Holdings, Inc. | AM26: ='3. SWX'!C$34/1000000 -> 238.985 | AO26: ='3. SWX'!E$34/1000000 -> 216.647 | AQ26: ='3. SWX'!G$34/1000000 -> 182.277 | AS26: ='3. SWX'!I$34/1000000 -> 193.481 | AU26: ='3. SWX'!K$34/1000000 -> 152.041 | AW26: 196.6862
A27: 20 | C27: $1,527 - $1,859 | E27: 0.0395 | G27: $574 - $670 | I27: 0.0371 | K27: $57 - $71 | M27: 0.0412 | O27: $2,016 - $2,511 | Q27: 0.0391 | S27: $1,429 - $1,712 | U27: 0.0393 | W27: $161 - $195 | Y27: 0.0412 | AA27: $1,296 - $1,554 | AC27: 0.0414 | AE27: 3,231 - 3,913 | AG27: 0.0428 | AK27: Spire, Inc. | AM27: ='3. SR'!C$34/1000000 -> 73.7 | AO27: ='3. SR'!E$34/1000000 -> 178.9 | AQ27: ='3. SR'!G$34/1000000 -> 213.7 | AS27: ='3. SR'!I$34/1000000 -> 161.6 | AU27: ='3. SR'!K$34/1000000 -> 144.2 | AW27: 154.42
A28: 21 | C28: $1,243 - $1,527 | E28: 0.0413 | G28: $488 - $574 | I28: 0.0379 | K28: $47 - $57 | M28: 0.0424 | O28: $1,633 - $2,016 | Q28: 0.0408 | S28: $1,171 - $1,429 | U28: 0.0405 | W28: $135 - $161 | Y28: 0.0424 | AA28: $1,046 - $1,296 | AC28: 0.0428 | AE28: 2,608 - 3,231 | AG28: 0.0444
A29: 22 | C29: $964 - $1,243 | E29: 0.0431 | G29: $401 - $488 | I29: 0.0389 | K29: $36 - $47 | M29: 0.0438 | O29: $1,281 - $1,633 | Q29: 0.0425 | S29: $913 - $1,171 | U29: 0.0419 | W29: $106 - $135 | Y29: 0.0436 | AA29: $853 - $1,046 | AC29: 0.0443 | AE29: 2,007 - 2,608 | AG29: 0.0462
A30: 23 | C30: $658 - $964 | E30: 0.0459 | G30: $319 - $401 | I30: 0.0399 | K30: $25 - $36 | M30: 0.0456 | O30: $899 - $1,281 | Q30: 0.0448 | S30: $646 - $913 | U30: 0.0438 | W30: $76 - $106 | Y30: 0.0456 | AA30: $648 - $853 | AC30: 0.0455 | AE30: 1,451 - 2,007 | AG30: 0.0486 | AK30: B-6 5 Year Average EBITDA | AM30: EBITDA | AO30: EBITDA | AQ30: EBITDA | AS30: EBITDA | AU30: EBITDA | AW30: EBITDA
A31: 24 | C31: $329 - $658 | E31: 0.0502 | G31: $190 - $319 | I31: 0.0413 | K31: $13 - $25 | M31: 0.0486 | O31: $457 - $899 | Q31: 0.0486 | S31: $352 - $646 | U31: 0.0465 | W31: $42 - $76 | Y31: 0.048 | AA31: $349 - $648 | AC31: 0.0481 | AE31: 798 - 1,451 | AG31: 0.0513 | AM31: 2020Y | AO31: =AO19 -> 2019Y | AQ31: =AQ19 -> 2018Y | AS31: =AS19 -> 2017Y | AU31: =AU19 -> 2016Y | AW31: Average
A32: 25 | C32: Up To $329 | E32: 0.0605 | G32: Up To $190 | I32: 0.0466 | K32: Up To $13 | M32: 0.0555 | O32: Up To $457 | Q32: 0.0579 | S32: Up To $352 | U32: 0.053 | W32: Up To $42 | Y32: 0.055 | AA32: Up To $349 | AC32: 0.0556 | AE32: Up to 798 | AG32: 0.0599
AK33: =AK21 -> Atmos Energy Corporation | AM33: ='3. ATO'!C$62/1000000 -> 1261.098 | AO33: ='3. ATO'!E$62/1000000 -> 1144.918 | AQ33: ='3. ATO'!G$62/1000000 -> 1078.873 | AS33: ='3. ATO'!I$62/1000000 -> 1057.434 | AU33: ='3. ATO'!K$62/1000000 -> 959.521 | AW33: =AVERAGE(AM33:AU33) -> 1100.3688
AK34: New Jersey Resources Corporation | AM34: ='3. NJR'!C$62/1000000 -> 374.466 | AO34: ='3. NJR'!E$62/1000000 -> 270.566 | AQ34: ='3. NJR'!G$62/1000000 -> 311.638 | AS34: ='3. NJR'!I$62/1000000 -> 277.135 | AU34: ='3. NJR'!K$62/1000000 -> 258.994 | AW34: =AVERAGE(AM34:AU34) -> 298.5598
C35: B-1 Value | E35: Portfolio Ranking | G35: B-2 Value | I35: Portfolio Ranking | K35: B-3 Value | M35: Portfolio Ranking | O35: B-4 Value | Q35: Portfolio Ranking | S35: B-5 Value | U35: Portfolio Ranking | W35: B-6 Value | Y35: Portfolio Ranking | AA35: B-7 Value | AC35: Portfolio Ranking | AE35: B-8 Value | AG35: Portfolio Ranking | AK35: Northwest Natural Holding Company | AM35: ='3. NWN'!C$62/1000000 -> 244.598 | AO35: ='3. NWN'!E$62/1000000 -> 208.558 | AQ35: ='3. NWN'!G$62/1000000 -> 210.975 | AS35: ='3. NWN'!I$62/1000000 -> 37.699 | AU35: ='3. NWN'!K$62/1000000 -> 221.026 | AW35: =AVERAGE(AM35:AU35) -> 184.5712
A36: Mr. Baudino's Proxy Group | C36: =AM68 -> 4264.809414 | E36: 14 | G36: =AO16 -> 2691.126167 | I36: 10 | K36: =AQ16 -> 186.0208286 | M36: 14 | O36: =C36+AT68+AV68 -> 7208.078557 | Q36: 13 | S36: =AS16 -> 7768.589429 | U36: 10 | W36: =AU16 -> 490.1563143 | Y36: 14 | AA36: =AW16 -> 1967.772571 | AC36: 18 | AE36: =AX16 -> 3804 | AG36: 20 | AK36: One Gas, Inc. | AM36: ='3. OGS'!C$62/1000000 -> 495.377 | AO36: ='3. OGS'!E$62/1000000 -> 472.677 | AQ36: ='3. OGS'!G$62/1000000 -> 437.156 | AS36: ='3. OGS'!I$62/1000000 -> 454.092 | AU36: ='3. OGS'!K$62/1000000 -> 412.906 | AW36: =AVERAGE(AM36:AU36) -> 454.4416
AK37: South Jersey Industries, Inc. | AM37: ='3. SJI'!C$62/1000000 -> 468.887 | AO37: ='3. SJI'!E$62/1000000 -> 345.84 | AQ37: ='3. SJI'!G$62/1000000 -> 241.434 | AS37: ='3. SJI'!I$62/1000000 -> 135.496 | AU37: ='3. SJI'!K$62/1000000 -> 295.703 | AW37: =AVERAGE(AM37:AU37) -> 297.472
A38: Atmos Energy Kentucky | C38: =ROUND(G38*AN68,0) -> 545 | E38: 24 | G38: =C63/1000000 -> 340.0348377 | I38: 23 | K38: =M50 -> 27.891894 | M38: 23 | O38: =C62/1000000+C38 -> 800.9946763 | Q38: 24 | S38: =C61/1000000 -> 596.029514 | U38: 24 | W38: =M55 -> 51.669801 | Y38: 24 | AA38: =C57/1000000 -> 153.508386 | AC38: 25 | AE38: =C65 -> 191 | AG38: 25 | AK38: Southwest Gas Holdings, Inc. | AM38: ='3. SWX'!C$62/1000000 -> 748.242 | AO38: ='3. SWX'!E$62/1000000 -> 685.133 | AQ38: ='3. SWX'!G$62/1000000 -> 589.844 | AS38: ='3. SWX'!I$62/1000000 -> 587.584 | AU38: ='3. SWX'!K$62/1000000 -> 593.301 | AW38: 640.8208
AK39: Spire, Inc. | AM39: ='3. SR'!C$62/1000000 -> 403.8 | AO39: ='3. SR'!E$62/1000000 -> 505.2 | AQ39: ='3. SR'!G$62/1000000 -> 454.5 | AS39: ='3. SR'!I$62/1000000 -> 482.4 | AU39: ='3. SR'!K$62/1000000 -> 428.4 | AW39: =AVERAGE(AM39:AU39) -> 454.86
A40: Indicated Risk Premium | C40: =E$31-E21 -> 0.0193 | G40: =I$30-I17 -> 0.0103 | K40: =M$30-M21 -> 0.0107 | O40: =Q$31-Q20 -> 0.0187 | S40: =U$31-U17 -> 0.0173 | W40: =Y$31-Y21 -> 0.0133 | AA40: =AC$32-AC25 -> 0.0161 | AE40: =AG$32-AG27 -> 0.0171
A42: Sources of Information:
B43: Duff & Phelps Risk Premium Size Study Premia as of December 31, 2020. | AM43: Revenue ($000) | AO43: Assets ($000) | AQ43: Full Time Employees
B44: Bloomberg Professional | AM44: =AM31 -> 2020Y | AO44: =AM44 -> 2020Y | AQ44: =AO44 -> 2020Y
B45: SEC Form 10-K
B46: Company financial statements | AK46: =AK33 -> Atmos Energy Corporation | AM46: 2821137 | AO46: 15359032 | AQ46: 4694 | AR46: 10-K PDF 22, 12
AK47: New Jersey Resources Corporation | AM47: 1953668 | AO47: 5569802 | AQ47: 1156 | AR47: 10-K PDF 33, 17
A48: Atmos Energy Kentucky | AK48: Northwest Natural Holding Company | AM48: 773679 | AO48: 3756379 | AQ48: 1216 | AR48: 10-K PDF 102, 17
C49: 2020 | E49: 2019 | G49: 2018 | I49: 2017 | K49: 2016 | M49: 5-yr avg | O49: Source | AK49: One Gas, Inc. | AM49: 1530268 | AO49: 6028712 | AQ49: 3700 | AR49: 10-K PDF 32, 6
A50: Net Utility Op Income | C50: 31552168 | E50: 27094679 | G50: 26278585 | I50: 30005805 | K50: 24528233 | M50: =AVERAGE(C50,E50,G50,I50,K50)/1000000 -> 27.891894 | O50: KY PSC Annual Report, page 21, line 26 | AK50: South Jersey Industries, Inc. | AM50: 1541383 | AO50: 6689148 | AQ50: 1130 | AR50: 10-K PDF 57, 12
A51: Interest | AK51: Southwest Gas Holdings, Inc. | AM51: 3298873 | AO51: 8735853 | AQ51: =2272+8877 -> 11149 | AR51: 10-K PDF 9, 33
A52: Taxes | C52: =9400841-101884+1111965 -> 10410922 | E52: =8673092+2103980-397936 -> 10379136 | G52: =6454875-7068160+1501757 -> 888472 | I52: =6335918-5543996-290529 -> 501393 | K52: =5919120-9618363+158714 -> -3540529 | O52: KY PSC Annual Report, page 20, lines 14-16 | AK52: Spire, Inc. | AM52: 1855400 | AO52: 8241200 | AQ52: 3583 | AR52: 10-K PDF 29, 6
A53: Depr. & Amor. | C53: =20434676+50600 -> 20485276 | E53: =20372034+50595 -> 20422629 | G53: =20792783+49463 -> 20842246 | I53: =19329894+49465 -> 19379359 | K53: =19069587+51044 -> 19120631 | O53: KY PSC Annual Report, page 22, lines 6, 9
A55: EBITDA | C55: =SUM(C50:C53) -> 62448366 | E55: =SUM(E50:E53) -> 57896444 | G55: =SUM(G50:G53) -> 48009303 | I55: =SUM(I50:I53) -> 49886557 | K55: =SUM(K50:K53) -> 40108335 | M55: =AVERAGE(C55,E55,G55,I55,K55)/1000000 -> 51.669801 | AK55: Source: Individual Company SEC Form 10-K
A57: Revenue | C57: 153508386 | O57: KY PSC Annual Report, page 20, line 2
AM59: CUR_MKT_CAP | AN59: PX_TO_BOOK_RATIO | AT59: Mkt Value of Debt ($000) | AV59: MV of PE ($000)
AK60: =AK46 -> Atmos Energy Corporation | AM60: 12027.6753 | AN60: 1.7689 | AO60: 2020-12-31 | AR60: =AK46 -> Atmos Energy Corporation | AT60: 5597183 | AV60: 0 | AW60: 10-K PDF 83
A61: Assets | C61: 596029514 | O61: Company provided | AK61: =AK47 -> New Jersey Resources Corporation | AM61: 3417.5119 | AN61: 1.8491 | AO61: 2020-12-31 | AR61: New Jersey Resources Corporation | AT61: =1271715+1146033 -> 2417748 | AV61: 0 | AW61: 10-K PDF 111
A62: Long-Term Debt | C62: 255994676.3 | O62: Company provided | AK62: =AK48 -> Northwest Natural Holding Company | AM62: 1403.9924 | AN62: 1.6484 | AO62: 2020-12-31 | AR62: Northwest Natural Holding Company | AT62: 1136311 | AV62: 0 | AW62: 2020 10-K PDF 114
A63: Book Equity | C63: 340034837.7 | O63: Company provided | AK63: =AK49 -> One Gas, Inc. | AM63: 4076.2483 | AN63: 1.8528 | AO63: 2020-12-31 | AR63: One Gas, Inc. | AT63: 2000000 | AV63: 0 | AW63: 10-K PDF 42
AK64: =AK50 -> South Jersey Industries, Inc. | AM64: 2167.721 | AN64: 1.3318 | AO64: 2020-12-31 | AR64: South Jersey Industries, Inc. | AT64: 3152224 | AV64: 0 | AW64: 2020 10-K PDF 84
A65: Employees | C65: 191 | O65: Company provided | AK65: =AK51 -> Southwest Gas Holdings, Inc. | AM65: 3452.4439 | AN65: 1.3095 | AO65: 2020-12-31 | AR65: Southwest Gas Holdings, Inc. | AT65: =SUM(AT72:AT90) -> 3148818 | AV65: 0 | AW65: 10-K PDF 74
AK66: =AK52 -> Spire, Inc. | AM66: 3308.0731 | AN66: 1.4495 | AO66: 2020-12-31 | AR66: Spire, Inc. | AT66: 2908600 | AV66: ='3. SR'!C13/1000 -> 242000 | AW66: 10-K PDF 102, 29
AM68: =AVERAGE(AM60:AM66) -> 4264.809414 | AN68: =AVERAGE(AN60:AN66) -> 1.601428571 | AT68: =AVERAGE(AT60:AT66)/1000 -> 2908.697714 | AV68: =AVERAGE(AV60:AV66)/1000 -> 34.57142857
AK70: Source: Bloomberg Professional
AT72: 174858
AT73: 258825
AT74: 317190
AT75: 347046
AT76: 344553
AT77: 370278
AT78: 474552
AT79: 99723
AT80: 26663
AT81: 33802
AT82: 9613
AT83: 150000
AT84: 50000
AT85: 50000
AT86: 50000
AT87: 50000
AT88: 230824
AT89: 26645
AT90: 84246

Sheet 8.1 MRP Freq. Dist.
B2: =Input!G28 -> Atmos Energy Corporation
B3: Frequency Distribution of Market Risk Premium, 1926 - 2020
C23: Large Company Stocks Total Returns | D23: Long-Term Government Bond Income Returns | F23: MRP
B24: Year | C24: Jan-Dec* | D24: Jan-Dec* | F24: Jan-Dec*
B25: 1926 | C25: 0.1162 | D25: 0.0373 | F25: =(C25-D25) -> 0.0789 | I25: MRP
B26: 1927 | C26: 0.3749 | D26: 0.0341 | F26: 0.3408 | I26: Bin | J26: Frequency | K26: Cumulative %
B27: 1928 | C27: 0.4361 | D27: 0.0322 | F27: 0.4039 | I27: -0.5 | J27: =FREQUENCY($F$25:$F$119,$I$27:$I$68) -> 0 | K27: =SUM(J$27:J27)/J$70 -> 0
B28: 1929 | C28: -0.0842 | D28: 0.0347 | F28: -0.1189 | I28: -0.475 | J28: 0 | K28: =SUM(J$27:J28)/J$70 -> 0
B29: 1930 | C29: -0.249 | D29: 0.0332 | F29: -0.2822 | I29: -0.45 | J29: 1 | K29: =SUM(J$27:J29)/J$70 -> 0.01052631579
B30: 1931 | C30: -0.4334 | D30: 0.0333 | F30: -0.4667 | I30: -0.425 | J30: 0 | K30: =SUM(J$27:J30)/J$70 -> 0.01052631579
B31: 1932 | C31: -0.0819 | D31: 0.0369 | F31: -0.1188 | I31: -0.4 | J31: 1 | K31: =SUM(J$27:J31)/J$70 -> 0.02105263158
B32: 1933 | C32: 0.5399 | D32: 0.0312 | F32: 0.5087 | I32: -0.375 | J32: 1 | K32: =SUM(J$27:J32)/J$70 -> 0.03157894737
B33: 1934 | C33: -0.0144 | D33: 0.0318 | F33: -0.0462 | I33: -0.35 | J33: 0 | K33: =SUM(J$27:J33)/J$70 -> 0.03157894737
B34: 1935 | C34: 0.4767 | D34: 0.0281 | F34: 0.4486 | I34: -0.325 | J34: 1 | K34: =SUM(J$27:J34)/J$70 -> 0.04210526316
B35: 1936 | C35: 0.3392 | D35: 0.0277 | F35: 0.3115 | I35: -0.3 | J35: 0 | K35: =SUM(J$27:J35)/J$70 -> 0.04210526316
B36: 1937 | C36: -0.3503 | D36: 0.0266 | F36: -0.3769 | I36: -0.275 | J36: 2 | K36: =SUM(J$27:J36)/J$70 -> 0.06315789474
B37: 1938 | C37: 0.3112 | D37: 0.0264 | F37: 0.2848 | I37: -0.25 | J37: 0 | K37: =SUM(J$27:J37)/J$70 -> 0.06315789474
B38: 1939 | C38: -0.0041 | D38: 0.024 | F38: -0.0281 | I38: -0.225 | J38: 0 | K38: =SUM(J$27:J38)/J$70 -> 0.06315789474
B39: 1940 | C39: -0.0978 | D39: 0.0223 | F39: -0.1201 | I39: -0.2 | J39: 1 | K39: =SUM(J$27:J39)/J$70 -> 0.07368421053
B40: 1941 | C40: -0.1159 | D40: 0.0194 | F40: -0.1353 | I40: -0.175 | J40: 0 | K40: =SUM(J$27:J40)/J$70 -> 0.07368421053
B41: 1942 | C41: 0.2034 | D41: 0.0246 | F41: 0.1788 | I41: -0.15 | J41: 3 | K41: =SUM(J$27:J41)/J$70 -> 0.1052631579
B42: 1943 | C42: 0.259 | D42: 0.0244 | F42: 0.2346 | I42: -0.125 | J42: 6 | K42: =SUM(J$27:J42)/J$70 -> 0.1684210526
B43: 1944 | C43: 0.1975 | D43: 0.0246 | F43: 0.1729 | I43: -0.1 | J43: 5 | K43: =SUM(J$27:J43)/J$70 -> 0.2210526316
B44: 1945 | C44: 0.3644 | D44: 0.0234 | F44: 0.341 | I44: -0.075 | J44: 0 | K44: =SUM(J$27:J44)/J$70 -> 0.2210526316
B45: 1946 | C45: -0.0807 | D45: 0.0204 | F45: -0.1011 | I45: -0.05 | J45: 3 | K45: =SUM(J$27:J45)/J$70 -> 0.2526315789
B46: 1947 | C46: 0.0571 | D46: 0.0213 | F46: 0.0358 | I46: -0.025 | J46: 6 | K46: =SUM(J$27:J46)/J$70 -> 0.3157894737
B47: 1948 | C47: 0.055 | D47: 0.024 | F47: 0.031 | I47: 0 | J47: 3 | K47: =SUM(J$27:J47)/J$70 -> 0.3473684211
B48: 1949 | C48: 0.1879 | D48: 0.0225 | F48: 0.1654 | I48: 0.025 | J48: 3 | K48: =SUM(J$27:J48)/J$70 -> 0.3789473684
B49: 1950 | C49: 0.3171 | D49: 0.0212 | F49: 0.2959 | I49: 0.05 | J49: 4 | K49: =SUM(J$27:J49)/J$70 -> 0.4210526316
B50: 1951 | C50: 0.2402 | D50: 0.0238 | F50: 0.2164 | I50: 0.075 | J50: 2 | K50: =SUM(J$27:J50)/J$70 -> 0.4421052632
B51: 1952 | C51: 0.1837 | D51: 0.0266 | F51: 0.1571 | I51: 0.1 | J51: 9 | K51: =SUM(J$27:J51)/J$70 -> 0.5368421053
B52: 1953 | C52: -0.0099 | D52: 0.0284 | F52: -0.0383 | I52: 0.125 | J52: 5 | K52: =SUM(J$27:J52)/J$70 -> 0.5894736842
B53: 1954 | C53: 0.5262 | D53: 0.0279 | F53: 0.4983 | I53: 0.15 | J53: 2 | K53: =SUM(J$27:J53)/J$70 -> 0.6105263158
B54: 1955 | C54: 0.3156 | D54: 0.0275 | F54: 0.2881 | I54: 0.175 | J54: 7 | K54: =SUM(J$27:J54)/J$70 -> 0.6842105263
B55: 1956 | C55: 0.0656 | D55: 0.0299 | F55: 0.0357 | I55: 0.2 | J55: 4 | K55: =SUM(J$27:J55)/J$70 -> 0.7263157895
B56: 1957 | C56: -0.1078 | D56: 0.0344 | F56: -0.1422 | I56: 0.225 | J56: 3 | K56: =SUM(J$27:J56)/J$70 -> 0.7578947368
B57: 1958 | C57: 0.4336 | D57: 0.0327 | F57: 0.4009 | I57: 0.25 | J57: 7 | K57: =SUM(J$27:J57)/J$70 -> 0.8315789474
B58: 1959 | C58: 0.1196 | D58: 0.0401 | F58: 0.0795 | I58: 0.275 | J58: 1 | K58: =SUM(J$27:J58)/J$70 -> 0.8421052632
B59: 1960 | C59: 0.0047 | D59: 0.0426 | F59: -0.0379 | I59: 0.3 | J59: 7 | K59: =SUM(J$27:J59)/J$70 -> 0.9157894737
B60: 1961 | C60: 0.2689 | D60: 0.0383 | F60: 0.2306 | I60: 0.325 | J60: 1 | K60: =SUM(J$27:J60)/J$70 -> 0.9263157895
B61: 1962 | C61: -0.0873 | D61: 0.04 | F61: -0.1273 | I61: 0.35 | J61: 2 | K61: =SUM(J$27:J61)/J$70 -> 0.9473684211
B62: 1963 | C62: 0.228 | D62: 0.0389 | F62: 0.1891 | I62: 0.375 | J62: 0 | K62: =SUM(J$27:J62)/J$70 -> 0.9473684211
B63: 1964 | C63: 0.1648 | D63: 0.0415 | F63: 0.1233 | I63: 0.4 | J63: 0 | K63: =SUM(J$27:J63)/J$70 -> 0.9473684211
B64: 1965 | C64: 0.1245 | D64: 0.0419 | F64: 0.0826 | I64: 0.425 | J64: 2 | K64: =SUM(J$27:J64)/J$70 -> 0.9684210526
B65: 1966 | C65: -0.1006 | D65: 0.0449 | F65: -0.1455 | I65: 0.45 | J65: 1 | K65: =SUM(J$27:J65)/J$70 -> 0.9789473684
B66: 1967 | C66: 0.2398 | D66: 0.0459 | F66: 0.1939 | I66: 0.475 | J66: 0 | K66: =SUM(J$27:J66)/J$70 -> 0.9789473684
B67: 1968 | C67: 0.1106 | D67: 0.055 | F67: 0.0556 | I67: 0.5 | J67: 1 | K67: =SUM(J$27:J67)/J$70 -> 0.9894736842
B68: 1969 | C68: -0.085 | D68: 0.0595 | F68: -0.1445 | I68: 0.51 | J68: 1 | K68: =SUM(J$27:J68)/J$70 -> 1
B69: 1970 | C69: 0.0386 | D69: 0.0674 | F69: -0.0288
B70: 1971 | C70: 0.143 | D70: 0.0632 | F70: 0.0798 | I70: Count: | J70: =SUM(J27:J68) -> 95
B71: 1972 | C71: 0.1899 | D71: 0.0587 | F71: 0.1312
B72: 1973 | C72: -0.1469 | D72: 0.0651 | F72: -0.212 | J72: MRP from Direct | K72: Rank
B73: 1974 | C73: -0.2647 | D73: 0.0727 | F73: -0.3374 | J73: =I79-2.7% -> 0.0964 | K73: =_xlfn.PERCENTRANK.EXC(F25:F119,J73) -> 0.51 | L73: =1-K73 -> 0.49
B74: 1975 | C74: 0.3723 | D74: 0.0799 | F74: 0.2924 | J74: MRP from Rebuttal | K74: Rank
B75: 1976 | C75: 0.2393 | D75: 0.0789 | F75: 0.1604 | J75: =I82-2.76% -> 0.09931910544 | K75: =_xlfn.PERCENTRANK.EXC(F25:F119,J75) -> 0.534 | L75: =1-K75 -> 0.466
B76: 1977 | C76: -0.0716 | D76: 0.0714 | F76: -0.143
B77: 1978 | C77: 0.0657 | D77: 0.079 | F77: -0.0133 | I77: Historical Market Return - Direct
B78: 1979 | C78: 0.1861 | D78: 0.0886 | F78: 0.0975 | J78: % Rank | K78: Occurrence
B79: 1980 | C79: 0.325 | D79: 0.0997 | F79: 0.2253 | I79: =9.46%+2.88% -> 0.1234 | J79: =PERCENTRANK($C$25:$C$119,I79) -> 0.476 | K79: =COUNTIF($C$25:$C$119, ">="&I79) -> 50
B80: 1981 | C80: -0.0492 | D80: 0.1155 | F80: -0.1647 | I80: Historical Market Return - Rebuttal
B81: 1982 | C81: 0.2155 | D81: 0.135 | F81: 0.0805 | J81: % Rank | K81: Occurrence
B82: 1983 | C82: 0.2256 | D82: 0.1038 | F82: 0.1218 | I82: =('1.25 CAPM Notes'!N42+'1.25 CAPM Notes'!N54)/100 -> 0.1269191054 | J82: =PERCENTRANK($C$25:$C$119,I82) -> 0.48 | K82: =COUNTIF($C$25:$C$119, ">="&I82) -> 49
B83: 1984 | C83: 0.0627 | D83: 0.1174 | F83: -0.0547
B84: 1985 | C84: 0.3173 | D84: 0.1125 | F84: 0.2048
B85: 1986 | C85: 0.1867 | D85: 0.0898 | F85: 0.0969
B86: 1987 | C86: 0.0525 | D86: 0.0792 | F86: -0.0267
B87: 1988 | C87: 0.1661 | D87: 0.0897 | F87: 0.0764
B88: 1989 | C88: 0.3169 | D88: 0.0881 | F88: 0.2288
B89: 1990 | C89: -0.031 | D89: 0.0819 | F89: =(C89-D89) -> -0.1129
B90: 1991 | C90: 0.3047 | D90: 0.0822 | F90: 0.2225
B91: 1992 | C91: 0.0762 | D91: 0.0726 | F91: 0.0036
B92: 1993 | C92: 0.1008 | D92: 0.0717 | F92: 0.0291
B93: 1994 | C93: 0.0132 | D93: 0.0659 | F93: -0.0527
B94: 1995 | C94: 0.3758 | D94: 0.076 | F94: 0.2998
B95: 1996 | C95: 0.2296 | D95: 0.0618 | F95: 0.1678
B96: 1997 | C96: 0.3336 | D96: 0.0664 | F96: 0.2672
B97: 1998 | C97: 0.2858 | D97: 0.0583 | F97: 0.2275
B98: 1999 | C98: 0.2104 | D98: 0.0557 | F98: 0.1547
B99: 2000 | C99: -0.091 | D99: 0.065 | F99: -0.156
B100: 2001 | C100: -0.1189 | D100: 0.0553 | F100: -0.1742
B101: 2002 | C101: -0.221 | D101: 0.0559 | F101: -0.2769
B102: 2003 | C102: 0.2868 | D102: 0.048 | F102: 0.2388
B103: 2004 | C103: 0.1088 | D103: 0.0502 | F103: 0.0586
B104: 2005 | C104: 0.0491 | D104: 0.0469 | F104: 0.0022
B105: 2006 | C105: 0.1579 | D105: 0.0468 | F105: 0.1111
B106: 2007 | C106: 0.0549 | D106: 0.0486 | F106: 0.0063
B107: 2008 | C107: -0.37 | D107: 0.0445 | F107: -0.4145
B108: 2009 | C108: 0.2646 | D108: 0.0347 | F108: 0.2299
B109: 2010 | C109: 0.1506 | D109: 0.0425 | F109: 0.1081
B110: 2011 | C110: 0.0211 | D110: 0.0382 | F110: -0.0171
B111: 2012 | C111: 0.16 | D111: 0.0246 | F111: 0.1354
B112: 2013 | C112: 0.3239 | D112: 0.0288 | F112: 0.2951
B113: 2014 | C113: 0.1369 | D113: 0.0341 | F113: 0.1028
B114: 2015 | C114: 0.0138 | D114: 0.0247 | F114: -0.0109
B115: 2016 | C115: 0.1196 | D115: 0.023 | F115: 0.0966
B116: 2017 | C116: 0.2183 | D116: 0.0267 | F116: 0.1916
B117: 2018 | C117: -0.0438 | D117: 0.0282 | F117: -0.072
B118: 2019 | C118: 0.3149 | D118: 0.0255 | F118: 0.2894
B119: 2020 | C119: 0.184 | D119: 0.0142 | F119: =(C119-D119) -> 0.1698
B120: Average | C120: =AVERAGE(C25:C119) -> 0.1215736842 | D120: =AVERAGE(D25:D119) -> 0.04905157895 | F120: =AVERAGE(F25:F119) -> 0.07252210526
B121: Std. Dev. | C121: =STDEV(C25:C119) -> 0.1966634874 | D121: =STDEV(D25:D119) -> 0.02635587408 | F121: =STDEV(F25:F119) -> 0.1978847624
B123: Source: Duff & Phelps, 2021 SBBI Yearbook, Appendix A-1, A-7

Sheet 11.1-2 Proxy CapStr
B1: Capital Structure Based upon Total Permanent Capital for the
B2: =Input!I31 -> Proxy Group of Seven Natural Gas Distribution Companies
B3: 2016 - 2020, Inclusive
N5: 5 YEAR
D6: 2020 | F6: =D6-1 -> 2019 | H6: =F6-1 -> 2018 | J6: =H6-1 -> 2017 | L6: =J6-1 -> 2016 | N6: AVERAGE
A8: =[152]Input!A2 -> ATO | B8: Atmos Energy Corporation
B9: Long-Term Debt | D9: =ROUND(wm_eval(CONCATENATE("'3. ",$A8,"'!C12/'3. ",$A8,"'!C56*100")),2) -> 40.02 | E9: % | F9: =ROUND(wm_eval(CONCATENATE("'3. ",$A8,"'!E12/'3. ",$A8,"'!E56*100")),2) -> 36.22 | G9: % | H9: =ROUND(wm_eval(CONCATENATE("'3. ",$A8,"'!G12/'3. ",$A8,"'!G56*100")),2) -> 36.47 | I9: % | J9: =ROUND(wm_eval(CONCATENATE("'3. ",$A8,"'!I12/'3. ",$A8,"'!I56*100")),2) -> 41.37 | K9: % | L9: =ROUND(wm_eval(CONCATENATE("'3. ",$A8,"'!K12/'3. ",$A8,"'!K56*100")),2) -> 36.23 | M9: % | N9: =ROUND(AVERAGE(D9,F9,H9,J9,L9),2) -> 38.06 | O9: % | R9: min | S9: =MIN(D12,D19,D26,D33,D40,D47,D54) -> 32.16
B10: Short-Term Debt | D10: =ROUND(wm_eval(CONCATENATE("'3. ",$A8,"'!C19/'3. ",$A8,"'!C56*100")),2) -> 0 | F10: =ROUND(wm_eval(CONCATENATE("'3. ",$A8,"'!E19/'3. ",$A8,"'!E56*100")),2) -> 4.77 | H10: =ROUND(wm_eval(CONCATENATE("'3. ",$A8,"'!G19/'3. ",$A8,"'!G56*100")),2) -> 6.84 | J10: =ROUND(wm_eval(CONCATENATE("'3. ",$A8,"'!I19/'3. ",$A8,"'!I56*100")),2) -> 6.04 | L10: =ROUND(wm_eval(CONCATENATE("'3. ",$A8,"'!K19/'3. ",$A8,"'!K56*100")),2) -> 12.33 | N10: =ROUND(AVERAGE(D10,F10,H10,J10,L10),2) -> 6 | R10: max | S10: =MAX(D12,D19,D26,D33,D40,D47,D54) -> 59.98
B11: Preferred Stock | D11: =ROUND(wm_eval(CONCATENATE("('3. ",$A8,"'!C13+'3. ",$A8,"'!C17)/'3. ",$A8,"'!C56*100")),2) -> 0 | F11: =ROUND(wm_eval(CONCATENATE("('3. ",$A8,"'!E13+'3. ",$A8,"'!E17)/'3. ",$A8,"'!E56*100")),2) -> 0 | H11: =ROUND(wm_eval(CONCATENATE("('3. ",$A8,"'!G13+'3. ",$A8,"'!G17)/'3. ",$A8,"'!G56*100")),2) -> 0 | J11: =ROUND(wm_eval(CONCATENATE("('3. ",$A8,"'!I13+'3. ",$A8,"'!I17)/'3. ",$A8,"'!I56*100")),2) -> 0 | L11: =ROUND(wm_eval(CONCATENATE("('3. ",$A8,"'!K13+'3. ",$A8,"'!K17)/'3. ",$A8,"'!K56*100")),2) -> 0 | N11: =ROUND(AVERAGE(D11,F11,H11,J11,L11),2) -> 0
B12: Common Equity | D12: =ROUND(wm_eval(CONCATENATE("'3. ",$A8,"'!C16/'3. ",$A8,"'!C56*100")),2) -> 59.98 | F12: =ROUND(wm_eval(CONCATENATE("'3. ",$A8,"'!E16/'3. ",$A8,"'!E56*100")),2) -> 59.01 | H12: =ROUND(wm_eval(CONCATENATE("'3. ",$A8,"'!G16/'3. ",$A8,"'!G56*100")),2) -> 56.69 | J12: =ROUND(wm_eval(CONCATENATE("'3. ",$A8,"'!I16/'3. ",$A8,"'!I56*100")),2) -> 52.59 | L12: =ROUND(wm_eval(CONCATENATE("'3. ",$A8,"'!K16/'3. ",$A8,"'!K56*100")),2) -> 51.44 | N12: =ROUND(AVERAGE(D12,F12,H12,J12,L12),2) -> 55.94 | R12: min excl. ATO | S12: =MIN(D19,D26,D33,D40,D47,D54) -> 32.16
B13: Total Capital | D13: =SUM(D9:D12) -> 100 | E13: % | F13: =SUM(F9:F12) -> 100 | G13: % | H13: =SUM(H9:H12) -> 100 | I13: % | J13: =SUM(J9:J12) -> 100 | K13: % | L13: =SUM(L9:L12) -> 100 | M13: % | N13: =SUM(N9:N12) -> 100 | O13: % | R13: max excl. ATO | S13: =MAX(D19,D26,D33,D40,D47,D54) -> 52.51
A15: =[152]Input!A3 -> NJR | B15: New Jersey Resources
B16: Long-Term Debt | D16: =ROUND(wm_eval(CONCATENATE("'3. ",$A15,"'!C12/'3. ",$A15,"'!C56*100")),2) -> 53.72 | E16: % | F16: =ROUND(wm_eval(CONCATENATE("'3. ",$A15,"'!E12/'3. ",$A15,"'!E56*100")),2) -> 49.7 | G16: % | H16: =ROUND(wm_eval(CONCATENATE("'3. ",$A15,"'!G12/'3. ",$A15,"'!G56*100")),2) -> 45.36 | I16: % | J16: =ROUND(wm_eval(CONCATENATE("'3. ",$A15,"'!I12/'3. ",$A15,"'!I56*100")),2) -> 43.62 | K16: % | L16: =ROUND(wm_eval(CONCATENATE("'3. ",$A15,"'!K12/'3. ",$A15,"'!K56*100")),2) -> 46.62 | M16: % | N16: =ROUND(AVERAGE(D16,F16,H16,J16,L16),2) -> 47.8 | O16: %
B17: Short-Term Debt | D17: =ROUND(wm_eval(CONCATENATE("'3. ",$A15,"'!C19/'3. ",$A15,"'!C56*100")),2) -> 2.94 | F17: =ROUND(wm_eval(CONCATENATE("'3. ",$A15,"'!E19/'3. ",$A15,"'!E56*100")),2) -> 0.81 | H17: =ROUND(wm_eval(CONCATENATE("'3. ",$A15,"'!G19/'3. ",$A15,"'!G56*100")),2) -> 5.29 | J17: =ROUND(wm_eval(CONCATENATE("'3. ",$A15,"'!I19/'3. ",$A15,"'!I56*100")),2) -> 9.98 | L17: =ROUND(wm_eval(CONCATENATE("'3. ",$A15,"'!K19/'3. ",$A15,"'!K56*100")),2) -> 5.04 | N17: =ROUND(AVERAGE(D17,F17,H17,J17,L17),2) -> 4.81
B18: Preferred Stock | D18: =ROUND(wm_eval(CONCATENATE("('3. ",$A15,"'!C13+'3. ",$A15,"'!C17)/'3. ",$A15,"'!C56*100")),2) -> 0 | F18: =ROUND(wm_eval(CONCATENATE("('3. ",$A15,"'!E13+'3. ",$A15,"'!E17)/'3. ",$A15,"'!E56*100")),2) -> 0 | H18: =ROUND(wm_eval(CONCATENATE("('3. ",$A15,"'!G13+'3. ",$A15,"'!G17)/'3. ",$A15,"'!G56*100")),2) -> 0 | J18: =ROUND(wm_eval(CONCATENATE("('3. ",$A15,"'!I13+'3. ",$A15,"'!I17)/'3. ",$A15,"'!I56*100")),2) -> 0 | L18: =ROUND(wm_eval(CONCATENATE("('3. ",$A15,"'!K13+'3. ",$A15,"'!K17)/'3. ",$A15,"'!K56*100")),2) -> 0 | N18: =ROUND(AVERAGE(D18,F18,H18,J18,L18),2) -> 0
B19: Common Equity | D19: =ROUND(wm_eval(CONCATENATE("'3. ",$A15,"'!C16/'3. ",$A15,"'!C56*100")),2) -> 43.34 | F19: =ROUND(wm_eval(CONCATENATE("'3. ",$A15,"'!E16/'3. ",$A15,"'!E56*100")),2) -> 49.48 | H19: =ROUND(wm_eval(CONCATENATE("'3. ",$A15,"'!G16/'3. ",$A15,"'!G56*100")),2) -> 49.35 | J19: =ROUND(wm_eval(CONCATENATE("'3. ",$A15,"'!I16/'3. ",$A15,"'!I56*100")),2) -> 46.4 | L19: =ROUND(wm_eval(CONCATENATE("'3. ",$A15,"'!K16/'3. ",$A15,"'!K56*100")),2) -> 48.34 | N19: =ROUND(AVERAGE(D19,F19,H19,J19,L19),2) -> 47.38
B20: Total Capital | D20: =SUM(D16:D19) -> 100 | E20: % | F20: =SUM(F16:F19)+0.01 -> 100 | G20: % | H20: =SUM(H16:H19) -> 100 | I20: % | J20: =SUM(J16:J19) -> 100 | K20: % | L20: =SUM(L16:L19) -> 100 | M20: % | N20: =SUM(N16:N19)+0.01 -> 100 | O20: %
A22: =[152]Input!A4 -> NWN | B22: Northwest Natural Gas Co.
B23: Long-Term Debt | D23: =ROUND(wm_eval(CONCATENATE("'3. ",$A22,"'!C12/'3. ",$A22,"'!C56*100")),2) -> 44.47 | E23: % | F23: =ROUND(wm_eval(CONCATENATE("'3. ",$A22,"'!E12/'3. ",$A22,"'!E56*100")),2) -> 46.47 | G23: % | H23: =ROUND(wm_eval(CONCATENATE("'3. ",$A22,"'!G12/'3. ",$A22,"'!G56*100")),2) -> 42.89 | I23: % | J23: =ROUND(wm_eval(CONCATENATE("'3. ",$A22,"'!I12/'3. ",$A22,"'!I56*100")),2) -> 49.46 | K23: % | L23: =ROUND(wm_eval(CONCATENATE("'3. ",$A22,"'!K12/'3. ",$A22,"'!K56*100")),2) -> 44.32 | M23: % | N23: =ROUND(AVERAGE(D23,F23,H23,J23,L23),2) -> 45.52 | O23: %
B24: Short-Term Debt | D24: =ROUND(wm_eval(CONCATENATE("'3. ",$A22,"'!C19/'3. ",$A22,"'!C56*100")),2) -> 14.17 | F24: =ROUND(wm_eval(CONCATENATE("'3. ",$A22,"'!E19/'3. ",$A22,"'!E56*100")),2) -> 7.86 | H24: =ROUND(wm_eval(CONCATENATE("'3. ",$A22,"'!G19/'3. ",$A22,"'!G56*100")),2) -> 12.68 | J24: =ROUND(wm_eval(CONCATENATE("'3. ",$A22,"'!I19/'3. ",$A22,"'!I56*100")),2) -> 3.44 | L24: =ROUND(wm_eval(CONCATENATE("'3. ",$A22,"'!K19/'3. ",$A22,"'!K56*100")),2) -> 3.28 | N24: =ROUND(AVERAGE(D24,F24,H24,J24,L24),2) -> 8.29
B25: Preferred Stock | D25: =ROUND(wm_eval(CONCATENATE("('3. ",$A22,"'!C13+'3. ",$A22,"'!C17)/'3. ",$A22,"'!C56*100")),2) -> 0 | F25: =ROUND(wm_eval(CONCATENATE("('3. ",$A22,"'!E13+'3. ",$A22,"'!E17)/'3. ",$A22,"'!E56*100")),2) -> 0 | H25: =ROUND(wm_eval(CONCATENATE("('3. ",$A22,"'!G13+'3. ",$A22,"'!G17)/'3. ",$A22,"'!G56*100")),2) -> 0 | J25: =ROUND(wm_eval(CONCATENATE("('3. ",$A22,"'!I13+'3. ",$A22,"'!I17)/'3. ",$A22,"'!I56*100")),2) -> 0 | L25: =ROUND(wm_eval(CONCATENATE("('3. ",$A22,"'!K13+'3. ",$A22,"'!K17)/'3. ",$A22,"'!K56*100")),2) -> 0 | N25: =ROUND(AVERAGE(D25,F25,H25,J25,L25),2) -> 0
B26: Common Equity | D26: =ROUND(wm_eval(CONCATENATE("'3. ",$A22,"'!C16/'3. ",$A22,"'!C56*100")),2) -> 41.36 | F26: =ROUND(wm_eval(CONCATENATE("'3. ",$A22,"'!E16/'3. ",$A22,"'!E56*100")),2) -> 45.67 | H26: =ROUND(wm_eval(CONCATENATE("'3. ",$A22,"'!G16/'3. ",$A22,"'!G56*100")),2) -> 44.43 | J26: =ROUND(wm_eval(CONCATENATE("'3. ",$A22,"'!I16/'3. ",$A22,"'!I56*100")),2) -> 47.1 | L26: =ROUND(wm_eval(CONCATENATE("'3. ",$A22,"'!K16/'3. ",$A22,"'!K56*100")),2) -> 52.4 | N26: =ROUND(AVERAGE(D26,F26,H26,J26,L26),2) -> 46.19
B27: Total Capital | D27: =SUM(D23:D26) -> 100 | E27: % | F27: =SUM(F23:F26) -> 100 | G27: % | H27: =SUM(H23:H26) -> 100 | I27: % | J27: =SUM(J23:J26) -> 100 | K27: % | L27: =SUM(L23:L26) -> 100 | M27: % | N27: =SUM(N23:N26) -> 100 | O27: %
A29: =[152]Input!A5 -> OGS | B29: ONE Gas, Inc.
B30: Long-Term Debt | D30: =ROUND(wm_eval(CONCATENATE("'3. ",$A29,"'!C12/'3. ",$A29,"'!C56*100")),2) -> 37.65 | E30: % | F30: =ROUND(wm_eval(CONCATENATE("'3. ",$A29,"'!E12/'3. ",$A29,"'!E56*100")),2) -> 32.71 | G30: % | H30: =ROUND(wm_eval(CONCATENATE("'3. ",$A29,"'!G12/'3. ",$A29,"'!G56*100")),2) -> 35.44 | I30: % | J30: =ROUND(wm_eval(CONCATENATE("'3. ",$A29,"'!I12/'3. ",$A29,"'!I56*100")),2) -> 33.99 | K30: % | L30: =ROUND(wm_eval(CONCATENATE("'3. ",$A29,"'!K12/'3. ",$A29,"'!K56*100")),2) -> 36.97 | M30: % | N30: =ROUND(AVERAGE(D30,F30,H30,J30,L30),2) -> 35.35 | O30: %
B31: Short-Term Debt | D31: =ROUND(wm_eval(CONCATENATE("'3. ",$A29,"'!C19/'3. ",$A29,"'!C56*100")),2) -> 9.83 | F31: =ROUND(wm_eval(CONCATENATE("'3. ",$A29,"'!E19/'3. ",$A29,"'!E56*100")),2) -> 13.14 | H31: =ROUND(wm_eval(CONCATENATE("'3. ",$A29,"'!G19/'3. ",$A29,"'!G56*100")),2) -> 8.26 | J31: =ROUND(wm_eval(CONCATENATE("'3. ",$A29,"'!I19/'3. ",$A29,"'!I56*100")),2) -> 10.18 | L31: =ROUND(wm_eval(CONCATENATE("'3. ",$A29,"'!K19/'3. ",$A29,"'!K56*100")),2) -> 4.5 | N31: =ROUND(AVERAGE(D31,F31,H31,J31,L31),2) -> 9.18
B32: Preferred Stock | D32: =ROUND(wm_eval(CONCATENATE("('3. ",$A29,"'!C13+'3. ",$A29,"'!C17)/'3. ",$A29,"'!C56*100")),2) -> 0 | F32: =ROUND(wm_eval(CONCATENATE("('3. ",$A29,"'!E13+'3. ",$A29,"'!E17)/'3. ",$A29,"'!E56*100")),2) -> 0 | H32: =ROUND(wm_eval(CONCATENATE("('3. ",$A29,"'!G13+'3. ",$A29,"'!G17)/'3. ",$A29,"'!G56*100")),2) -> 0 | J32: =ROUND(wm_eval(CONCATENATE("('3. ",$A29,"'!I13+'3. ",$A29,"'!I17)/'3. ",$A29,"'!I56*100")),2) -> 0 | L32: =ROUND(wm_eval(CONCATENATE("('3. ",$A29,"'!K13+'3. ",$A29,"'!K17)/'3. ",$A29,"'!K56*100")),2) -> 0 | N32: =ROUND(AVERAGE(D32,F32,H32,J32,L32),2) -> 0
B33: Common Equity | D33: =ROUND(wm_eval(CONCATENATE("'3. ",$A29,"'!C16/'3. ",$A29,"'!C56*100")),2) -> 52.51 | F33: =ROUND(wm_eval(CONCATENATE("'3. ",$A29,"'!E16/'3. ",$A29,"'!E56*100")),2) -> 54.16 | H33: =ROUND(wm_eval(CONCATENATE("'3. ",$A29,"'!G16/'3. ",$A29,"'!G56*100")),2) -> 56.31 | J33: =ROUND(wm_eval(CONCATENATE("'3. ",$A29,"'!I16/'3. ",$A29,"'!I56*100")),2) -> 55.84 | L33: =ROUND(wm_eval(CONCATENATE("'3. ",$A29,"'!K16/'3. ",$A29,"'!K56*100")),2) -> 58.54 | N33: =ROUND(AVERAGE(D33,F33,H33,J33,L33),2) -> 55.47
B34: Total Capital | D34: =SUM(D30:D33)+0.01 -> 100 | E34: % | F34: =SUM(F30:F33)-0.01 -> 100 | G34: % | H34: =SUM(H30:H33)-0.01 -> 100 | I34: % | J34: =SUM(J30:J33)-0.01 -> 100 | K34: % | L34: =SUM(L30:L33)-0.01 -> 100 | M34: % | N34: =SUM(N30:N33) -> 100 | O34: %
A36: =[152]Input!A6 -> SJI | B36: South Jersey Industries
B37: Long-Term Debt | D37: =ROUND(wm_eval(CONCATENATE("'3. ",$A36,"'!C12/'3. ",$A36,"'!C56*100")),2) -> 56.33 | E37: % | F37: =ROUND(wm_eval(CONCATENATE("'3. ",$A36,"'!E12/'3. ",$A36,"'!E56*100")),2) -> 52.76 | G37: % | H37: =ROUND(wm_eval(CONCATENATE("'3. ",$A36,"'!G12/'3. ",$A36,"'!G56*100")),2) -> 64.88 | I37: % | J37: =ROUND(wm_eval(CONCATENATE("'3. ",$A36,"'!I12/'3. ",$A36,"'!I56*100")),2) -> 43.54 | K37: % | L37: =ROUND(wm_eval(CONCATENATE("'3. ",$A36,"'!K12/'3. ",$A36,"'!K56*100")),2) -> 39.61 | M37: % | N37: =ROUND(AVERAGE(D37,F37,H37,J37,L37),2) -> 51.42 | O37: %
B38: Short-Term Debt | D38: =ROUND(wm_eval(CONCATENATE("'3. ",$A36,"'!C19/'3. ",$A36,"'!C56*100")),2) -> 11.51 | F38: =ROUND(wm_eval(CONCATENATE("'3. ",$A36,"'!E19/'3. ",$A36,"'!E56*100")),2) -> 17.64 | H38: =ROUND(wm_eval(CONCATENATE("'3. ",$A36,"'!G19/'3. ",$A36,"'!G56*100")),2) -> 6.18 | J38: =ROUND(wm_eval(CONCATENATE("'3. ",$A36,"'!I19/'3. ",$A36,"'!I56*100")),2) -> 12.71 | L38: =ROUND(wm_eval(CONCATENATE("'3. ",$A36,"'!K19/'3. ",$A36,"'!K56*100")),2) -> 11.28 | N38: =ROUND(AVERAGE(D38,F38,H38,J38,L38),2) -> 11.86
B39: Preferred Stock | D39: =ROUND(wm_eval(CONCATENATE("('3. ",$A36,"'!C13+'3. ",$A36,"'!C17)/'3. ",$A36,"'!C56*100")),2) -> 0 | F39: =ROUND(wm_eval(CONCATENATE("('3. ",$A36,"'!E13+'3. ",$A36,"'!E17)/'3. ",$A36,"'!E56*100")),2) -> 0 | H39: =ROUND(wm_eval(CONCATENATE("('3. ",$A36,"'!G13+'3. ",$A36,"'!G17)/'3. ",$A36,"'!G56*100")),2) -> 0 | J39: =ROUND(wm_eval(CONCATENATE("('3. ",$A36,"'!I13+'3. ",$A36,"'!I17)/'3. ",$A36,"'!I56*100")),2) -> 0 | L39: =ROUND(wm_eval(CONCATENATE("('3. ",$A36,"'!K13+'3. ",$A36,"'!K17)/'3. ",$A36,"'!K56*100")),2) -> 0 | N39: =ROUND(AVERAGE(D39,F39,H39,J39,L39),2) -> 0
B40: Common Equity | D40: =ROUND(wm_eval(CONCATENATE("'3. ",$A36,"'!C16/'3. ",$A36,"'!C56*100")),2) -> 32.16 | F40: =ROUND(wm_eval(CONCATENATE("'3. ",$A36,"'!E16/'3. ",$A36,"'!E56*100")),2) -> 29.6 | H40: =ROUND(wm_eval(CONCATENATE("'3. ",$A36,"'!G16/'3. ",$A36,"'!G56*100")),2) -> 28.94 | J40: =ROUND(wm_eval(CONCATENATE("'3. ",$A36,"'!I16/'3. ",$A36,"'!I56*100")),2) -> 43.75 | L40: =ROUND(wm_eval(CONCATENATE("'3. ",$A36,"'!K16/'3. ",$A36,"'!K56*100")),2) -> 49.11 | N40: =ROUND(AVERAGE(D40,F40,H40,J40,L40),2) -> 36.71
B41: Total Capital | D41: =SUM(D37:D40) -> 100 | E41: % | F41: =SUM(F37:F40) -> 100 | G41: % | H41: =SUM(H37:H40) -> 100 | I41: % | J41: =SUM(J37:J40) -> 100 | K41: % | L41: =SUM(L37:L40) -> 100 | M41: % | N41: =SUM(N37:N40)+0.01 -> 100 | O41: %
A43: =[152]Input!A7 -> SWX | B43: Southwest Gas Holding Co.
B44: Long-Term Debt | D44: =ROUND(wm_eval(CONCATENATE("'3. ",$A43,"'!C12/'3. ",$A43,"'!C56*100")),2) -> 49.92 | E44: % | F44: =ROUND(wm_eval(CONCATENATE("'3. ",$A43,"'!E12/'3. ",$A43,"'!E56*100")),2) -> 47.56 | G44: % | H44: =ROUND(wm_eval(CONCATENATE("'3. ",$A43,"'!G12/'3. ",$A43,"'!G56*100")),2) -> 47.1 | I44: % | J44: =ROUND(wm_eval(CONCATENATE("'3. ",$A43,"'!I12/'3. ",$A43,"'!I56*100")),2) -> 46.66 | K44: % | L44: =ROUND(wm_eval(CONCATENATE("'3. ",$A43,"'!K12/'3. ",$A43,"'!K56*100")),2) -> 49.06 | M44: % | N44: =ROUND(AVERAGE(D44,F44,H44,J44,L44),2) -> 48.06 | O44: %
B45: Short-Term Debt | D45: =ROUND(wm_eval(CONCATENATE("'3. ",$A43,"'!C19/'3. ",$A43,"'!C56*100")),2) -> 1.93 | F45: =ROUND(wm_eval(CONCATENATE("'3. ",$A43,"'!E19/'3. ",$A43,"'!E56*100")),2) -> 4.07 | H45: =ROUND(wm_eval(CONCATENATE("'3. ",$A43,"'!G19/'3. ",$A43,"'!G56*100")),2) -> 3.35 | J45: =ROUND(wm_eval(CONCATENATE("'3. ",$A43,"'!I19/'3. ",$A43,"'!I56*100")),2) -> 5.64 | L45: =ROUND(wm_eval(CONCATENATE("'3. ",$A43,"'!K19/'3. ",$A43,"'!K56*100")),2) -> 0 | N45: =ROUND(AVERAGE(D45,F45,H45,J45,L45),2) -> 3
B46: Preferred Stock | D46: =ROUND(wm_eval(CONCATENATE("('3. ",$A43,"'!C13+'3. ",$A43,"'!C17)/'3. ",$A43,"'!C56*100")),2) -> 0 | F46: =ROUND(wm_eval(CONCATENATE("('3. ",$A43,"'!E13+'3. ",$A43,"'!E17)/'3. ",$A43,"'!E56*100")),2) -> 0 | H46: =ROUND(wm_eval(CONCATENATE("('3. ",$A43,"'!G13+'3. ",$A43,"'!G17)/'3. ",$A43,"'!G56*100")),2) -> 0 | J46: =ROUND(wm_eval(CONCATENATE("('3. ",$A43,"'!I13+'3. ",$A43,"'!I17)/'3. ",$A43,"'!I56*100")),2) -> 0 | L46: =ROUND(wm_eval(CONCATENATE("('3. ",$A43,"'!K13+'3. ",$A43,"'!K17)/'3. ",$A43,"'!K56*100")),2) -> 0 | N46: =ROUND(AVERAGE(D46,F46,H46,J46,L46),2) -> 0
B47: Common Equity | D47: =ROUND(wm_eval(CONCATENATE("'3. ",$A43,"'!C16/'3. ",$A43,"'!C56*100")),2) -> 48.16 | F47: =ROUND(wm_eval(CONCATENATE("'3. ",$A43,"'!E16/'3. ",$A43,"'!E56*100")),2) -> 48.37 | H47: =ROUND(wm_eval(CONCATENATE("'3. ",$A43,"'!G16/'3. ",$A43,"'!G56*100")),2) -> 49.55 | J47: =ROUND(wm_eval(CONCATENATE("'3. ",$A43,"'!I16/'3. ",$A43,"'!I56*100")),2) -> 47.69 | L47: =ROUND(wm_eval(CONCATENATE("'3. ",$A43,"'!K16/'3. ",$A43,"'!K56*100")),2) -> 50.94 | N47: =ROUND(AVERAGE(D47,F47,H47,J47,L47),2) -> 48.94
B48: Total Capital | D48: =SUM(D44:D47) -> 100.01 | E48: % | F48: =SUM(F44:F47) -> 100 | G48: % | H48: =SUM(H44:H47) -> 100 | I48: % | J48: =SUM(J44:J47) -> 99.99 | K48: % | L48: =SUM(L44:L47) -> 100 | M48: % | N48: =SUM(N44:N47) -> 100 | O48: %
A50: =[152]Input!A8 -> SR | B50: Spire, Inc.
B51: Long-Term Debt | D51: =ROUND(wm_eval(CONCATENATE("'3. ",$A50,"'!C12/'3. ",$A50,"'!C56*100")),2) -> 43.93 | E51: % | F51: =ROUND(wm_eval(CONCATENATE("'3. ",$A50,"'!E12/'3. ",$A50,"'!E56*100")),2) -> 39.24 | G51: % | H51: =ROUND(wm_eval(CONCATENATE("'3. ",$A50,"'!G12/'3. ",$A50,"'!G56*100")),2) -> 40.57 | I51: % | J51: =ROUND(wm_eval(CONCATENATE("'3. ",$A50,"'!I12/'3. ",$A50,"'!I56*100")),2) -> 45.91 | K51: % | L51: =ROUND(wm_eval(CONCATENATE("'3. ",$A50,"'!K12/'3. ",$A50,"'!K56*100")),2) -> 49.02 | M51: % | N51: =ROUND(AVERAGE(D51,F51,H51,J51,L51),2) -> 43.73 | O51: %
B52: Short-Term Debt | D52: =ROUND(wm_eval(CONCATENATE("'3. ",$A50,"'!C19/'3. ",$A50,"'!C56*100")),2) -> 11.46 | F52: =ROUND(wm_eval(CONCATENATE("'3. ",$A50,"'!E19/'3. ",$A50,"'!E56*100")),2) -> 13.74 | H52: =ROUND(wm_eval(CONCATENATE("'3. ",$A50,"'!G19/'3. ",$A50,"'!G56*100")),2) -> 11.71 | J52: =ROUND(wm_eval(CONCATENATE("'3. ",$A50,"'!I19/'3. ",$A50,"'!I56*100")),2) -> 10.46 | L52: =ROUND(wm_eval(CONCATENATE("'3. ",$A50,"'!K19/'3. ",$A50,"'!K56*100")),2) -> 9.38 | N52: =ROUND(AVERAGE(D52,F52,H52,J52,L52),2) -> 11.35
B53: Preferred Stock | D53: =ROUND(wm_eval(CONCATENATE("('3. ",$A50,"'!C13+'3. ",$A50,"'!C17)/'3. ",$A50,"'!C56*100")),2) -> 4.28 | F53: =ROUND(wm_eval(CONCATENATE("('3. ",$A50,"'!E13+'3. ",$A50,"'!E17)/'3. ",$A50,"'!E56*100")),2) -> 4.47 | H53: =ROUND(wm_eval(CONCATENATE("('3. ",$A50,"'!G13+'3. ",$A50,"'!G17)/'3. ",$A50,"'!G56*100")),2) -> 0 | J53: =ROUND(wm_eval(CONCATENATE("('3. ",$A50,"'!I13+'3. ",$A50,"'!I17)/'3. ",$A50,"'!I56*100")),2) -> 0 | L53: =ROUND(wm_eval(CONCATENATE("('3. ",$A50,"'!K13+'3. ",$A50,"'!K17)/'3. ",$A50,"'!K56*100")),2) -> 0 | N53: =ROUND(AVERAGE(D53,F53,H53,J53,L53),2) -> 1.75
B54: Common Equity | D54: =ROUND(wm_eval(CONCATENATE("'3. ",$A50,"'!C16/'3. ",$A50,"'!C56*100")),2) -> 40.33 | F54: =ROUND(wm_eval(CONCATENATE("'3. ",$A50,"'!E16/'3. ",$A50,"'!E56*100")),2) -> 42.54 | H54: =ROUND(wm_eval(CONCATENATE("'3. ",$A50,"'!G16/'3. ",$A50,"'!G56*100")),2) -> 47.72 | J54: =ROUND(wm_eval(CONCATENATE("'3. ",$A50,"'!I16/'3. ",$A50,"'!I56*100")),2) -> 43.63 | L54: =ROUND(wm_eval(CONCATENATE("'3. ",$A50,"'!K16/'3. ",$A50,"'!K56*100")),2) -> 41.6 | N54: =ROUND(AVERAGE(D54,F54,H54,J54,L54),2) -> 43.16
B55: Total Capital | D55: =SUM(D51:D54) -> 100 | E55: % | F55: =SUM(F51:F54)+0.01 -> 100 | G55: % | H55: =SUM(H51:H54) -> 100 | I55: % | J55: =SUM(J51:J54) -> 100 | K55: % | L55: =SUM(L51:L54) -> 100 | M55: % | N55: =SUM(N51:N54)+0.01 -> 100 | O55: %
B57: =B2 -> Proxy Group of Seven Natural Gas Distribution Companies
B58: Long-Term Debt | D58: =ROUND(AVERAGEIF($B$7:$B$56,$B58,D$7:D$56),2)-0.01 -> 46.57 | E58: % | F58: =ROUND(AVERAGEIF($B$7:$B$56,$B58,F$7:F$56),2) -> 43.52 | G58: % | H58: =ROUND(AVERAGEIF($B$7:$B$56,$B58,H$7:H$56),2) -> 44.67 | I58: % | J58: =ROUND(AVERAGEIF($B$7:$B$56,$B58,J$7:J$56),2) -> 43.51 | K58: % | L58: =ROUND(AVERAGEIF($B$7:$B$56,$B58,L$7:L$56),2) -> 43.12 | M58: % | N58: =ROUND(AVERAGEIF($B$7:$B$56,$B58,N$7:N$56),2) -> 44.28 | O58: %
B59: Short-Term Debt | D59: =ROUND(AVERAGEIF($B$7:$B$56,$B59,D$7:D$56),2) -> 7.41 | F59: =ROUND(AVERAGEIF($B$7:$B$56,$B59,F$7:F$56),2) -> 8.86 | H59: =ROUND(AVERAGEIF($B$7:$B$56,$B59,H$7:H$56),2) -> 7.76 | J59: =ROUND(AVERAGEIF($B$7:$B$56,$B59,J$7:J$56),2) -> 8.35 | L59: =ROUND(AVERAGEIF($B$7:$B$56,$B59,L$7:L$56),2) -> 6.54 | N59: =ROUND(AVERAGEIF($B$7:$B$56,$B59,N$7:N$56),2) -> 7.78
B60: Preferred Stock | D60: =ROUND(AVERAGEIF($B$7:$B$56,$B60,D$7:D$56),2) -> 0.61 | F60: =ROUND(AVERAGEIF($B$7:$B$56,$B60,F$7:F$56),2) -> 0.64 | H60: =ROUND(AVERAGEIF($B$7:$B$56,$B60,H$7:H$56),2) -> 0 | J60: =ROUND(AVERAGEIF($B$7:$B$56,$B60,J$7:J$56),2) -> 0 | L60: =ROUND(AVERAGEIF($B$7:$B$56,$B60,L$7:L$56),2) -> 0 | N60: =ROUND(AVERAGEIF($B$7:$B$56,$B60,N$7:N$56),2) -> 0.25
B61: Common Equity | D61: =ROUND(AVERAGEIF($B$7:$B$56,$B61,D$7:D$56),2) -> 45.41 | F61: =ROUND(AVERAGEIF($B$7:$B$56,$B61,F$7:F$56),2) -> 46.98 | H61: =ROUND(AVERAGEIF($B$7:$B$56,$B61,H$7:H$56),2) -> 47.57 | J61: =ROUND(AVERAGEIF($B$7:$B$56,$B61,J$7:J$56),2) -> 48.14 | L61: =ROUND(AVERAGEIF($B$7:$B$56,$B61,L$7:L$56),2) -> 50.34 | N61: =ROUND(AVERAGEIF($B$7:$B$56,$B61,N$7:N$56),2) -> 47.68
B62: Total Capital | D62: =SUM(D58:D61) -> 100 | E62: % | F62: =SUM(F58:F61) -> 100 | G62: % | H62: =SUM(H58:H61) -> 100 | I62: % | J62: =SUM(J58:J61) -> 100 | K62: % | L62: =SUM(L58:L61) -> 100 | M62: % | N62: =SUM(N58:N61)+0.01 -> 100 | O62: %
B64: Source of Information
B65: Annual Forms 10-K
B66: Capital Structure Based upon Total Permanent Capital for the
B67: Kentucky Natural Gas Utilities
B68: 2016 - 2020, Inclusive
N70: 5 YEAR
D71: 2020 | F71: =D71-1 -> 2019 | H71: =F71-1 -> 2018 | J71: =H71-1 -> 2017 | L71: =J71-1 -> 2016 | N71: AVERAGE
A73: DUK | B73: Duke Energy Corporation
B74: Long-Term Debt | D74: =ROUND(wm_eval(CONCATENATE("'3. ",$A73,"'!C12/'3. ",$A73,"'!C56*100")),2)-0.01 -> 54.07 | E74: % | F74: =ROUND(wm_eval(CONCATENATE("'3. ",$A73,"'!E12/'3. ",$A73,"'!E56*100")),2)-0.01 -> 53.77 | G74: % | H74: =ROUND(wm_eval(CONCATENATE("'3. ",$A73,"'!G12/'3. ",$A73,"'!G56*100")),2) -> 53.59 | I74: % | J74: =ROUND(wm_eval(CONCATENATE("'3. ",$A73,"'!I12/'3. ",$A73,"'!I56*100")),2)-0.01 -> 54.35 | K74: % | L74: =ROUND(wm_eval(CONCATENATE("'3. ",$A73,"'!K12/'3. ",$A73,"'!K56*100")),2) -> 52.39 | M74: % | N74: =ROUND(AVERAGE(D74,F74,H74,J74,L74),2) -> 53.63 | O74: %
B75: Short-Term Debt | D75: =ROUND(wm_eval(CONCATENATE("'3. ",$A73,"'!C19/'3. ",$A73,"'!C56*100")),2) -> 2.6 | F75: =ROUND(wm_eval(CONCATENATE("'3. ",$A73,"'!E19/'3. ",$A73,"'!E56*100")),2) -> 2.9 | H75: =ROUND(wm_eval(CONCATENATE("'3. ",$A73,"'!G19/'3. ",$A73,"'!G56*100")),2) -> 3.35 | J75: =ROUND(wm_eval(CONCATENATE("'3. ",$A73,"'!I19/'3. ",$A73,"'!I56*100")),2) -> 2.25 | L75: =ROUND(wm_eval(CONCATENATE("'3. ",$A73,"'!K19/'3. ",$A73,"'!K56*100")),2) -> 2.72 | N75: =ROUND(AVERAGE(D75,F75,H75,J75,L75),2) -> 2.76
B76: Preferred Stock | D76: =ROUND(wm_eval(CONCATENATE("('3. ",$A73,"'!C13+'3. ",$A73,"'!C17)/'3. ",$A73,"'!C56*100")),2) -> 1.77 | F76: =ROUND(wm_eval(CONCATENATE("('3. ",$A73,"'!E13+'3. ",$A73,"'!E17)/'3. ",$A73,"'!E56*100")),2) -> 1.82 | H76: =ROUND(wm_eval(CONCATENATE("('3. ",$A73,"'!G13+'3. ",$A73,"'!G17)/'3. ",$A73,"'!G56*100")),2) -> 0 | J76: =ROUND(wm_eval(CONCATENATE("('3. ",$A73,"'!I13+'3. ",$A73,"'!I17)/'3. ",$A73,"'!I56*100")),2) -> 0 | L76: =ROUND(wm_eval(CONCATENATE("('3. ",$A73,"'!K13+'3. ",$A73,"'!K17)/'3. ",$A73,"'!K56*100")),2) -> 0 | N76: =ROUND(AVERAGE(D76,F76,H76,J76,L76),2) -> 0.72
B77: Common Equity | D77: =ROUND(wm_eval(CONCATENATE("'3. ",$A73,"'!C16/'3. ",$A73,"'!C56*100")),2) -> 41.56 | F77: =ROUND(wm_eval(CONCATENATE("'3. ",$A73,"'!E16/'3. ",$A73,"'!E56*100")),2)-0.01 -> 41.5 | H77: =ROUND(wm_eval(CONCATENATE("'3. ",$A73,"'!G16/'3. ",$A73,"'!G56*100")),2) -> 43.06 | J77: =ROUND(wm_eval(CONCATENATE("'3. ",$A73,"'!I16/'3. ",$A73,"'!I56*100")),2) -> 43.4 | L77: =ROUND(wm_eval(CONCATENATE("'3. ",$A73,"'!K16/'3. ",$A73,"'!K56*100")),2) -> 44.89 | N77: =ROUND(AVERAGE(D77,F77,H77,J77,L77),2) -> 42.88
B78: Total Capital | D78: =SUM(D74:D77) -> 100 | E78: % | F78: =SUM(F74:F77)+0.01 -> 100 | G78: % | H78: =SUM(H74:H77) -> 100 | I78: % | J78: =SUM(J74:J77) -> 100 | K78: % | L78: =SUM(L74:L77) -> 100 | M78: % | N78: =SUM(N74:N77)+0.01 -> 100 | O78: %
A80: NI | B80: NiSource Inc.
B81: Long-Term Debt | D81: =ROUND(wm_eval(CONCATENATE("'3. ",$A80,"'!C12/'3. ",$A80,"'!C56*100")),2) -> 56.44 | E81: % | F81: =ROUND(wm_eval(CONCATENATE("'3. ",$A80,"'!E12/'3. ",$A80,"'!E56*100")),2)-0.01 -> 47.66 | G81: % | H81: =ROUND(wm_eval(CONCATENATE("'3. ",$A80,"'!G12/'3. ",$A80,"'!G56*100")),2)+0.01 -> 45.4 | I81: % | J81: =ROUND(wm_eval(CONCATENATE("'3. ",$A80,"'!I12/'3. ",$A80,"'!I56*100")),2) -> 58.52 | K81: % | L81: =ROUND(wm_eval(CONCATENATE("'3. ",$A80,"'!K12/'3. ",$A80,"'!K56*100")),2) -> 53.6 | M81: % | N81: =ROUND(AVERAGE(D81,F81,H81,J81,L81),2) -> 52.32 | O81: %
B82: Short-Term Debt | D82: =ROUND(wm_eval(CONCATENATE("'3. ",$A80,"'!C19/'3. ",$A80,"'!C56*100")),2) -> 3.07 | F82: =ROUND(wm_eval(CONCATENATE("'3. ",$A80,"'!E19/'3. ",$A80,"'!E56*100")),2) -> 10.74 | H82: =ROUND(wm_eval(CONCATENATE("'3. ",$A80,"'!G19/'3. ",$A80,"'!G56*100")),2) -> 12.54 | J82: =ROUND(wm_eval(CONCATENATE("'3. ",$A80,"'!I19/'3. ",$A80,"'!I56*100")),2) -> 9.05 | L82: =ROUND(wm_eval(CONCATENATE("'3. ",$A80,"'!K19/'3. ",$A80,"'!K56*100")),2) -> 12.42 | N82: =ROUND(AVERAGE(D82,F82,H82,J82,L82),2) -> 9.56
B83: Preferred Stock | D83: =ROUND(wm_eval(CONCATENATE("('3. ",$A80,"'!C13+'3. ",$A80,"'!C17)/'3. ",$A80,"'!C56*100")),2) -> 5.37 | F83: =ROUND(wm_eval(CONCATENATE("('3. ",$A80,"'!E13+'3. ",$A80,"'!E17)/'3. ",$A80,"'!E56*100")),2) -> 5.33 | H83: =ROUND(wm_eval(CONCATENATE("('3. ",$A80,"'!G13+'3. ",$A80,"'!G17)/'3. ",$A80,"'!G56*100")),2) -> 5.58 | J83: =ROUND(wm_eval(CONCATENATE("('3. ",$A80,"'!I13+'3. ",$A80,"'!I17)/'3. ",$A80,"'!I56*100")),2) -> 0 | L83: =ROUND(wm_eval(CONCATENATE("('3. ",$A80,"'!K13+'3. ",$A80,"'!K17)/'3. ",$A80,"'!K56*100")),2) -> 0 | N83: =ROUND(AVERAGE(D83,F83,H83,J83,L83),2) -> 3.26
B84: Common Equity | D84: =ROUND(wm_eval(CONCATENATE("'3. ",$A80,"'!C16/'3. ",$A80,"'!C56*100")),2) -> 35.12 | F84: =ROUND(wm_eval(CONCATENATE("'3. ",$A80,"'!E16/'3. ",$A80,"'!E56*100")),2) -> 36.26 | H84: =ROUND(wm_eval(CONCATENATE("'3. ",$A80,"'!G16/'3. ",$A80,"'!G56*100")),2) -> 36.48 | J84: =ROUND(wm_eval(CONCATENATE("'3. ",$A80,"'!I16/'3. ",$A80,"'!I56*100")),2) -> 32.43 | L84: =ROUND(wm_eval(CONCATENATE("'3. ",$A80,"'!K16/'3. ",$A80,"'!K56*100")),2) -> 33.98 | N84: =ROUND(AVERAGE(D84,F84,H84,J84,L84),2) -> 34.85
B85: Total Capital | D85: =SUM(D81:D84) -> 100 | E85: % | F85: =SUM(F81:F84)+0.01 -> 100 | G85: % | H85: =SUM(H81:H84) -> 100 | I85: % | J85: =SUM(J81:J84) -> 100 | K85: % | L85: =SUM(L81:L84) -> 100 | M85: % | N85: =SUM(N81:N84)+0.01 -> 100 | O85: %
A87: PPL | B87: PPL Corporation
B88: Long-Term Debt | D88: =ROUND(wm_eval(CONCATENATE("'3. ",$A87,"'!C12/'3. ",$A87,"'!C56*100")),2) -> 58.91 | E88: % | F88: =ROUND(wm_eval(CONCATENATE("'3. ",$A87,"'!E12/'3. ",$A87,"'!E56*100")),2)-0.01 -> 59.43 | G88: % | H88: =ROUND(wm_eval(CONCATENATE("'3. ",$A87,"'!G12/'3. ",$A87,"'!G56*100")),2) -> 61.15 | I88: % | J88: =ROUND(wm_eval(CONCATENATE("'3. ",$A87,"'!I12/'3. ",$A87,"'!I56*100")),2) -> 63.04 | K88: % | L88: =ROUND(wm_eval(CONCATENATE("'3. ",$A87,"'!K12/'3. ",$A87,"'!K56*100")),2) -> 62.87 | M88: % | N88: =ROUND(AVERAGE(D88,F88,H88,J88,L88),2)-0.01 -> 61.07 | O88: %
B89: Short-Term Debt | D89: =ROUND(wm_eval(CONCATENATE("'3. ",$A87,"'!C19/'3. ",$A87,"'!C56*100")),2) -> 4.54 | F89: =ROUND(wm_eval(CONCATENATE("'3. ",$A87,"'!E19/'3. ",$A87,"'!E56*100")),2) -> 3.3 | H89: =ROUND(wm_eval(CONCATENATE("'3. ",$A87,"'!G19/'3. ",$A87,"'!G56*100")),2) -> 4.25 | J89: =ROUND(wm_eval(CONCATENATE("'3. ",$A87,"'!I19/'3. ",$A87,"'!I56*100")),2) -> 3.37 | L89: =ROUND(wm_eval(CONCATENATE("'3. ",$A87,"'!K19/'3. ",$A87,"'!K56*100")),2) -> 3.17 | N89: =ROUND(AVERAGE(D89,F89,H89,J89,L89),2) -> 3.73
B90: Preferred Stock | D90: =ROUND(wm_eval(CONCATENATE("('3. ",$A87,"'!C13+'3. ",$A87,"'!C17)/'3. ",$A87,"'!C56*100")),2) -> 0 | F90: =ROUND(wm_eval(CONCATENATE("('3. ",$A87,"'!E13+'3. ",$A87,"'!E17)/'3. ",$A87,"'!E56*100")),2) -> 0 | H90: =ROUND(wm_eval(CONCATENATE("('3. ",$A87,"'!G13+'3. ",$A87,"'!G17)/'3. ",$A87,"'!G56*100")),2) -> 0 | J90: =ROUND(wm_eval(CONCATENATE("('3. ",$A87,"'!I13+'3. ",$A87,"'!I17)/'3. ",$A87,"'!I56*100")),2) -> 0 | L90: =ROUND(wm_eval(CONCATENATE("('3. ",$A87,"'!K13+'3. ",$A87,"'!K17)/'3. ",$A87,"'!K56*100")),2) -> 0 | N90: =ROUND(AVERAGE(D90,F90,H90,J90,L90),2) -> 0
B91: Common Equity | D91: =ROUND(wm_eval(CONCATENATE("'3. ",$A87,"'!C16/'3. ",$A87,"'!C56*100")),2) -> 36.55 | F91: =ROUND(wm_eval(CONCATENATE("'3. ",$A87,"'!E16/'3. ",$A87,"'!E56*100")),2) -> 37.26 | H91: =ROUND(wm_eval(CONCATENATE("'3. ",$A87,"'!G16/'3. ",$A87,"'!G56*100")),2) -> 34.6 | J91: =ROUND(wm_eval(CONCATENATE("'3. ",$A87,"'!I16/'3. ",$A87,"'!I56*100")),2) -> 33.59 | L91: =ROUND(wm_eval(CONCATENATE("'3. ",$A87,"'!K16/'3. ",$A87,"'!K56*100")),2) -> 33.96 | N91: =ROUND(AVERAGE(D91,F91,H91,J91,L91),2) -> 35.19
B92: Total Capital | D92: =SUM(D88:D91) -> 100 | E92: % | F92: =SUM(F88:F91)+0.01 -> 100 | G92: % | H92: =SUM(H88:H91) -> 100 | I92: % | J92: =SUM(J88:J91) -> 100 | K92: % | L92: =SUM(L88:L91) -> 100 | M92: % | N92: =SUM(N88:N91)+0.01 -> 100 | O92: %
A94: WTRG | B94: Essential Utilities, Inc.
B95: Long-Term Debt | D95: =ROUND(wm_eval(CONCATENATE("'3. ",$A94,"'!C12/'3. ",$A94,"'!C56*100")),2) -> 53.57 | E95: % | F95: =ROUND(wm_eval(CONCATENATE("'3. ",$A94,"'!E12/'3. ",$A94,"'!E56*100")),2)-0.01 -> 43.14 | G95: % | H95: =ROUND(wm_eval(CONCATENATE("'3. ",$A94,"'!G12/'3. ",$A94,"'!G56*100")),2) -> 55.76 | I95: % | J95: =ROUND(wm_eval(CONCATENATE("'3. ",$A94,"'!I12/'3. ",$A94,"'!I56*100")),2) -> 51.94 | K95: % | L95: =ROUND(wm_eval(CONCATENATE("'3. ",$A94,"'!K12/'3. ",$A94,"'!K56*100")),2)-0.01 -> 50.54 | M95: % | N95: =ROUND(AVERAGE(D95,F95,H95,J95,L95),2)-0.01 -> 50.98 | O95: %
B96: Short-Term Debt | D96: =ROUND(wm_eval(CONCATENATE("'3. ",$A94,"'!C19/'3. ",$A94,"'!C56*100")),2) -> 1.18 | F96: =ROUND(wm_eval(CONCATENATE("'3. ",$A94,"'!E19/'3. ",$A94,"'!E56*100")),2) -> 0.53 | H96: =ROUND(wm_eval(CONCATENATE("'3. ",$A94,"'!G19/'3. ",$A94,"'!G56*100")),2) -> 0.53 | J96: =ROUND(wm_eval(CONCATENATE("'3. ",$A94,"'!I19/'3. ",$A94,"'!I56*100")),2) -> 0.61 | L96: =ROUND(wm_eval(CONCATENATE("'3. ",$A94,"'!K19/'3. ",$A94,"'!K56*100")),2) -> 0.51 | N96: =ROUND(AVERAGE(D96,F96,H96,J96,L96),2) -> 0.67
B97: Preferred Stock | D97: =ROUND(wm_eval(CONCATENATE("('3. ",$A94,"'!C13+'3. ",$A94,"'!C17)/'3. ",$A94,"'!C56*100")),2) -> 0 | F97: =ROUND(wm_eval(CONCATENATE("('3. ",$A94,"'!E13+'3. ",$A94,"'!E17)/'3. ",$A94,"'!E56*100")),2) -> 0 | H97: =ROUND(wm_eval(CONCATENATE("('3. ",$A94,"'!G13+'3. ",$A94,"'!G17)/'3. ",$A94,"'!G56*100")),2) -> 0 | J97: =ROUND(wm_eval(CONCATENATE("('3. ",$A94,"'!I13+'3. ",$A94,"'!I17)/'3. ",$A94,"'!I56*100")),2) -> 0 | L97: =ROUND(wm_eval(CONCATENATE("('3. ",$A94,"'!K13+'3. ",$A94,"'!K17)/'3. ",$A94,"'!K56*100")),2) -> 0 | N97: =ROUND(AVERAGE(D97,F97,H97,J97,L97),2) -> 0
B98: Common Equity | D98: =ROUND(wm_eval(CONCATENATE("'3. ",$A94,"'!C16/'3. ",$A94,"'!C56*100")),2) -> 45.25 | F98: =ROUND(wm_eval(CONCATENATE("'3. ",$A94,"'!E16/'3. ",$A94,"'!E56*100")),2) -> 56.32 | H98: =ROUND(wm_eval(CONCATENATE("'3. ",$A94,"'!G16/'3. ",$A94,"'!G56*100")),2) -> 43.71 | J98: =ROUND(wm_eval(CONCATENATE("'3. ",$A94,"'!I16/'3. ",$A94,"'!I56*100")),2) -> 47.45 | L98: =ROUND(wm_eval(CONCATENATE("'3. ",$A94,"'!K16/'3. ",$A94,"'!K56*100")),2) -> 48.95 | N98: =ROUND(AVERAGE(D98,F98,H98,J98,L98),2) -> 48.34
B99: Total Capital | D99: =SUM(D95:D98) -> 100 | E99: % | F99: =SUM(F95:F98)+0.01 -> 100 | G99: % | H99: =SUM(H95:H98) -> 100 | I99: % | J99: =SUM(J95:J98) -> 100 | K99: % | L99: =SUM(L95:L98) -> 100 | M99: % | N99: =SUM(N95:N98)+0.01 -> 100 | O99: %
B101: Parent Companies of Kentucky Natural Gas Utilities
B102: Long-Term Debt | D102: =ROUND(AVERAGEIF($B$74:$B$99,$B102,D$74:D$99),2)-0.01 -> 55.74 | E102: % | F102: =ROUND(AVERAGEIF($B$74:$B$99,$B102,F$74:F$99),2) -> 51 | G102: % | H102: =ROUND(AVERAGEIF($B$74:$B$99,$B102,H$74:H$99),2)-0.01 -> 53.97 | I102: % | J102: =ROUND(AVERAGEIF($B$74:$B$99,$B102,J$74:J$99),2) -> 56.96 | K102: % | L102: =ROUND(AVERAGEIF($B$74:$B$99,$B102,L$74:L$99),2)-0.01 -> 54.84 | M102: % | N102: =ROUND(AVERAGEIF($B$7:$B$56,$B102,N$7:N$56),2) -> 44.28 | O102: %
B103: Short-Term Debt | D103: =ROUND(AVERAGEIF($B$74:$B$99,$B103,D$74:D$99),2) -> 2.85 | F103: =ROUND(AVERAGEIF($B$74:$B$99,$B103,F$74:F$99),2) -> 4.37 | H103: =ROUND(AVERAGEIF($B$74:$B$99,$B103,H$74:H$99),2) -> 5.17 | J103: =ROUND(AVERAGEIF($B$74:$B$99,$B103,J$74:J$99),2) -> 3.82 | L103: =ROUND(AVERAGEIF($B$74:$B$99,$B103,L$74:L$99),2) -> 4.71 | N103: =ROUND(AVERAGEIF($B$7:$B$56,$B103,N$7:N$56),2) -> 7.78
B104: Preferred Stock | D104: =ROUND(AVERAGEIF($B$74:$B$99,$B104,D$74:D$99),2) -> 1.79 | F104: =ROUND(AVERAGEIF($B$74:$B$99,$B104,F$74:F$99),2) -> 1.79 | H104: =ROUND(AVERAGEIF($B$74:$B$99,$B104,H$74:H$99),2) -> 1.4 | J104: =ROUND(AVERAGEIF($B$74:$B$99,$B104,J$74:J$99),2) -> 0 | L104: =ROUND(AVERAGEIF($B$74:$B$99,$B104,L$74:L$99),2) -> 0 | N104: =ROUND(AVERAGEIF($B$7:$B$56,$B104,N$7:N$56),2) -> 0.25
B105: Common Equity | D105: =ROUND(AVERAGEIF($B$74:$B$99,$B105,D$74:D$99),2) -> 39.62 | F105: =ROUND(AVERAGEIF($B$74:$B$99,$B105,F$74:F$99),2) -> 42.84 | H105: =ROUND(AVERAGEIF($B$74:$B$99,$B105,H$74:H$99),2) -> 39.46 | J105: =ROUND(AVERAGEIF($B$74:$B$99,$B105,J$74:J$99),2) -> 39.22 | L105: =ROUND(AVERAGEIF($B$74:$B$99,$B105,L$74:L$99),2) -> 40.45 | N105: =ROUND(AVERAGEIF($B$7:$B$56,$B105,N$7:N$56),2) -> 47.68
B106: Total Capital | D106: =SUM(D102:D105) -> 100 | E106: % | F106: =SUM(F102:F105) -> 100 | G106: % | H106: =SUM(H102:H105) -> 100 | I106: % | J106: =SUM(J102:J105) -> 100 | K106: % | L106: =SUM(L102:L105) -> 100 | M106: % | N106: =SUM(N102:N105)+0.01 -> 100 | O106: %
B108: Source of Information
B109: Annual Forms 10-K

Sheet 11.3-4 OpCo Proxy Cap Str
A1: =Input!G28 -> Atmos Energy Corporation
A2: Operating Subsidiary Company Capital Structures of the
A3: =Input!I31 -> Proxy Group of Seven Natural Gas Distribution Companies
E5: 2020
A6: Company Name | C6: Parent Company Ticker | E6: Common Equity | G6: Long-Term Debt | I6: Short-Term Debt | K6: Total Capital
A7: Atmos Energy Corporation | C7: ATO | E7: =INDEX('11.3-4 WP'!I$6:I$21,MATCH('11.3-4 OpCo Proxy Cap Str'!$A7,'11.3-4 WP'!$B$6:$B$21,0)) -> 0.5874776621 | G7: =INDEX('11.3-4 WP'!K$6:K$21,MATCH('11.3-4 OpCo Proxy Cap Str'!$A7,'11.3-4 WP'!$B$6:$B$21,0)) -> 0.4125223379 | I7: =INDEX('11.3-4 WP'!M$6:M$21,MATCH('11.3-4 OpCo Proxy Cap Str'!$A7,'11.3-4 WP'!$B$6:$B$21,0)) -> 0 | K7: =IFERROR(E7+G7+I7,"NA") -> 1 | M7: =MAX(E7:E18) -> 0.5874776621 | N7: Max
A8: New Jersey Natural Gas Company | C8: NJR | E8: =INDEX('11.3-4 WP'!I$6:I$21,MATCH('11.3-4 OpCo Proxy Cap Str'!$A8,'11.3-4 WP'!$B$6:$B$21,0)) -> 0.5308824911 | G8: =INDEX('11.3-4 WP'!K$6:K$21,MATCH('11.3-4 OpCo Proxy Cap Str'!$A8,'11.3-4 WP'!$B$6:$B$21,0)) -> 0.4691175089 | I8: =INDEX('11.3-4 WP'!M$6:M$21,MATCH('11.3-4 OpCo Proxy Cap Str'!$A8,'11.3-4 WP'!$B$6:$B$21,0)) -> 0 | K8: 1 | M8: =MIN(E7:E18) -> 0.4043413303 | N8: Min.
A9: Northwest Natural Gas Company | C9: NWN | E9: =INDEX('11.3-4 WP'!I$6:I$21,MATCH('11.3-4 OpCo Proxy Cap Str'!$A9,'11.3-4 WP'!$B$6:$B$21,0)) -> 0.4043413303 | G9: =INDEX('11.3-4 WP'!K$6:K$21,MATCH('11.3-4 OpCo Proxy Cap Str'!$A9,'11.3-4 WP'!$B$6:$B$21,0)) -> 0.4835694457 | I9: =INDEX('11.3-4 WP'!M$6:M$21,MATCH('11.3-4 OpCo Proxy Cap Str'!$A9,'11.3-4 WP'!$B$6:$B$21,0)) -> 0.112089224 | K9: 1
A10: ONE Gas, Inc. | C10: OGS | E10: =INDEX('11.3-4 WP'!I$6:I$21,MATCH('11.3-4 OpCo Proxy Cap Str'!$A10,'11.3-4 WP'!$B$6:$B$21,0)) -> 0.5228076738 | G10: =INDEX('11.3-4 WP'!K$6:K$21,MATCH('11.3-4 OpCo Proxy Cap Str'!$A10,'11.3-4 WP'!$B$6:$B$21,0)) -> 0.3792878071 | I10: =INDEX('11.3-4 WP'!M$6:M$21,MATCH('11.3-4 OpCo Proxy Cap Str'!$A10,'11.3-4 WP'!$B$6:$B$21,0)) -> 0.09790451907 | K10: 1 | M10: =MAX(E8:E18) -> 0.5868127325 | N10: Max. excl. ATO
A11: Elizabethtown Gas Company | C11: SJI | E11: =INDEX('11.3-4 WP'!I$6:I$21,MATCH('11.3-4 OpCo Proxy Cap Str'!$A11,'11.3-4 WP'!$B$6:$B$21,0)) -> NA | G11: =INDEX('11.3-4 WP'!K$6:K$21,MATCH('11.3-4 OpCo Proxy Cap Str'!$A11,'11.3-4 WP'!$B$6:$B$21,0)) -> NA | I11: =INDEX('11.3-4 WP'!M$6:M$21,MATCH('11.3-4 OpCo Proxy Cap Str'!$A11,'11.3-4 WP'!$B$6:$B$21,0)) -> NA | K11: NA | M11: =MIN(E8:E18) -> 0.4043413303 | N11: Min. excl. ATO
A12: South Jersey Gas Company | C12: SJI | E12: =INDEX('11.3-4 WP'!I$6:I$21,MATCH('11.3-4 OpCo Proxy Cap Str'!$A12,'11.3-4 WP'!$B$6:$B$21,0)) -> 0.5386596373 | G12: =INDEX('11.3-4 WP'!K$6:K$21,MATCH('11.3-4 OpCo Proxy Cap Str'!$A12,'11.3-4 WP'!$B$6:$B$21,0)) -> 0.4417148181 | I12: =INDEX('11.3-4 WP'!M$6:M$21,MATCH('11.3-4 OpCo Proxy Cap Str'!$A12,'11.3-4 WP'!$B$6:$B$21,0)) -> 0.01962554461 | K12: 1
A13: Southwest Gas Corporation | C13: SWX | E13: =INDEX('11.3-4 WP'!I$6:I$21,MATCH('11.3-4 OpCo Proxy Cap Str'!$A13,'11.3-4 WP'!$B$6:$B$21,0)) -> 0.4721005404 | G13: =INDEX('11.3-4 WP'!K$6:K$21,MATCH('11.3-4 OpCo Proxy Cap Str'!$A13,'11.3-4 WP'!$B$6:$B$21,0)) -> 0.5158510529 | I13: =INDEX('11.3-4 WP'!M$6:M$21,MATCH('11.3-4 OpCo Proxy Cap Str'!$A13,'11.3-4 WP'!$B$6:$B$21,0)) -> 0.01204840669 | K13: 1
A14: Missouri Gas Energy | C14: SR | E14: =INDEX('11.3-4 WP'!I$6:I$21,MATCH('11.3-4 OpCo Proxy Cap Str'!$A14,'11.3-4 WP'!$B$6:$B$21,0)) -> NA | G14: =INDEX('11.3-4 WP'!K$6:K$21,MATCH('11.3-4 OpCo Proxy Cap Str'!$A14,'11.3-4 WP'!$B$6:$B$21,0)) -> NA | I14: =INDEX('11.3-4 WP'!M$6:M$21,MATCH('11.3-4 OpCo Proxy Cap Str'!$A14,'11.3-4 WP'!$B$6:$B$21,0)) -> NA | K14: NA
A15: Spire Alabama Inc. | C15: SR | E15: =INDEX('11.3-4 WP'!I$6:I$21,MATCH('11.3-4 OpCo Proxy Cap Str'!$A15,'11.3-4 WP'!$B$6:$B$21,0)) -> 0.5868127325 | G15: =INDEX('11.3-4 WP'!K$6:K$21,MATCH('11.3-4 OpCo Proxy Cap Str'!$A15,'11.3-4 WP'!$B$6:$B$21,0)) -> 0.3296127877 | I15: =INDEX('11.3-4 WP'!M$6:M$21,MATCH('11.3-4 OpCo Proxy Cap Str'!$A15,'11.3-4 WP'!$B$6:$B$21,0)) -> 0.08357447981 | K15: 1
A16: Spire Gulf Inc. | C16: SR | E16: =INDEX('11.3-4 WP'!I$6:I$21,MATCH('11.3-4 OpCo Proxy Cap Str'!$A16,'11.3-4 WP'!$B$6:$B$21,0)) -> NA | G16: =INDEX('11.3-4 WP'!K$6:K$21,MATCH('11.3-4 OpCo Proxy Cap Str'!$A16,'11.3-4 WP'!$B$6:$B$21,0)) -> NA | I16: =INDEX('11.3-4 WP'!M$6:M$21,MATCH('11.3-4 OpCo Proxy Cap Str'!$A16,'11.3-4 WP'!$B$6:$B$21,0)) -> NA | K16: NA
A17: Spire Mississippi Inc. | C17: SR | E17: =INDEX('11.3-4 WP'!I$6:I$21,MATCH('11.3-4 OpCo Proxy Cap Str'!$A17,'11.3-4 WP'!$B$6:$B$21,0)) -> NA | G17: =INDEX('11.3-4 WP'!K$6:K$21,MATCH('11.3-4 OpCo Proxy Cap Str'!$A17,'11.3-4 WP'!$B$6:$B$21,0)) -> NA | I17: =INDEX('11.3-4 WP'!M$6:M$21,MATCH('11.3-4 OpCo Proxy Cap Str'!$A17,'11.3-4 WP'!$B$6:$B$21,0)) -> NA | K17: =IFERROR(E17+G17+I17,"NA") -> NA
A18: Spire Missouri Inc. | C18: SR | E18: =INDEX('11.3-4 WP'!I$6:I$21,MATCH('11.3-4 OpCo Proxy Cap Str'!$A18,'11.3-4 WP'!$B$6:$B$21,0)) -> 0.5071024735 | G18: =INDEX('11.3-4 WP'!K$6:K$21,MATCH('11.3-4 OpCo Proxy Cap Str'!$A18,'11.3-4 WP'!$B$6:$B$21,0)) -> 0.3864664311 | I18: =INDEX('11.3-4 WP'!M$6:M$21,MATCH('11.3-4 OpCo Proxy Cap Str'!$A18,'11.3-4 WP'!$B$6:$B$21,0)) -> 0.1064310954 | K18: 1
C20: Mean | E20: =AVERAGE(E7:E18) -> 0.5187730676 | G20: =AVERAGE(G7:G18) -> 0.4272677737 | I20: =AVERAGE(I7:I18) -> 0.0539591587 | K20: =AVERAGE(K7:K18) -> 1
A22: Source: S&P Global Market Intelligence
A23: =A1 -> Atmos Energy Corporation
A24: Operating Subsidiary Company Capital Structures of the
A25: Kentucky Natural Gas Utilities
E26: 2020
A27: Company Name | C27: Parent Company Ticker | E27: Common Equity | G27: Long-Term Debt | I27: Short-Term Debt | K27: Total Capital
A28: Columbia Gas of Kentucky, Incorporated | C28: NI | E28: =INDEX('11.3-4 WP'!I$6:I$21,MATCH('11.3-4 OpCo Proxy Cap Str'!$A28,'11.3-4 WP'!$B$6:$B$21,0)) -> NA | G28: =INDEX('11.3-4 WP'!K$6:K$21,MATCH('11.3-4 OpCo Proxy Cap Str'!$A28,'11.3-4 WP'!$B$6:$B$21,0)) -> NA | I28: =INDEX('11.3-4 WP'!M$6:M$21,MATCH('11.3-4 OpCo Proxy Cap Str'!$A28,'11.3-4 WP'!$B$6:$B$21,0)) -> NA | K28: NA
A29: Delta Natural Gas Company, Inc. | C29: WTRG | E29: =INDEX('11.3-4 WP'!I$6:I$21,MATCH('11.3-4 OpCo Proxy Cap Str'!$A29,'11.3-4 WP'!$B$6:$B$21,0)) -> NA | G29: =INDEX('11.3-4 WP'!K$6:K$21,MATCH('11.3-4 OpCo Proxy Cap Str'!$A29,'11.3-4 WP'!$B$6:$B$21,0)) -> NA | I29: =INDEX('11.3-4 WP'!M$6:M$21,MATCH('11.3-4 OpCo Proxy Cap Str'!$A29,'11.3-4 WP'!$B$6:$B$21,0)) -> NA | K29: NA
A30: Duke Energy Kentucky, Inc. | C30: DUK | E30: =INDEX('11.3-4 WP'!I$6:I$21,MATCH('11.3-4 OpCo Proxy Cap Str'!$A30,'11.3-4 WP'!$B$6:$B$21,0)) -> 0.4689776577 | G30: =INDEX('11.3-4 WP'!K$6:K$21,MATCH('11.3-4 OpCo Proxy Cap Str'!$A30,'11.3-4 WP'!$B$6:$B$21,0)) -> 0.481742326 | I30: =INDEX('11.3-4 WP'!M$6:M$21,MATCH('11.3-4 OpCo Proxy Cap Str'!$A30,'11.3-4 WP'!$B$6:$B$21,0)) -> 0.0492800163 | K30: 1
A31: Louisville Gas and Electric Company | C31: PPL | E31: =INDEX('11.3-4 WP'!I$6:I$21,MATCH('11.3-4 OpCo Proxy Cap Str'!$A31,'11.3-4 WP'!$B$6:$B$21,0)) -> 0.5628102329 | G31: =INDEX('11.3-4 WP'!K$6:K$21,MATCH('11.3-4 OpCo Proxy Cap Str'!$A31,'11.3-4 WP'!$B$6:$B$21,0)) -> 0.3871706758 | I31: =INDEX('11.3-4 WP'!M$6:M$21,MATCH('11.3-4 OpCo Proxy Cap Str'!$A31,'11.3-4 WP'!$B$6:$B$21,0)) -> 0.05001909126 | K31: 1
C33: Mean | E33: =AVERAGE(E28:E31) -> 0.5158939453 | G33: =AVERAGE(G28:G31) -> 0.4344565009 | I33: =AVERAGE(I28:I31) -> 0.04964955378 | K33: =AVERAGE(K28:K31) -> 1
A35: Source: S&P Global Market Intelligence
E37: =MEDIAN(E7:E18) -> 0.5268450825 | G37: =MEDIAN(G7:G18) -> 0.427118578 | I37: =MEDIAN(I7:I18) -> 0.05160001221 | K37: =SUM(E37:I37) -> 1.005563673

Sheet Chart 1 MB Ratios
A2: Source: Bloomberg Professional Services
A3: Start Date | B3: 2010-01-01
A4: End Date | B4: 2021-09-30
B6: ATO US Equity | C6: NJR US Equity | D6: NWN US Equity | E6: OGS US Equity | F6: SJI US Equity | G6: SWX US Equity | H6: SR US Equity
B7: Price to Book Ratio | C7: Price to Book Ratio | D7: Price to Book Ratio | E7: Price to Book Ratio | F7: Price to Book Ratio | G7: Price to Book Ratio | H7: Price to Book Ratio
A8: Dates | B8: PX_TO_BOOK_RATIO | C8: PX_TO_BOOK_RATIO | D8: PX_TO_BOOK_RATIO | E8: PX_TO_BOOK_RATIO | F8: PX_TO_BOOK_RATIO | G8: PX_TO_BOOK_RATIO | H8: PX_TO_BOOK_RATIO | I8: Combined
A10: 2021-09-30 | B10: 1.4839 | C10: 1.9942 | D10: 1.5286 | E10: 1.463 | F10: 1.2666 | G10: 1.3881 | H10: 1.2878 | I10: =IFERROR(AVERAGE(B10:H10),"NA") -> 1.487457143 | J10: =AVERAGE($I$10:$I$2596) -> 1.893208913
A11: 2021-09-29 | B11: 1.4958 | C11: 2.0337 | D11: 1.5499 | E11: 1.4887 | F11: 1.3059 | G11: 1.4099 | H11: 1.3062 | I11: =IFERROR(AVERAGE(B11:H11),"NA") -> 1.512871429 | J11: =AVERAGE($I$10:$I$2596) -> 1.893208913
A12: 2021-09-28 | B12: 1.4585 | C12: 1.9953 | D12: 1.52 | E12: 1.4614 | F12: 1.2821 | G12: 1.3844 | H12: 1.2809 | I12: 1.483228571 | J12: 1.893208913
A13: 2021-09-27 | B13: 1.4735 | C13: 2.0005 | D13: 1.5306 | E13: 1.4732 | F13: 1.2964 | G13: 1.4031 | H13: 1.2979 | I13: 1.496457143 | J13: 1.893208913
A14: 2021-09-24 | B14: 1.4842 | C14: 1.9867 | D14: 1.5376 | E14: 1.4739 | F14: 1.2958 | G14: 1.3995 | H14: 1.2857 | I14: 1.494771429 | J14: 1.893208913
A15: 2021-09-23 | B15: 1.4827 | C15: 2.0062 | D15: 1.5589 | E15: 1.4928 | F15: 1.3268 | G15: 1.402 | H15: 1.283 | I15: 1.507485714 | J15: 1.893208913
A16: 2021-09-22 | B16: 1.4931 | C16: 2.0091 | D16: 1.5702 | E16: 1.49 | F16: 1.3375 | G16: 1.3979 | H16: 1.2939 | I16: 1.5131 | J16: 1.893208913
A17: 2021-09-21 | B17: 1.4936 | C17: 1.9913 | D17: 1.5665 | E17: 1.4815 | F17: 1.3381 | G17: 1.3829 | H17: 1.2996 | I17: 1.507642857 | J17: 1.893208913
A18: 2021-09-20 | B18: 1.4995 | C18: 2.0005 | D18: 1.5851 | E18: 1.4771 | F18: 1.353 | G18: 1.3894 | H18: 1.3041 | I18: 1.515528571 | J18: 1.893208913
A19: 2021-09-17 | B19: 1.4989 | C19: 2.0005 | D19: 1.5941 | E19: 1.4834 | F19: 1.3554 | G19: 1.4118 | H19: 1.3165 | I19: 1.522942857 | J19: 1.893208913
A20: 2021-09-16 | B20: 1.5101 | C20: 2.0423 | D20: 1.5911 | E20: 1.4951 | F20: 1.3679 | G20: 1.4273 | H20: 1.3255 | I20: 1.537042857 | J20: 1.893208913
A21: 2021-09-15 | B21: 1.5068 | C21: 2.0801 | D21: 1.6004 | E21: 1.5092 | F21: 1.3756 | G21: 1.4325 | H21: 1.3049 | I21: 1.544214286 | J21: 1.893208913
A22: 2021-09-14 | B22: 1.5357 | C22: 2.0664 | D22: 1.6001 | E22: 1.5427 | F22: 1.3834 | G22: 1.4404 | H22: 1.3234 | I22: 1.556014286 | J22: 1.893208913
A23: 2021-09-13 | B23: 1.5509 | C23: 2.0921 | D23: 1.631 | E23: 1.5722 | F23: 1.409 | G23: 1.4392 | H23: 1.3417 | I23: 1.576585714 | J23: 1.893208913
A24: 2021-09-10 | B24: 1.5667 | C24: 2.0864 | D24: 1.6363 | E24: 1.5815 | F24: 1.406 | G24: 1.4259 | H24: 1.3348 | I24: 1.5768 | J24: 1.893208913
A25: 2021-09-09 | B25: 1.6183 | C25: 2.1099 | D25: 1.6626 | E25: 1.6323 | F25: 1.4275 | G25: 1.4622 | H25: 1.3741 | I25: 1.612414286 | J25: 1.893208913
A26: 2021-09-08 | B26: 1.6429 | C26: 2.1506 | D26: 1.6988 | E26: 1.656 | F26: 1.4686 | G26: 1.4896 | H26: 1.3798 | I26: 1.6409 | J26: 1.893208913
A27: 2021-09-07 | B27: 1.6173 | C27: 2.1179 | D27: 1.6772 | E27: 1.6223 | F27: 1.4519 | G27: 1.4647 | H27: 1.3493 | I27: 1.614371429 | J27: 1.893208913
A28: 2021-09-03 | B28: 1.6404 | C28: 2.154 | D28: 1.6951 | E28: 1.663 | F28: 1.4716 | G28: 1.4863 | H28: 1.3929 | I28: 1.643328571 | J28: 1.893208913
A29: 2021-09-02 | B29: 1.6538 | C29: 2.1924 | D29: 1.7147 | E29: 1.6953 | F29: 1.4966 | G29: 1.4927 | H29: 1.4175 | I29: 1.666142857 | J29: 1.893208913
A30: 2021-09-01 | B30: 1.653 | C30: 2.1769 | D30: 1.727 | E30: 1.6807 | F30: 1.49 | G30: 1.4884 | H30: 1.4207 | I30: 1.662385714 | J30: 1.893208913
A31: 2021-08-31 | B31: 1.6405 | C31: 2.1391 | D31: 1.7101 | E31: 1.6581 | F31: 1.4781 | G31: 1.4593 | H31: 1.404 | I31: 1.641314286 | J31: 1.893208913
A32: 2021-08-30 | B32: 1.6399 | C32: 2.1277 | D32: 1.7081 | E32: 1.6556 | F32: 1.4555 | G32: 1.4537 | H32: 1.4038 | I32: 1.6349 | J32: 1.893208913
A33: 2021-08-27 | B33: 1.6383 | C33: 2.1305 | D33: 1.6978 | E33: 1.6565 | F33: 1.4519 | G33: 1.4363 | H33: 1.4026 | I33: 1.630557143 | J33: 1.893208913
A34: 2021-08-26 | B34: 1.6269 | C34: 2.1025 | D34: 1.6775 | E34: 1.635 | F34: 1.4316 | G34: 1.4147 | H34: 1.3931 | I34: 1.611614286 | J34: 1.893208913
A35: 2021-08-25 | B35: 1.6402 | C35: 2.1489 | D35: 1.7147 | E35: 1.6669 | F35: 1.4722 | G35: 1.4354 | H35: 1.4264 | I35: 1.643528571 | J35: 1.893208913
A36: 2021-08-24 | B36: 1.6508 | C36: 2.1437 | D36: 1.7267 | E36: 1.6771 | F36: 1.4602 | G36: 1.4367 | H36: 1.4447 | I36: 1.648557143 | J36: 1.893208913
A37: 2021-08-23 | B37: 1.6457 | C37: 2.1552 | D37: 1.7267 | E37: 1.6687 | F37: 1.4727 | G37: 1.4686 | H37: 1.4558 | I37: 1.6562 | J37: 1.893208913
A38: 2021-08-20 | B38: 1.6617 | C38: 2.1569 | D38: 1.739 | E38: 1.6754 | F38: 1.4727 | G38: 1.4971 | H38: 1.4651 | I38: 1.666842857 | J38: 1.893208913
A39: 2021-08-19 | B39: 1.6595 | C39: 2.1534 | D39: 1.7211 | E39: 1.6639 | F39: 1.4561 | G39: 1.4913 | H39: 1.4588 | I39: 1.657728571 | J39: 1.893208913
A40: 2021-08-18 | B40: 1.6654 | C40: 2.1391 | D40: 1.7254 | E40: 1.6657 | F40: 1.4817 | G40: 1.484 | H40: 1.4811 | I40: 1.6632 | J40: 1.893208913
A41: 2021-08-17 | B41: 1.6984 | C41: 2.1523 | D41: 1.7583 | E41: 1.6886 | F41: 1.5067 | G41: 1.5075 | H41: 1.5131 | I41: 1.689271429 | J41: 1.893208913
A42: 2021-08-16 | B42: 1.7004 | C42: 2.1701 | D42: 1.7629 | E42: 1.684 | F42: 1.5085 | G42: 1.4979 | H42: 1.5215 | I42: 1.692185714 | J42: 1.893208913
A43: 2021-08-13 | B43: 1.7071 | C43: 2.2107 | D43: 1.7792 | E43: 1.6902 | F43: 1.5246 | G43: 1.4836 | H43: 1.5211 | I43: 1.702357143 | J43: 1.893208913
A44: 2021-08-12 | B44: 1.692 | C44: 2.2044 | D44: 1.7496 | E44: 1.6826 | F44: 1.5222 | G44: 1.4855 | H44: 1.5068 | I44: 1.691871429 | J44: 1.893208913
A45: 2021-08-11 | B45: 1.7016 | C45: 2.2245 | D45: 1.7702 | E45: 1.7128 | F45: 1.5228 | G45: 1.4909 | H45: 1.5198 | I45: 1.706085714 | J45: 1.893208913
A46: 2021-08-10 | B46: 1.6974 | C46: 2.2193 | D46: 1.7563 | E46: 1.7061 | F46: 1.5127 | G46: 1.4664 | H46: 1.507 | I46: 1.695028571 | J46: 1.893208913
A47: 2021-08-09 | B47: 1.7013 | C47: 2.2073 | D47: 1.757 | E47: 1.7112 | F47: 1.4882 | G47: 1.4765 | H47: 1.5127 | I47: 1.693457143 | J47: 1.893208913
A48: 2021-08-06 | B48: 1.6974 | C48: 2.2377 | D48: 1.7759 | E48: 1.7142 | F48: 1.5091 | G48: 1.4965 | H48: 1.528 | I48: 1.7084 | J48: 1.893208913
A49: 2021-08-05 | B49: 1.7045 | C49: 2.2233 | D49: 1.7776 | E49: 1.7205 | F49: 1.4954 | G49: 1.495 | H49: 1.5411 | I49: 1.7082 | J49: 1.893208913
A50: 2021-08-04 | B50: 1.6722 | C50: 2.1958 | D50: 1.7879 | E50: 1.7043 | F50: 1.5061 | G50: 1.494 | H50: 1.535 | I50: 1.699328571 | J50: 1.893208913
A51: 2021-08-03 | B51: 1.677 | C51: 2.248 | D51: 1.7968 | E51: 1.7288 | F51: 1.5293 | G51: 1.5135 | H51: 1.5398 | I51: 1.719028571 | J51: 1.893208913
A52: 2021-08-02 | B52: 1.6747 | C52: 2.2193 | D52: 1.7626 | E52: 1.7156 | F52: 1.5103 | G52: 1.4745 | H52: 1.5082 | I52: 1.695028571 | J52: 1.893208913
A53: 2021-07-30 | B53: 1.6587 | C53: 2.2067 | D53: 1.738 | E53: 1.7034 | F53: 1.4996 | G53: 1.4514 | H53: 1.4935 | I53: 1.678757143 | J53: 1.893208913
A54: 2021-07-29 | B54: 1.6856 | C54: 2.244 | D54: 1.7649 | E54: 1.7218 | F54: 1.5145 | G54: 1.4639 | H54: 1.5116 | I54: 1.7009 | J54: 1.893208913
A55: 2021-07-28 | B55: 1.6883 | C55: 2.2623 | D55: 1.7869 | E55: 1.7343 | F55: 1.5317 | G55: 1.4618 | H55: 1.5089 | I55: 1.7106 | J55: 1.893208913
A56: 2021-07-27 | B56: 1.7009 | C56: 2.2749 | D56: 1.7895 | E56: 1.7479 | F56: 1.5526 | G56: 1.4772 | H56: 1.5129 | I56: 1.722271429 | J56: 1.893208913
A57: 2021-07-26 | B57: 1.6743 | C57: 2.2617 | D57: 1.7553 | E57: 1.7052 | F57: 1.5442 | G57: 1.4583 | H57: 1.4918 | I57: 1.698685714 | J57: 1.893208913
A58: 2021-07-23 | B58: 1.6732 | C58: 2.2503 | D58: 1.7267 | E58: 1.7068 | F58: 1.5228 | G58: 1.4678 | H58: 1.4807 | I58: 1.689757143 | J58: 1.893208913
A59: 2021-07-22 | B59: 1.643 | C59: 2.2119 | D59: 1.6968 | E59: 1.6715 | F59: 1.4894 | G59: 1.4406 | H59: 1.4476 | I59: 1.657257143 | J59: 1.893208913
A60: 2021-07-21 | B60: 1.653 | C60: 2.2296 | D60: 1.7237 | E60: 1.6939 | F60: 1.496 | G60: 1.4616 | H60: 1.4849 | I60: 1.677528571 | J60: 1.893208913
A61: 2021-07-20 | B61: 1.6738 | C61: 2.2468 | D61: 1.738 | E61: 1.7001 | F61: 1.5037 | G61: 1.4734 | H61: 1.4946 | I61: 1.690057143 | J61: 1.893208913
A62: 2021-07-19 | B62: 1.6648 | C62: 2.1741 | D62: 1.7167 | E62: 1.6861 | F62: 1.4859 | G62: 1.4408 | H62: 1.4891 | I62: 1.665357143 | J62: 1.893208913
A63: 2021-07-16 | B63: 1.7033 | C63: 2.2503 | D63: 1.7579 | E63: 1.723 | F63: 1.5228 | G63: 1.4751 | H63: 1.5465 | I63: 1.711271429 | J63: 1.893208913
A64: 2021-07-15 | B64: 1.6962 | C64: 2.2743 | D64: 1.7596 | E64: 1.7131 | F64: 1.5305 | G64: 1.4657 | H64: 1.5503 | I64: 1.712814286 | J64: 1.893208913
A65: 2021-07-14 | B65: 1.6732 | C65: 2.2634 | D65: 1.7337 | E65: 1.6978 | F65: 1.5448 | G65: 1.4439 | H65: 1.5156 | I65: 1.696057143 | J65: 1.893208913
A66: 2021-07-13 | B66: 1.6622 | C66: 2.2715 | D66: 1.727 | E66: 1.6914 | F66: 1.5454 | G66: 1.4269 | H66: 1.5177 | I66: 1.691728571 | J66: 1.893208913
A67: 2021-07-12 | B67: 1.673 | C67: 2.3184 | D67: 1.739 | E67: 1.7008 | F67: 1.5746 | G67: 1.4369 | H67: 1.5295 | I67: 1.710314286 | J67: 1.893208913
A68: 2021-07-09 | B68: 1.6577 | C68: 2.3018 | D68: 1.7284 | E68: 1.684 | F68: 1.5716 | G68: 1.4207 | H68: 1.519 | I68: 1.6976 | J68: 1.893208913
A69: 2021-07-08 | B69: 1.643 | C69: 2.2823 | D69: 1.7058 | E69: 1.6863 | F69: 1.5544 | G69: 1.3958 | H69: 1.5049 | I69: 1.681785714 | J69: 1.893208913
A70: 2021-07-07 | B70: 1.6479 | C70: 2.3018 | D70: 1.7377 | E70: 1.7085 | F70: 1.5651 | G70: 1.4031 | H70: 1.5202 | I70: 1.697757143 | J70: 1.893208913
A71: 2021-07-06 | B71: 1.6333 | C71: 2.2732 | D71: 1.7327 | E71: 1.7013 | F71: 1.5544 | G71: 1.3707 | H71: 1.5179 | I71: 1.683357143 | J71: 1.893208913
A72: 2021-07-05 | B72: 1.6338 | C72: 2.2949 | D72: 1.746 | E72: 1.72 | F72: 1.5657 | G72: 1.3898 | H72: 1.5324 | I72: 1.697514286 | J72: 1.893208913
A73: 2021-07-02 | B73: 1.6338 | C73: 2.2949 | D73: 1.746 | E73: 1.72 | F73: 1.5657 | G73: 1.3898 | H73: 1.5324 | I73: 1.697514286 | J73: 1.893208913
A74: 2021-07-01 | B74: 1.6316 | C74: 2.3213 | D74: 1.7573 | E74: 1.7242 | F74: 1.574 | G74: 1.3883 | H74: 1.5373 | I74: 1.704857143 | J74: 1.893208913
A75: 2021-06-30 | B75: 1.617 | C75: 2.2669 | D75: 1.7457 | E75: 1.7112 | F75: 1.5448 | G75: 1.3738 | H75: 1.5213 | I75: =IFERROR(AVERAGE(B75:H75),"NA") -> 1.682957143 | J75: =AVERAGE($I$10:$I$2596) -> 1.893208913
A76: 2021-06-29 | B76: 1.6108 | C76: 2.0903 | D76: 1.7224 | E76: 1.7386 | F76: 1.5459 | G76: 1.361 | H76: 1.5013 | I76: 1.6529 | J76: 1.893208913
A77: 2021-06-28 | B77: 1.6499 | C77: 2.0982 | D77: 1.7391 | E77: 1.7608 | F77: 1.5647 | G77: 1.3695 | H77: 1.5145 | I77: 1.670957143 | J77: 1.893208913
A78: 2021-06-25 | B78: 1.6529 | C78: 2.123 | D78: 1.7467 | E78: 1.7502 | F78: 1.5854 | G78: 1.3495 | H78: 1.5189 | I78: 1.675228571 | J78: 1.893208913
A79: 2021-06-24 | B79: 1.6283 | C79: 2.1891 | D79: 1.7028 | E79: 1.7124 | F79: 1.5836 | G79: 1.3319 | H79: 1.4753 | I79: 1.660485714 | J79: 1.893208913
A80: 2021-06-23 | B80: 1.6265 | C80: 2.1716 | D80: 1.693 | E80: 1.7061 | F80: 1.5636 | G80: 1.3229 | H80: 1.4599 | I80: 1.649085714 | J80: 1.893208913
A81: 2021-06-22 | B81: 1.6442 | C81: 2.1922 | D81: 1.7273 | E81: 1.7328 | F81: 1.5594 | G81: 1.3267 | H81: 1.4776 | I81: 1.665742857 | J81: 1.893208913
A82: 2021-06-21 | B82: 1.6547 | C82: 2.2292 | D82: 1.7463 | E82: 1.7555 | F82: 1.5783 | G82: 1.3495 | H82: 1.55 | I82: 1.694785714 | J82: 1.893208913
A83: 2021-06-18 | B83: 1.6353 | C83: 2.1637 | D83: 1.708 | E83: 1.7305 | F83: 1.5435 | G83: 1.3212 | H83: 1.5054 | I83: 1.658228571 | J83: 1.893208913
A84: 2021-06-17 | B84: 1.6757 | C84: 2.2551 | D84: 1.7912 | E84: 1.8105 | F84: 1.6214 | G84: 1.3754 | H84: 1.5779 | I84: 1.7296 | J84: 1.893208913
A85: 2021-06-16 | B85: 1.6803 | C85: 2.2673 | D85: 1.801 | E85: 1.8049 | F85: 1.5895 | G85: 1.3852 | H85: 1.5839 | I85: 1.7303 | J85: 1.893208913
A86: 2021-06-15 | B86: 1.6868 | C86: 2.2937 | D86: 1.8102 | E86: 1.7986 | F86: 1.609 | G86: 1.3996 | H86: 1.5698 | I86: 1.738242857 | J86: 1.893208913
A87: 2021-06-14 | B87: 1.6891 | C87: 2.3022 | D87: 1.804 | E87: 1.7903 | F87: 1.6043 | G87: 1.3963 | H87: 1.5652 | I87: 1.735914286 | J87: 1.893208913
A88: 2021-06-11 | B88: 1.7006 | C88: 2.3328 | D88: 1.8082 | E88: 1.7972 | F88: 1.6498 | G88: 1.4149 | H88: 1.5712 | I88: 1.753528571 | J88: 1.893208913
A89: 2021-06-10 | B89: 1.6911 | C89: 2.3069 | D89: 1.7925 | E89: 1.7996 | F89: 1.6344 | G89: 1.4003 | H89: 1.5496 | I89: 1.7392 | J89: 1.893208913
A90: 2021-06-09 | B90: 1.69 | C90: 2.3132 | D90: 1.7974 | E90: 1.7773 | F90: 1.6374 | G90: 1.4053 | H90: 1.5343 | I90: 1.736414286 | J90: 1.893208913
A91: 2021-06-08 | B91: 1.6756 | C91: 2.3048 | D91: 1.7784 | E91: 1.7525 | F91: 1.6362 | G91: 1.3856 | H91: 1.517 | I91: 1.721442857 | J91: 1.893208913
A92: 2021-06-07 | B92: 1.6869 | C92: 2.3064 | D92: 1.7837 | E92: 1.7534 | F92: 1.6279 | G92: 1.3871 | H92: 1.505 | I92: 1.721485714 | J92: 1.893208913
A93: 2021-06-04 | B93: 1.6826 | C93: 2.3074 | D93: 1.7604 | E93: 1.7437 | F93: 1.6185 | G93: 1.39 | H93: 1.4961 | I93: 1.7141 | J93: 1.893208913
A94: 2021-06-03 | B94: 1.6906 | C94: 2.3101 | D94: 1.7686 | E94: 1.7497 | F94: 1.6273 | G94: 1.4026 | H94: 1.5121 | I94: 1.723 | J94: 1.893208913
A95: 2021-06-02 | B95: 1.6786 | C95: 2.2889 | D95: 1.7542 | E95: 1.7351 | F95: 1.6096 | G95: 1.3961 | H95: 1.5067 | I95: 1.709885714 | J95: 1.893208913
A96: 2021-06-01 | B96: 1.6614 | C96: 2.2763 | D96: 1.7414 | E96: 1.7272 | F96: 1.6014 | G96: 1.4045 | H96: 1.4988 | I96: 1.701571429 | J96: 1.893208913
A97: 2021-05-31 | B97: 1.6569 | C97: 2.2572 | D97: 1.7313 | E97: 1.7231 | F97: 1.5742 | G97: 1.3802 | H97: 1.4876 | I97: 1.687214286 | J97: 1.893208913
A98: 2021-05-28 | B98: 1.6569 | C98: 2.2572 | D98: 1.7313 | E98: 1.7231 | F98: 1.5742 | G98: 1.3802 | H98: 1.4876 | I98: 1.687214286 | J98: 1.893208913
A99: 2021-05-27 | B99: 1.6567 | C99: 2.2483 | D99: 1.7336 | E99: 1.733 | F99: 1.5523 | G99: 1.3785 | H99: 1.4898 | I99: 1.6846 | J99: 1.893208913
A100: 2021-05-26 | B100: 1.6477 | C100: 2.253 | D100: 1.7454 | E100: 1.7374 | F100: 1.5565 | G100: 1.3919 | H100: 1.5019 | I100: 1.690542857 | J100: 1.893208913
A101: 2021-05-25 | B101: 1.6422 | C101: 2.2356 | D101: 1.7296 | E101: 1.7221 | F101: 1.5323 | G101: 1.3927 | H101: 1.4923 | I101: 1.678114286 | J101: 1.893208913
A102: 2021-05-24 | B102: 1.6445 | C102: 2.2874 | D102: 1.7509 | E102: 1.7226 | F102: 1.563 | G102: 1.3917 | H102: 1.5181 | I102: 1.696885714 | J102: 1.893208913
A103: 2021-05-21 | B103: 1.6403 | C103: 2.2578 | D103: 1.7375 | E103: 1.7159 | F103: 1.5411 | G103: 1.3852 | H103: 1.51 | I103: 1.683971429 | J103: 1.893208913
A104: 2021-05-20 | B104: 1.6427 | C104: 2.2451 | D104: 1.7562 | E104: 1.7066 | F104: 1.5335 | G104: 1.4003 | H104: 1.5137 | I104: 1.685442857 | J104: 1.893208913
A105: 2021-05-19 | B105: 1.6392 | C105: 2.2461 | D105: 1.7604 | E105: 1.6931 | F105: 1.5199 | G105: 1.3902 | H105: 1.5112 | I105: 1.680014286 | J105: 1.893208913
A106: 2021-05-18 | B106: 1.6564 | C106: 2.2372 | D106: 1.784 | E106: 1.7122 | F106: 1.5205 | G106: 1.4166 | H106: 1.5303 | I106: 1.693885714 | J106: 1.893208913
A107: 2021-05-17 | B107: 1.6458 | C107: 2.2504 | D107: 1.7751 | E107: 1.7203 | F107: 1.5151 | G107: 1.4402 | H107: 1.5461 | I107: 1.699 | J107: 1.893208913
A108: 2021-05-14 | B108: 1.6784 | C108: 2.281 | D108: 1.7899 | E108: 1.7574 | F108: 1.5205 | G108: 1.4607 | H108: 1.5666 | I108: 1.722071429 | J108: 1.893208913
A109: 2021-05-13 | B109: 1.6809 | C109: 2.2778 | D109: 1.802 | E109: 1.7829 | F109: 1.5187 | G109: 1.5002 | H109: 1.5673 | I109: 1.732828571 | J109: 1.893208913
A110: 2021-05-12 | B110: 1.6582 | C110: 2.2086 | D110: 1.7444 | E110: 1.7544 | F110: 1.4697 | G110: 1.4404 | H110: 1.5359 | I110: 1.687371429 | J110: 1.893208913
A111: 2021-05-11 | B111: 1.6926 | C111: 2.2911 | D111: 1.7905 | E111: 1.8146 | F111: 1.5264 | G111: 1.4783 | H111: 1.5899 | I111: 1.740485714 | J111: 1.893208913
A112: 2021-05-10 | B112: 1.7294 | C112: 2.2948 | D112: 1.8099 | E112: 1.835 | F112: 1.5228 | G112: 1.5034 | H112: 1.6044 | I112: 1.7571 | J112: 1.893208913
A113: 2021-05-07 | B113: 1.7209 | C113: 2.299 | D113: 1.8036 | E113: 1.8174 | F113: 1.5216 | G113: 1.4714 | H113: 1.5754 | I113: 1.744185714 | J113: 1.893208913
A114: 2021-05-06 | B114: 1.7267 | C114: 2.272 | D114: 1.7899 | E114: 1.8107 | F114: 1.5027 | G114: 1.4674 | H114: 1.5862 | I114: 1.736514286 | J114: 1.893208913
A115: 2021-05-05 | B115: 1.713 | C115: 2.2208 | D115: 1.7683 | E115: 1.803 | F115: 1.4874 | G115: 1.4496 | H115: 1.5631 | I115: 1.715028571 | J115: 1.893208913
A116: 2021-05-04 | B116: 1.73 | C116: 2.2646 | D116: 1.7693 | E116: 1.8496 | F116: 1.4957 | G116: 1.4691 | H116: 1.5752 | I116: 1.736214286 | J116: 1.893208913
A117: 2021-05-03 | B117: 1.7341 | C117: 2.2789 | D117: 1.781 | E117: 1.8682 | F117: 1.5098 | G117: 1.4827 | H117: 1.5756 | I117: 1.747185714 | J117: 1.893208913
A118: 2021-04-30 | B118: 1.7307 | C118: 2.2166 | D118: 1.7653 | E118: 1.8656 | F118: 1.4614 | G118: 1.4578 | H118: 1.5639 | I118: 1.723042857 | J118: 1.893208913
A119: 2021-04-29 | B119: 1.7072 | C119: 2.2303 | D119: 1.7634 | E119: 1.8568 | F119: 1.4821 | G119: 1.4603 | H119: 1.5583 | I119: 1.722628571 | J119: 1.893208913
A120: 2021-04-28 | B120: 1.6757 | C120: 2.197 | D120: 1.7604 | E120: 1.8304 | F120: 1.4685 | G120: 1.4486 | H120: 1.5457 | I120: 1.703757143 | J120: 1.893208913
A121: 2021-04-27 | B121: 1.6955 | C121: 2.2055 | D121: 1.7539 | E121: 1.8262 | F121: 1.4284 | G121: 1.4477 | H121: 1.5573 | I121: 1.702071429 | J121: 1.893208913
A122: 2021-04-26 | B122: 1.711 | C122: 2.2313 | D122: 1.7833 | E122: 1.8559 | F122: 1.4425 | G122: 1.4824 | H122: 1.5671 | I122: 1.724785714 | J122: 1.893208913
A123: 2021-04-23 | B123: 1.7267 | C123: 2.2646 | D123: 1.8092 | E123: 1.884 | F123: 1.4715 | G123: 1.504 | H123: 1.5853 | I123: 1.749328571 | J123: 1.893208913
A124: 2021-04-22 | B124: 1.7275 | C124: 2.2387 | D124: 1.8239 | E124: 1.8816 | F124: 1.4626 | G124: 1.5038 | H124: 1.5924 | I124: 1.747214286 | J124: 1.893208913
A125: 2021-04-21 | B125: 1.7274 | C125: 2.2641 | D125: 1.8383 | E125: 1.8742 | F125: 1.4756 | G125: 1.5255 | H125: 1.6063 | I125: 1.758771429 | J125: 1.893208913
A126: 2021-04-20 | B126: 1.7474 | C126: 2.2615 | D126: 1.8462 | E126: 1.8865 | F126: 1.4537 | G126: 1.5243 | H126: 1.6084 | I126: 1.761142857 | J126: 1.893208913
A127: 2021-04-19 | B127: 1.7015 | C127: 2.2224 | D127: 1.799 | E127: 1.8675 | F127: 1.4425 | G127: 1.5027 | H127: 1.6017 | I127: 1.7339 | J127: 1.893208913
A128: 2021-04-16 | B128: 1.7011 | C128: 2.225 | D128: 1.8164 | E128: 1.8691 | F128: 1.4555 | G128: 1.5134 | H128: 1.6038 | I128: 1.740614286 | J128: 1.893208913
A129: 2021-04-15 | B129: 1.6928 | C129: 2.2023 | D129: 1.8118 | E129: 1.8513 | F129: 1.4478 | G129: 1.5121 | H129: 1.6067 | I129: 1.732114286 | J129: 1.893208913
A130: 2021-04-14 | B130: 1.6729 | C130: 2.1891 | D130: 1.7909 | E130: 1.8132 | F130: 1.4295 | G130: 1.4772 | H130: 1.5816 | I130: 1.707771429 | J130: 1.893208913
A131: 2021-04-13 | B131: 1.6555 | C131: 2.1526 | D131: 1.765 | E131: 1.804 | F131: 1.4331 | G131: 1.4586 | H131: 1.5818 | I131: 1.692942857 | J131: 1.893208913
A132: 2021-04-12 | B132: 1.66 | C132: 2.1743 | D132: 1.7915 | E132: 1.8172 | F132: 1.4313 | G132: 1.4603 | H132: 1.594 | I132: 1.704085714 | J132: 1.893208913
A133: 2021-04-09 | B133: 1.6562 | C133: 2.1563 | D133: 1.781 | E133: 1.8081 | F133: 1.4537 | G133: 1.4469 | H133: 1.581 | I133: 1.6976 | J133: 1.893208913
A134: 2021-04-08 | B134: 1.6427 | C134: 2.1944 | D134: 1.7751 | E134: 1.8049 | F134: 1.4532 | G134: 1.4505 | H134: 1.572 | I134: 1.698971429 | J134: 1.893208913
A135: 2021-04-07 | B135: 1.6412 | C135: 2.1849 | D135: 1.7725 | E135: 1.7942 | F135: 1.4319 | G135: 1.454 | H135: 1.5515 | I135: 1.690028571 | J135: 1.893208913
A136: 2021-04-06 | B136: 1.6417 | C136: 2.1505 | D136: 1.7588 | E136: 1.7926 | F136: 1.3959 | G136: 1.4419 | H136: 1.5461 | I136: 1.675357143 | J136: 1.893208913
A137: 2021-04-05 | B137: 1.6477 | C137: 2.1246 | D137: 1.7506 | E137: 1.7926 | F137: 1.3575 | G137: 1.4373 | H137: 1.5382 | I137: 1.664071429 | J137: 1.893208913
A138: 2021-04-02 | B138: 1.6413 | C138: 2.1098 | D138: 1.7375 | E138: 1.7808 | F138: 1.3616 | G138: 1.4268 | H138: 1.5231 | I138: 1.654414286 | J138: 1.893208913
A139: 2021-04-01 | B139: 1.6413 | C139: 2.1098 | D139: 1.7375 | E139: 1.7808 | F139: 1.3616 | G139: 1.4268 | H139: 1.5231 | I139: =IFERROR(AVERAGE(B139:H139),"NA") -> 1.654414286 | J139: =AVERAGE($I$10:$I$2596) -> 1.893208913
A140: 2021-03-31 | B140: 1.6515 | C140: 2.1067 | D140: 1.7663 | E140: 1.7831 | F140: 1.3333 | G140: 1.4367 | H140: 1.5338 | I140: 1.658771429 | J140: 1.893208913
A141: 2021-03-30 | B141: 1.7569 | C141: 2.2928 | D141: 1.8479 | E141: 1.8107 | F141: 1.3894 | G141: 1.4774 | H141: 1.6277 | I141: 1.743257143 | J141: 1.893208913
A142: 2021-03-29 | B142: 1.7562 | C142: 2.3018 | D142: 1.8545 | E142: 1.8157 | F142: 1.373 | G142: 1.4823 | H142: 1.622 | I142: 1.743642857 | J142: 1.893208913
A143: 2021-03-26 | B143: 1.7276 | C143: 2.2515 | D143: 1.8115 | E143: 1.7852 | F143: 1.3476 | G143: 1.4381 | H143: 1.6314 | I143: 1.713271429 | J143: 1.893208913
A144: 2021-03-25 | B144: 1.7248 | C144: 2.2713 | D144: 1.8139 | E144: 1.7907 | F144: 1.3676 | G144: 1.4648 | H144: 1.6081 | I144: 1.720171429 | J144: 1.893208913
A145: 2021-03-24 | B145: 1.7029 | C145: 2.2628 | D145: 1.828 | E145: 1.7729 | F145: 1.3573 | G145: 1.4659 | H145: 1.592 | I145: 1.711685714 | J145: 1.893208913
A146: 2021-03-23 | B146: 1.6733 | C146: 2.2294 | D146: 1.7633 | E146: 1.7452 | F146: 1.3664 | G146: 1.4372 | H146: 1.5775 | I146: 1.684614286 | J146: 1.893208913
A147: 2021-03-22 | B147: 1.6619 | C147: 2.2934 | D147: 1.7227 | E147: 1.7405 | F147: 1.3803 | G147: 1.4218 | H147: 1.594 | I147: 1.6878 | J147: 1.893208913
A148: 2021-03-19 | B148: 1.6717 | C148: 2.3556 | D148: 1.8228 | E148: 1.7793 | F148: 1.367 | G148: 1.4496 | H148: 1.6246 | I148: 1.724371429 | J148: 1.893208913
A149: 2021-03-18 | B149: 1.6617 | C149: 2.2786 | D149: 1.7705 | E149: 1.7786 | F149: 1.3028 | G149: 1.4351 | H149: 1.6325 | I149: 1.694257143 | J149: 1.893208913
A150: 2021-03-17 | B150: 1.6422 | C150: 2.235 | D150: 1.7406 | E150: 1.78 | F150: 1.3627 | G150: 1.4126 | H150: 1.6189 | I150: 1.684571429 | J150: 1.893208913
A151: 2021-03-16 | B151: 1.6665 | C151: 2.3856 | D151: 1.8366 | E151: 1.8457 | F151: 1.6849 | G151: 1.4381 | H151: 1.664 | I151: 1.788771429 | J151: 1.893208913
A152: 2021-03-15 | B152: 1.6557 | C152: 2.4015 | D152: 1.8638 | E152: 1.8338 | F152: 1.7346 | G152: 1.4169 | H152: 1.6444 | I152: 1.792957143 | J152: 1.893208913
A153: 2021-03-12 | B153: 1.6242 | C153: 2.3483 | D153: 1.8318 | E153: 1.7886 | F153: 1.6916 | G153: 1.3968 | H153: 1.6552 | I153: 1.762357143 | J153: 1.893208913
A154: 2021-03-11 | B154: 1.5969 | C154: 2.3035 | D154: 1.7939 | E154: 1.7557 | F154: 1.6631 | G154: 1.4007 | H154: 1.6054 | I154: 1.731314286 | J154: 1.893208913
A155: 2021-03-10 | B155: 1.6134 | C155: 2.3132 | D155: 1.8245 | E155: 1.7721 | F155: 1.7443 | G155: 1.4528 | H155: 1.5966 | I155: 1.759557143 | J155: 1.893208913
A156: 2021-03-09 | B156: 1.5873 | C156: 2.2781 | D156: 1.7984 | E156: 1.7471 | F156: 1.6989 | G156: 1.4687 | H156: 1.5856 | I156: 1.737728571 | J156: 1.893208913
A157: 2021-03-08 | B157: 1.6281 | C157: 2.3239 | D157: 1.8497 | E157: 1.7859 | F157: 1.7164 | G157: 1.5198 | H157: 1.6032 | I157: 1.775285714 | J157: 1.893208913
A158: 2021-03-05 | B158: 1.6294 | C158: 2.2769 | D158: 1.7798 | E158: 1.7521 | F158: 1.6159 | G158: 1.4813 | H158: 1.5625 | I158: 1.728271429 | J158: 1.893208913
A159: 2021-03-04 | B159: 1.5794 | C159: 2.2232 | D159: 1.6717 | E159: 1.6376 | F159: 1.5208 | G159: 1.3934 | H159: 1.4977 | I159: 1.646257143 | J159: 1.893208913
A160: 2021-03-03 | B160: 1.5715 | C160: 2.2447 | D160: 1.6339 | E160: 1.6372 | F160: 1.5886 | G160: 1.3626 | H160: 1.4823 | I160: 1.645828571 | J160: 1.893208913
A161: 2021-03-02 | B161: 1.55 | C161: 2.23 | D161: 1.6452 | E161: 1.6374 | F161: 1.5668 | G161: 1.3551 | H161: 1.4719 | I161: 1.636628571 | J161: 1.893208913
A162: 2021-03-01 | B162: 1.5235 | C162: 2.2809 | D162: 1.6607 | E162: 1.6557 | F162: 1.5511 | G162: 1.3607 | H162: 1.4754 | I162: 1.644 | J162: 1.893208913
A163: 2021-02-26 | B163: 1.5032 | C163: 2.2243 | D163: 1.6518 | E163: 1.5943 | F163: 1.5208 | G163: 1.3331 | H163: 1.4633 | I163: 1.612971429 | J163: 1.893208913
A164: 2021-02-25 | B164: 1.5675 | C164: 2.235 | D164: 1.6793 | E164: 1.6429 | F164: 1.545 | G164: 1.3707 | H164: 1.4968 | I164: 1.648171429 | J164: 1.893208913
A165: 2021-02-24 | B165: 1.5754 | C165: 2.2158 | D165: 1.692 | E165: 1.6629 | F165: 1.5293 | G165: 1.39 | H165: 1.4995 | I165: 1.652128571 | J165: 1.893208913
A166: 2021-02-23 | B166: 1.5924 | C166: 2.2254 | D166: 1.6886 | E166: 1.6667 | F166: 1.5365 | G166: 1.4081 | H166: 1.5133 | I166: 1.661571429 | J166: 1.893208913
A167: 2021-02-22 | B167: 1.5885 | C167: 2.2226 | D167: 1.6414 | E167: 1.6669 | F167: 1.4839 | G167: 1.3739 | H167: 1.4704 | I167: 1.635371429 | J167: 1.893208913
A168: 2021-02-19 | B168: 1.6622 | C168: 2.2418 | D168: 1.6824 | E168: 1.7631 | F168: 1.4693 | G168: 1.3855 | H168: 1.4909 | I168: 1.670742857 | J168: 1.893208913
A169: 2021-02-18 | B169: 1.6645 | C169: 2.2062 | D169: 1.6597 | E169: 1.7517 | F169: 1.4487 | G169: 1.3756 | H169: 1.4896 | I169: 1.656571429 | J169: 1.893208913
A170: 2021-02-17 | B170: 1.6422 | C170: 2.2005 | D170: 1.6459 | E170: 1.7371 | F170: 1.4499 | G170: 1.3611 | H170: 1.4644 | I170: 1.643014286 | J170: 1.893208913
A171: 2021-02-16 | B171: 1.6191 | C171: 2.1405 | D171: 1.6118 | E171: 1.7195 | F171: 1.4263 | G171: 1.3333 | H171: 1.4279 | I171: 1.6112 | J171: 1.893208913
A172: 2021-02-15 | B172: 1.6176 | C172: 2.0731 | D172: 1.5943 | E172: 1.7305 | F172: 1.433 | G172: 1.322 | H172: 1.4094 | I172: 1.597128571 | J172: 1.893208913
A173: 2021-02-12 | B173: 1.6176 | C173: 2.0731 | D173: 1.5943 | E173: 1.7305 | F173: 1.433 | G173: 1.322 | H173: 1.4094 | I173: 1.597128571 | J173: 1.893208913
A174: 2021-02-11 | B174: 1.6175 | C174: 2.1048 | D174: 1.6287 | E174: 1.7462 | F174: 1.4227 | G174: 1.3369 | H174: 1.4061 | I174: 1.608985714 | J174: 1.893208913
A175: 2021-02-10 | B175: 1.6319 | C175: 2.1162 | D175: 1.6063 | E175: 1.7552 | F175: 1.4221 | G175: 1.3198 | H175: 1.3928 | I175: 1.606328571 | J175: 1.893208913
A176: 2021-02-09 | B176: 1.5919 | C176: 2.1065 | D176: 1.6077 | E176: 1.7269 | F176: 1.4293 | G176: 1.3096 | H176: 1.4153 | I176: 1.598171429 | J176: 1.893208913
A177: 2021-02-08 | B177: 1.5826 | C177: 2.055 | D177: 1.576 | E177: 1.7271 | F177: 1.3785 | G177: 1.3126 | H177: 1.4265 | I177: 1.579757143 | J177: 1.893208913
A178: 2021-02-05 | B178: 1.5821 | C178: 2.0731 | D178: 1.5881 | E178: 1.7355 | F178: 1.3954 | G178: 1.3374 | H178: 1.4343 | I178: 1.592271429 | J178: 1.893208913
A179: 2021-02-04 | B179: 1.5773 | C179: 2.0409 | D179: 1.5519 | E179: 1.7238 | F179: 1.3785 | G179: 1.3237 | H179: 1.4105 | I179: 1.572371429 | J179: 1.893208913
A180: 2021-02-03 | B180: 1.5466 | C180: 2.0137 | D180: 1.5058 | E180: 1.7119 | F180: 1.3542 | G180: 1.2938 | H180: 1.3717 | I180: 1.542528571 | J180: 1.893208913
A181: 2021-02-02 | B181: 1.5752 | C181: 2.0346 | D181: 1.5275 | E181: 1.7488 | F181: 1.3712 | G181: 1.2961 | H181: 1.3873 | I181: 1.562957143 | J181: 1.893208913
A182: 2021-02-01 | B182: 1.575 | C182: 2.0188 | D182: 1.5578 | E182: 1.7576 | F182: 1.3966 | G182: 1.2991 | H182: 1.3737 | I182: 1.568371429 | J182: 1.893208913
A183: 2021-01-29 | B183: 1.5812 | C183: 1.982 | D183: 1.6077 | E183: 1.741 | F183: 1.3991 | G183: 1.282 | H183: 1.3481 | I183: 1.563014286 | J183: 1.893208913
A184: 2021-01-28 | B184: 1.5736 | C184: 1.9763 | D184: 1.5203 | E184: 1.739 | F184: 1.3415 | G184: 1.2899 | H184: 1.332 | I184: 1.538942857 | J184: 1.893208913
A185: 2021-01-27 | B185: 1.6137 | C185: 2.0075 | D185: 1.6005 | E185: 1.7759 | F185: 1.3978 | G185: 1.2918 | H185: 1.3415 | I185: 1.575528571 | J185: 1.893208913
A186: 2021-01-26 | B186: 1.6159 | C186: 1.9961 | D186: 1.5543 | E186: 1.7214 | F186: 1.3355 | G186: 1.301 | H186: 1.3289 | I186: 1.550442857 | J186: 1.893208913
A187: 2021-01-25 | B187: 1.6068 | C187: 2.0267 | D187: 1.5282 | E187: 1.7255 | F187: 1.3724 | G187: 1.2948 | H187: 1.3569 | I187: 1.558757143 | J187: 1.893208913
A188: 2021-01-22 | B188: 1.5828 | C188: 2.0058 | D188: 1.4883 | E188: 1.6852 | F188: 1.3106 | G188: 1.2533 | H188: 1.3604 | I188: 1.526628571 | J188: 1.893208913
A189: 2021-01-21 | B189: 1.5892 | C189: 1.9792 | D189: 1.4772 | E189: 1.6812 | F189: 1.2779 | G189: 1.2305 | H189: 1.3459 | I189: 1.511585714 | J189: 1.893208913
A190: 2021-01-20 | B190: 1.6006 | C190: 2.0222 | D190: 1.4607 | E190: 1.6902 | F190: 1.284 | G190: 1.2459 | H190: 1.3384 | I190: 1.520285714 | J190: 1.893208913
A191: 2021-01-19 | B191: 1.6004 | C191: 2.0675 | D191: 1.4969 | E191: 1.6986 | F191: 1.33 | G191: 1.2591 | H191: 1.3474 | I191: 1.542842857 | J191: 1.893208913
A192: 2021-01-18 | B192: 1.5995 | C192: 2.136 | D192: 1.5389 | E192: 1.7138 | F192: 1.376 | G192: 1.2852 | H192: 1.3582 | I192: 1.572514286 | J192: 1.893208913
A193: 2021-01-15 | B193: 1.5995 | C193: 2.136 | D193: 1.5389 | E193: 1.7138 | F193: 1.376 | G193: 1.2852 | H193: 1.3582 | I193: 1.572514286 | J193: 1.893208913
A194: 2021-01-14 | B194: 1.5571 | C194: 2.1365 | D194: 1.5282 | E194: 1.7012 | F194: 1.3639 | G194: 1.2805 | H194: 1.3485 | I194: 1.559414286 | J194: 1.893208913
A195: 2021-01-13 | B195: 1.5716 | C195: 2.1162 | D195: 1.5316 | E195: 1.7019 | F195: 1.3337 | G195: 1.2743 | H195: 1.3558 | I195: 1.555014286 | J195: 1.893208913
A196: 2021-01-12 | B196: 1.5567 | C196: 2.0856 | D196: 1.502 | E196: 1.7036 | F196: 1.3294 | G196: 1.2784 | H196: 1.3441 | I196: 1.542828571 | J196: 1.893208913
A197: 2021-01-11 | B197: 1.5576 | C197: 2.0256 | D197: 1.5099 | E197: 1.7121 | F197: 1.324 | G197: 1.2424 | H197: 1.3428 | I197: 1.530628571 | J197: 1.893208913
A198: 2021-01-08 | B198: 1.5858 | C198: 2.0063 | D198: 1.512 | E198: 1.7286 | F198: 1.3088 | G198: 1.251 | H198: 1.3688 | I198: 1.537328571 | J198: 1.893208913
A199: 2021-01-07 | B199: 1.5949 | C199: 2.0007 | D199: 1.5093 | E199: 1.7714 | F199: 1.31 | G199: 1.2662 | H199: 1.3712 | I199: 1.546242857 | J199: 1.893208913
A200: 2021-01-06 | B200: 1.6649 | C200: 2.0171 | D200: 1.5581 | E200: 1.8447 | F200: 1.3361 | G200: 1.3034 | H200: 1.4043 | I200: 1.5898 | J200: 1.893208913
A201: 2021-01-05 | B201: 1.6454 | C201: 1.9061 | D201: 1.513 | E201: 1.7826 | F201: 1.2767 | G201: 1.2598 | H201: 1.3745 | I201: 1.536871429 | J201: 1.893208913
A202: 2021-01-04 | B202: 1.6706 | C202: 1.952 | D202: 1.5716 | E202: 1.7964 | F202: 1.2828 | G202: 1.2709 | H202: 1.397 | I202: 1.563042857 | J202: 1.893208913
A203: 2021-01-01 | B203: 1.6955 | C203: 2.0126 | D203: 1.5829 | E203: 1.8276 | F203: 1.3052 | G203: 1.2989 | H203: 1.4109 | I203: =IFERROR(AVERAGE(B203:H203),"NA") -> 1.590514286 | J203: =AVERAGE($I$10:$I$2596) -> 1.893208913
... 2393 more rows

Sheet Chart 2 Treasury Forecast Error
A1: Source: Federal Reserve
B2: Download Page | C2: H.15 Selected Interest Rates for Sep 30, 2021
B3: Series Description | C3: Market yield on U.S. Treasury securities at 30-year constant maturity, quoted on investment basis
B4: Unit: | C4: Percent:_Per_Year
B5: Multiplier: | C5: 1
B6: Currency: | C6: NA
B7: Unique Identifier: | C7: H15/H15/RIFLGFCY30_N.M
B8: Time Period | C8: RIFLGFCY30_N.M | D8: 3-Mo Avg | E8: 12-Mo Prior | F8: Difference
A9: 2021 | B9: 2021-09-30 | C9: 1.94 | D9: =AVERAGE(C9:OFFSET(C9,3,,)) -> 1.99 | E9: =OFFSET(D9,12,0) -> 1.395 | F9: =E9-C9 -> -0.545
A10: 2021 | B10: 2021-08-01 | C10: 1.92 | D10: =AVERAGE(C10:OFFSET(C10,3,,)) -> 2.085 | E10: =OFFSET(D10,12,0) -> 1.385 | F10: =E10-C10 -> -0.535
A11: =YEAR(B11) -> 2021 | B11: 2021-07-01 | C11: 1.94 | D11: =AVERAGE(C11:OFFSET(C11,3,,)) -> 2.18 | E11: =OFFSET(D11,12,0) -> 1.3625 | F11: =E11-C11 -> -0.5775
A12: =YEAR(B12) -> 2021 | B12: 2021-06-01 | C12: 2.16 | D12: =AVERAGE(C12:OFFSET(C12,3,,)) -> 2.28 | E12: 1.4 | F12: =E12-C12 -> -0.76
A13: 2021 | B13: 2021-05-01 | C13: 2.32 | D13: =AVERAGE(C13:OFFSET(C13,3,,)) -> 2.25 | E13: =OFFSET(D13,12,0) -> 1.52 | F13: -0.8
A14: 2021 | B14: 2021-04-01 | C14: 2.3 | D14: =AVERAGE(C14:OFFSET(C14,3,,)) -> 2.125 | E14: 1.73 | F14: -0.57
A15: 2021 | B15: 2021-03-01 | C15: 2.34 | D15: =AVERAGE(C15:OFFSET(C15,3,,)) -> 1.9675 | E15: 1.9875 | F15: -0.3525
A16: 2021 | B16: 2021-02-01 | C16: 2.04 | D16: =AVERAGE(C16:OFFSET(C16,3,,)) -> 1.7875 | E16: 2.1925 | F16: =E16-C16 -> 0.1525
A17: 2021 | B17: 2021-01-01 | C17: 1.82 | D17: =AVERAGE(C17:OFFSET(C17,3,,)) -> 1.67 | E17: 2.2475 | F17: 0.4275
A18: 2020 | B18: 2020-12-01 | C18: 1.67 | D18: =AVERAGE(C18:OFFSET(C18,3,,)) -> 1.57 | E18: 2.2325 | F18: 0.5625
A19: 2020 | B19: 2020-11-01 | C19: 1.62 | D19: =AVERAGE(C19:OFFSET(C19,3,,)) -> 1.4925 | E19: 2.1875 | F19: 0.5675
A20: 2020 | B20: 2020-10-01 | C20: 1.57 | D20: =AVERAGE(C20:OFFSET(C20,3,,)) -> 1.415 | E20: 2.26 | F20: 0.69
A21: 2020 | B21: 2020-09-01 | C21: 1.42 | D21: =AVERAGE(C21:OFFSET(C21,3,,)) -> 1.395 | E21: 2.355 | F21: 0.935
A22: 2020 | B22: 2020-08-01 | C22: 1.36 | D22: =AVERAGE(C22:OFFSET(C22,3,,)) -> 1.385 | E22: 2.52 | F22: 1.16
A23: 2020 | B23: 2020-07-01 | C23: 1.31 | D23: =AVERAGE(C23:OFFSET(C23,3,,)) -> 1.3625 | E23: 2.725 | F23: 1.415
A24: 2020 | B24: 2020-06-01 | C24: 1.49 | D24: =AVERAGE(C24:OFFSET(C24,3,,)) -> 1.4 | E24: 2.8275 | F24: 1.3375
A25: 2020 | B25: 2020-05-01 | C25: 1.38 | D25: =AVERAGE(C25:OFFSET(C25,3,,)) -> 1.52 | E25: 2.94 | F25: 1.56
A26: 2020 | B26: 2020-04-01 | C26: 1.27 | D26: =AVERAGE(C26:OFFSET(C26,3,,)) -> 1.73 | E26: 2.995 | F26: 1.725
A27: 2020 | B27: 2020-03-01 | C27: 1.46 | D27: =AVERAGE(C27:OFFSET(C27,3,,)) -> 1.9875 | E27: 3.035 | F27: 1.575
A28: 2020 | B28: 2020-02-01 | C28: 1.97 | D28: =AVERAGE(C28:OFFSET(C28,3,,)) -> 2.1925 | E28: 3.13 | F28: 1.16
A29: 2020 | B29: 2020-01-01 | C29: 2.22 | D29: =AVERAGE(C29:OFFSET(C29,3,,)) -> 2.2475 | E29: 3.21 | F29: 0.99
A30: 2019 | B30: 2019-12-01 | C30: 2.3 | D30: =AVERAGE(C30:OFFSET(C30,3,,)) -> 2.2325 | E30: 3.2375 | F30: 0.9375
A31: 2019 | B31: 2019-11-01 | C31: 2.28 | D31: =AVERAGE(C31:OFFSET(C31,3,,)) -> 2.1875 | E31: 3.2225 | F31: 0.9425
A32: 2019 | B32: 2019-10-01 | C32: 2.19 | D32: =AVERAGE(C32:OFFSET(C32,3,,)) -> 2.26 | E32: 3.135 | F32: 0.945
A33: 2019 | B33: 2019-09-01 | C33: 2.16 | D33: =AVERAGE(C33:OFFSET(C33,3,,)) -> 2.355 | E33: 3.0625 | F33: 0.9025
A34: 2019 | B34: 2019-08-01 | C34: 2.12 | D34: =AVERAGE(C34:OFFSET(C34,3,,)) -> 2.52 | E34: 3.0575 | F34: 0.9375
A35: 2019 | B35: 2019-07-01 | C35: 2.57 | D35: =AVERAGE(C35:OFFSET(C35,3,,)) -> 2.725 | E35: 3.065 | F35: 0.495
A36: 2019 | B36: 2019-06-01 | C36: 2.57 | D36: =AVERAGE(C36:OFFSET(C36,3,,)) -> 2.8275 | E36: 3.085 | F36: 0.515
A37: 2019 | B37: 2019-05-01 | C37: 2.82 | D37: =AVERAGE(C37:OFFSET(C37,3,,)) -> 2.94 | E37: 3.105 | F37: 0.285
A38: 2019 | B38: 2019-04-01 | C38: 2.94 | D38: =AVERAGE(C38:OFFSET(C38,3,,)) -> 2.995 | E38: 3.0425 | F38: 0.1025
A39: 2019 | B39: 2019-03-01 | C39: 2.98 | D39: =AVERAGE(C39:OFFSET(C39,3,,)) -> 3.035 | E39: 2.9675 | F39: -0.0125
A40: 2019 | B40: 2019-02-01 | C40: 3.02 | D40: =AVERAGE(C40:OFFSET(C40,3,,)) -> 3.13 | E40: 2.895 | F40: -0.125
A41: 2019 | B41: 2019-01-01 | C41: 3.04 | D41: =AVERAGE(C41:OFFSET(C41,3,,)) -> 3.21 | E41: 2.8325 | F41: -0.2075
A42: 2018 | B42: 2018-12-01 | C42: 3.1 | D42: =AVERAGE(C42:OFFSET(C42,3,,)) -> 3.2375 | E42: 2.8075 | F42: -0.2925
A43: 2018 | B43: 2018-11-01 | C43: 3.36 | D43: =AVERAGE(C43:OFFSET(C43,3,,)) -> 3.2225 | E43: 2.815 | F43: -0.545
A44: 2018 | B44: 2018-10-01 | C44: 3.34 | D44: =AVERAGE(C44:OFFSET(C44,3,,)) -> 3.135 | E44: 2.835 | F44: -0.505
A45: 2018 | B45: 2018-09-01 | C45: 3.15 | D45: =AVERAGE(C45:OFFSET(C45,3,,)) -> 3.0625 | E45: 2.815 | F45: -0.335
A46: 2018 | B46: 2018-08-01 | C46: 3.04 | D46: =AVERAGE(C46:OFFSET(C46,3,,)) -> 3.0575 | E46: 2.86 | F46: -0.18
A47: 2018 | B47: 2018-07-01 | C47: 3.01 | D47: =AVERAGE(C47:OFFSET(C47,3,,)) -> 3.065 | E47: 2.895 | F47: -0.115
A48: 2018 | B48: 2018-06-01 | C48: 3.05 | D48: =AVERAGE(C48:OFFSET(C48,3,,)) -> 3.085 | E48: 2.945 | F48: -0.105
A49: 2018 | B49: 2018-05-01 | C49: 3.13 | D49: =AVERAGE(C49:OFFSET(C49,3,,)) -> 3.105 | E49: 3.0025 | F49: -0.1275
A50: 2018 | B50: 2018-04-01 | C50: 3.07 | D50: =AVERAGE(C50:OFFSET(C50,3,,)) -> 3.0425 | E50: 3.0175 | F50: -0.0525
A51: 2018 | B51: 2018-03-01 | C51: 3.09 | D51: =AVERAGE(C51:OFFSET(C51,3,,)) -> 2.9675 | E51: 3.06 | F51: -0.03
A52: 2018 | B52: 2018-02-01 | C52: 3.13 | D52: =AVERAGE(C52:OFFSET(C52,3,,)) -> 2.895 | E52: 3.005 | F52: -0.125
A53: 2018 | B53: 2018-01-01 | C53: 2.88 | D53: =AVERAGE(C53:OFFSET(C53,3,,)) -> 2.8325 | E53: 2.8725 | F53: -0.0075
